Workbook

Sheet Data_Sheet
A2: Jyothi Engineering College, Cheruthuruthy
A4: Department of Electrical & Electronics Engineering
A6: Total No of Students : | C6: 50 | D6: Date : | E6: 2019-10-04
D7: Semester | E7: S7
A8: Sub Code : | B8: Subject Name : | C8: Academic Year : | E8: 2019-20 | F8: CO1 | G8: S1 | H8: CE | I8: Department of Civil Engineering
A9: EC407 | B9: Computer Communication | C9: Total Marks(Int) : | E9: 50 | F9: CO2 | G9: S2 | H9: CS | I9: Department of Computer Science Engineering
A10: Branch | B10: Name of Faculty : | C10: Total Marks(Ext) : | E10: 100 | F10: CO3 | G10: S3 | H10: EC | I10: Department of Electrical & Electronics Engineering
A11: EC | B11: PONMANI RAJA M | C11: Target Grade Point : | E11: 6 | F11: CO4 | G11: S4 | H11: EE | I11: Department of Electronics & Communication Engineering
F12: CO5 | G12: S5 | H12: ME | I12: Department of Mechanical Engineering
F13: CO6 | G13: S6 | H13: MR | I13: Department of Mechatronics Engineering
G14: S7
A15: ="CO Analysis - Internal Marks " &" " &TEXT(E6,"dd-mm-yy") -> CO Analysis - Internal Marks 04-10-19 | G15: S8 | L15: =LEFT("CO Analysis - Internal Marks : ",LEN("CO Analysis - Internal Marks : ")-3) &" " &E8 -> CO Analysis - Internal Marks 2019-20
A17: =E7&" "&A11&" "&A9&" "&B9 &" " &E8 -> S7 EC EC407 Computer Communication 2019-20
A20: Register No. | B20: Name of Student | C20: University (External) Grade | D20: ="University (External) Grade Point" -> University (External) Grade Point | E20: ="Total Internal Marks (" & E9& ")" -> Total Internal Marks (50)
O21: CONCATENATE(TRANSPOSE(A29:A34)&",")
A24: Column1 | B24: Column2 | C24: Column3 | D24: Column4 | E24: Column32
A25: JEC16EC051 | B25: LANA KOLLATH | C25: B | D25: =IF(C25="O",10,IF(C25="A+",9,IF(C25="A",8.5,IF(C25="B+",8,IF(C25="B",7,IF(C25="C",6,IF(C25="P",5,0))))))) -> 7 | E25: 39.6
A26: JEC16EC052 | B26: MANU JENSON | C26: C | D26: 6 | E26: 33.4
A27: JEC16EC053 | B27: MAREENA MARIYA ABRAHAM | C27: A | D27: 8.5 | E27: 44
A28: JEC16EC054 | B28: MARIAN DAVIS KATTUKARAN | C28: C | D28: 6 | E28: 35.4
A29: JEC16EC055 | B29: MARY JEETHU A J | C29: A+ | D29: 9 | E29: 43.5
A30: JEC16EC056 | B30: MUBASHIRA K M | C30: A+ | D30: 9 | E30: 46
A31: JEC16EC057 | B31: MUHAMMED ARSHAD | C31: C | D31: 6 | E31: 33.1
A32: JEC16EC058 | B32: NANDANA K | C32: B | D32: 7 | E32: 42
A33: JEC16EC059 | B33: NARAYANAN M B | C33: C | D33: 6 | E33: 30.2
A34: JEC16EC061 | B34: NIKHIL KJ | C34: C | D34: 6 | E34: 30.1
A35: JEC16EC062 | B35: NIMISHA M S | C35: B | D35: 7 | E35: 36.4
A36: JEC16EC063 | B36: NIMISHA TONY | C36: B | D36: 7 | E36: 40.3
A37: JEC16EC064 | B37: NITHIN | C37: C | D37: 6 | E37: 38.4
A38: JEC16EC065 | B38: OLIVIA NELSON | C38: C | D38: 6 | E38: 38.6
A39: JEC16EC066 | B39: PAVITHRA.P | C39: C | D39: 6 | E39: 45.5
A40: JEC16EC067 | B40: P.DHANYA RAJ | C40: B | D40: 7 | E40: 40
A41: JEC16EC068 | B41: POOJA.P | C41: B+ | D41: 8 | E41: 44.3
A42: JEC16EC069 | B42: PRANAV | C42: C | D42: 6 | E42: 32.7
A43: JEC16EC070 | B43: PRASOBH KP | C43: B | D43: 7 | E43: 36.2
A44: JEC16EC071 | B44: PRINCE BENNY | C44: B | D44: 7 | E44: 38.7
A45: JEC16EC072 | B45: PRIYA.K | C45: B+ | D45: 8 | E45: 39.6
A46: JEC16EC073 | B46: RADHIKA | C46: B+ | D46: 8 | E46: 46.4
A47: JEC16EC074 | B47: RINOSHA.K.R | C47: B | D47: 7 | E47: 40.8
A48: JEC16EC075 | B48: RIYA ALBERT | C48: C | D48: 6 | E48: 33.2
A49: JEC16EC076 | B49: RIYA PS | C49: C | D49: 6 | E49: 35.1
A50: JEC16EC077 | B50: ROSHNI J NAIR | C50: B | D50: 7 | E50: 41.6
A51: JEC16EC079 | B51: SAFNA M | C51: C | D51: 6 | E51: 38.5
A52: JEC16EC080 | B52: SAJIN SHAJI | C52: B | D52: 7 | E52: 36
A53: JEC16EC081 | B53: SANDHRA .S | C53: F | D53: 0 | E53: 25.1
A54: JEC16EC082 | B54: SANGAMITHRA | C54: B | D54: 7 | E54: 39.8
A55: JEC16EC083 | B55: SARANYA.M.NAIR | C55: B | D55: 7 | E55: 38.4
A56: JEC16EC084 | B56: SARATHRAJ | C56: C | D56: 6 | E56: 34.4
A57: JEC16EC085 | B57: SHAHAN FATHIMA K | C57: C | D57: =IF(C57="O",10,IF(C57="A+",9,IF(C57="A",8.5,IF(C57="B+",8,IF(C57="B",7,IF(C57="C",6,IF(C57="P",5,0))))))) -> 6 | E57: 34.7
A58: JEC16EC086 | B58: SHAHLA.P.MOHAMMED | C58: C | D58: 6 | E58: 36
A59: JEC16EC087 | B59: SHAMSEENA T A | C59: Absent | D59: 0 | E59: 23.2
A60: JEC16EC088 | B60: SHARAN SHASHINDRAN A | C60: F | D60: 0 | E60: 24.7
A61: JEC16EC089 | B61: SIBIN KRISHNA C | C61: C | D61: 6 | E61: 33.5
A62: JEC16EC090 | B62: SREEJITH VIJAYAKUMAR | C62: Absent | D62: 0 | E62: 0
A63: JEC16EC091 | B63: SREELAKSHMI.R | C63: A+ | D63: 9 | E63: 45.2
A64: JEC16EC092 | B64: SREERAG K M | C64: C | D64: 6 | E64: 35.9
A65: JEC16EC093 | B65: SREERAG T K | C65: Absent | D65: 0 | E65: 0
A66: JEC16EC094 | B66: SREERAG V.V | C66: C | D66: 6 | E66: 32.7
A67: JEC16EC095 | B67: SRUTHIMOL.N.T | C67: Absent | D67: 0 | E67: 0
A68: JEC16EC096 | B68: SRUTHISHA SASI | C68: A | D68: 8.5 | E68: 45.6
A69: JEC16EC097 | B69: SUCHITHRA.TS | C69: C | D69: 6 | E69: 31.1
A70: JEC16EC098 | B70: SWETHA SARA GEORGE | C70: B | D70: 7 | E70: 40
A71: JEC16EC099 | B71: VISHNU K | C71: B | D71: 7 | E71: 39.5
A72: JEC16EC100 | B72: VISHNU PRAKASH | C72: F | D72: 0 | E72: 29.4
A73: JEC16EC101 | B73: VISHNU V | C73: C | D73: 6 | E73: 28.6
A74: LJEC16EC102 | B74: CHRISTEENA PAULSON | C74: B | D74: 7 | E74: 40.7
C75: =ROUND(100*D75/COUNTA(C25:INDIRECT("C"&A95)),2) -> 86 | D75: =COUNTIF(D25:INDIRECT(D95),">="&E11) -> 43 | E75: =IF(C75>=K91,3,IF(C75>=K90,2,IF(C75>=K89,1,0))) -> 3
A76: CO's | B76: Definition of CO's
A77: CO1 | B77: The students will have a thorough understanding of; Different types of network topologies and protocols.
A78: CO2 | B78: The layers of the OSI model and TCP/IP with their functions.
A79: CO3 | B79: The concept of subnetting and routing mechanisms.
A80: CO4 | B80: The basic protocols of computer networks, and how they can be used to assist in network design and implementation.
A81: CO5 | B81: Security aspects in designing a trusted computer communication system.
A82: CO6 | B82: CO6 Statement
A84: Internal Analysis | C84: Weightage | E84: 30 | K84: Target % | L84: %Students
A85: ="Attainment Level 1: "&$L$85&"% students scoring more than "&$K$85&"% of the Total Marks" -> Attainment Level 1: 60% students scoring more than 60% of the Total Marks | K85: 60 | L85: 60
A86: ="Attainment Level 2: "&$L$86&"% students scoring more than "&$K$85&"% of the Total Marks" -> Attainment Level 2: 70% students scoring more than 60% of the Total Marks | L86: 70
A87: ="Attainment Level 3: "&$L$87&"% students scoring more than "&$K$85&"% of the Total Marks" -> Attainment Level 3: 80% students scoring more than 60% of the Total Marks | L87: 80
A88: External Analysis | C88: Weightage | E88: 70 | K88: %Students
A89: ="Attainment Level 1: "&K89&"% students scoring more than the Target Grade Point" -> Attainment Level 1: 60% students scoring more than the Target Grade Point | K89: 60
A90: ="Attainment Level 2: "&K90&"% students scoring more than the Target Grade Point" -> Attainment Level 2: 70% students scoring more than the Target Grade Point | K90: 70
A91: ="Attainment Level 3: "&K91&"% students scoring more than the Target Grade Point" -> Attainment Level 3: 80% students scoring more than the Target Grade Point | K91: 80
B93: =B10 -> Name of Faculty : | C93: =B11 -> PONMANI RAJA M
B94: Dated Signature :
A95: =ROW(A76)-2 -> 74 | C95: ="$C$"&A95 -> $C$74 | D95: ="$D$"&A95 -> $D$74
B99: Last Row Count | C99: =ROW(A76)-2 -> 74 | D99: ="D"&$C$99 -> D74

Sheet Internal_Analysis
A3: =Data_Sheet!A2 -> Jyothi Engineering College, Cheruthuruthy
A5: =Data_Sheet!A4 -> Department of Electrical & Electronics Engineering
A7: =Data_Sheet!A15 -> CO Analysis - Internal Marks 04-10-19
A9: =Data_Sheet!A17 -> S7 EC EC407 Computer Communication 2019-20
A22: ='T1'!A18 -> Register No. | B22: ='T1'!B18 -> Name of Student | C22: ='T1'!J18 -> Total Marks (50) | D22: Category
A24: Column1 | B24: Column2 | C24: Column3 | D24: Column4
A25: =Data_Sheet!A25 -> JEC16EC051 | B25: =Data_Sheet!B25 -> LANA KOLLATH | C25: =Data_Sheet!E25 -> 39.6 | D25: =IF(C25="A","ABSENT",IF(C25>=Data_Sheet!$E$9*$E$82/100,"EXCELLENT",IF(C25>=Data_Sheet!$E$9*$E$81/100,"GOOD",IF(C25>=Data_Sheet!$E$9*$E$80/100,"AVERAGE","POOR")))) -> GOOD
A26: =Data_Sheet!A26 -> JEC16EC052 | B26: =Data_Sheet!B26 -> MANU JENSON | C26: =Data_Sheet!E26 -> 33.4 | D26: =IF(C26="A","ABSENT",IF(C26>=Data_Sheet!$E$9*$E$82/100,"EXCELLENT",IF(C26>=Data_Sheet!$E$9*$E$81/100,"GOOD",IF(C26>=Data_Sheet!$E$9*$E$80/100,"AVERAGE","POOR")))) -> GOOD
A27: =Data_Sheet!A27 -> JEC16EC053 | B27: =Data_Sheet!B27 -> MAREENA MARIYA ABRAHAM | C27: =Data_Sheet!E27 -> 44 | D27: =IF(C27="A","ABSENT",IF(C27>=Data_Sheet!$E$9*$E$82/100,"EXCELLENT",IF(C27>=Data_Sheet!$E$9*$E$81/100,"GOOD",IF(C27>=Data_Sheet!$E$9*$E$80/100,"AVERAGE","POOR")))) -> EXCELLENT
A28: =Data_Sheet!A28 -> JEC16EC054 | B28: =Data_Sheet!B28 -> MARIAN DAVIS KATTUKARAN | C28: =Data_Sheet!E28 -> 35.4 | D28: =IF(C28="A","ABSENT",IF(C28>=Data_Sheet!$E$9*$E$82/100,"EXCELLENT",IF(C28>=Data_Sheet!$E$9*$E$81/100,"GOOD",IF(C28>=Data_Sheet!$E$9*$E$80/100,"AVERAGE","POOR")))) -> GOOD
A29: =Data_Sheet!A29 -> JEC16EC055 | B29: =Data_Sheet!B29 -> MARY JEETHU A J | C29: =Data_Sheet!E29 -> 43.5 | D29: =IF(C29="A","ABSENT",IF(C29>=Data_Sheet!$E$9*$E$82/100,"EXCELLENT",IF(C29>=Data_Sheet!$E$9*$E$81/100,"GOOD",IF(C29>=Data_Sheet!$E$9*$E$80/100,"AVERAGE","POOR")))) -> EXCELLENT
A30: =Data_Sheet!A30 -> JEC16EC056 | B30: =Data_Sheet!B30 -> MUBASHIRA K M | C30: =Data_Sheet!E30 -> 46 | D30: =IF(C30="A","ABSENT",IF(C30>=Data_Sheet!$E$9*$E$82/100,"EXCELLENT",IF(C30>=Data_Sheet!$E$9*$E$81/100,"GOOD",IF(C30>=Data_Sheet!$E$9*$E$80/100,"AVERAGE","POOR")))) -> EXCELLENT
A31: =Data_Sheet!A31 -> JEC16EC057 | B31: =Data_Sheet!B31 -> MUHAMMED ARSHAD | C31: =Data_Sheet!E31 -> 33.1 | D31: =IF(C31="A","ABSENT",IF(C31>=Data_Sheet!$E$9*$E$82/100,"EXCELLENT",IF(C31>=Data_Sheet!$E$9*$E$81/100,"GOOD",IF(C31>=Data_Sheet!$E$9*$E$80/100,"AVERAGE","POOR")))) -> GOOD
A32: =Data_Sheet!A32 -> JEC16EC058 | B32: =Data_Sheet!B32 -> NANDANA K | C32: =Data_Sheet!E32 -> 42 | D32: =IF(C32="A","ABSENT",IF(C32>=Data_Sheet!$E$9*$E$82/100,"EXCELLENT",IF(C32>=Data_Sheet!$E$9*$E$81/100,"GOOD",IF(C32>=Data_Sheet!$E$9*$E$80/100,"AVERAGE","POOR")))) -> EXCELLENT
A33: =Data_Sheet!A33 -> JEC16EC059 | B33: =Data_Sheet!B33 -> NARAYANAN M B | C33: =Data_Sheet!E33 -> 30.2 | D33: =IF(C33="A","ABSENT",IF(C33>=Data_Sheet!$E$9*$E$82/100,"EXCELLENT",IF(C33>=Data_Sheet!$E$9*$E$81/100,"GOOD",IF(C33>=Data_Sheet!$E$9*$E$80/100,"AVERAGE","POOR")))) -> GOOD
A34: =Data_Sheet!A34 -> JEC16EC061 | B34: =Data_Sheet!B34 -> NIKHIL KJ | C34: =Data_Sheet!E34 -> 30.1 | D34: =IF(C34="A","ABSENT",IF(C34>=Data_Sheet!$E$9*$E$82/100,"EXCELLENT",IF(C34>=Data_Sheet!$E$9*$E$81/100,"GOOD",IF(C34>=Data_Sheet!$E$9*$E$80/100,"AVERAGE","POOR")))) -> GOOD
A35: =Data_Sheet!A35 -> JEC16EC062 | B35: =Data_Sheet!B35 -> NIMISHA M S | C35: =Data_Sheet!E35 -> 36.4 | D35: =IF(C35="A","ABSENT",IF(C35>=Data_Sheet!$E$9*$E$82/100,"EXCELLENT",IF(C35>=Data_Sheet!$E$9*$E$81/100,"GOOD",IF(C35>=Data_Sheet!$E$9*$E$80/100,"AVERAGE","POOR")))) -> GOOD
A36: =Data_Sheet!A36 -> JEC16EC063 | B36: =Data_Sheet!B36 -> NIMISHA TONY | C36: =Data_Sheet!E36 -> 40.3 | D36: =IF(C36="A","ABSENT",IF(C36>=Data_Sheet!$E$9*$E$82/100,"EXCELLENT",IF(C36>=Data_Sheet!$E$9*$E$81/100,"GOOD",IF(C36>=Data_Sheet!$E$9*$E$80/100,"AVERAGE","POOR")))) -> EXCELLENT
A37: =Data_Sheet!A37 -> JEC16EC064 | B37: =Data_Sheet!B37 -> NITHIN | C37: =Data_Sheet!E37 -> 38.4 | D37: =IF(C37="A","ABSENT",IF(C37>=Data_Sheet!$E$9*$E$82/100,"EXCELLENT",IF(C37>=Data_Sheet!$E$9*$E$81/100,"GOOD",IF(C37>=Data_Sheet!$E$9*$E$80/100,"AVERAGE","POOR")))) -> GOOD
A38: =Data_Sheet!A38 -> JEC16EC065 | B38: =Data_Sheet!B38 -> OLIVIA NELSON | C38: =Data_Sheet!E38 -> 38.6 | D38: =IF(C38="A","ABSENT",IF(C38>=Data_Sheet!$E$9*$E$82/100,"EXCELLENT",IF(C38>=Data_Sheet!$E$9*$E$81/100,"GOOD",IF(C38>=Data_Sheet!$E$9*$E$80/100,"AVERAGE","POOR")))) -> GOOD
A39: =Data_Sheet!A39 -> JEC16EC066 | B39: =Data_Sheet!B39 -> PAVITHRA.P | C39: =Data_Sheet!E39 -> 45.5 | D39: =IF(C39="A","ABSENT",IF(C39>=Data_Sheet!$E$9*$E$82/100,"EXCELLENT",IF(C39>=Data_Sheet!$E$9*$E$81/100,"GOOD",IF(C39>=Data_Sheet!$E$9*$E$80/100,"AVERAGE","POOR")))) -> EXCELLENT
A40: =Data_Sheet!A40 -> JEC16EC067 | B40: =Data_Sheet!B40 -> P.DHANYA RAJ | C40: =Data_Sheet!E40 -> 40 | D40: =IF(C40="A","ABSENT",IF(C40>=Data_Sheet!$E$9*$E$82/100,"EXCELLENT",IF(C40>=Data_Sheet!$E$9*$E$81/100,"GOOD",IF(C40>=Data_Sheet!$E$9*$E$80/100,"AVERAGE","POOR")))) -> EXCELLENT
A41: =Data_Sheet!A41 -> JEC16EC068 | B41: =Data_Sheet!B41 -> POOJA.P | C41: =Data_Sheet!E41 -> 44.3 | D41: =IF(C41="A","ABSENT",IF(C41>=Data_Sheet!$E$9*$E$82/100,"EXCELLENT",IF(C41>=Data_Sheet!$E$9*$E$81/100,"GOOD",IF(C41>=Data_Sheet!$E$9*$E$80/100,"AVERAGE","POOR")))) -> EXCELLENT
A42: =Data_Sheet!A42 -> JEC16EC069 | B42: =Data_Sheet!B42 -> PRANAV | C42: =Data_Sheet!E42 -> 32.7 | D42: =IF(C42="A","ABSENT",IF(C42>=Data_Sheet!$E$9*$E$82/100,"EXCELLENT",IF(C42>=Data_Sheet!$E$9*$E$81/100,"GOOD",IF(C42>=Data_Sheet!$E$9*$E$80/100,"AVERAGE","POOR")))) -> GOOD
A43: =Data_Sheet!A43 -> JEC16EC070 | B43: =Data_Sheet!B43 -> PRASOBH KP | C43: =Data_Sheet!E43 -> 36.2 | D43: =IF(C43="A","ABSENT",IF(C43>=Data_Sheet!$E$9*$E$82/100,"EXCELLENT",IF(C43>=Data_Sheet!$E$9*$E$81/100,"GOOD",IF(C43>=Data_Sheet!$E$9*$E$80/100,"AVERAGE","POOR")))) -> GOOD
A44: =Data_Sheet!A44 -> JEC16EC071 | B44: =Data_Sheet!B44 -> PRINCE BENNY | C44: =Data_Sheet!E44 -> 38.7 | D44: =IF(C44="A","ABSENT",IF(C44>=Data_Sheet!$E$9*$E$82/100,"EXCELLENT",IF(C44>=Data_Sheet!$E$9*$E$81/100,"GOOD",IF(C44>=Data_Sheet!$E$9*$E$80/100,"AVERAGE","POOR")))) -> GOOD
A45: =Data_Sheet!A45 -> JEC16EC072 | B45: =Data_Sheet!B45 -> PRIYA.K | C45: =Data_Sheet!E45 -> 39.6 | D45: =IF(C45="A","ABSENT",IF(C45>=Data_Sheet!$E$9*$E$82/100,"EXCELLENT",IF(C45>=Data_Sheet!$E$9*$E$81/100,"GOOD",IF(C45>=Data_Sheet!$E$9*$E$80/100,"AVERAGE","POOR")))) -> GOOD
A46: =Data_Sheet!A46 -> JEC16EC073 | B46: =Data_Sheet!B46 -> RADHIKA | C46: =Data_Sheet!E46 -> 46.4 | D46: =IF(C46="A","ABSENT",IF(C46>=Data_Sheet!$E$9*$E$82/100,"EXCELLENT",IF(C46>=Data_Sheet!$E$9*$E$81/100,"GOOD",IF(C46>=Data_Sheet!$E$9*$E$80/100,"AVERAGE","POOR")))) -> EXCELLENT
A47: =Data_Sheet!A47 -> JEC16EC074 | B47: =Data_Sheet!B47 -> RINOSHA.K.R | C47: =Data_Sheet!E47 -> 40.8 | D47: =IF(C47="A","ABSENT",IF(C47>=Data_Sheet!$E$9*$E$82/100,"EXCELLENT",IF(C47>=Data_Sheet!$E$9*$E$81/100,"GOOD",IF(C47>=Data_Sheet!$E$9*$E$80/100,"AVERAGE","POOR")))) -> EXCELLENT
A48: =Data_Sheet!A48 -> JEC16EC075 | B48: =Data_Sheet!B48 -> RIYA ALBERT | C48: =Data_Sheet!E48 -> 33.2 | D48: =IF(C48="A","ABSENT",IF(C48>=Data_Sheet!$E$9*$E$82/100,"EXCELLENT",IF(C48>=Data_Sheet!$E$9*$E$81/100,"GOOD",IF(C48>=Data_Sheet!$E$9*$E$80/100,"AVERAGE","POOR")))) -> GOOD
A49: =Data_Sheet!A49 -> JEC16EC076 | B49: =Data_Sheet!B49 -> RIYA PS | C49: =Data_Sheet!E49 -> 35.1 | D49: =IF(C49="A","ABSENT",IF(C49>=Data_Sheet!$E$9*$E$82/100,"EXCELLENT",IF(C49>=Data_Sheet!$E$9*$E$81/100,"GOOD",IF(C49>=Data_Sheet!$E$9*$E$80/100,"AVERAGE","POOR")))) -> GOOD
A50: =Data_Sheet!A50 -> JEC16EC077 | B50: =Data_Sheet!B50 -> ROSHNI J NAIR | C50: =Data_Sheet!E50 -> 41.6 | D50: =IF(C50="A","ABSENT",IF(C50>=Data_Sheet!$E$9*$E$82/100,"EXCELLENT",IF(C50>=Data_Sheet!$E$9*$E$81/100,"GOOD",IF(C50>=Data_Sheet!$E$9*$E$80/100,"AVERAGE","POOR")))) -> EXCELLENT
A51: =Data_Sheet!A51 -> JEC16EC079 | B51: =Data_Sheet!B51 -> SAFNA M | C51: =Data_Sheet!E51 -> 38.5 | D51: =IF(C51="A","ABSENT",IF(C51>=Data_Sheet!$E$9*$E$82/100,"EXCELLENT",IF(C51>=Data_Sheet!$E$9*$E$81/100,"GOOD",IF(C51>=Data_Sheet!$E$9*$E$80/100,"AVERAGE","POOR")))) -> GOOD
A52: =Data_Sheet!A52 -> JEC16EC080 | B52: =Data_Sheet!B52 -> SAJIN SHAJI | C52: =Data_Sheet!E52 -> 36 | D52: =IF(C52="A","ABSENT",IF(C52>=Data_Sheet!$E$9*$E$82/100,"EXCELLENT",IF(C52>=Data_Sheet!$E$9*$E$81/100,"GOOD",IF(C52>=Data_Sheet!$E$9*$E$80/100,"AVERAGE","POOR")))) -> GOOD
A53: =Data_Sheet!A53 -> JEC16EC081 | B53: =Data_Sheet!B53 -> SANDHRA .S | C53: =Data_Sheet!E53 -> 25.1 | D53: =IF(C53="A","ABSENT",IF(C53>=Data_Sheet!$E$9*$E$82/100,"EXCELLENT",IF(C53>=Data_Sheet!$E$9*$E$81/100,"GOOD",IF(C53>=Data_Sheet!$E$9*$E$80/100,"AVERAGE","POOR")))) -> AVERAGE
A54: =Data_Sheet!A54 -> JEC16EC082 | B54: =Data_Sheet!B54 -> SANGAMITHRA | C54: =Data_Sheet!E54 -> 39.8 | D54: =IF(C54="A","ABSENT",IF(C54>=Data_Sheet!$E$9*$E$82/100,"EXCELLENT",IF(C54>=Data_Sheet!$E$9*$E$81/100,"GOOD",IF(C54>=Data_Sheet!$E$9*$E$80/100,"AVERAGE","POOR")))) -> GOOD
A55: =Data_Sheet!A55 -> JEC16EC083 | B55: =Data_Sheet!B55 -> SARANYA.M.NAIR | C55: =Data_Sheet!E55 -> 38.4 | D55: =IF(C55="A","ABSENT",IF(C55>=Data_Sheet!$E$9*$E$82/100,"EXCELLENT",IF(C55>=Data_Sheet!$E$9*$E$81/100,"GOOD",IF(C55>=Data_Sheet!$E$9*$E$80/100,"AVERAGE","POOR")))) -> GOOD
A56: =Data_Sheet!A56 -> JEC16EC084 | B56: =Data_Sheet!B56 -> SARATHRAJ | C56: =Data_Sheet!E56 -> 34.4 | D56: =IF(C56="A","ABSENT",IF(C56>=Data_Sheet!$E$9*$E$82/100,"EXCELLENT",IF(C56>=Data_Sheet!$E$9*$E$81/100,"GOOD",IF(C56>=Data_Sheet!$E$9*$E$80/100,"AVERAGE","POOR")))) -> GOOD
A57: =Data_Sheet!A57 -> JEC16EC085 | B57: =Data_Sheet!B57 -> SHAHAN FATHIMA K | C57: =Data_Sheet!E57 -> 34.7 | D57: =IF(C57="A","ABSENT",IF(C57>=Data_Sheet!$E$9*$E$82/100,"EXCELLENT",IF(C57>=Data_Sheet!$E$9*$E$81/100,"GOOD",IF(C57>=Data_Sheet!$E$9*$E$80/100,"AVERAGE","POOR")))) -> GOOD
A58: =Data_Sheet!A58 -> JEC16EC086 | B58: =Data_Sheet!B58 -> SHAHLA.P.MOHAMMED | C58: =Data_Sheet!E58 -> 36 | D58: =IF(C58="A","ABSENT",IF(C58>=Data_Sheet!$E$9*$E$82/100,"EXCELLENT",IF(C58>=Data_Sheet!$E$9*$E$81/100,"GOOD",IF(C58>=Data_Sheet!$E$9*$E$80/100,"AVERAGE","POOR")))) -> GOOD
A59: =Data_Sheet!A59 -> JEC16EC087 | B59: =Data_Sheet!B59 -> SHAMSEENA T A | C59: =Data_Sheet!E59 -> 23.2 | D59: =IF(C59="A","ABSENT",IF(C59>=Data_Sheet!$E$9*$E$82/100,"EXCELLENT",IF(C59>=Data_Sheet!$E$9*$E$81/100,"GOOD",IF(C59>=Data_Sheet!$E$9*$E$80/100,"AVERAGE","POOR")))) -> AVERAGE
A60: =Data_Sheet!A60 -> JEC16EC088 | B60: =Data_Sheet!B60 -> SHARAN SHASHINDRAN A | C60: =Data_Sheet!E60 -> 24.7 | D60: =IF(C60="A","ABSENT",IF(C60>=Data_Sheet!$E$9*$E$82/100,"EXCELLENT",IF(C60>=Data_Sheet!$E$9*$E$81/100,"GOOD",IF(C60>=Data_Sheet!$E$9*$E$80/100,"AVERAGE","POOR")))) -> AVERAGE
A61: =Data_Sheet!A61 -> JEC16EC089 | B61: =Data_Sheet!B61 -> SIBIN KRISHNA C | C61: =Data_Sheet!E61 -> 33.5 | D61: =IF(C61="A","ABSENT",IF(C61>=Data_Sheet!$E$9*$E$82/100,"EXCELLENT",IF(C61>=Data_Sheet!$E$9*$E$81/100,"GOOD",IF(C61>=Data_Sheet!$E$9*$E$80/100,"AVERAGE","POOR")))) -> GOOD
A62: =Data_Sheet!A62 -> JEC16EC090 | B62: =Data_Sheet!B62 -> SREEJITH VIJAYAKUMAR | C62: =Data_Sheet!E62 -> 0 | D62: =IF(C62="A","ABSENT",IF(C62>=Data_Sheet!$E$9*$E$82/100,"EXCELLENT",IF(C62>=Data_Sheet!$E$9*$E$81/100,"GOOD",IF(C62>=Data_Sheet!$E$9*$E$80/100,"AVERAGE","POOR")))) -> POOR
A63: =Data_Sheet!A63 -> JEC16EC091 | B63: =Data_Sheet!B63 -> SREELAKSHMI.R | C63: =Data_Sheet!E63 -> 45.2 | D63: =IF(C63="A","ABSENT",IF(C63>=Data_Sheet!$E$9*$E$82/100,"EXCELLENT",IF(C63>=Data_Sheet!$E$9*$E$81/100,"GOOD",IF(C63>=Data_Sheet!$E$9*$E$80/100,"AVERAGE","POOR")))) -> EXCELLENT
A64: =Data_Sheet!A64 -> JEC16EC092 | B64: =Data_Sheet!B64 -> SREERAG K M | C64: =Data_Sheet!E64 -> 35.9 | D64: =IF(C64="A","ABSENT",IF(C64>=Data_Sheet!$E$9*$E$82/100,"EXCELLENT",IF(C64>=Data_Sheet!$E$9*$E$81/100,"GOOD",IF(C64>=Data_Sheet!$E$9*$E$80/100,"AVERAGE","POOR")))) -> GOOD
A65: =Data_Sheet!A65 -> JEC16EC093 | B65: =Data_Sheet!B65 -> SREERAG T K | C65: =Data_Sheet!E65 -> 0 | D65: =IF(C65="A","ABSENT",IF(C65>=Data_Sheet!$E$9*$E$82/100,"EXCELLENT",IF(C65>=Data_Sheet!$E$9*$E$81/100,"GOOD",IF(C65>=Data_Sheet!$E$9*$E$80/100,"AVERAGE","POOR")))) -> POOR
A66: =Data_Sheet!A66 -> JEC16EC094 | B66: =Data_Sheet!B66 -> SREERAG V.V | C66: =Data_Sheet!E66 -> 32.7 | D66: =IF(C66="A","ABSENT",IF(C66>=Data_Sheet!$E$9*$E$82/100,"EXCELLENT",IF(C66>=Data_Sheet!$E$9*$E$81/100,"GOOD",IF(C66>=Data_Sheet!$E$9*$E$80/100,"AVERAGE","POOR")))) -> GOOD
A67: =Data_Sheet!A67 -> JEC16EC095 | B67: =Data_Sheet!B67 -> SRUTHIMOL.N.T | C67: =Data_Sheet!E67 -> 0 | D67: =IF(C67="A","ABSENT",IF(C67>=Data_Sheet!$E$9*$E$82/100,"EXCELLENT",IF(C67>=Data_Sheet!$E$9*$E$81/100,"GOOD",IF(C67>=Data_Sheet!$E$9*$E$80/100,"AVERAGE","POOR")))) -> POOR
A68: =Data_Sheet!A68 -> JEC16EC096 | B68: =Data_Sheet!B68 -> SRUTHISHA SASI | C68: =Data_Sheet!E68 -> 45.6 | D68: =IF(C68="A","ABSENT",IF(C68>=Data_Sheet!$E$9*$E$82/100,"EXCELLENT",IF(C68>=Data_Sheet!$E$9*$E$81/100,"GOOD",IF(C68>=Data_Sheet!$E$9*$E$80/100,"AVERAGE","POOR")))) -> EXCELLENT
A69: =Data_Sheet!A69 -> JEC16EC097 | B69: =Data_Sheet!B69 -> SUCHITHRA.TS | C69: =Data_Sheet!E69 -> 31.1 | D69: =IF(C69="A","ABSENT",IF(C69>=Data_Sheet!$E$9*$E$82/100,"EXCELLENT",IF(C69>=Data_Sheet!$E$9*$E$81/100,"GOOD",IF(C69>=Data_Sheet!$E$9*$E$80/100,"AVERAGE","POOR")))) -> GOOD
A70: =Data_Sheet!A70 -> JEC16EC098 | B70: =Data_Sheet!B70 -> SWETHA SARA GEORGE | C70: =Data_Sheet!E70 -> 40 | D70: =IF(C70="A","ABSENT",IF(C70>=Data_Sheet!$E$9*$E$82/100,"EXCELLENT",IF(C70>=Data_Sheet!$E$9*$E$81/100,"GOOD",IF(C70>=Data_Sheet!$E$9*$E$80/100,"AVERAGE","POOR")))) -> EXCELLENT
A71: =Data_Sheet!A71 -> JEC16EC099 | B71: =Data_Sheet!B71 -> VISHNU K | C71: =Data_Sheet!E71 -> 39.5 | D71: =IF(C71="A","ABSENT",IF(C71>=Data_Sheet!$E$9*$E$82/100,"EXCELLENT",IF(C71>=Data_Sheet!$E$9*$E$81/100,"GOOD",IF(C71>=Data_Sheet!$E$9*$E$80/100,"AVERAGE","POOR")))) -> GOOD
A72: =Data_Sheet!A72 -> JEC16EC100 | B72: =Data_Sheet!B72 -> VISHNU PRAKASH | C72: =Data_Sheet!E72 -> 29.4 | D72: =IF(C72="A","ABSENT",IF(C72>=Data_Sheet!$E$9*$E$82/100,"EXCELLENT",IF(C72>=Data_Sheet!$E$9*$E$81/100,"GOOD",IF(C72>=Data_Sheet!$E$9*$E$80/100,"AVERAGE","POOR")))) -> AVERAGE
A73: =Data_Sheet!A73 -> JEC16EC101 | B73: =Data_Sheet!B73 -> VISHNU V | C73: =Data_Sheet!E73 -> 28.6 | D73: =IF(C73="A","ABSENT",IF(C73>=Data_Sheet!$E$9*$E$82/100,"EXCELLENT",IF(C73>=Data_Sheet!$E$9*$E$81/100,"GOOD",IF(C73>=Data_Sheet!$E$9*$E$80/100,"AVERAGE","POOR")))) -> AVERAGE
A74: =Data_Sheet!A74 -> LJEC16EC102 | B74: =Data_Sheet!B74 -> CHRISTEENA PAULSON | C74: =Data_Sheet!E74 -> 40.7 | D74: =IF(C74="A","ABSENT",IF(C74>=Data_Sheet!$E$9*$E$82/100,"EXCELLENT",IF(C74>=Data_Sheet!$E$9*$E$81/100,"GOOD",IF(C74>=Data_Sheet!$E$9*$E$80/100,"AVERAGE","POOR")))) -> EXCELLENT
A76: Total Number of Students | C76: =Data_Sheet!$C$6 -> 50
A77: Number of Students Absent | C77: =IF(COUNTIF(C25:INDIRECT(C89),"=A"),COUNTIF(C25:INDIRECT(C89),"=A"),0) -> 0
A78: Total Number of Students attended | C78: =C76-C77 -> 50
A79: ="Number of Students with Marks less than "&E80&"%" -> Number of Students with Marks less than 45% | C79: =IF(COUNTIF(D25:INDIRECT(D89),"=POOR"),COUNTIF(D25:INDIRECT(D89),"=POOR"),0) -> 3 | D79: POOR | E79: Range
A80: ="Number of Students with Marks betweeen "&E80&"% to "&E81&"%" -> Number of Students with Marks betweeen 45% to 60% | C80: =IF(COUNTIF(D25:INDIRECT(D89),"=AVERAGE"),COUNTIF(D25:INDIRECT(D89),"=AVERAGE"),0) -> 5 | D80: AVERAGE | E80: 45
A81: ="Number of Students with Marks betweeen "&E81&"% to "&E82&"%" -> Number of Students with Marks betweeen 60% to 80% | C81: =IF(COUNTIF(D25:INDIRECT(D89),"=GOOD"),COUNTIF(D25:INDIRECT(D89),"=GOOD"),0) -> 27 | D81: GOOD | E81: 60
A82: ="Number of Students with Marks greater than "&E82&"%" -> Number of Students with Marks greater than 80% | C82: =IF(COUNTIF(D25:INDIRECT(D89),"=EXCELLENT"),COUNTIF(D25:INDIRECT(D89),"=EXCELLENT"),0) -> 15 | D82: EXCELLENT | E82: 80
A83: Class Average | C83: =ROUND(AVERAGE(C25:INDIRECT(C89)),2) -> 34.76
A84: Pass Percentage | C84: =ROUND(((C78-C79)/C78)*100,2) -> 94
B86: =Data_Sheet!B10 -> Name of Faculty : | C86: =Data_Sheet!B11 -> PONMANI RAJA M
B87: =Data_Sheet!B94 -> Dated Signature :
A89: =ROW(A76)-2 -> 74 | B89: Last Row Count | C89: ="$C$"&$A$89 -> $C$74 | D89: ="$D$"&$A$89 -> $D$74

Sheet T1
A3: Add questions one by one as needed.. | C3: Assessment Category | G3: Date : | K3: CO1 | L3: First Internal Exam
C4: First Internal Exam | G4: 2019-09-16 | K4: CO2 | L4: Second Internal Exam | O4: =TEXT(G4,"dd-mm-yy") -> 16-09-19
C5: Total Marks : | F5: 50 | K5: CO3 | L5: Assessment Exam - 1
K6: CO4 | L6: Assessment Exam - 2
A7: =Data_Sheet!A2 -> Jyothi Engineering College, Cheruthuruthy | K7: CO5 | L7: Assignment - 1
K8: CO6 | L8: Assignment - 2
A9: =Data_Sheet!A4 -> Department of Electrical & Electronics Engineering | L9: Retest
K10: 1
A11: ="CO Analysis - Internal Marks : "&C4 &" " &TEXT(G4,"dd-mm-yy") -> CO Analysis - Internal Marks : First Internal Exam 16-09-19 | K11: 2
K12: 3
A13: =Internal_Analysis!A9 -> S7 EC EC407 Computer Communication 2019-20 | K13: 4
K14: 5
K15: 6
A18: Register No. | B18: Name of Student | C18: Qn. No. | D18: 1 | E18: 2 | F18: 3 | G18: 4 | H18: 5 | I18: 6 | J18: ="Total Marks (" &F5 & ")" -> Total Marks (50) | M18: Calculated Total Marks (50)
C19: CO's | D19: CO1, CO4, CO2 | E19: CO2, CO1 | F19: CO1, CO3, CO4, CO5 | G19: CO1, CO3, CO5 | H19: CO3, CO4 | I19: CO1, CO4, CO5
C20: Blooms Taxonomy Lavel | D20: 1, 2 | E20: 1, 6 | F20: 2, 6 | G20: 1, 2 | H20: 2 | I20: 2, 3
C21: Max. Marks | D21: 15 | E21: 5 | F21: 15 | G21: 15 | H21: 20 | I21: 20
C22: Difficulty Level in % | D22: 60 | E22: 60 | F22: 60 | G22: 60 | H22: 60 | I22: 60
A24: Column1 | B24: Column2 | C24: Column3 | D24: Column4 | E24: Column5 | F24: Column6 | G24: Column7 | H24: Column4 | I24: Column8 | J24: Column32
A25: =Data_Sheet!A25 -> JEC16EC051 | B25: =Data_Sheet!B25 -> LANA KOLLATH | D25: 12 | F25: 9 | H25: 13 | J25: 34
A26: =Data_Sheet!A26 -> JEC16EC052 | B26: =Data_Sheet!B26 -> MANU JENSON | D26: 9 | F26: 10 | H26: 13 | J26: 32
A27: =Data_Sheet!A27 -> JEC16EC053 | B27: =Data_Sheet!B27 -> MAREENA MARIYA ABRAHAM | E27: 12 | G27: 13 | I27: 12 | J27: 37
A28: =Data_Sheet!A28 -> JEC16EC054 | B28: =Data_Sheet!B28 -> MARIAN DAVIS KATTUKARAN | D28: 8 | G28: 8 | I28: 7 | J28: 23
A29: =Data_Sheet!A29 -> JEC16EC055 | B29: =Data_Sheet!B29 -> MARY JEETHU A J | D29: 13 | F29: 12 | H29: 15 | J29: 40
A30: =Data_Sheet!A30 -> JEC16EC056 | B30: =Data_Sheet!B30 -> MUBASHIRA K M | E30: 15 | G30: 15 | I30: 16 | J30: 46
A31: =Data_Sheet!A31 -> JEC16EC057 | B31: =Data_Sheet!B31 -> MUHAMMED ARSHAD | D31: 7 | F31: 7 | I31: 9 | J31: 23
A32: =Data_Sheet!A32 -> JEC16EC058 | B32: =Data_Sheet!B32 -> NANDANA K | E32: 10 | G32: 12 | I32: 17 | J32: 39
A33: =Data_Sheet!A33 -> JEC16EC059 | B33: =Data_Sheet!B33 -> NARAYANAN M B | D33: 7 | F33: 3 | H33: 14 | J33: 24
A34: =Data_Sheet!A34 -> JEC16EC061 | B34: =Data_Sheet!B34 -> NIKHIL KJ | E34: 13 | G34: 7 | I34: 11 | J34: 31
A35: =Data_Sheet!A35 -> JEC16EC062 | B35: =Data_Sheet!B35 -> NIMISHA M S | D35: 8 | G35: 4 | H35: 11 | J35: 23
A36: =Data_Sheet!A36 -> JEC16EC063 | B36: =Data_Sheet!B36 -> NIMISHA TONY | D36: 15 | H36: 18 | J36: 33
A37: =Data_Sheet!A37 -> JEC16EC064 | B37: =Data_Sheet!B37 -> NITHIN | D37: 12 | F37: 5 | H37: 16 | J37: 33
A38: =Data_Sheet!A38 -> JEC16EC065 | B38: =Data_Sheet!B38 -> OLIVIA NELSON | E38: 13 | G38: 9 | I38: 12 | J38: 34
A39: =Data_Sheet!A39 -> JEC16EC066 | B39: =Data_Sheet!B39 -> PAVITHRA.P | D39: 14 | G39: 12 | H39: 19 | J39: 45
A40: =Data_Sheet!A40 -> JEC16EC067 | B40: =Data_Sheet!B40 -> P.DHANYA RAJ | E40: 13 | G40: 14 | I40: 16 | J40: 43
A41: =Data_Sheet!A41 -> JEC16EC068 | B41: =Data_Sheet!B41 -> POOJA.P | E41: 14 | G41: 12 | I41: 15 | J41: 41
A42: =Data_Sheet!A42 -> JEC16EC069 | B42: =Data_Sheet!B42 -> PRANAV | D42: 11 | F42: 7 | H42: 10 | J42: 28
A43: =Data_Sheet!A43 -> JEC16EC070 | B43: =Data_Sheet!B43 -> PRASOBH KP | E43: 12 | G43: 7 | I43: 12 | J43: 31
A44: =Data_Sheet!A44 -> JEC16EC071 | B44: =Data_Sheet!B44 -> PRINCE BENNY | D44: 12 | F44: 13 | H44: 12 | J44: 37
A45: =Data_Sheet!A45 -> JEC16EC072 | B45: =Data_Sheet!B45 -> PRIYA.K | E45: 7 | G45: 8 | I45: 12 | J45: 27
A46: =Data_Sheet!A46 -> JEC16EC073 | B46: =Data_Sheet!B46 -> RADHIKA | E46: 13 | G46: 14 | H46: 18 | J46: 45
A47: =Data_Sheet!A47 -> JEC16EC074 | B47: =Data_Sheet!B47 -> RINOSHA.K.R | D47: 9 | F47: 7 | I47: 16 | J47: 32
A48: =Data_Sheet!A48 -> JEC16EC075 | B48: =Data_Sheet!B48 -> RIYA ALBERT | E48: 8 | G48: 4 | H48: 13 | J48: 25
A49: =Data_Sheet!A49 -> JEC16EC076 | B49: =Data_Sheet!B49 -> RIYA PS | D49: 9 | F49: 8 | I49: 13 | J49: 30
A50: =Data_Sheet!A50 -> JEC16EC077 | B50: =Data_Sheet!B50 -> ROSHNI J NAIR | D50: 13 | F50: 8 | H50: 16 | J50: 37
A51: =Data_Sheet!A51 -> JEC16EC079 | B51: =Data_Sheet!B51 -> SAFNA M | E51: 12 | G51: 8 | I51: 13 | J51: 33
A52: =Data_Sheet!A52 -> JEC16EC080 | B52: =Data_Sheet!B52 -> SAJIN SHAJI | D52: 6 | F52: 6 | H52: 11 | J52: 23
A53: =Data_Sheet!A53 -> JEC16EC081 | B53: =Data_Sheet!B53 -> SANDHRA .S | D53: 8 | G53: 4 | I53: 8 | J53: 20
A54: =Data_Sheet!A54 -> JEC16EC082 | B54: =Data_Sheet!B54 -> SANGAMITHRA | D54: 12 | F54: 8 | H54: 12 | J54: 32
A55: =Data_Sheet!A55 -> JEC16EC083 | B55: =Data_Sheet!B55 -> SARANYA.M.NAIR | E55: 9 | G55: 8 | I55: 12 | J55: 29
A56: =Data_Sheet!A56 -> JEC16EC084 | B56: =Data_Sheet!B56 -> SARATHRAJ | E56: 6 | G56: 8 | I56: 11 | J56: 25
A57: =Data_Sheet!A57 -> JEC16EC085 | B57: =Data_Sheet!B57 -> SHAHAN FATHIMA K | D57: 8 | F57: 4 | H57: 10 | J57: 22
A58: =Data_Sheet!A58 -> JEC16EC086 | B58: =Data_Sheet!B58 -> SHAHLA.P.MOHAMMED | D58: 11 | F58: 8 | H58: 9 | J58: 28
A59: =Data_Sheet!A59 -> JEC16EC087 | B59: =Data_Sheet!B59 -> SHAMSEENA T A | E59: 7 | G59: 8 | H59: 3 | J59: 18
A60: =Data_Sheet!A60 -> JEC16EC088 | B60: =Data_Sheet!B60 -> SHARAN SHASHINDRAN A | E60: 4 | G60: 3 | I60: 5 | J60: 12
A61: =Data_Sheet!A61 -> JEC16EC089 | B61: =Data_Sheet!B61 -> SIBIN KRISHNA C | D61: 11 | F61: 8 | H61: 14 | J61: 33
A62: =Data_Sheet!A62 -> JEC16EC090 | B62: =Data_Sheet!B62 -> SREEJITH VIJAYAKUMAR | J62: 0
A63: =Data_Sheet!A63 -> JEC16EC091 | B63: =Data_Sheet!B63 -> SREELAKSHMI.R | D63: 13 | F63: 14 | H63: 17 | J63: 44
A64: =Data_Sheet!A64 -> JEC16EC092 | B64: =Data_Sheet!B64 -> SREERAG K M | D64: 9 | F64: 11 | H64: 11 | J64: 31
A65: =Data_Sheet!A65 -> JEC16EC093 | B65: =Data_Sheet!B65 -> SREERAG T K | E65: 3 | F65: 3 | I65: 2 | J65: 8
A66: =Data_Sheet!A66 -> JEC16EC094 | B66: =Data_Sheet!B66 -> SREERAG V.V | D66: 8 | F66: 3 | I66: 12 | J66: 23
A67: =Data_Sheet!A67 -> JEC16EC095 | B67: =Data_Sheet!B67 -> SRUTHIMOL.N.T | J67: 0
A68: =Data_Sheet!A68 -> JEC16EC096 | B68: =Data_Sheet!B68 -> SRUTHISHA SASI | D68: 13 | F68: 14 | H68: 13 | J68: 40
A69: =Data_Sheet!A69 -> JEC16EC097 | B69: =Data_Sheet!B69 -> SUCHITHRA.TS | E69: 7 | G69: 5 | I69: 11 | J69: 23
A70: =Data_Sheet!A70 -> JEC16EC098 | B70: =Data_Sheet!B70 -> SWETHA SARA GEORGE | D70: 13 | F70: 12 | I70: 13 | J70: 38
A71: =Data_Sheet!A71 -> JEC16EC099 | B71: =Data_Sheet!B71 -> VISHNU K | D71: 12 | F71: 8 | H71: 12 | J71: 32
A72: =Data_Sheet!A72 -> JEC16EC100 | B72: =Data_Sheet!B72 -> VISHNU PRAKASH | E72: 8 | G72: 7 | I72: 8 | J72: 23
A73: =Data_Sheet!A73 -> JEC16EC101 | B73: =Data_Sheet!B73 -> VISHNU V | D73: 6 | F73: 3 | H73: 9 | J73: 18
A74: =Data_Sheet!A74 -> LJEC16EC102 | B74: =Data_Sheet!B74 -> CHRISTEENA PAULSON | E74: 14 | G74: 12 | H74: 12 | J74: 38
A76: Total Marks scored for the Question | D76: =IF(D$22<>"",IF(SUM(D25:INDIRECT(D96))>=0,SUM(D25:INDIRECT(D96)),""),"") -> 289 | E76: =IF(E$22<>"",IF(SUM(E25:INDIRECT(E96))>=0,SUM(E25:INDIRECT(E96)),""),"") -> 200 | F76: =IF(F$22<>"",IF(SUM(F25:INDIRECT(F96))>=0,SUM(F25:INDIRECT(F96)),""),"") -> 191 | G76: =IF(G$22<>"",IF(SUM(G25:INDIRECT(G96))>=0,SUM(G25:INDIRECT(G96)),""),"") -> 202 | H76: =IF(H$22<>"",IF(SUM(H25:INDIRECT(H96))>=0,SUM(H25:INDIRECT(H96)),""),"") -> 321 | I76: =IF(I$22<>"",IF(SUM(I25:INDIRECT(I96))>=0,SUM(I25:INDIRECT(I96)),""),"") -> 263
A77: No. of Students who attended the Question | D77: =IF(D$22<>"",IF(COUNT(D25:INDIRECT(D96))>=0,COUNT(D25:INDIRECT(D96)),""),"") -> 28 | E77: =IF(E$22<>"",IF(COUNT(E25:INDIRECT(E96))>=0,COUNT(E25:INDIRECT(E96)),""),"") -> 20 | F77: =IF(F$22<>"",IF(COUNT(F25:INDIRECT(F96))>=0,COUNT(F25:INDIRECT(F96)),""),"") -> 24 | G77: =IF(G$22<>"",IF(COUNT(G25:INDIRECT(G96))>=0,COUNT(G25:INDIRECT(G96)),""),"") -> 23 | H77: =IF(H$22<>"",IF(COUNT(H25:INDIRECT(H96))>=0,COUNT(H25:INDIRECT(H96)),""),"") -> 25 | I77: =IF(I$22<>"",IF(COUNT(I25:INDIRECT(I96))>=0,COUNT(I25:INDIRECT(I96)),""),"") -> 23
A78: Difficulty Level marks of the Question | D78: =IF(D21*D22/100=0,"",D21*D22/100) -> 9 | E78: 3 | F78: 9 | G78: 9 | H78: =IF(H21*H22/100=0,"",H21*H22/100) -> 12 | I78: =IF(I21*I22/100=0,"",I21*I22/100) -> 12
A79: No. of Students who scored above the Difficulty Level | D79: =IF(COUNTIF(D25:INDIRECT(D96),">="&D78)=0,"",COUNTIF(D25:INDIRECT(D96),">="&D78)) -> 19 | E79: =IF(COUNTIF(E25:INDIRECT(E96),">="&E78)=0,"",COUNTIF(E25:INDIRECT(E96),">="&E78)) -> 20 | F79: =IF(COUNTIF(F25:INDIRECT(F96),">="&F78)=0,"",COUNTIF(F25:INDIRECT(F96),">="&F78)) -> 8 | G79: =IF(COUNTIF(G25:INDIRECT(G96),">="&G78)=0,"",COUNTIF(G25:INDIRECT(G96),">="&G78)) -> 9 | H79: =IF(COUNTIF(H25:INDIRECT(H96),">="&H78)=0,"",COUNTIF(H25:INDIRECT(H96),">="&H78)) -> 17 | I79: =IF(COUNTIF(I25:INDIRECT(I96),">="&I78)=0,"",COUNTIF(I25:INDIRECT(I96),">="&I78)) -> 14
A80: % of Students who scored above the Difficulty Level | D80: =IFERROR(ROUND(D79/D77*100,2),"") -> 67.86 | E80: 100 | F80: 33.33 | G80: 39.13 | H80: 68 | I80: 60.87
D81: =IF(D80="",0,IF(D80>=80,3,IF(D80>=70,2,IF(D80>=60,1,0)))) -> 1 | E81: 3 | F81: 0 | G81: 0 | H81: 1 | I81: 1 | J81: Marks | N81: T_Marks | O81: S_Marks | P81: Students | Q81: Level | R81: Above | S81: Above % | T81: Attainment
B82: =IF(Data_Sheet!A77<>"","Total Attainment level for "&Data_Sheet!A77&" :","") -> Total Attainment level for CO1 : | C82: =IF(Data_Sheet!A77<>"",M82,"") -> 0.71 | D82: =IFERROR((IF(ISNUMBER(SEARCH("1", D$19)),D$21,"0")),"0")*D81 -> 15 | E82: 15 | F82: 0 | G82: 0 | H82: 0 | I82: 20 | J82: =J99 -> 70 | M82: =IF(J82=0,"",ROUND(SUM(D82:I82)/J82,2)) -> 0.71 | N82: =J99 -> 70 | O82: =J106 -> 1145 | P82: =J113 -> 118 | Q82: =J120 -> 42 | R82: =J127 -> 70 | S82: =IFERROR(ROUND(R82/P82*100,2),"") -> 59.32 | T82: =IF(S82="","",IF(S82>=80,3,IF(S82>=70,2,IF(S82>=60,1,0)))) -> 0
B83: =IF(Data_Sheet!A78<>"","Total Attainment level for "&Data_Sheet!A78&" :","") -> Total Attainment level for CO2 : | C83: =IF(Data_Sheet!A78<>"",M83,"") -> 1.5 | D83: =IFERROR((IF(ISNUMBER(SEARCH("2", D$19)),D$21,"0")),"0")*D81 -> 15 | E83: 15 | F83: 0 | G83: 0 | H83: 0 | I83: 0 | J83: 20 | M83: 1.5 | N83: 20 | O83: 489 | P83: 48 | Q83: 12 | R83: 39 | S83: 81.25 | T83: 3
B84: =IF(Data_Sheet!A79<>"","Total Attainment level for "&Data_Sheet!A79&" :","") -> Total Attainment level for CO3 : | C84: =IF(Data_Sheet!A79<>"",M84,"") -> 0.4 | D84: =IFERROR((IF(ISNUMBER(SEARCH("3", D$19)),D$21,"0")),"0")*D81 -> 0 | E84: 0 | F84: 0 | G84: 0 | H84: 20 | I84: 0 | J84: 50 | M84: 0.4 | N84: 50 | O84: 714 | P84: 72 | Q84: 30 | R84: 34 | S84: 47.22 | T84: 0
B85: =IF(Data_Sheet!A80<>"","Total Attainment level for "&Data_Sheet!A80&" :","") -> Total Attainment level for CO4 : | C85: =IF(Data_Sheet!A80<>"",M85,"") -> 0.79 | D85: =IFERROR((IF(ISNUMBER(SEARCH("4", D$19)),D$21,"0")),"0")*D81 -> 15 | E85: 0 | F85: 0 | G85: 0 | H85: 20 | I85: 20 | J85: 70 | M85: 0.79 | N85: 70 | O85: 1064 | P85: 100 | Q85: 42 | R85: 58 | S85: 58 | T85: 0
B86: =IF(Data_Sheet!A81<>"","Total Attainment level for "&Data_Sheet!A81&" :","") -> Total Attainment level for CO5 : | C86: =IF(Data_Sheet!A81<>"",M86,"") -> 0.4 | D86: =IFERROR((IF(ISNUMBER(SEARCH("5", D$19)),D$21,"0")),"0")*D81 -> 0 | E86: 0 | F86: 0 | G86: 0 | H86: 0 | I86: 20 | J86: 50 | M86: 0.4 | N86: 50 | O86: 656 | P86: 70 | Q86: 30 | R86: 31 | S86: 44.29 | T86: 0
B87: =IF(Data_Sheet!A82<>"","Total Attainment level for "&Data_Sheet!A82&" :","") -> Total Attainment level for CO6 : | C87: =IF(Data_Sheet!A82<>"",M87,"") ->  | D87: =IFERROR((IF(ISNUMBER(SEARCH("6", D$19)),D$21,"0")),"0")*D81 -> 0 | E87: 0 | F87: 0 | G87: 0 | H87: 0 | I87: 0 | J87: 0 | N87: 0 | O87: 0 | P87: 0 | Q87: 0 | R87: 0
A89: =Data_Sheet!A85 -> Attainment Level 1: 60% students scoring more than 60% of the Total Marks
A90: =Data_Sheet!A86 -> Attainment Level 2: 70% students scoring more than 60% of the Total Marks
A91: =Data_Sheet!A87 -> Attainment Level 3: 80% students scoring more than 60% of the Total Marks
B93: =Data_Sheet!B10 -> Name of Faculty : | C93: =Data_Sheet!B11 -> PONMANI RAJA M
B94: =Data_Sheet!B94 -> Dated Signature :
B96: Last Row Count | C96: =ROW(A76)-2 -> 74 | D96: =SUBSTITUTE(ADDRESS(1,COLUMN(D1),2),"1","")&$C$96 -> D$74 | E96: ="E"&$C$96 -> E74 | F96: =SUBSTITUTE(ADDRESS(1,COLUMN(F1),2),"1","")&$C$96 -> F$74 | G96: =SUBSTITUTE(ADDRESS(1,COLUMN(G1),2),"1","")&$C$96 -> G$74 | H96: =SUBSTITUTE(ADDRESS(1,COLUMN(H1),2),"1","")&$C$96 -> H$74 | I96: =SUBSTITUTE(ADDRESS(1,COLUMN(I1),2),"1","")&$C$96 -> I$74
C99: CO1 | D99: =IFERROR((IF(ISNUMBER(SEARCH("1", D$19)),D$21,"0")),"0") -> 15 | E99: 5 | F99: 15 | G99: 15 | H99: 0 | I99: 20 | J99: =IFERROR(SUM($D99:INDIRECT($M99)),"0") -> 70 | M99: =SUBSTITUTE(ADDRESS(1,O99,4),1,"")&ROW($J99) -> I99 | N99: =COUNTIF($D$19:INDIRECT($P99),"*1*") -> 5 | O99: =COLUMN($J$18)-1 -> 9 | P99: =SUBSTITUTE(ADDRESS(1,O99,4),1,"")&ROW($J$18)+1 -> I19 | Q99: Total Marks
C100: CO2 | D100: =IFERROR((IF(ISNUMBER(SEARCH("2", D$19)),D$21,"0")),"0") -> 15 | E100: 5 | F100: 0 | G100: 0 | H100: 0 | I100: 0 | J100: =IFERROR(SUM($D100:INDIRECT($M100)),"0") -> 20 | M100: I100 | N100: =COUNTIF($D$19:INDIRECT($P100),"*2*") -> 2 | O100: 9 | P100: =SUBSTITUTE(ADDRESS(1,O100,4),1,"")&ROW($J$18)+1 -> I19
C101: CO3 | D101: =IFERROR((IF(ISNUMBER(SEARCH("3", D$19)),D$21,"0")),"0") -> 0 | E101: 0 | F101: 15 | G101: 15 | H101: 20 | I101: 0 | J101: =IFERROR(SUM($D101:INDIRECT($M101)),"0") -> 50 | M101: I101 | N101: =COUNTIF($D$19:INDIRECT($P101),"*3*") -> 3 | O101: 9 | P101: I19
C102: CO4 | D102: =IFERROR((IF(ISNUMBER(SEARCH("4", D$19)),D$21,"0")),"0") -> 15 | E102: 0 | F102: 15 | G102: 0 | H102: 20 | I102: 20 | J102: =IFERROR(SUM($D102:INDIRECT($M102)),"0") -> 70 | M102: I102 | N102: =COUNTIF($D$19:INDIRECT($P102),"*4*") -> 4 | O102: 9 | P102: I19
C103: CO5 | D103: =IFERROR((IF(ISNUMBER(SEARCH("5", D$19)),D$21,"0")),"0") -> 0 | E103: 0 | F103: 15 | G103: 15 | H103: 0 | I103: 20 | J103: =IFERROR(SUM($D103:INDIRECT($M103)),"0") -> 50 | M103: I103 | N103: =COUNTIF($D$19:INDIRECT($P103),"*5*") -> 3 | O103: 9 | P103: I19
C104: CO6 | D104: =IFERROR((IF(ISNUMBER(SEARCH("6", D$19)),D$21,"0")),"0") -> 0 | E104: 0 | F104: 0 | G104: 0 | H104: 0 | I104: 0 | J104: =IFERROR(SUM($D104:INDIRECT($M104)),"0") -> 0 | M104: I104 | N104: =COUNTIF($D$19:INDIRECT($P104),"*6*") -> 0 | O104: 9 | P104: I19
C106: CO1 | D106: =IFERROR((IF(ISNUMBER(SEARCH("1", D$19)),D$76,"0")),"0") -> 289 | E106: 200 | F106: 191 | G106: 202 | H106: 0 | I106: 263 | J106: =IFERROR(SUM($D106:INDIRECT($M106)),"0") -> 1145 | M106: =SUBSTITUTE(ADDRESS(1,O106,4),1,"")&ROW($J106) -> I106 | N106: =COUNTIF($D$19:INDIRECT($P106),"*1*") -> 5 | O106: =COLUMN($J$18)-1 -> 9 | P106: =SUBSTITUTE(ADDRESS(1,O106,4),1,"")&ROW($J$18)+1 -> I19 | Q106: Total Marks Scored
C107: CO2 | D107: =IFERROR((IF(ISNUMBER(SEARCH("2", D$19)),D$76,"0")),"0") -> 289 | E107: 200 | F107: 0 | G107: 0 | H107: 0 | I107: 0 | J107: =IFERROR(SUM($D107:INDIRECT($M107)),"0") -> 489 | M107: I107 | N107: =COUNTIF($D$19:INDIRECT($P107),"*2*") -> 2 | O107: 9 | P107: =SUBSTITUTE(ADDRESS(1,O107,4),1,"")&ROW($J$18)+1 -> I19
C108: CO3 | D108: =IFERROR((IF(ISNUMBER(SEARCH("3", D$19)),D$76,"0")),"0") -> 0 | E108: 0 | F108: 191 | G108: 202 | H108: 321 | I108: 0 | J108: =IFERROR(SUM($D108:INDIRECT($M108)),"0") -> 714 | M108: I108 | N108: =COUNTIF($D$19:INDIRECT($P108),"*3*") -> 3 | O108: 9 | P108: I19
C109: CO4 | D109: =IFERROR((IF(ISNUMBER(SEARCH("4", D$19)),D$76,"0")),"0") -> 289 | E109: 0 | F109: 191 | G109: 0 | H109: 321 | I109: 263 | J109: =IFERROR(SUM($D109:INDIRECT($M109)),"0") -> 1064 | M109: I109 | N109: =COUNTIF($D$19:INDIRECT($P109),"*4*") -> 4 | O109: 9 | P109: I19
C110: CO5 | D110: =IFERROR((IF(ISNUMBER(SEARCH("5", D$19)),D$76,"0")),"0") -> 0 | E110: 0 | F110: 191 | G110: 202 | H110: 0 | I110: 263 | J110: =IFERROR(SUM($D110:INDIRECT($M110)),"0") -> 656 | M110: I110 | N110: =COUNTIF($D$19:INDIRECT($P110),"*5*") -> 3 | O110: 9 | P110: I19
C111: CO6 | D111: =IFERROR((IF(ISNUMBER(SEARCH("6", D$19)),D$76,"0")),"0") -> 0 | E111: 0 | F111: 0 | G111: 0 | H111: 0 | I111: 0 | J111: =IFERROR(SUM($D111:INDIRECT($M111)),"0") -> 0 | M111: I111 | N111: =COUNTIF($D$19:INDIRECT($P111),"*6*") -> 0 | O111: 9 | P111: I19
C113: CO1 | D113: =IFERROR((IF(ISNUMBER(SEARCH("1", D$19)),D$77,"0")),"0") -> 28 | E113: 20 | F113: 24 | G113: 23 | H113: 0 | I113: 23 | J113: =IFERROR(SUM($D113:INDIRECT($M113)),"0") -> 118 | M113: =SUBSTITUTE(ADDRESS(1,O113,4),1,"")&ROW($J113) -> I113 | N113: =COUNTIF($D$19:INDIRECT($P113),"*1*") -> 5 | O113: =COLUMN($J$18)-1 -> 9 | P113: =SUBSTITUTE(ADDRESS(1,O113,4),1,"")&ROW($J$18)+1 -> I19 | Q113: No of Studdents Attended
C114: CO2 | D114: =IFERROR((IF(ISNUMBER(SEARCH("2", D$19)),D$77,"0")),"0") -> 28 | E114: 20 | F114: 0 | G114: 0 | H114: 0 | I114: 0 | J114: =IFERROR(SUM($D114:INDIRECT($M114)),"0") -> 48 | M114: I114 | N114: =COUNTIF($D$19:INDIRECT($P114),"*2*") -> 2 | O114: 9 | P114: =SUBSTITUTE(ADDRESS(1,O114,4),1,"")&ROW($J$18)+1 -> I19
C115: CO3 | D115: =IFERROR((IF(ISNUMBER(SEARCH("3", D$19)),D$77,"0")),"0") -> 0 | E115: 0 | F115: 24 | G115: 23 | H115: 25 | I115: 0 | J115: =IFERROR(SUM($D115:INDIRECT($M115)),"0") -> 72 | M115: I115 | N115: =COUNTIF($D$19:INDIRECT($P115),"*3*") -> 3 | O115: 9 | P115: I19
C116: CO4 | D116: =IFERROR((IF(ISNUMBER(SEARCH("4", D$19)),D$77,"0")),"0") -> 28 | E116: 0 | F116: 24 | G116: 0 | H116: 25 | I116: 23 | J116: =IFERROR(SUM($D116:INDIRECT($M116)),"0") -> 100 | M116: I116 | N116: =COUNTIF($D$19:INDIRECT($P116),"*4*") -> 4 | O116: 9 | P116: I19
C117: CO5 | D117: =IFERROR((IF(ISNUMBER(SEARCH("5", D$19)),D$77,"0")),"0") -> 0 | E117: 0 | F117: 24 | G117: 23 | H117: 0 | I117: 23 | J117: =IFERROR(SUM($D117:INDIRECT($M117)),"0") -> 70 | M117: I117 | N117: =COUNTIF($D$19:INDIRECT($P117),"*5*") -> 3 | O117: 9 | P117: I19
C118: CO6 | D118: =IFERROR((IF(ISNUMBER(SEARCH("6", D$19)),D$77,"0")),"0") -> 0 | E118: 0 | F118: 0 | G118: 0 | H118: 0 | I118: 0 | J118: =IFERROR(SUM($D118:INDIRECT($M118)),"0") -> 0 | M118: I118 | N118: =COUNTIF($D$19:INDIRECT($P118),"*6*") -> 0 | O118: 9 | P118: I19
C120: CO1 | D120: =IFERROR((IF(ISNUMBER(SEARCH("1", D$19)),D$78,"0")),"0") -> 9 | E120: 3 | F120: 9 | G120: 9 | H120: 0 | I120: 12 | J120: =IFERROR(SUM($D120:INDIRECT($M120)),"0") -> 42 | M120: =SUBSTITUTE(ADDRESS(1,O120,4),1,"")&ROW($J120) -> I120 | N120: =COUNTIF($D$19:INDIRECT($P120),"*1*") -> 5 | O120: =COLUMN($J$18)-1 -> 9 | P120: =SUBSTITUTE(ADDRESS(1,O120,4),1,"")&ROW($J$18)+1 -> I19 | Q120: Difficulty Level
C121: CO2 | D121: =IFERROR((IF(ISNUMBER(SEARCH("2", D$19)),D$78,"0")),"0") -> 9 | E121: 3 | F121: 0 | G121: 0 | H121: 0 | I121: 0 | J121: =IFERROR(SUM($D121:INDIRECT($M121)),"0") -> 12 | M121: I121 | N121: =COUNTIF($D$19:INDIRECT($P121),"*2*") -> 2 | O121: 9 | P121: =SUBSTITUTE(ADDRESS(1,O121,4),1,"")&ROW($J$18)+1 -> I19
C122: CO3 | D122: =IFERROR((IF(ISNUMBER(SEARCH("3", D$19)),D$78,"0")),"0") -> 0 | E122: 0 | F122: 9 | G122: 9 | H122: 12 | I122: 0 | J122: =IFERROR(SUM($D122:INDIRECT($M122)),"0") -> 30 | M122: I122 | N122: =COUNTIF($D$19:INDIRECT($P122),"*3*") -> 3 | O122: 9 | P122: I19
C123: CO4 | D123: =IFERROR((IF(ISNUMBER(SEARCH("4", D$19)),D$78,"0")),"0") -> 9 | E123: 0 | F123: 9 | G123: 0 | H123: 12 | I123: 12 | J123: =IFERROR(SUM($D123:INDIRECT($M123)),"0") -> 42 | M123: I123 | N123: =COUNTIF($D$19:INDIRECT($P123),"*4*") -> 4 | O123: 9 | P123: I19
C124: CO5 | D124: =IFERROR((IF(ISNUMBER(SEARCH("5", D$19)),D$78,"0")),"0") -> 0 | E124: 0 | F124: 9 | G124: 9 | H124: 0 | I124: 12 | J124: =IFERROR(SUM($D124:INDIRECT($M124)),"0") -> 30 | M124: I124 | N124: =COUNTIF($D$19:INDIRECT($P124),"*5*") -> 3 | O124: 9 | P124: I19
C125: CO6 | D125: =IFERROR((IF(ISNUMBER(SEARCH("6", D$19)),D$78,"0")),"0") -> 0 | E125: 0 | F125: 0 | G125: 0 | H125: 0 | I125: 0 | J125: =IFERROR(SUM($D125:INDIRECT($M125)),"0") -> 0 | M125: I125 | N125: =COUNTIF($D$19:INDIRECT($P125),"*6*") -> 0 | O125: 9 | P125: I19
C127: CO1 | D127: =IFERROR((IF(ISNUMBER(SEARCH("1", D$19)),D$79,"0")),"0") -> 19 | E127: 20 | F127: 8 | G127: 9 | H127: 0 | I127: 14 | J127: =IFERROR(SUM($D127:INDIRECT($M127)),"0") -> 70 | M127: =SUBSTITUTE(ADDRESS(1,O127,4),1,"")&ROW($J127) -> I127 | N127: =COUNTIF($D$19:INDIRECT($P127),"*1*") -> 5 | O127: =COLUMN($J$18)-1 -> 9 | P127: =SUBSTITUTE(ADDRESS(1,O127,4),1,"")&ROW($J$18)+1 -> I19 | Q127: No of Studdents Above Difficulty Level
C128: CO2 | D128: =IFERROR((IF(ISNUMBER(SEARCH("2", D$19)),D$79,"0")),"0") -> 19 | E128: 20 | F128: 0 | G128: 0 | H128: 0 | I128: 0 | J128: =IFERROR(SUM($D128:INDIRECT($M128)),"0") -> 39 | M128: I128 | N128: =COUNTIF($D$19:INDIRECT($P128),"*2*") -> 2 | O128: 9 | P128: =SUBSTITUTE(ADDRESS(1,O128,4),1,"")&ROW($J$18)+1 -> I19
C129: CO3 | D129: =IFERROR((IF(ISNUMBER(SEARCH("3", D$19)),D$79,"0")),"0") -> 0 | E129: 0 | F129: 8 | G129: 9 | H129: 17 | I129: 0 | J129: =IFERROR(SUM($D129:INDIRECT($M129)),"0") -> 34 | M129: I129 | N129: =COUNTIF($D$19:INDIRECT($P129),"*3*") -> 3 | O129: 9 | P129: I19
C130: CO4 | D130: =IFERROR((IF(ISNUMBER(SEARCH("4", D$19)),D$79,"0")),"0") -> 19 | E130: 0 | F130: 8 | G130: 0 | H130: 17 | I130: 14 | J130: =IFERROR(SUM($D130:INDIRECT($M130)),"0") -> 58 | M130: I130 | N130: =COUNTIF($D$19:INDIRECT($P130),"*4*") -> 4 | O130: 9 | P130: I19
C131: CO5 | D131: =IFERROR((IF(ISNUMBER(SEARCH("5", D$19)),D$79,"0")),"0") -> 0 | E131: 0 | F131: 8 | G131: 9 | H131: 0 | I131: 14 | J131: =IFERROR(SUM($D131:INDIRECT($M131)),"0") -> 31 | M131: I131 | N131: =COUNTIF($D$19:INDIRECT($P131),"*5*") -> 3 | O131: 9 | P131: I19
C132: CO6 | D132: =IFERROR((IF(ISNUMBER(SEARCH("6", D$19)),D$79,"0")),"0") -> 0 | E132: 0 | F132: 0 | G132: 0 | H132: 0 | I132: 0 | J132: =IFERROR(SUM($D132:INDIRECT($M132)),"0") -> 0 | M132: I132 | N132: =COUNTIF($D$19:INDIRECT($P132),"*6*") -> 0 | O132: 9 | P132: I19
C134: 1 | D134: =IFERROR((IF(ISNUMBER(SEARCH("1", D$20)),D$21/IF(LEN(D20)=16,6,IF(LEN(D20)=13,5,IF(LEN(D20)=10,4,IF(LEN(D20)=7,3,IF(LEN(D20)=4,2,1))))),"0")),"0") -> 7.5 | E134: 2.5 | F134: 0 | G134: 7.5 | H134: 0 | I134: 0 | J134: =IFERROR(SUM($D134:INDIRECT($M134)),"0") -> 17.5 | M134: =SUBSTITUTE(ADDRESS(1,O134,4),1,"")&ROW($J134) -> I134 | N134: =COUNTIF($D$20:INDIRECT($P134),"1") -> 0 | O134: =COLUMN($J$18)-1 -> 9 | P134: =SUBSTITUTE(ADDRESS(1,O134,4),1,"")&ROW($J$19)+1 -> I20
C135: 2 | D135: =IFERROR((IF(ISNUMBER(SEARCH("2", D$20)),D$21/IF(LEN(D20)=16,6,IF(LEN(D20)=13,5,IF(LEN(D20)=10,4,IF(LEN(D20)=7,3,IF(LEN(D20)=4,2,1))))),"0")),"0") -> 7.5 | E135: 0 | F135: 7.5 | G135: 7.5 | H135: 20 | I135: 10 | J135: =IFERROR(SUM($D135:INDIRECT($M135)),"0") -> 52.5 | M135: =SUBSTITUTE(ADDRESS(1,O135,4),1,"")&ROW($J135) -> I135 | N135: =COUNTIF($D$20:INDIRECT($P135),"2") -> 1 | O135: 9 | P135: I20
C136: 3 | D136: =IFERROR((IF(ISNUMBER(SEARCH("3", D$20)),D$21/IF(LEN(D20)=16,6,IF(LEN(D20)=13,5,IF(LEN(D20)=10,4,IF(LEN(D20)=7,3,IF(LEN(D20)=4,2,1))))),"0")),"0") -> 0 | E136: 0 | F136: 0 | G136: 0 | H136: 0 | I136: 10 | J136: =IFERROR(SUM($D136:INDIRECT($M136)),"0") -> 10 | M136: I136 | N136: =COUNTIF($D$20:INDIRECT($P136),"3") -> 0 | O136: 9 | P136: I20
C137: 4 | D137: =IFERROR((IF(ISNUMBER(SEARCH("4", D$20)),D$21/IF(LEN(D20)=16,6,IF(LEN(D20)=13,5,IF(LEN(D20)=10,4,IF(LEN(D20)=7,3,IF(LEN(D20)=4,2,1))))),"0")),"0") -> 0 | E137: 0 | F137: 0 | G137: 0 | H137: 0 | I137: 0 | J137: =IFERROR(SUM($D137:INDIRECT($M137)),"0") -> 0 | M137: I137 | N137: =COUNTIF($D$20:INDIRECT($P137),"4") -> 0 | O137: 9 | P137: I20
C138: 5 | D138: =IFERROR((IF(ISNUMBER(SEARCH("5", D$20)),D$21/IF(LEN(D20)=16,6,IF(LEN(D20)=13,5,IF(LEN(D20)=10,4,IF(LEN(D20)=7,3,IF(LEN(D20)=4,2,1))))),"0")),"0") -> 0 | E138: 0 | F138: 0 | G138: 0 | H138: 0 | I138: 0 | J138: =IFERROR(SUM($D138:INDIRECT($M138)),"0") -> 0 | M138: I138 | N138: =COUNTIF($D$20:INDIRECT($P138),"5") -> 0 | O138: 9 | P138: I20
C139: 6 | D139: =IFERROR((IF(ISNUMBER(SEARCH("6", D$20)),D$21/IF(LEN(D20)=16,6,IF(LEN(D20)=13,5,IF(LEN(D20)=10,4,IF(LEN(D20)=7,3,IF(LEN(D20)=4,2,1))))),"0")),"0") -> 0 | E139: 2.5 | F139: 7.5 | G139: 0 | H139: 0 | I139: 0 | J139: =IFERROR(SUM($D139:INDIRECT($M139)),"0") -> 10 | M139: I139 | N139: =COUNTIF($D$20:INDIRECT($P139),"6") -> 0 | O139: 9 | P139: I20

Sheet T1_Analysis
A3: =Data_Sheet!A2 -> Jyothi Engineering College, Cheruthuruthy
A5: ='T1'!A9 -> Department of Electrical & Electronics Engineering
A7: ='T1'!A11 -> CO Analysis - Internal Marks : First Internal Exam 16-09-19
A9: =Data_Sheet!A17 -> S7 EC EC407 Computer Communication 2019-20
A22: ='T1'!A18 -> Register No. | B22: ='T1'!B18 -> Name of Student | C22: ='T1'!J18 -> Total Marks (50) | D22: Category
A24: Column1 | B24: Column2 | C24: Column3 | D24: Column4
A25: =Data_Sheet!A25 -> JEC16EC051 | B25: =Data_Sheet!B25 -> LANA KOLLATH | C25: ='T1'!J25 -> 34 | D25: =IF(C25="A","ABSENT",IF(C25>='T1'!$F$5*$E$82/100,"EXCELLENT",IF(C25>='T1'!$F$5*$E$81/100,"GOOD",IF(C25>='T1'!$F$5*$E$80/100,"AVERAGE","POOR")))) -> GOOD
A26: =Data_Sheet!A26 -> JEC16EC052 | B26: =Data_Sheet!B26 -> MANU JENSON | C26: ='T1'!J26 -> 32 | D26: =IF(C26="A","ABSENT",IF(C26>='T1'!$F$5*$E$82/100,"EXCELLENT",IF(C26>='T1'!$F$5*$E$81/100,"GOOD",IF(C26>='T1'!$F$5*$E$80/100,"AVERAGE","POOR")))) -> GOOD
A27: =Data_Sheet!A27 -> JEC16EC053 | B27: =Data_Sheet!B27 -> MAREENA MARIYA ABRAHAM | C27: ='T1'!J27 -> 37 | D27: =IF(C27="A","ABSENT",IF(C27>='T1'!$F$5*$E$82/100,"EXCELLENT",IF(C27>='T1'!$F$5*$E$81/100,"GOOD",IF(C27>='T1'!$F$5*$E$80/100,"AVERAGE","POOR")))) -> GOOD
A28: =Data_Sheet!A28 -> JEC16EC054 | B28: =Data_Sheet!B28 -> MARIAN DAVIS KATTUKARAN | C28: ='T1'!J28 -> 23 | D28: =IF(C28="A","ABSENT",IF(C28>='T1'!$F$5*$E$82/100,"EXCELLENT",IF(C28>='T1'!$F$5*$E$81/100,"GOOD",IF(C28>='T1'!$F$5*$E$80/100,"AVERAGE","POOR")))) -> AVERAGE
A29: =Data_Sheet!A29 -> JEC16EC055 | B29: =Data_Sheet!B29 -> MARY JEETHU A J | C29: ='T1'!J29 -> 40 | D29: =IF(C29="A","ABSENT",IF(C29>='T1'!$F$5*$E$82/100,"EXCELLENT",IF(C29>='T1'!$F$5*$E$81/100,"GOOD",IF(C29>='T1'!$F$5*$E$80/100,"AVERAGE","POOR")))) -> EXCELLENT
A30: =Data_Sheet!A30 -> JEC16EC056 | B30: =Data_Sheet!B30 -> MUBASHIRA K M | C30: ='T1'!J30 -> 46 | D30: =IF(C30="A","ABSENT",IF(C30>='T1'!$F$5*$E$82/100,"EXCELLENT",IF(C30>='T1'!$F$5*$E$81/100,"GOOD",IF(C30>='T1'!$F$5*$E$80/100,"AVERAGE","POOR")))) -> EXCELLENT
A31: =Data_Sheet!A31 -> JEC16EC057 | B31: =Data_Sheet!B31 -> MUHAMMED ARSHAD | C31: ='T1'!J31 -> 23 | D31: =IF(C31="A","ABSENT",IF(C31>='T1'!$F$5*$E$82/100,"EXCELLENT",IF(C31>='T1'!$F$5*$E$81/100,"GOOD",IF(C31>='T1'!$F$5*$E$80/100,"AVERAGE","POOR")))) -> AVERAGE
A32: =Data_Sheet!A32 -> JEC16EC058 | B32: =Data_Sheet!B32 -> NANDANA K | C32: ='T1'!J32 -> 39 | D32: =IF(C32="A","ABSENT",IF(C32>='T1'!$F$5*$E$82/100,"EXCELLENT",IF(C32>='T1'!$F$5*$E$81/100,"GOOD",IF(C32>='T1'!$F$5*$E$80/100,"AVERAGE","POOR")))) -> GOOD
A33: =Data_Sheet!A33 -> JEC16EC059 | B33: =Data_Sheet!B33 -> NARAYANAN M B | C33: ='T1'!J33 -> 24 | D33: =IF(C33="A","ABSENT",IF(C33>='T1'!$F$5*$E$82/100,"EXCELLENT",IF(C33>='T1'!$F$5*$E$81/100,"GOOD",IF(C33>='T1'!$F$5*$E$80/100,"AVERAGE","POOR")))) -> AVERAGE
A34: =Data_Sheet!A34 -> JEC16EC061 | B34: =Data_Sheet!B34 -> NIKHIL KJ | C34: ='T1'!J34 -> 31 | D34: =IF(C34="A","ABSENT",IF(C34>='T1'!$F$5*$E$82/100,"EXCELLENT",IF(C34>='T1'!$F$5*$E$81/100,"GOOD",IF(C34>='T1'!$F$5*$E$80/100,"AVERAGE","POOR")))) -> GOOD
A35: =Data_Sheet!A35 -> JEC16EC062 | B35: =Data_Sheet!B35 -> NIMISHA M S | C35: ='T1'!J35 -> 23 | D35: =IF(C35="A","ABSENT",IF(C35>='T1'!$F$5*$E$82/100,"EXCELLENT",IF(C35>='T1'!$F$5*$E$81/100,"GOOD",IF(C35>='T1'!$F$5*$E$80/100,"AVERAGE","POOR")))) -> AVERAGE
A36: =Data_Sheet!A36 -> JEC16EC063 | B36: =Data_Sheet!B36 -> NIMISHA TONY | C36: ='T1'!J36 -> 33 | D36: =IF(C36="A","ABSENT",IF(C36>='T1'!$F$5*$E$82/100,"EXCELLENT",IF(C36>='T1'!$F$5*$E$81/100,"GOOD",IF(C36>='T1'!$F$5*$E$80/100,"AVERAGE","POOR")))) -> GOOD
A37: =Data_Sheet!A37 -> JEC16EC064 | B37: =Data_Sheet!B37 -> NITHIN | C37: ='T1'!J37 -> 33 | D37: =IF(C37="A","ABSENT",IF(C37>='T1'!$F$5*$E$82/100,"EXCELLENT",IF(C37>='T1'!$F$5*$E$81/100,"GOOD",IF(C37>='T1'!$F$5*$E$80/100,"AVERAGE","POOR")))) -> GOOD
A38: =Data_Sheet!A38 -> JEC16EC065 | B38: =Data_Sheet!B38 -> OLIVIA NELSON | C38: ='T1'!J38 -> 34 | D38: =IF(C38="A","ABSENT",IF(C38>='T1'!$F$5*$E$82/100,"EXCELLENT",IF(C38>='T1'!$F$5*$E$81/100,"GOOD",IF(C38>='T1'!$F$5*$E$80/100,"AVERAGE","POOR")))) -> GOOD
A39: =Data_Sheet!A39 -> JEC16EC066 | B39: =Data_Sheet!B39 -> PAVITHRA.P | C39: ='T1'!J39 -> 45 | D39: =IF(C39="A","ABSENT",IF(C39>='T1'!$F$5*$E$82/100,"EXCELLENT",IF(C39>='T1'!$F$5*$E$81/100,"GOOD",IF(C39>='T1'!$F$5*$E$80/100,"AVERAGE","POOR")))) -> EXCELLENT
A40: =Data_Sheet!A40 -> JEC16EC067 | B40: =Data_Sheet!B40 -> P.DHANYA RAJ | C40: ='T1'!J40 -> 43 | D40: =IF(C40="A","ABSENT",IF(C40>='T1'!$F$5*$E$82/100,"EXCELLENT",IF(C40>='T1'!$F$5*$E$81/100,"GOOD",IF(C40>='T1'!$F$5*$E$80/100,"AVERAGE","POOR")))) -> EXCELLENT
A41: =Data_Sheet!A41 -> JEC16EC068 | B41: =Data_Sheet!B41 -> POOJA.P | C41: ='T1'!J41 -> 41 | D41: =IF(C41="A","ABSENT",IF(C41>='T1'!$F$5*$E$82/100,"EXCELLENT",IF(C41>='T1'!$F$5*$E$81/100,"GOOD",IF(C41>='T1'!$F$5*$E$80/100,"AVERAGE","POOR")))) -> EXCELLENT
A42: =Data_Sheet!A42 -> JEC16EC069 | B42: =Data_Sheet!B42 -> PRANAV | C42: ='T1'!J42 -> 28 | D42: =IF(C42="A","ABSENT",IF(C42>='T1'!$F$5*$E$82/100,"EXCELLENT",IF(C42>='T1'!$F$5*$E$81/100,"GOOD",IF(C42>='T1'!$F$5*$E$80/100,"AVERAGE","POOR")))) -> AVERAGE
A43: =Data_Sheet!A43 -> JEC16EC070 | B43: =Data_Sheet!B43 -> PRASOBH KP | C43: ='T1'!J43 -> 31 | D43: =IF(C43="A","ABSENT",IF(C43>='T1'!$F$5*$E$82/100,"EXCELLENT",IF(C43>='T1'!$F$5*$E$81/100,"GOOD",IF(C43>='T1'!$F$5*$E$80/100,"AVERAGE","POOR")))) -> GOOD
A44: =Data_Sheet!A44 -> JEC16EC071 | B44: =Data_Sheet!B44 -> PRINCE BENNY | C44: ='T1'!J44 -> 37 | D44: =IF(C44="A","ABSENT",IF(C44>='T1'!$F$5*$E$82/100,"EXCELLENT",IF(C44>='T1'!$F$5*$E$81/100,"GOOD",IF(C44>='T1'!$F$5*$E$80/100,"AVERAGE","POOR")))) -> GOOD
A45: =Data_Sheet!A45 -> JEC16EC072 | B45: =Data_Sheet!B45 -> PRIYA.K | C45: ='T1'!J45 -> 27 | D45: =IF(C45="A","ABSENT",IF(C45>='T1'!$F$5*$E$82/100,"EXCELLENT",IF(C45>='T1'!$F$5*$E$81/100,"GOOD",IF(C45>='T1'!$F$5*$E$80/100,"AVERAGE","POOR")))) -> AVERAGE
A46: =Data_Sheet!A46 -> JEC16EC073 | B46: =Data_Sheet!B46 -> RADHIKA | C46: ='T1'!J46 -> 45 | D46: =IF(C46="A","ABSENT",IF(C46>='T1'!$F$5*$E$82/100,"EXCELLENT",IF(C46>='T1'!$F$5*$E$81/100,"GOOD",IF(C46>='T1'!$F$5*$E$80/100,"AVERAGE","POOR")))) -> EXCELLENT
A47: =Data_Sheet!A47 -> JEC16EC074 | B47: =Data_Sheet!B47 -> RINOSHA.K.R | C47: ='T1'!J47 -> 32 | D47: =IF(C47="A","ABSENT",IF(C47>='T1'!$F$5*$E$82/100,"EXCELLENT",IF(C47>='T1'!$F$5*$E$81/100,"GOOD",IF(C47>='T1'!$F$5*$E$80/100,"AVERAGE","POOR")))) -> GOOD
A48: =Data_Sheet!A48 -> JEC16EC075 | B48: =Data_Sheet!B48 -> RIYA ALBERT | C48: ='T1'!J48 -> 25 | D48: =IF(C48="A","ABSENT",IF(C48>='T1'!$F$5*$E$82/100,"EXCELLENT",IF(C48>='T1'!$F$5*$E$81/100,"GOOD",IF(C48>='T1'!$F$5*$E$80/100,"AVERAGE","POOR")))) -> AVERAGE
A49: =Data_Sheet!A49 -> JEC16EC076 | B49: =Data_Sheet!B49 -> RIYA PS | C49: ='T1'!J49 -> 30 | D49: =IF(C49="A","ABSENT",IF(C49>='T1'!$F$5*$E$82/100,"EXCELLENT",IF(C49>='T1'!$F$5*$E$81/100,"GOOD",IF(C49>='T1'!$F$5*$E$80/100,"AVERAGE","POOR")))) -> GOOD
A50: =Data_Sheet!A50 -> JEC16EC077 | B50: =Data_Sheet!B50 -> ROSHNI J NAIR | C50: ='T1'!J50 -> 37 | D50: =IF(C50="A","ABSENT",IF(C50>='T1'!$F$5*$E$82/100,"EXCELLENT",IF(C50>='T1'!$F$5*$E$81/100,"GOOD",IF(C50>='T1'!$F$5*$E$80/100,"AVERAGE","POOR")))) -> GOOD
A51: =Data_Sheet!A51 -> JEC16EC079 | B51: =Data_Sheet!B51 -> SAFNA M | C51: ='T1'!J51 -> 33 | D51: =IF(C51="A","ABSENT",IF(C51>='T1'!$F$5*$E$82/100,"EXCELLENT",IF(C51>='T1'!$F$5*$E$81/100,"GOOD",IF(C51>='T1'!$F$5*$E$80/100,"AVERAGE","POOR")))) -> GOOD
A52: =Data_Sheet!A52 -> JEC16EC080 | B52: =Data_Sheet!B52 -> SAJIN SHAJI | C52: ='T1'!J52 -> 23 | D52: =IF(C52="A","ABSENT",IF(C52>='T1'!$F$5*$E$82/100,"EXCELLENT",IF(C52>='T1'!$F$5*$E$81/100,"GOOD",IF(C52>='T1'!$F$5*$E$80/100,"AVERAGE","POOR")))) -> AVERAGE
A53: =Data_Sheet!A53 -> JEC16EC081 | B53: =Data_Sheet!B53 -> SANDHRA .S | C53: ='T1'!J53 -> 20 | D53: =IF(C53="A","ABSENT",IF(C53>='T1'!$F$5*$E$82/100,"EXCELLENT",IF(C53>='T1'!$F$5*$E$81/100,"GOOD",IF(C53>='T1'!$F$5*$E$80/100,"AVERAGE","POOR")))) -> POOR
A54: =Data_Sheet!A54 -> JEC16EC082 | B54: =Data_Sheet!B54 -> SANGAMITHRA | C54: ='T1'!J54 -> 32 | D54: =IF(C54="A","ABSENT",IF(C54>='T1'!$F$5*$E$82/100,"EXCELLENT",IF(C54>='T1'!$F$5*$E$81/100,"GOOD",IF(C54>='T1'!$F$5*$E$80/100,"AVERAGE","POOR")))) -> GOOD
A55: =Data_Sheet!A55 -> JEC16EC083 | B55: =Data_Sheet!B55 -> SARANYA.M.NAIR | C55: ='T1'!J55 -> 29 | D55: =IF(C55="A","ABSENT",IF(C55>='T1'!$F$5*$E$82/100,"EXCELLENT",IF(C55>='T1'!$F$5*$E$81/100,"GOOD",IF(C55>='T1'!$F$5*$E$80/100,"AVERAGE","POOR")))) -> AVERAGE
A56: =Data_Sheet!A56 -> JEC16EC084 | B56: =Data_Sheet!B56 -> SARATHRAJ | C56: ='T1'!J56 -> 25 | D56: =IF(C56="A","ABSENT",IF(C56>='T1'!$F$5*$E$82/100,"EXCELLENT",IF(C56>='T1'!$F$5*$E$81/100,"GOOD",IF(C56>='T1'!$F$5*$E$80/100,"AVERAGE","POOR")))) -> AVERAGE
A57: =Data_Sheet!A57 -> JEC16EC085 | B57: =Data_Sheet!B57 -> SHAHAN FATHIMA K | C57: ='T1'!J57 -> 22 | D57: =IF(C57="A","ABSENT",IF(C57>='T1'!$F$5*$E$82/100,"EXCELLENT",IF(C57>='T1'!$F$5*$E$81/100,"GOOD",IF(C57>='T1'!$F$5*$E$80/100,"AVERAGE","POOR")))) -> POOR
A58: =Data_Sheet!A58 -> JEC16EC086 | B58: =Data_Sheet!B58 -> SHAHLA.P.MOHAMMED | C58: ='T1'!J58 -> 28 | D58: =IF(C58="A","ABSENT",IF(C58>='T1'!$F$5*$E$82/100,"EXCELLENT",IF(C58>='T1'!$F$5*$E$81/100,"GOOD",IF(C58>='T1'!$F$5*$E$80/100,"AVERAGE","POOR")))) -> AVERAGE
A59: =Data_Sheet!A59 -> JEC16EC087 | B59: =Data_Sheet!B59 -> SHAMSEENA T A | C59: ='T1'!J59 -> 18 | D59: =IF(C59="A","ABSENT",IF(C59>='T1'!$F$5*$E$82/100,"EXCELLENT",IF(C59>='T1'!$F$5*$E$81/100,"GOOD",IF(C59>='T1'!$F$5*$E$80/100,"AVERAGE","POOR")))) -> POOR
A60: =Data_Sheet!A60 -> JEC16EC088 | B60: =Data_Sheet!B60 -> SHARAN SHASHINDRAN A | C60: ='T1'!J60 -> 12 | D60: =IF(C60="A","ABSENT",IF(C60>='T1'!$F$5*$E$82/100,"EXCELLENT",IF(C60>='T1'!$F$5*$E$81/100,"GOOD",IF(C60>='T1'!$F$5*$E$80/100,"AVERAGE","POOR")))) -> POOR
A61: =Data_Sheet!A61 -> JEC16EC089 | B61: =Data_Sheet!B61 -> SIBIN KRISHNA C | C61: ='T1'!J61 -> 33 | D61: =IF(C61="A","ABSENT",IF(C61>='T1'!$F$5*$E$82/100,"EXCELLENT",IF(C61>='T1'!$F$5*$E$81/100,"GOOD",IF(C61>='T1'!$F$5*$E$80/100,"AVERAGE","POOR")))) -> GOOD
A62: =Data_Sheet!A62 -> JEC16EC090 | B62: =Data_Sheet!B62 -> SREEJITH VIJAYAKUMAR | C62: ='T1'!J62 -> 0 | D62: =IF(C62="A","ABSENT",IF(C62>='T1'!$F$5*$E$82/100,"EXCELLENT",IF(C62>='T1'!$F$5*$E$81/100,"GOOD",IF(C62>='T1'!$F$5*$E$80/100,"AVERAGE","POOR")))) -> POOR
A63: =Data_Sheet!A63 -> JEC16EC091 | B63: =Data_Sheet!B63 -> SREELAKSHMI.R | C63: ='T1'!J63 -> 44 | D63: =IF(C63="A","ABSENT",IF(C63>='T1'!$F$5*$E$82/100,"EXCELLENT",IF(C63>='T1'!$F$5*$E$81/100,"GOOD",IF(C63>='T1'!$F$5*$E$80/100,"AVERAGE","POOR")))) -> EXCELLENT
A64: =Data_Sheet!A64 -> JEC16EC092 | B64: =Data_Sheet!B64 -> SREERAG K M | C64: ='T1'!J64 -> 31 | D64: =IF(C64="A","ABSENT",IF(C64>='T1'!$F$5*$E$82/100,"EXCELLENT",IF(C64>='T1'!$F$5*$E$81/100,"GOOD",IF(C64>='T1'!$F$5*$E$80/100,"AVERAGE","POOR")))) -> GOOD
A65: =Data_Sheet!A65 -> JEC16EC093 | B65: =Data_Sheet!B65 -> SREERAG T K | C65: ='T1'!J65 -> 8 | D65: =IF(C65="A","ABSENT",IF(C65>='T1'!$F$5*$E$82/100,"EXCELLENT",IF(C65>='T1'!$F$5*$E$81/100,"GOOD",IF(C65>='T1'!$F$5*$E$80/100,"AVERAGE","POOR")))) -> POOR
A66: =Data_Sheet!A66 -> JEC16EC094 | B66: =Data_Sheet!B66 -> SREERAG V.V | C66: ='T1'!J66 -> 23 | D66: =IF(C66="A","ABSENT",IF(C66>='T1'!$F$5*$E$82/100,"EXCELLENT",IF(C66>='T1'!$F$5*$E$81/100,"GOOD",IF(C66>='T1'!$F$5*$E$80/100,"AVERAGE","POOR")))) -> AVERAGE
A67: =Data_Sheet!A67 -> JEC16EC095 | B67: =Data_Sheet!B67 -> SRUTHIMOL.N.T | C67: ='T1'!J67 -> 0 | D67: =IF(C67="A","ABSENT",IF(C67>='T1'!$F$5*$E$82/100,"EXCELLENT",IF(C67>='T1'!$F$5*$E$81/100,"GOOD",IF(C67>='T1'!$F$5*$E$80/100,"AVERAGE","POOR")))) -> POOR
A68: =Data_Sheet!A68 -> JEC16EC096 | B68: =Data_Sheet!B68 -> SRUTHISHA SASI | C68: ='T1'!J68 -> 40 | D68: =IF(C68="A","ABSENT",IF(C68>='T1'!$F$5*$E$82/100,"EXCELLENT",IF(C68>='T1'!$F$5*$E$81/100,"GOOD",IF(C68>='T1'!$F$5*$E$80/100,"AVERAGE","POOR")))) -> EXCELLENT
A69: =Data_Sheet!A69 -> JEC16EC097 | B69: =Data_Sheet!B69 -> SUCHITHRA.TS | C69: ='T1'!J69 -> 23 | D69: =IF(C69="A","ABSENT",IF(C69>='T1'!$F$5*$E$82/100,"EXCELLENT",IF(C69>='T1'!$F$5*$E$81/100,"GOOD",IF(C69>='T1'!$F$5*$E$80/100,"AVERAGE","POOR")))) -> AVERAGE
A70: =Data_Sheet!A70 -> JEC16EC098 | B70: =Data_Sheet!B70 -> SWETHA SARA GEORGE | C70: ='T1'!J70 -> 38 | D70: =IF(C70="A","ABSENT",IF(C70>='T1'!$F$5*$E$82/100,"EXCELLENT",IF(C70>='T1'!$F$5*$E$81/100,"GOOD",IF(C70>='T1'!$F$5*$E$80/100,"AVERAGE","POOR")))) -> GOOD
A71: =Data_Sheet!A71 -> JEC16EC099 | B71: =Data_Sheet!B71 -> VISHNU K | C71: ='T1'!J71 -> 32 | D71: =IF(C71="A","ABSENT",IF(C71>='T1'!$F$5*$E$82/100,"EXCELLENT",IF(C71>='T1'!$F$5*$E$81/100,"GOOD",IF(C71>='T1'!$F$5*$E$80/100,"AVERAGE","POOR")))) -> GOOD
A72: =Data_Sheet!A72 -> JEC16EC100 | B72: =Data_Sheet!B72 -> VISHNU PRAKASH | C72: ='T1'!J72 -> 23 | D72: =IF(C72="A","ABSENT",IF(C72>='T1'!$F$5*$E$82/100,"EXCELLENT",IF(C72>='T1'!$F$5*$E$81/100,"GOOD",IF(C72>='T1'!$F$5*$E$80/100,"AVERAGE","POOR")))) -> AVERAGE
A73: =Data_Sheet!A73 -> JEC16EC101 | B73: =Data_Sheet!B73 -> VISHNU V | C73: ='T1'!J73 -> 18 | D73: =IF(C73="A","ABSENT",IF(C73>='T1'!$F$5*$E$82/100,"EXCELLENT",IF(C73>='T1'!$F$5*$E$81/100,"GOOD",IF(C73>='T1'!$F$5*$E$80/100,"AVERAGE","POOR")))) -> POOR
A74: =Data_Sheet!A74 -> LJEC16EC102 | B74: =Data_Sheet!B74 -> CHRISTEENA PAULSON | C74: ='T1'!J74 -> 38 | D74: =IF(C74="A","ABSENT",IF(C74>='T1'!$F$5*$E$82/100,"EXCELLENT",IF(C74>='T1'!$F$5*$E$81/100,"GOOD",IF(C74>='T1'!$F$5*$E$80/100,"AVERAGE","POOR")))) -> GOOD
A76: Total Number of Students | C76: =Data_Sheet!$C$6 -> 50
A77: Number of Students Absent | C77: =IF(COUNTIF(C25:INDIRECT(C89),"=A"),COUNTIF(C25:INDIRECT(C89),"=A"),0) -> 0
A78: Total Number of Students attended | C78: =C76-C77 -> 50
A79: ="Number of Students with Marks less than "&E80&"%" -> Number of Students with Marks less than 45% | C79: =IF(COUNTIF(D25:INDIRECT(D89),"=POOR"),COUNTIF(D25:INDIRECT(D89),"=POOR"),0) -> 8 | D79: POOR | E79: Range
A80: ="Number of Students with Marks betweeen "&E80&"% to "&E81&"%" -> Number of Students with Marks betweeen 45% to 60% | C80: =IF(COUNTIF(D25:INDIRECT(D89),"=AVERAGE"),COUNTIF(D25:INDIRECT(D89),"=AVERAGE"),0) -> 14 | D80: AVERAGE | E80: 45
A81: ="Number of Students with Marks betweeen "&E81&"% to "&E82&"%" -> Number of Students with Marks betweeen 60% to 80% | C81: =IF(COUNTIF(D25:INDIRECT(D89),"=GOOD"),COUNTIF(D25:INDIRECT(D89),"=GOOD"),0) -> 20 | D81: GOOD | E81: 60
A82: ="Number of Students with Marks greater than "&E82&"%" -> Number of Students with Marks greater than 80% | C82: =IF(COUNTIF(D25:INDIRECT(D89),"=EXCELLENT"),COUNTIF(D25:INDIRECT(D89),"=EXCELLENT"),0) -> 8 | D82: EXCELLENT | E82: 80
A83: Class Average | C83: =ROUND(AVERAGE(C25:INDIRECT(C89)),2) -> 29.32
A84: Pass Percentage | C84: =ROUND(((C78-C79)/C78)*100,2) -> 84
B86: =Data_Sheet!B10 -> Name of Faculty : | C86: =Data_Sheet!B11 -> PONMANI RAJA M
B87: =Data_Sheet!B94 -> Dated Signature :
A89: =ROW(A76)-2 -> 74 | B89: Last Row Count | C89: ="$C$"&$A$89 -> $C$74 | D89: ="$D$"&$A$89 -> $D$74

Sheet T2
A3: Add questions one by one as needed.. | C3: Assessment Category | G3: Date : | K3: CO1 | L3: First Internal Exam
C4: Second Internal Exam | G4: 14-03-18 | K4: CO2 | L4: Second Internal Exam
C5: Total Marks : | F5: 50 | K5: CO3 | L5: Assessment Exam - 1
K6: CO4 | L6: Assessment Exam - 2
A7: =Data_Sheet!A2 -> Jyothi Engineering College, Cheruthuruthy | K7: CO5 | L7: Assignment - 1
K8: CO6 | L8: Assignment - 2
A9: =Data_Sheet!A4 -> Department of Electrical & Electronics Engineering | L9: Retest
K10: 1
A11: ="CO Analysis - Internal Marks : "&C4 &" " &TEXT(G4,"dd-mm-yy") -> CO Analysis - Internal Marks : Second Internal Exam 14-03-18 | K11: 2
K12: 3
A13: =Data_Sheet!A17 -> S7 EC EC407 Computer Communication 2019-20 | K13: 4
K14: 5
K15: 6
A18: Register No. | B18: Name of Student | C18: Qn. No. | D18: 1 | E18: 2 | F18: 3 | G18: 4 | H18: 5 | I18: 6 | J18: ="Total Marks (" &F5 & ")" -> Total Marks (50) | M18: Calculated Total Marks (50)
C19: CO's | D19: CO1, CO4, CO2 | E19: CO2, CO1 | F19: CO1, CO3, CO4, CO5 | G19: CO1, CO3, CO5 | H19: CO3, CO4 | I19: CO1, CO4, CO5
C20: Blooms Taxonomy Lavel | D20: 1, 2 | E20: 1, 6 | F20: 2, 6 | G20: 1, 2 | H20: 2 | I20: 2, 3
C21: Max. Marks | D21: 15 | E21: 5 | F21: 15 | G21: 15 | H21: 20 | I21: 20
C22: Difficulty Level in % | D22: 60 | E22: 60 | F22: 60 | G22: 60 | H22: 60 | I22: 60
A24: Column1 | B24: Column2 | C24: Column3 | D24: Column4 | E24: Column5 | F24: Column6 | G24: Column7 | H24: Column4 | I24: Column8 | J24: Column32
A25: =Data_Sheet!A25 -> JEC16EC051 | B25: =Data_Sheet!B25 -> LANA KOLLATH | D25: 12 | F25: 13 | H25: 15 | J25: 40
A26: =Data_Sheet!A26 -> JEC16EC052 | B26: =Data_Sheet!B26 -> MANU JENSON | D26: 9 | G26: 8 | I26: 12 | J26: 29
A27: =Data_Sheet!A27 -> JEC16EC053 | B27: =Data_Sheet!B27 -> MAREENA MARIYA ABRAHAM | E27: 14 | G27: 14 | I27: 20 | J27: 48
A28: =Data_Sheet!A28 -> JEC16EC054 | B28: =Data_Sheet!B28 -> MARIAN DAVIS KATTUKARAN | E28: 13 | F28: 12 | H28: 18 | J28: 43
A29: =Data_Sheet!A29 -> JEC16EC055 | B29: =Data_Sheet!B29 -> MARY JEETHU A J | D29: 13 | F29: 14 | H29: 18 | J29: 45
A30: =Data_Sheet!A30 -> JEC16EC056 | B30: =Data_Sheet!B30 -> MUBASHIRA K M | D30: 14 | F30: 14 | I30: 16 | J30: 44
A31: =Data_Sheet!A31 -> JEC16EC057 | B31: =Data_Sheet!B31 -> MUHAMMED ARSHAD | D31: 11 | F31: 12 | H31: 13 | J31: 36
A32: =Data_Sheet!A32 -> JEC16EC058 | B32: =Data_Sheet!B32 -> NANDANA K | D32: 13 | G32: 12 | I32: 16 | J32: 41
A33: =Data_Sheet!A33 -> JEC16EC059 | B33: =Data_Sheet!B33 -> NARAYANAN M B | E33: 9 | F33: 9 | H33: 11 | J33: 29
A34: =Data_Sheet!A34 -> JEC16EC061 | B34: =Data_Sheet!B34 -> NIKHIL KJ | D34: 8 | G34: 9 | I34: 6 | J34: 23
A35: =Data_Sheet!A35 -> JEC16EC062 | B35: =Data_Sheet!B35 -> NIMISHA M S | E35: 13 | F35: 14 | H35: 16 | J35: 43
A36: =Data_Sheet!A36 -> JEC16EC063 | B36: =Data_Sheet!B36 -> NIMISHA TONY | D36: 13 | G36: 12 | I36: 19 | J36: 44
A37: =Data_Sheet!A37 -> JEC16EC064 | B37: =Data_Sheet!B37 -> NITHIN | D37: 14 | F37: 12 | I37: 12 | J37: 38
A38: =Data_Sheet!A38 -> JEC16EC065 | B38: =Data_Sheet!B38 -> OLIVIA NELSON | E38: 13 | G38: 14 | H38: 13 | J38: 40
A39: =Data_Sheet!A39 -> JEC16EC066 | B39: =Data_Sheet!B39 -> PAVITHRA.P | D39: 13 | G39: 14 | I39: 18 | J39: 45
A40: =Data_Sheet!A40 -> JEC16EC067 | B40: =Data_Sheet!B40 -> P.DHANYA RAJ | E40: 8 | G40: 9 | I40: 15 | J40: 32
A41: =Data_Sheet!A41 -> JEC16EC068 | B41: =Data_Sheet!B41 -> POOJA.P | D41: 13 | G41: 14 | H41: 19 | J41: 46
A42: =Data_Sheet!A42 -> JEC16EC069 | B42: =Data_Sheet!B42 -> PRANAV | E42: 9 | F42: 11 | H42: 10 | J42: 30
A43: =Data_Sheet!A43 -> JEC16EC070 | B43: =Data_Sheet!B43 -> PRASOBH KP | E43: 12 | G43: 13 | I43: 12 | J43: 37
A44: =Data_Sheet!A44 -> JEC16EC071 | B44: =Data_Sheet!B44 -> PRINCE BENNY | E44: 12 | F44: 14 | H44: 10 | J44: 36
A45: =Data_Sheet!A45 -> JEC16EC072 | B45: =Data_Sheet!B45 -> PRIYA.K | D45: 14 | G45: 14 | H45: 19 | J45: 47
A46: =Data_Sheet!A46 -> JEC16EC073 | B46: =Data_Sheet!B46 -> RADHIKA | E46: 13 | G46: 15 | I46: 18 | J46: 46
A47: =Data_Sheet!A47 -> JEC16EC074 | B47: =Data_Sheet!B47 -> RINOSHA.K.R | E47: 15 | G47: 12 | I47: 18 | J47: 45
A48: =Data_Sheet!A48 -> JEC16EC075 | B48: =Data_Sheet!B48 -> RIYA ALBERT | D48: 8 | F48: 10 | I48: 15 | J48: 33
A49: =Data_Sheet!A49 -> JEC16EC076 | B49: =Data_Sheet!B49 -> RIYA PS | F49: 2 | G49: 13 | I49: 19 | J49: 34
A50: =Data_Sheet!A50 -> JEC16EC077 | B50: =Data_Sheet!B50 -> ROSHNI J NAIR | D50: 13 | F50: 14 | H50: 15 | J50: 42
A51: =Data_Sheet!A51 -> JEC16EC079 | B51: =Data_Sheet!B51 -> SAFNA M | E51: 14 | F51: 14 | H51: 14 | J51: 42
A52: =Data_Sheet!A52 -> JEC16EC080 | B52: =Data_Sheet!B52 -> SAJIN SHAJI | D52: 11 | F52: 15 | I52: 16 | J52: 42
A53: =Data_Sheet!A53 -> JEC16EC081 | B53: =Data_Sheet!B53 -> SANDHRA .S | D53: 13 | G53: 2 | I53: 4 | J53: 19
A54: =Data_Sheet!A54 -> JEC16EC082 | B54: =Data_Sheet!B54 -> SANGAMITHRA | D54: 13 | F54: 14 | I54: 18 | J54: 45
A55: =Data_Sheet!A55 -> JEC16EC083 | B55: =Data_Sheet!B55 -> SARANYA.M.NAIR | E55: 10 | G55: 14 | H55: 18 | J55: 42
A56: =Data_Sheet!A56 -> JEC16EC084 | B56: =Data_Sheet!B56 -> SARATHRAJ | D56: 10 | G56: 11 | H56: 15 | J56: 36
A57: =Data_Sheet!A57 -> JEC16EC085 | B57: =Data_Sheet!B57 -> SHAHAN FATHIMA K | E57: 14 | F57: 11 | H57: 16 | J57: 41
A58: =Data_Sheet!A58 -> JEC16EC086 | B58: =Data_Sheet!B58 -> SHAHLA.P.MOHAMMED | D58: 12 | F58: 8 | I58: 17 | J58: 37
A59: =Data_Sheet!A59 -> JEC16EC087 | B59: =Data_Sheet!B59 -> SHAMSEENA T A | E59: 7 | G59: 8 | H59: 5 | J59: 20
A60: =Data_Sheet!A60 -> JEC16EC088 | B60: =Data_Sheet!B60 -> SHARAN SHASHINDRAN A | D60: 6 | G60: 8 | I60: 12 | J60: 26
A61: =Data_Sheet!A61 -> JEC16EC089 | B61: =Data_Sheet!B61 -> SIBIN KRISHNA C | E61: 8 | F61: 9 | H61: 10 | J61: 27
A62: =Data_Sheet!A62 -> JEC16EC090 | B62: =Data_Sheet!B62 -> SREEJITH VIJAYAKUMAR | J62: 0
A63: =Data_Sheet!A63 -> JEC16EC091 | B63: =Data_Sheet!B63 -> SREELAKSHMI.R | E63: 13 | G63: 14 | H63: 17 | J63: 44
A64: =Data_Sheet!A64 -> JEC16EC092 | B64: =Data_Sheet!B64 -> SREERAG K M | D64: 8 | F64: 10 | I64: 17 | J64: 35
A65: =Data_Sheet!A65 -> JEC16EC093 | B65: =Data_Sheet!B65 -> SREERAG T K | J65: 0
A66: =Data_Sheet!A66 -> JEC16EC094 | B66: =Data_Sheet!B66 -> SREERAG V.V | E66: 10 | G66: 9 | H66: 16 | J66: 35
A67: =Data_Sheet!A67 -> JEC16EC095 | B67: =Data_Sheet!B67 -> SRUTHIMOL.N.T | J67: 0
A68: =Data_Sheet!A68 -> JEC16EC096 | B68: =Data_Sheet!B68 -> SRUTHISHA SASI | D68: 15 | F68: 15 | I68: 19 | J68: 49
A69: =Data_Sheet!A69 -> JEC16EC097 | B69: =Data_Sheet!B69 -> SUCHITHRA.TS | E69: 8 | F69: 9 | H69: 14 | J69: 31
A70: =Data_Sheet!A70 -> JEC16EC098 | B70: =Data_Sheet!B70 -> SWETHA SARA GEORGE | D70: 9 | F70: 11 | I70: 17 | J70: 37
A71: =Data_Sheet!A71 -> JEC16EC099 | B71: =Data_Sheet!B71 -> VISHNU K | E71: 12 | G71: 14 | H71: 17 | J71: 43
A72: =Data_Sheet!A72 -> JEC16EC100 | B72: =Data_Sheet!B72 -> VISHNU PRAKASH | D72: 6 | F72: 9 | I72: 13 | J72: 28
A73: =Data_Sheet!A73 -> JEC16EC101 | B73: =Data_Sheet!B73 -> VISHNU V | E73: 11 | F73: 12 | H73: 8 | J73: 31
A74: =Data_Sheet!A74 -> LJEC16EC102 | B74: =Data_Sheet!B74 -> CHRISTEENA PAULSON | D74: 13 | G74: 13 | H74: 14 | J74: 40
A76: Total Marks scored for the Question | D76: =IF(D$22<>"",IF(SUM(D25:INDIRECT(D96))>=0,SUM(D25:INDIRECT(D96)),""),"") -> 284 | E76: =IF(E$22<>"",IF(SUM(E25:INDIRECT(E96))>=0,SUM(E25:INDIRECT(E96)),""),"") -> 238 | F76: =IF(F$22<>"",IF(SUM(F25:INDIRECT(F96))>=0,SUM(F25:INDIRECT(F96)),""),"") -> 288 | G76: =IF(G$22<>"",IF(SUM(G25:INDIRECT(G96))>=0,SUM(G25:INDIRECT(G96)),""),"") -> 266 | H76: =IF(H$22<>"",IF(SUM(H25:INDIRECT(H96))>=0,SUM(H25:INDIRECT(H96)),""),"") -> 341 | I76: =IF(I$22<>"",IF(SUM(I25:INDIRECT(I96))>=0,SUM(I25:INDIRECT(I96)),""),"") -> 349
A77: No. of Students who attended the Question | D77: =IF(D$22<>"",IF(COUNT(D25:INDIRECT(D96))>=0,COUNT(D25:INDIRECT(D96)),""),"") -> 25 | E77: =IF(E$22<>"",IF(COUNT(E25:INDIRECT(E96))>=0,COUNT(E25:INDIRECT(E96)),""),"") -> 21 | F77: =IF(F$22<>"",IF(COUNT(F25:INDIRECT(F96))>=0,COUNT(F25:INDIRECT(F96)),""),"") -> 25 | G77: =IF(G$22<>"",IF(COUNT(G25:INDIRECT(G96))>=0,COUNT(G25:INDIRECT(G96)),""),"") -> 23 | H77: =IF(H$22<>"",IF(COUNT(H25:INDIRECT(H96))>=0,COUNT(H25:INDIRECT(H96)),""),"") -> 24 | I77: =IF(I$22<>"",IF(COUNT(I25:INDIRECT(I96))>=0,COUNT(I25:INDIRECT(I96)),""),"") -> 23
A78: Difficulty Level marks of the Question | D78: =IF(D21*D22/100=0,"",D21*D22/100) -> 9 | E78: 3 | F78: 9 | G78: 9 | H78: =IF(H21*H22/100=0,"",H21*H22/100) -> 12 | I78: 12
A79: No. of Students who scored above the Difficulty Level | D79: =IF(COUNTIF(D25:INDIRECT(D96),">="&D78)=0,"",COUNTIF(D25:INDIRECT(D96),">="&D78)) -> 20 | E79: =IF(COUNTIF(E25:INDIRECT(E96),">="&E78)=0,"",COUNTIF(E25:INDIRECT(E96),">="&E78)) -> 21 | F79: =IF(COUNTIF(F25:INDIRECT(F96),">="&F78)=0,"",COUNTIF(F25:INDIRECT(F96),">="&F78)) -> 23 | G79: =IF(COUNTIF(G25:INDIRECT(G96),">="&G78)=0,"",COUNTIF(G25:INDIRECT(G96),">="&G78)) -> 19 | H79: =IF(COUNTIF(H25:INDIRECT(H96),">="&H78)=0,"",COUNTIF(H25:INDIRECT(H96),">="&H78)) -> 18 | I79: =IF(COUNTIF(I25:INDIRECT(I96),">="&I78)=0,"",COUNTIF(I25:INDIRECT(I96),">="&I78)) -> 21
A80: % of Students who scored above the Difficulty Level | D80: =IFERROR(ROUND(D79/D77*100,2),"") -> 80 | E80: 100 | F80: 92 | G80: 82.61 | H80: 75 | I80: 91.3
D81: =IF(D80="",0,IF(D80>=80,3,IF(D80>=70,2,IF(D80>=60,1,0)))) -> 3 | E81: 3 | F81: 3 | G81: 3 | H81: 2 | I81: 3 | J81: Marks | N81: T_Marks | O81: S_Marks | P81: Students | Q81: Level | R81: Above | S81: Above % | T81: Attainment
B82: =IF(Data_Sheet!A77<>"","Total Attainment level for "&Data_Sheet!A77&" :","") -> Total Attainment level for CO1 : | C82: =IF(Data_Sheet!A77<>"",M82,"") -> 3 | D82: =IFERROR((IF(ISNUMBER(SEARCH("1", D$19)),D$21,"0")),"0")*D81 -> 45 | E82: 15 | F82: 45 | G82: 45 | H82: 0 | I82: 60 | J82: =J99 -> 70 | M82: =IF(J82=0,"",ROUND(SUM(D82:I82)/J82,2)) -> 3 | N82: =J99 -> 70 | O82: =J106 -> 1425 | P82: =J113 -> 117 | Q82: =J120 -> 42 | R82: =J127 -> 104 | S82: =IFERROR(ROUND(R82/P82*100,2),"") -> 88.89 | T82: =IF(S82="","",IF(S82>=80,3,IF(S82>=70,2,IF(S82>=60,1,0)))) -> 3
B83: =IF(Data_Sheet!A78<>"","Total Attainment level for "&Data_Sheet!A78&" :","") -> Total Attainment level for CO2 : | C83: =IF(Data_Sheet!A78<>"",M83,"") -> 3 | D83: =IFERROR((IF(ISNUMBER(SEARCH("2", D$19)),D$21,"0")),"0")*D81 -> 45 | E83: 15 | F83: 0 | G83: 0 | H83: 0 | I83: 0 | J83: 20 | M83: 3 | N83: 20 | O83: 522 | P83: 46 | Q83: 12 | R83: 41 | S83: 89.13 | T83: 3
B84: =IF(Data_Sheet!A79<>"","Total Attainment level for "&Data_Sheet!A79&" :","") -> Total Attainment level for CO3 : | C84: =IF(Data_Sheet!A79<>"",M84,"") -> 2.6 | D84: =IFERROR((IF(ISNUMBER(SEARCH("3", D$19)),D$21,"0")),"0")*D81 -> 0 | E84: 0 | F84: 45 | G84: 45 | H84: 40 | I84: 0 | J84: 50 | M84: 2.6 | N84: 50 | O84: 895 | P84: 72 | Q84: 30 | R84: 60 | S84: 83.33 | T84: 3
B85: =IF(Data_Sheet!A80<>"","Total Attainment level for "&Data_Sheet!A80&" :","") -> Total Attainment level for CO4 : | C85: =IF(Data_Sheet!A80<>"",M85,"") -> 2.71 | D85: =IFERROR((IF(ISNUMBER(SEARCH("4", D$19)),D$21,"0")),"0")*D81 -> 45 | E85: 0 | F85: 45 | G85: 0 | H85: 40 | I85: 60 | J85: 70 | M85: 2.71 | N85: 70 | O85: 1262 | P85: 97 | Q85: 42 | R85: 82 | S85: 84.54 | T85: 3
B86: =IF(Data_Sheet!A81<>"","Total Attainment level for "&Data_Sheet!A81&" :","") -> Total Attainment level for CO5 : | C86: =IF(Data_Sheet!A81<>"",M86,"") -> 3 | D86: =IFERROR((IF(ISNUMBER(SEARCH("5", D$19)),D$21,"0")),"0")*D81 -> 0 | E86: 0 | F86: 45 | G86: 45 | H86: 0 | I86: 60 | J86: 50 | M86: 3 | N86: 50 | O86: 903 | P86: 71 | Q86: 30 | R86: 63 | S86: 88.73 | T86: 3
B87: =IF(Data_Sheet!A82<>"","Total Attainment level for "&Data_Sheet!A82&" :","") -> Total Attainment level for CO6 : | C87: =IF(Data_Sheet!A82<>"",M87,"") ->  | D87: =IFERROR((IF(ISNUMBER(SEARCH("6", D$19)),D$21,"0")),"0")*D81 -> 0 | E87: 0 | F87: 0 | G87: 0 | H87: 0 | I87: 0 | J87: 0 | N87: 0 | O87: 0 | P87: 0 | Q87: 0 | R87: 0
A89: =Data_Sheet!A85 -> Attainment Level 1: 60% students scoring more than 60% of the Total Marks
A90: =Data_Sheet!A86 -> Attainment Level 2: 70% students scoring more than 60% of the Total Marks
A91: =Data_Sheet!A87 -> Attainment Level 3: 80% students scoring more than 60% of the Total Marks
B93: =Data_Sheet!B10 -> Name of Faculty : | C93: =Data_Sheet!B11 -> PONMANI RAJA M
B94: =Data_Sheet!B94 -> Dated Signature :
B96: Last Row Count | C96: =ROW(A76)-2 -> 74 | D96: =SUBSTITUTE(ADDRESS(1,COLUMN(D1),2),"1","")&$C$96 -> D$74 | E96: ="E"&$C$96 -> E74 | F96: =SUBSTITUTE(ADDRESS(1,COLUMN(F1),2),"1","")&$C$96 -> F$74 | G96: =SUBSTITUTE(ADDRESS(1,COLUMN(G1),2),"1","")&$C$96 -> G$74 | H96: =SUBSTITUTE(ADDRESS(1,COLUMN(H1),2),"1","")&$C$96 -> H$74 | I96: =SUBSTITUTE(ADDRESS(1,COLUMN(I1),2),"1","")&$C$96 -> I$74
C99: CO1 | D99: =IFERROR((IF(ISNUMBER(SEARCH("1", D$19)),D$21,"0")),"0") -> 15 | E99: =IFERROR((IF(ISNUMBER(SEARCH("1", E$19)),E$21,"0")),"0") -> 5 | F99: =IFERROR((IF(ISNUMBER(SEARCH("1", F$19)),F$21,"0")),"0") -> 15 | G99: 15 | H99: =IFERROR((IF(ISNUMBER(SEARCH("1", H$19)),H$21,"0")),"0") -> 0 | I99: 20 | J99: =IFERROR(SUM($D99:INDIRECT($M99)),"0") -> 70 | M99: =SUBSTITUTE(ADDRESS(1,O99,4),1,"")&ROW($J99) -> I99 | N99: =COUNTIF($D$19:INDIRECT($P99),"*1*") -> 5 | O99: =COLUMN($J$18)-1 -> 9 | P99: =SUBSTITUTE(ADDRESS(1,O99,4),1,"")&ROW($J$18)+1 -> I19 | Q99: Total Marks
C100: CO2 | D100: =IFERROR((IF(ISNUMBER(SEARCH("2", D$19)),D$21,"0")),"0") -> 15 | E100: =IFERROR((IF(ISNUMBER(SEARCH("2", E$19)),E$21,"0")),"0") -> 5 | F100: =IFERROR((IF(ISNUMBER(SEARCH("2", F$19)),F$21,"0")),"0") -> 0 | G100: 0 | H100: =IFERROR((IF(ISNUMBER(SEARCH("2", H$19)),H$21,"0")),"0") -> 0 | I100: 0 | J100: =IFERROR(SUM($D100:INDIRECT($M100)),"0") -> 20 | M100: I100 | N100: =COUNTIF($D$19:INDIRECT($P100),"*2*") -> 2 | O100: =COLUMN($J$18)-1 -> 9 | P100: =SUBSTITUTE(ADDRESS(1,O100,4),1,"")&ROW($J$18)+1 -> I19
C101: CO3 | D101: =IFERROR((IF(ISNUMBER(SEARCH("3", D$19)),D$21,"0")),"0") -> 0 | E101: =IFERROR((IF(ISNUMBER(SEARCH("3", E$19)),E$21,"0")),"0") -> 0 | F101: =IFERROR((IF(ISNUMBER(SEARCH("3", F$19)),F$21,"0")),"0") -> 15 | G101: 15 | H101: =IFERROR((IF(ISNUMBER(SEARCH("3", H$19)),H$21,"0")),"0") -> 20 | I101: 0 | J101: =IFERROR(SUM($D101:INDIRECT($M101)),"0") -> 50 | M101: I101 | N101: =COUNTIF($D$19:INDIRECT($P101),"*3*") -> 3 | O101: 9 | P101: I19
C102: CO4 | D102: =IFERROR((IF(ISNUMBER(SEARCH("4", D$19)),D$21,"0")),"0") -> 15 | E102: =IFERROR((IF(ISNUMBER(SEARCH("4", E$19)),E$21,"0")),"0") -> 0 | F102: =IFERROR((IF(ISNUMBER(SEARCH("4", F$19)),F$21,"0")),"0") -> 15 | G102: 0 | H102: =IFERROR((IF(ISNUMBER(SEARCH("4", H$19)),H$21,"0")),"0") -> 20 | I102: 20 | J102: =IFERROR(SUM($D102:INDIRECT($M102)),"0") -> 70 | M102: I102 | N102: =COUNTIF($D$19:INDIRECT($P102),"*4*") -> 4 | O102: 9 | P102: I19
C103: CO5 | D103: =IFERROR((IF(ISNUMBER(SEARCH("5", D$19)),D$21,"0")),"0") -> 0 | E103: =IFERROR((IF(ISNUMBER(SEARCH("5", E$19)),E$21,"0")),"0") -> 0 | F103: =IFERROR((IF(ISNUMBER(SEARCH("5", F$19)),F$21,"0")),"0") -> 15 | G103: 15 | H103: =IFERROR((IF(ISNUMBER(SEARCH("5", H$19)),H$21,"0")),"0") -> 0 | I103: 20 | J103: =IFERROR(SUM($D103:INDIRECT($M103)),"0") -> 50 | M103: I103 | N103: =COUNTIF($D$19:INDIRECT($P103),"*5*") -> 3 | O103: 9 | P103: I19
C104: CO6 | D104: =IFERROR((IF(ISNUMBER(SEARCH("6", D$19)),D$21,"0")),"0") -> 0 | E104: =IFERROR((IF(ISNUMBER(SEARCH("6", E$19)),E$21,"0")),"0") -> 0 | F104: =IFERROR((IF(ISNUMBER(SEARCH("6", F$19)),F$21,"0")),"0") -> 0 | G104: 0 | H104: =IFERROR((IF(ISNUMBER(SEARCH("6", H$19)),H$21,"0")),"0") -> 0 | I104: 0 | J104: =IFERROR(SUM($D104:INDIRECT($M104)),"0") -> 0 | M104: I104 | N104: =COUNTIF($D$19:INDIRECT($P104),"*6*") -> 0 | O104: 9 | P104: I19
C106: CO1 | D106: =IFERROR((IF(ISNUMBER(SEARCH("1", D$19)),D$76,"0")),"0") -> 284 | E106: =IFERROR((IF(ISNUMBER(SEARCH("1", E$19)),E$76,"0")),"0") -> 238 | F106: 288 | G106: 266 | H106: =IFERROR((IF(ISNUMBER(SEARCH("1", H$19)),H$76,"0")),"0") -> 0 | I106: 349 | J106: =IFERROR(SUM($D106:INDIRECT($M106)),"0") -> 1425 | M106: =SUBSTITUTE(ADDRESS(1,O106,4),1,"")&ROW($J106) -> I106 | N106: =COUNTIF($D$19:INDIRECT($P106),"*1*") -> 5 | O106: =COLUMN($J$18)-1 -> 9 | P106: =SUBSTITUTE(ADDRESS(1,O106,4),1,"")&ROW($J$18)+1 -> I19 | Q106: Total Marks Scored
C107: CO2 | D107: =IFERROR((IF(ISNUMBER(SEARCH("2", D$19)),D$76,"0")),"0") -> 284 | E107: =IFERROR((IF(ISNUMBER(SEARCH("2", E$19)),E$76,"0")),"0") -> 238 | F107: 0 | G107: 0 | H107: =IFERROR((IF(ISNUMBER(SEARCH("2", H$19)),H$76,"0")),"0") -> 0 | I107: 0 | J107: =IFERROR(SUM($D107:INDIRECT($M107)),"0") -> 522 | M107: I107 | N107: =COUNTIF($D$19:INDIRECT($P107),"*2*") -> 2 | O107: =COLUMN($J$18)-1 -> 9 | P107: =SUBSTITUTE(ADDRESS(1,O107,4),1,"")&ROW($J$18)+1 -> I19
C108: CO3 | D108: =IFERROR((IF(ISNUMBER(SEARCH("3", D$19)),D$76,"0")),"0") -> 0 | E108: =IFERROR((IF(ISNUMBER(SEARCH("3", E$19)),E$76,"0")),"0") -> 0 | F108: =IFERROR((IF(ISNUMBER(SEARCH("3", F$19)),F$76,"0")),"0") -> 288 | G108: 266 | H108: =IFERROR((IF(ISNUMBER(SEARCH("3", H$19)),H$76,"0")),"0") -> 341 | I108: 0 | J108: =IFERROR(SUM($D108:INDIRECT($M108)),"0") -> 895 | M108: I108 | N108: =COUNTIF($D$19:INDIRECT($P108),"*3*") -> 3 | O108: 9 | P108: I19
C109: CO4 | D109: =IFERROR((IF(ISNUMBER(SEARCH("4", D$19)),D$76,"0")),"0") -> 284 | E109: =IFERROR((IF(ISNUMBER(SEARCH("4", E$19)),E$76,"0")),"0") -> 0 | F109: =IFERROR((IF(ISNUMBER(SEARCH("4", F$19)),F$76,"0")),"0") -> 288 | G109: =IFERROR((IF(ISNUMBER(SEARCH("4", G$19)),G$76,"0")),"0") -> 0 | H109: =IFERROR((IF(ISNUMBER(SEARCH("4", H$19)),H$76,"0")),"0") -> 341 | I109: 349 | J109: =IFERROR(SUM($D109:INDIRECT($M109)),"0") -> 1262 | M109: I109 | N109: =COUNTIF($D$19:INDIRECT($P109),"*4*") -> 4 | O109: 9 | P109: I19
C110: CO5 | D110: =IFERROR((IF(ISNUMBER(SEARCH("5", D$19)),D$76,"0")),"0") -> 0 | E110: =IFERROR((IF(ISNUMBER(SEARCH("5", E$19)),E$76,"0")),"0") -> 0 | F110: 288 | G110: 266 | H110: =IFERROR((IF(ISNUMBER(SEARCH("5", H$19)),H$76,"0")),"0") -> 0 | I110: =IFERROR((IF(ISNUMBER(SEARCH("5", I$19)),I$76,"0")),"0") -> 349 | J110: =IFERROR(SUM($D110:INDIRECT($M110)),"0") -> 903 | M110: I110 | N110: =COUNTIF($D$19:INDIRECT($P110),"*5*") -> 3 | O110: 9 | P110: I19
C111: CO6 | D111: =IFERROR((IF(ISNUMBER(SEARCH("6", D$19)),D$76,"0")),"0") -> 0 | E111: =IFERROR((IF(ISNUMBER(SEARCH("6", E$19)),E$76,"0")),"0") -> 0 | F111: 0 | G111: 0 | H111: =IFERROR((IF(ISNUMBER(SEARCH("6", H$19)),H$76,"0")),"0") -> 0 | I111: 0 | J111: =IFERROR(SUM($D111:INDIRECT($M111)),"0") -> 0 | M111: I111 | N111: =COUNTIF($D$19:INDIRECT($P111),"*6*") -> 0 | O111: 9 | P111: I19
C113: CO1 | D113: =IFERROR((IF(ISNUMBER(SEARCH("1", D$19)),D$77,"0")),"0") -> 25 | E113: =IFERROR((IF(ISNUMBER(SEARCH("1", E$19)),E$77,"0")),"0") -> 21 | F113: 25 | G113: 23 | H113: =IFERROR((IF(ISNUMBER(SEARCH("1", H$19)),H$77,"0")),"0") -> 0 | I113: 23 | J113: =IFERROR(SUM($D113:INDIRECT($M113)),"0") -> 117 | M113: =SUBSTITUTE(ADDRESS(1,O113,4),1,"")&ROW($J113) -> I113 | N113: =COUNTIF($D$19:INDIRECT($P113),"*1*") -> 5 | O113: =COLUMN($J$18)-1 -> 9 | P113: =SUBSTITUTE(ADDRESS(1,O113,4),1,"")&ROW($J$18)+1 -> I19 | Q113: No of Studdents Attended
C114: CO2 | D114: =IFERROR((IF(ISNUMBER(SEARCH("2", D$19)),D$77,"0")),"0") -> 25 | E114: =IFERROR((IF(ISNUMBER(SEARCH("2", E$19)),E$77,"0")),"0") -> 21 | F114: 0 | G114: 0 | H114: =IFERROR((IF(ISNUMBER(SEARCH("2", H$19)),H$77,"0")),"0") -> 0 | I114: 0 | J114: =IFERROR(SUM($D114:INDIRECT($M114)),"0") -> 46 | M114: I114 | N114: =COUNTIF($D$19:INDIRECT($P114),"*2*") -> 2 | O114: =COLUMN($J$18)-1 -> 9 | P114: =SUBSTITUTE(ADDRESS(1,O114,4),1,"")&ROW($J$18)+1 -> I19
C115: CO3 | D115: =IFERROR((IF(ISNUMBER(SEARCH("3", D$19)),D$77,"0")),"0") -> 0 | E115: =IFERROR((IF(ISNUMBER(SEARCH("3", E$19)),E$77,"0")),"0") -> 0 | F115: =IFERROR((IF(ISNUMBER(SEARCH("3", F$19)),F$77,"0")),"0") -> 25 | G115: 23 | H115: =IFERROR((IF(ISNUMBER(SEARCH("3", H$19)),H$77,"0")),"0") -> 24 | I115: 0 | J115: =IFERROR(SUM($D115:INDIRECT($M115)),"0") -> 72 | M115: I115 | N115: =COUNTIF($D$19:INDIRECT($P115),"*3*") -> 3 | O115: 9 | P115: I19
C116: CO4 | D116: =IFERROR((IF(ISNUMBER(SEARCH("4", D$19)),D$77,"0")),"0") -> 25 | E116: =IFERROR((IF(ISNUMBER(SEARCH("4", E$19)),E$77,"0")),"0") -> 0 | F116: =IFERROR((IF(ISNUMBER(SEARCH("4", F$19)),F$77,"0")),"0") -> 25 | G116: =IFERROR((IF(ISNUMBER(SEARCH("4", G$19)),G$77,"0")),"0") -> 0 | H116: =IFERROR((IF(ISNUMBER(SEARCH("4", H$19)),H$77,"0")),"0") -> 24 | I116: 23 | J116: =IFERROR(SUM($D116:INDIRECT($M116)),"0") -> 97 | M116: I116 | N116: =COUNTIF($D$19:INDIRECT($P116),"*4*") -> 4 | O116: 9 | P116: I19
C117: CO5 | D117: =IFERROR((IF(ISNUMBER(SEARCH("5", D$19)),D$77,"0")),"0") -> 0 | E117: =IFERROR((IF(ISNUMBER(SEARCH("5", E$19)),E$77,"0")),"0") -> 0 | F117: 25 | G117: 23 | H117: =IFERROR((IF(ISNUMBER(SEARCH("5", H$19)),H$77,"0")),"0") -> 0 | I117: =IFERROR((IF(ISNUMBER(SEARCH("5", I$19)),I$77,"0")),"0") -> 23 | J117: =IFERROR(SUM($D117:INDIRECT($M117)),"0") -> 71 | M117: I117 | N117: =COUNTIF($D$19:INDIRECT($P117),"*5*") -> 3 | O117: 9 | P117: I19
C118: CO6 | D118: =IFERROR((IF(ISNUMBER(SEARCH("6", D$19)),D$77,"0")),"0") -> 0 | E118: =IFERROR((IF(ISNUMBER(SEARCH("6", E$19)),E$77,"0")),"0") -> 0 | F118: 0 | G118: 0 | H118: =IFERROR((IF(ISNUMBER(SEARCH("6", H$19)),H$77,"0")),"0") -> 0 | I118: 0 | J118: =IFERROR(SUM($D118:INDIRECT($M118)),"0") -> 0 | M118: I118 | N118: =COUNTIF($D$19:INDIRECT($P118),"*6*") -> 0 | O118: 9 | P118: I19
C120: CO1 | D120: =IFERROR((IF(ISNUMBER(SEARCH("1", D$19)),D$78,"0")),"0") -> 9 | E120: =IFERROR((IF(ISNUMBER(SEARCH("1", E$19)),E$78,"0")),"0") -> 3 | F120: 9 | G120: 9 | H120: =IFERROR((IF(ISNUMBER(SEARCH("1", H$19)),H$78,"0")),"0") -> 0 | I120: 12 | J120: =IFERROR(SUM($D120:INDIRECT($M120)),"0") -> 42 | M120: =SUBSTITUTE(ADDRESS(1,O120,4),1,"")&ROW($J120) -> I120 | N120: =COUNTIF($D$19:INDIRECT($P120),"*1*") -> 5 | O120: =COLUMN($J$18)-1 -> 9 | P120: =SUBSTITUTE(ADDRESS(1,O120,4),1,"")&ROW($J$18)+1 -> I19 | Q120: Difficulty Level
C121: CO2 | D121: =IFERROR((IF(ISNUMBER(SEARCH("2", D$19)),D$78,"0")),"0") -> 9 | E121: =IFERROR((IF(ISNUMBER(SEARCH("2", E$19)),E$78,"0")),"0") -> 3 | F121: 0 | G121: 0 | H121: =IFERROR((IF(ISNUMBER(SEARCH("2", H$19)),H$78,"0")),"0") -> 0 | I121: 0 | J121: =IFERROR(SUM($D121:INDIRECT($M121)),"0") -> 12 | M121: I121 | N121: =COUNTIF($D$19:INDIRECT($P121),"*2*") -> 2 | O121: =COLUMN($J$18)-1 -> 9 | P121: =SUBSTITUTE(ADDRESS(1,O121,4),1,"")&ROW($J$18)+1 -> I19
C122: CO3 | D122: =IFERROR((IF(ISNUMBER(SEARCH("3", D$19)),D$78,"0")),"0") -> 0 | E122: =IFERROR((IF(ISNUMBER(SEARCH("3", E$19)),E$78,"0")),"0") -> 0 | F122: 9 | G122: 9 | H122: =IFERROR((IF(ISNUMBER(SEARCH("3", H$19)),H$78,"0")),"0") -> 12 | I122: 0 | J122: =IFERROR(SUM($D122:INDIRECT($M122)),"0") -> 30 | M122: I122 | N122: =COUNTIF($D$19:INDIRECT($P122),"*3*") -> 3 | O122: 9 | P122: I19
C123: CO4 | D123: =IFERROR((IF(ISNUMBER(SEARCH("4", D$19)),D$78,"0")),"0") -> 9 | E123: =IFERROR((IF(ISNUMBER(SEARCH("4", E$19)),E$78,"0")),"0") -> 0 | F123: 9 | G123: 0 | H123: =IFERROR((IF(ISNUMBER(SEARCH("4", H$19)),H$78,"0")),"0") -> 12 | I123: 12 | J123: =IFERROR(SUM($D123:INDIRECT($M123)),"0") -> 42 | M123: I123 | N123: =COUNTIF($D$19:INDIRECT($P123),"*4*") -> 4 | O123: 9 | P123: I19
C124: CO5 | D124: =IFERROR((IF(ISNUMBER(SEARCH("5", D$19)),D$78,"0")),"0") -> 0 | E124: =IFERROR((IF(ISNUMBER(SEARCH("5", E$19)),E$78,"0")),"0") -> 0 | F124: 9 | G124: 9 | H124: =IFERROR((IF(ISNUMBER(SEARCH("5", H$19)),H$78,"0")),"0") -> 0 | I124: 12 | J124: =IFERROR(SUM($D124:INDIRECT($M124)),"0") -> 30 | M124: I124 | N124: =COUNTIF($D$19:INDIRECT($P124),"*5*") -> 3 | O124: 9 | P124: I19
C125: CO6 | D125: =IFERROR((IF(ISNUMBER(SEARCH("6", D$19)),D$78,"0")),"0") -> 0 | E125: =IFERROR((IF(ISNUMBER(SEARCH("6", E$19)),E$78,"0")),"0") -> 0 | F125: 0 | G125: 0 | H125: =IFERROR((IF(ISNUMBER(SEARCH("6", H$19)),H$78,"0")),"0") -> 0 | I125: 0 | J125: =IFERROR(SUM($D125:INDIRECT($M125)),"0") -> 0 | M125: I125 | N125: =COUNTIF($D$19:INDIRECT($P125),"*6*") -> 0 | O125: 9 | P125: I19
C127: CO1 | D127: =IFERROR((IF(ISNUMBER(SEARCH("1", D$19)),D$79,"0")),"0") -> 20 | E127: =IFERROR((IF(ISNUMBER(SEARCH("1", E$19)),E$79,"0")),"0") -> 21 | F127: 23 | G127: 19 | H127: =IFERROR((IF(ISNUMBER(SEARCH("1", H$19)),H$79,"0")),"0") -> 0 | I127: 21 | J127: =IFERROR(SUM($D127:INDIRECT($M127)),"0") -> 104 | M127: =SUBSTITUTE(ADDRESS(1,O127,4),1,"")&ROW($J127) -> I127 | N127: =COUNTIF($D$19:INDIRECT($P127),"*1*") -> 5 | O127: =COLUMN($J$18)-1 -> 9 | P127: =SUBSTITUTE(ADDRESS(1,O127,4),1,"")&ROW($J$18)+1 -> I19 | Q127: No of Studdents Above Difficulty Level
C128: CO2 | D128: =IFERROR((IF(ISNUMBER(SEARCH("2", D$19)),D$79,"0")),"0") -> 20 | E128: =IFERROR((IF(ISNUMBER(SEARCH("2", E$19)),E$79,"0")),"0") -> 21 | F128: 0 | G128: 0 | H128: =IFERROR((IF(ISNUMBER(SEARCH("2", H$19)),H$79,"0")),"0") -> 0 | I128: 0 | J128: =IFERROR(SUM($D128:INDIRECT($M128)),"0") -> 41 | M128: I128 | N128: =COUNTIF($D$19:INDIRECT($P128),"*2*") -> 2 | O128: =COLUMN($J$18)-1 -> 9 | P128: =SUBSTITUTE(ADDRESS(1,O128,4),1,"")&ROW($J$18)+1 -> I19
C129: CO3 | D129: =IFERROR((IF(ISNUMBER(SEARCH("3", D$19)),D$79,"0")),"0") -> 0 | E129: =IFERROR((IF(ISNUMBER(SEARCH("3", E$19)),E$79,"0")),"0") -> 0 | F129: =IFERROR((IF(ISNUMBER(SEARCH("3", F$19)),F$79,"0")),"0") -> 23 | G129: 19 | H129: =IFERROR((IF(ISNUMBER(SEARCH("3", H$19)),H$79,"0")),"0") -> 18 | I129: 0 | J129: =IFERROR(SUM($D129:INDIRECT($M129)),"0") -> 60 | M129: I129 | N129: =COUNTIF($D$19:INDIRECT($P129),"*3*") -> 3 | O129: 9 | P129: I19
C130: CO4 | D130: =IFERROR((IF(ISNUMBER(SEARCH("4", D$19)),D$79,"0")),"0") -> 20 | E130: =IFERROR((IF(ISNUMBER(SEARCH("4", E$19)),E$79,"0")),"0") -> 0 | F130: =IFERROR((IF(ISNUMBER(SEARCH("4", F$19)),F$79,"0")),"0") -> 23 | G130: =IFERROR((IF(ISNUMBER(SEARCH("4", G$19)),G$79,"0")),"0") -> 0 | H130: =IFERROR((IF(ISNUMBER(SEARCH("4", H$19)),H$79,"0")),"0") -> 18 | I130: 21 | J130: =IFERROR(SUM($D130:INDIRECT($M130)),"0") -> 82 | M130: I130 | N130: =COUNTIF($D$19:INDIRECT($P130),"*4*") -> 4 | O130: 9 | P130: I19
C131: CO5 | D131: =IFERROR((IF(ISNUMBER(SEARCH("5", D$19)),D$79,"0")),"0") -> 0 | E131: =IFERROR((IF(ISNUMBER(SEARCH("5", E$19)),E$79,"0")),"0") -> 0 | F131: 23 | G131: 19 | H131: =IFERROR((IF(ISNUMBER(SEARCH("5", H$19)),H$79,"0")),"0") -> 0 | I131: =IFERROR((IF(ISNUMBER(SEARCH("5", I$19)),I$79,"0")),"0") -> 21 | J131: =IFERROR(SUM($D131:INDIRECT($M131)),"0") -> 63 | M131: I131 | N131: =COUNTIF($D$19:INDIRECT($P131),"*5*") -> 3 | O131: 9 | P131: I19
C132: CO6 | D132: =IFERROR((IF(ISNUMBER(SEARCH("6", D$19)),D$79,"0")),"0") -> 0 | E132: =IFERROR((IF(ISNUMBER(SEARCH("6", E$19)),E$79,"0")),"0") -> 0 | F132: 0 | G132: 0 | H132: =IFERROR((IF(ISNUMBER(SEARCH("6", H$19)),H$79,"0")),"0") -> 0 | I132: 0 | J132: =IFERROR(SUM($D132:INDIRECT($M132)),"0") -> 0 | M132: I132 | N132: =COUNTIF($D$19:INDIRECT($P132),"*6*") -> 0 | O132: 9 | P132: I19
C134: 1 | D134: =IFERROR((IF(ISNUMBER(SEARCH("1", D$20)),D$21/IF(LEN(D20)=16,6,IF(LEN(D20)=13,5,IF(LEN(D20)=10,4,IF(LEN(D20)=7,3,IF(LEN(D20)=4,2,1))))),"0")),"0") -> 7.5 | E134: 2.5 | F134: 0 | G134: 7.5 | H134: 0 | I134: 0 | J134: =IFERROR(SUM($D134:INDIRECT($M134)),"0") -> 17.5 | M134: =SUBSTITUTE(ADDRESS(1,O134,4),1,"")&ROW($J134) -> I134 | N134: =COUNTIF($D$20:INDIRECT($P134),"1") -> 0 | O134: =COLUMN($J$18)-1 -> 9 | P134: =SUBSTITUTE(ADDRESS(1,O134,4),1,"")&ROW($J$19)+1 -> I20
C135: 2 | D135: =IFERROR((IF(ISNUMBER(SEARCH("2", D$20)),D$21/IF(LEN(D20)=16,6,IF(LEN(D20)=13,5,IF(LEN(D20)=10,4,IF(LEN(D20)=7,3,IF(LEN(D20)=4,2,1))))),"0")),"0") -> 7.5 | E135: 0 | F135: 7.5 | G135: 7.5 | H135: 20 | I135: 10 | J135: =IFERROR(SUM($D135:INDIRECT($M135)),"0") -> 52.5 | M135: =SUBSTITUTE(ADDRESS(1,O135,4),1,"")&ROW($J135) -> I135 | N135: =COUNTIF($D$20:INDIRECT($P135),"2") -> 1 | O135: 9 | P135: I20
C136: 3 | D136: =IFERROR((IF(ISNUMBER(SEARCH("3", D$20)),D$21/IF(LEN(D20)=16,6,IF(LEN(D20)=13,5,IF(LEN(D20)=10,4,IF(LEN(D20)=7,3,IF(LEN(D20)=4,2,1))))),"0")),"0") -> 0 | E136: 0 | F136: 0 | G136: 0 | H136: 0 | I136: 10 | J136: =IFERROR(SUM($D136:INDIRECT($M136)),"0") -> 10 | M136: I136 | N136: =COUNTIF($D$20:INDIRECT($P136),"3") -> 0 | O136: 9 | P136: I20
C137: 4 | D137: =IFERROR((IF(ISNUMBER(SEARCH("4", D$20)),D$21/IF(LEN(D20)=16,6,IF(LEN(D20)=13,5,IF(LEN(D20)=10,4,IF(LEN(D20)=7,3,IF(LEN(D20)=4,2,1))))),"0")),"0") -> 0 | E137: 0 | F137: 0 | G137: 0 | H137: 0 | I137: 0 | J137: =IFERROR(SUM($D137:INDIRECT($M137)),"0") -> 0 | M137: I137 | N137: =COUNTIF($D$20:INDIRECT($P137),"4") -> 0 | O137: 9 | P137: I20
C138: 5 | D138: =IFERROR((IF(ISNUMBER(SEARCH("5", D$20)),D$21/IF(LEN(D20)=16,6,IF(LEN(D20)=13,5,IF(LEN(D20)=10,4,IF(LEN(D20)=7,3,IF(LEN(D20)=4,2,1))))),"0")),"0") -> 0 | E138: 0 | F138: 0 | G138: 0 | H138: 0 | I138: 0 | J138: =IFERROR(SUM($D138:INDIRECT($M138)),"0") -> 0 | M138: I138 | N138: =COUNTIF($D$20:INDIRECT($P138),"5") -> 0 | O138: 9 | P138: I20
C139: 6 | D139: =IFERROR((IF(ISNUMBER(SEARCH("6", D$20)),D$21/IF(LEN(D20)=16,6,IF(LEN(D20)=13,5,IF(LEN(D20)=10,4,IF(LEN(D20)=7,3,IF(LEN(D20)=4,2,1))))),"0")),"0") -> 0 | E139: 2.5 | F139: 7.5 | G139: 0 | H139: 0 | I139: 0 | J139: =IFERROR(SUM($D139:INDIRECT($M139)),"0") -> 10 | M139: I139 | N139: =COUNTIF($D$20:INDIRECT($P139),"6") -> 0 | O139: 9 | P139: I20

Sheet T2_Analysis
A3: =Data_Sheet!A2 -> Jyothi Engineering College, Cheruthuruthy
A5: =Data_Sheet!A4 -> Department of Electrical & Electronics Engineering
A7: ='T2'!A11 -> CO Analysis - Internal Marks : Second Internal Exam 14-03-18
A9: =Data_Sheet!A17 -> S7 EC EC407 Computer Communication 2019-20
A22: ='T1'!A18 -> Register No. | B22: ='T1'!B18 -> Name of Student | C22: ='T2'!J18 -> Total Marks (50) | D22: Category
A24: Column1 | B24: Column2 | C24: Column3 | D24: Column4
A25: =Data_Sheet!A25 -> JEC16EC051 | B25: =Data_Sheet!B25 -> LANA KOLLATH | C25: ='T2'!J25 -> 40 | D25: =IF(C25="A","ABSENT",IF(C25>='T2'!$F$5*$E$82/100,"EXCELLENT",IF(C25>='T2'!$F$5*$E$81/100,"GOOD",IF(C25>='T2'!$F$5*$E$80/100,"AVERAGE","POOR")))) -> EXCELLENT
A26: =Data_Sheet!A26 -> JEC16EC052 | B26: =Data_Sheet!B26 -> MANU JENSON | C26: ='T2'!J26 -> 29 | D26: =IF(C26="A","ABSENT",IF(C26>='T2'!$F$5*$E$82/100,"EXCELLENT",IF(C26>='T2'!$F$5*$E$81/100,"GOOD",IF(C26>='T2'!$F$5*$E$80/100,"AVERAGE","POOR")))) -> AVERAGE
A27: =Data_Sheet!A27 -> JEC16EC053 | B27: =Data_Sheet!B27 -> MAREENA MARIYA ABRAHAM | C27: ='T2'!J27 -> 48 | D27: =IF(C27="A","ABSENT",IF(C27>='T2'!$F$5*$E$82/100,"EXCELLENT",IF(C27>='T2'!$F$5*$E$81/100,"GOOD",IF(C27>='T2'!$F$5*$E$80/100,"AVERAGE","POOR")))) -> EXCELLENT
A28: =Data_Sheet!A28 -> JEC16EC054 | B28: =Data_Sheet!B28 -> MARIAN DAVIS KATTUKARAN | C28: ='T2'!J28 -> 43 | D28: =IF(C28="A","ABSENT",IF(C28>='T2'!$F$5*$E$82/100,"EXCELLENT",IF(C28>='T2'!$F$5*$E$81/100,"GOOD",IF(C28>='T2'!$F$5*$E$80/100,"AVERAGE","POOR")))) -> EXCELLENT
A29: =Data_Sheet!A29 -> JEC16EC055 | B29: =Data_Sheet!B29 -> MARY JEETHU A J | C29: ='T2'!J29 -> 45 | D29: =IF(C29="A","ABSENT",IF(C29>='T2'!$F$5*$E$82/100,"EXCELLENT",IF(C29>='T2'!$F$5*$E$81/100,"GOOD",IF(C29>='T2'!$F$5*$E$80/100,"AVERAGE","POOR")))) -> EXCELLENT
A30: =Data_Sheet!A30 -> JEC16EC056 | B30: =Data_Sheet!B30 -> MUBASHIRA K M | C30: ='T2'!J30 -> 44 | D30: =IF(C30="A","ABSENT",IF(C30>='T2'!$F$5*$E$82/100,"EXCELLENT",IF(C30>='T2'!$F$5*$E$81/100,"GOOD",IF(C30>='T2'!$F$5*$E$80/100,"AVERAGE","POOR")))) -> EXCELLENT
A31: =Data_Sheet!A31 -> JEC16EC057 | B31: =Data_Sheet!B31 -> MUHAMMED ARSHAD | C31: ='T2'!J31 -> 36 | D31: =IF(C31="A","ABSENT",IF(C31>='T2'!$F$5*$E$82/100,"EXCELLENT",IF(C31>='T2'!$F$5*$E$81/100,"GOOD",IF(C31>='T2'!$F$5*$E$80/100,"AVERAGE","POOR")))) -> GOOD
A32: =Data_Sheet!A32 -> JEC16EC058 | B32: =Data_Sheet!B32 -> NANDANA K | C32: ='T2'!J32 -> 41 | D32: =IF(C32="A","ABSENT",IF(C32>='T2'!$F$5*$E$82/100,"EXCELLENT",IF(C32>='T2'!$F$5*$E$81/100,"GOOD",IF(C32>='T2'!$F$5*$E$80/100,"AVERAGE","POOR")))) -> EXCELLENT
A33: =Data_Sheet!A33 -> JEC16EC059 | B33: =Data_Sheet!B33 -> NARAYANAN M B | C33: ='T2'!J33 -> 29 | D33: =IF(C33="A","ABSENT",IF(C33>='T2'!$F$5*$E$82/100,"EXCELLENT",IF(C33>='T2'!$F$5*$E$81/100,"GOOD",IF(C33>='T2'!$F$5*$E$80/100,"AVERAGE","POOR")))) -> AVERAGE
A34: =Data_Sheet!A34 -> JEC16EC061 | B34: =Data_Sheet!B34 -> NIKHIL KJ | C34: ='T2'!J34 -> 23 | D34: =IF(C34="A","ABSENT",IF(C34>='T2'!$F$5*$E$82/100,"EXCELLENT",IF(C34>='T2'!$F$5*$E$81/100,"GOOD",IF(C34>='T2'!$F$5*$E$80/100,"AVERAGE","POOR")))) -> AVERAGE
A35: =Data_Sheet!A35 -> JEC16EC062 | B35: =Data_Sheet!B35 -> NIMISHA M S | C35: ='T2'!J35 -> 43 | D35: =IF(C35="A","ABSENT",IF(C35>='T2'!$F$5*$E$82/100,"EXCELLENT",IF(C35>='T2'!$F$5*$E$81/100,"GOOD",IF(C35>='T2'!$F$5*$E$80/100,"AVERAGE","POOR")))) -> EXCELLENT
A36: =Data_Sheet!A36 -> JEC16EC063 | B36: =Data_Sheet!B36 -> NIMISHA TONY | C36: ='T2'!J36 -> 44 | D36: =IF(C36="A","ABSENT",IF(C36>='T2'!$F$5*$E$82/100,"EXCELLENT",IF(C36>='T2'!$F$5*$E$81/100,"GOOD",IF(C36>='T2'!$F$5*$E$80/100,"AVERAGE","POOR")))) -> EXCELLENT
A37: =Data_Sheet!A37 -> JEC16EC064 | B37: =Data_Sheet!B37 -> NITHIN | C37: ='T2'!J37 -> 38 | D37: =IF(C37="A","ABSENT",IF(C37>='T2'!$F$5*$E$82/100,"EXCELLENT",IF(C37>='T2'!$F$5*$E$81/100,"GOOD",IF(C37>='T2'!$F$5*$E$80/100,"AVERAGE","POOR")))) -> GOOD
A38: =Data_Sheet!A38 -> JEC16EC065 | B38: =Data_Sheet!B38 -> OLIVIA NELSON | C38: ='T2'!J38 -> 40 | D38: =IF(C38="A","ABSENT",IF(C38>='T2'!$F$5*$E$82/100,"EXCELLENT",IF(C38>='T2'!$F$5*$E$81/100,"GOOD",IF(C38>='T2'!$F$5*$E$80/100,"AVERAGE","POOR")))) -> EXCELLENT
A39: =Data_Sheet!A39 -> JEC16EC066 | B39: =Data_Sheet!B39 -> PAVITHRA.P | C39: ='T2'!J39 -> 45 | D39: =IF(C39="A","ABSENT",IF(C39>='T2'!$F$5*$E$82/100,"EXCELLENT",IF(C39>='T2'!$F$5*$E$81/100,"GOOD",IF(C39>='T2'!$F$5*$E$80/100,"AVERAGE","POOR")))) -> EXCELLENT
A40: =Data_Sheet!A40 -> JEC16EC067 | B40: =Data_Sheet!B40 -> P.DHANYA RAJ | C40: ='T2'!J40 -> 32 | D40: =IF(C40="A","ABSENT",IF(C40>='T2'!$F$5*$E$82/100,"EXCELLENT",IF(C40>='T2'!$F$5*$E$81/100,"GOOD",IF(C40>='T2'!$F$5*$E$80/100,"AVERAGE","POOR")))) -> GOOD
A41: =Data_Sheet!A41 -> JEC16EC068 | B41: =Data_Sheet!B41 -> POOJA.P | C41: ='T2'!J41 -> 46 | D41: =IF(C41="A","ABSENT",IF(C41>='T2'!$F$5*$E$82/100,"EXCELLENT",IF(C41>='T2'!$F$5*$E$81/100,"GOOD",IF(C41>='T2'!$F$5*$E$80/100,"AVERAGE","POOR")))) -> EXCELLENT
A42: =Data_Sheet!A42 -> JEC16EC069 | B42: =Data_Sheet!B42 -> PRANAV | C42: ='T2'!J42 -> 30 | D42: =IF(C42="A","ABSENT",IF(C42>='T2'!$F$5*$E$82/100,"EXCELLENT",IF(C42>='T2'!$F$5*$E$81/100,"GOOD",IF(C42>='T2'!$F$5*$E$80/100,"AVERAGE","POOR")))) -> GOOD
A43: =Data_Sheet!A43 -> JEC16EC070 | B43: =Data_Sheet!B43 -> PRASOBH KP | C43: ='T2'!J43 -> 37 | D43: =IF(C43="A","ABSENT",IF(C43>='T2'!$F$5*$E$82/100,"EXCELLENT",IF(C43>='T2'!$F$5*$E$81/100,"GOOD",IF(C43>='T2'!$F$5*$E$80/100,"AVERAGE","POOR")))) -> GOOD
A44: =Data_Sheet!A44 -> JEC16EC071 | B44: =Data_Sheet!B44 -> PRINCE BENNY | C44: ='T2'!J44 -> 36 | D44: =IF(C44="A","ABSENT",IF(C44>='T2'!$F$5*$E$82/100,"EXCELLENT",IF(C44>='T2'!$F$5*$E$81/100,"GOOD",IF(C44>='T2'!$F$5*$E$80/100,"AVERAGE","POOR")))) -> GOOD
A45: =Data_Sheet!A45 -> JEC16EC072 | B45: =Data_Sheet!B45 -> PRIYA.K | C45: ='T2'!J45 -> 47 | D45: =IF(C45="A","ABSENT",IF(C45>='T2'!$F$5*$E$82/100,"EXCELLENT",IF(C45>='T2'!$F$5*$E$81/100,"GOOD",IF(C45>='T2'!$F$5*$E$80/100,"AVERAGE","POOR")))) -> EXCELLENT
A46: =Data_Sheet!A46 -> JEC16EC073 | B46: =Data_Sheet!B46 -> RADHIKA | C46: ='T2'!J46 -> 46 | D46: =IF(C46="A","ABSENT",IF(C46>='T2'!$F$5*$E$82/100,"EXCELLENT",IF(C46>='T2'!$F$5*$E$81/100,"GOOD",IF(C46>='T2'!$F$5*$E$80/100,"AVERAGE","POOR")))) -> EXCELLENT
A47: =Data_Sheet!A47 -> JEC16EC074 | B47: =Data_Sheet!B47 -> RINOSHA.K.R | C47: ='T2'!J47 -> 45 | D47: =IF(C47="A","ABSENT",IF(C47>='T2'!$F$5*$E$82/100,"EXCELLENT",IF(C47>='T2'!$F$5*$E$81/100,"GOOD",IF(C47>='T2'!$F$5*$E$80/100,"AVERAGE","POOR")))) -> EXCELLENT
A48: =Data_Sheet!A48 -> JEC16EC075 | B48: =Data_Sheet!B48 -> RIYA ALBERT | C48: ='T2'!J48 -> 33 | D48: =IF(C48="A","ABSENT",IF(C48>='T2'!$F$5*$E$82/100,"EXCELLENT",IF(C48>='T2'!$F$5*$E$81/100,"GOOD",IF(C48>='T2'!$F$5*$E$80/100,"AVERAGE","POOR")))) -> GOOD
A49: =Data_Sheet!A49 -> JEC16EC076 | B49: =Data_Sheet!B49 -> RIYA PS | C49: ='T2'!J49 -> 34 | D49: =IF(C49="A","ABSENT",IF(C49>='T2'!$F$5*$E$82/100,"EXCELLENT",IF(C49>='T2'!$F$5*$E$81/100,"GOOD",IF(C49>='T2'!$F$5*$E$80/100,"AVERAGE","POOR")))) -> GOOD
A50: =Data_Sheet!A50 -> JEC16EC077 | B50: =Data_Sheet!B50 -> ROSHNI J NAIR | C50: ='T2'!J50 -> 42 | D50: =IF(C50="A","ABSENT",IF(C50>='T2'!$F$5*$E$82/100,"EXCELLENT",IF(C50>='T2'!$F$5*$E$81/100,"GOOD",IF(C50>='T2'!$F$5*$E$80/100,"AVERAGE","POOR")))) -> EXCELLENT
A51: =Data_Sheet!A51 -> JEC16EC079 | B51: =Data_Sheet!B51 -> SAFNA M | C51: ='T2'!J51 -> 42 | D51: =IF(C51="A","ABSENT",IF(C51>='T2'!$F$5*$E$82/100,"EXCELLENT",IF(C51>='T2'!$F$5*$E$81/100,"GOOD",IF(C51>='T2'!$F$5*$E$80/100,"AVERAGE","POOR")))) -> EXCELLENT
A52: =Data_Sheet!A52 -> JEC16EC080 | B52: =Data_Sheet!B52 -> SAJIN SHAJI | C52: ='T2'!J52 -> 42 | D52: =IF(C52="A","ABSENT",IF(C52>='T2'!$F$5*$E$82/100,"EXCELLENT",IF(C52>='T2'!$F$5*$E$81/100,"GOOD",IF(C52>='T2'!$F$5*$E$80/100,"AVERAGE","POOR")))) -> EXCELLENT
A53: =Data_Sheet!A53 -> JEC16EC081 | B53: =Data_Sheet!B53 -> SANDHRA .S | C53: ='T2'!J53 -> 19 | D53: =IF(C53="A","ABSENT",IF(C53>='T2'!$F$5*$E$82/100,"EXCELLENT",IF(C53>='T2'!$F$5*$E$81/100,"GOOD",IF(C53>='T2'!$F$5*$E$80/100,"AVERAGE","POOR")))) -> POOR
A54: =Data_Sheet!A54 -> JEC16EC082 | B54: =Data_Sheet!B54 -> SANGAMITHRA | C54: ='T2'!J54 -> 45 | D54: =IF(C54="A","ABSENT",IF(C54>='T2'!$F$5*$E$82/100,"EXCELLENT",IF(C54>='T2'!$F$5*$E$81/100,"GOOD",IF(C54>='T2'!$F$5*$E$80/100,"AVERAGE","POOR")))) -> EXCELLENT
A55: =Data_Sheet!A55 -> JEC16EC083 | B55: =Data_Sheet!B55 -> SARANYA.M.NAIR | C55: ='T2'!J55 -> 42 | D55: =IF(C55="A","ABSENT",IF(C55>='T2'!$F$5*$E$82/100,"EXCELLENT",IF(C55>='T2'!$F$5*$E$81/100,"GOOD",IF(C55>='T2'!$F$5*$E$80/100,"AVERAGE","POOR")))) -> EXCELLENT
A56: =Data_Sheet!A56 -> JEC16EC084 | B56: =Data_Sheet!B56 -> SARATHRAJ | C56: ='T2'!J56 -> 36 | D56: =IF(C56="A","ABSENT",IF(C56>='T2'!$F$5*$E$82/100,"EXCELLENT",IF(C56>='T2'!$F$5*$E$81/100,"GOOD",IF(C56>='T2'!$F$5*$E$80/100,"AVERAGE","POOR")))) -> GOOD
A57: =Data_Sheet!A57 -> JEC16EC085 | B57: =Data_Sheet!B57 -> SHAHAN FATHIMA K | C57: ='T2'!J57 -> 41 | D57: =IF(C57="A","ABSENT",IF(C57>='T2'!$F$5*$E$82/100,"EXCELLENT",IF(C57>='T2'!$F$5*$E$81/100,"GOOD",IF(C57>='T2'!$F$5*$E$80/100,"AVERAGE","POOR")))) -> EXCELLENT
A58: =Data_Sheet!A58 -> JEC16EC086 | B58: =Data_Sheet!B58 -> SHAHLA.P.MOHAMMED | C58: ='T2'!J58 -> 37 | D58: =IF(C58="A","ABSENT",IF(C58>='T2'!$F$5*$E$82/100,"EXCELLENT",IF(C58>='T2'!$F$5*$E$81/100,"GOOD",IF(C58>='T2'!$F$5*$E$80/100,"AVERAGE","POOR")))) -> GOOD
A59: =Data_Sheet!A59 -> JEC16EC087 | B59: =Data_Sheet!B59 -> SHAMSEENA T A | C59: ='T2'!J59 -> 20 | D59: =IF(C59="A","ABSENT",IF(C59>='T2'!$F$5*$E$82/100,"EXCELLENT",IF(C59>='T2'!$F$5*$E$81/100,"GOOD",IF(C59>='T2'!$F$5*$E$80/100,"AVERAGE","POOR")))) -> POOR
A60: =Data_Sheet!A60 -> JEC16EC088 | B60: =Data_Sheet!B60 -> SHARAN SHASHINDRAN A | C60: ='T2'!J60 -> 26 | D60: =IF(C60="A","ABSENT",IF(C60>='T2'!$F$5*$E$82/100,"EXCELLENT",IF(C60>='T2'!$F$5*$E$81/100,"GOOD",IF(C60>='T2'!$F$5*$E$80/100,"AVERAGE","POOR")))) -> AVERAGE
A61: =Data_Sheet!A61 -> JEC16EC089 | B61: =Data_Sheet!B61 -> SIBIN KRISHNA C | C61: ='T2'!J61 -> 27 | D61: =IF(C61="A","ABSENT",IF(C61>='T2'!$F$5*$E$82/100,"EXCELLENT",IF(C61>='T2'!$F$5*$E$81/100,"GOOD",IF(C61>='T2'!$F$5*$E$80/100,"AVERAGE","POOR")))) -> AVERAGE
A62: =Data_Sheet!A62 -> JEC16EC090 | B62: =Data_Sheet!B62 -> SREEJITH VIJAYAKUMAR | C62: ='T2'!J62 -> 0 | D62: =IF(C62="A","ABSENT",IF(C62>='T2'!$F$5*$E$82/100,"EXCELLENT",IF(C62>='T2'!$F$5*$E$81/100,"GOOD",IF(C62>='T2'!$F$5*$E$80/100,"AVERAGE","POOR")))) -> POOR
A63: =Data_Sheet!A63 -> JEC16EC091 | B63: =Data_Sheet!B63 -> SREELAKSHMI.R | C63: ='T2'!J63 -> 44 | D63: =IF(C63="A","ABSENT",IF(C63>='T2'!$F$5*$E$82/100,"EXCELLENT",IF(C63>='T2'!$F$5*$E$81/100,"GOOD",IF(C63>='T2'!$F$5*$E$80/100,"AVERAGE","POOR")))) -> EXCELLENT
A64: =Data_Sheet!A64 -> JEC16EC092 | B64: =Data_Sheet!B64 -> SREERAG K M | C64: ='T2'!J64 -> 35 | D64: =IF(C64="A","ABSENT",IF(C64>='T2'!$F$5*$E$82/100,"EXCELLENT",IF(C64>='T2'!$F$5*$E$81/100,"GOOD",IF(C64>='T2'!$F$5*$E$80/100,"AVERAGE","POOR")))) -> GOOD
A65: =Data_Sheet!A65 -> JEC16EC093 | B65: =Data_Sheet!B65 -> SREERAG T K | C65: ='T2'!J65 -> 0 | D65: =IF(C65="A","ABSENT",IF(C65>='T2'!$F$5*$E$82/100,"EXCELLENT",IF(C65>='T2'!$F$5*$E$81/100,"GOOD",IF(C65>='T2'!$F$5*$E$80/100,"AVERAGE","POOR")))) -> POOR
A66: =Data_Sheet!A66 -> JEC16EC094 | B66: =Data_Sheet!B66 -> SREERAG V.V | C66: ='T2'!J66 -> 35 | D66: =IF(C66="A","ABSENT",IF(C66>='T2'!$F$5*$E$82/100,"EXCELLENT",IF(C66>='T2'!$F$5*$E$81/100,"GOOD",IF(C66>='T2'!$F$5*$E$80/100,"AVERAGE","POOR")))) -> GOOD
A67: =Data_Sheet!A67 -> JEC16EC095 | B67: =Data_Sheet!B67 -> SRUTHIMOL.N.T | C67: ='T2'!J67 -> 0 | D67: =IF(C67="A","ABSENT",IF(C67>='T2'!$F$5*$E$82/100,"EXCELLENT",IF(C67>='T2'!$F$5*$E$81/100,"GOOD",IF(C67>='T2'!$F$5*$E$80/100,"AVERAGE","POOR")))) -> POOR
A68: =Data_Sheet!A68 -> JEC16EC096 | B68: =Data_Sheet!B68 -> SRUTHISHA SASI | C68: ='T2'!J68 -> 49 | D68: =IF(C68="A","ABSENT",IF(C68>='T2'!$F$5*$E$82/100,"EXCELLENT",IF(C68>='T2'!$F$5*$E$81/100,"GOOD",IF(C68>='T2'!$F$5*$E$80/100,"AVERAGE","POOR")))) -> EXCELLENT
A69: =Data_Sheet!A69 -> JEC16EC097 | B69: =Data_Sheet!B69 -> SUCHITHRA.TS | C69: ='T2'!J69 -> 31 | D69: =IF(C69="A","ABSENT",IF(C69>='T2'!$F$5*$E$82/100,"EXCELLENT",IF(C69>='T2'!$F$5*$E$81/100,"GOOD",IF(C69>='T2'!$F$5*$E$80/100,"AVERAGE","POOR")))) -> GOOD
A70: =Data_Sheet!A70 -> JEC16EC098 | B70: =Data_Sheet!B70 -> SWETHA SARA GEORGE | C70: ='T2'!J70 -> 37 | D70: =IF(C70="A","ABSENT",IF(C70>='T2'!$F$5*$E$82/100,"EXCELLENT",IF(C70>='T2'!$F$5*$E$81/100,"GOOD",IF(C70>='T2'!$F$5*$E$80/100,"AVERAGE","POOR")))) -> GOOD
A71: =Data_Sheet!A71 -> JEC16EC099 | B71: =Data_Sheet!B71 -> VISHNU K | C71: ='T2'!J71 -> 43 | D71: =IF(C71="A","ABSENT",IF(C71>='T2'!$F$5*$E$82/100,"EXCELLENT",IF(C71>='T2'!$F$5*$E$81/100,"GOOD",IF(C71>='T2'!$F$5*$E$80/100,"AVERAGE","POOR")))) -> EXCELLENT
A72: =Data_Sheet!A72 -> JEC16EC100 | B72: =Data_Sheet!B72 -> VISHNU PRAKASH | C72: ='T2'!J72 -> 28 | D72: =IF(C72="A","ABSENT",IF(C72>='T2'!$F$5*$E$82/100,"EXCELLENT",IF(C72>='T2'!$F$5*$E$81/100,"GOOD",IF(C72>='T2'!$F$5*$E$80/100,"AVERAGE","POOR")))) -> AVERAGE
A73: =Data_Sheet!A73 -> JEC16EC101 | B73: =Data_Sheet!B73 -> VISHNU V | C73: ='T2'!J73 -> 31 | D73: =IF(C73="A","ABSENT",IF(C73>='T2'!$F$5*$E$82/100,"EXCELLENT",IF(C73>='T2'!$F$5*$E$81/100,"GOOD",IF(C73>='T2'!$F$5*$E$80/100,"AVERAGE","POOR")))) -> GOOD
A74: =Data_Sheet!A74 -> LJEC16EC102 | B74: =Data_Sheet!B74 -> CHRISTEENA PAULSON | C74: ='T2'!J74 -> 40 | D74: =IF(C74="A","ABSENT",IF(C74>='T2'!$F$5*$E$82/100,"EXCELLENT",IF(C74>='T2'!$F$5*$E$81/100,"GOOD",IF(C74>='T2'!$F$5*$E$80/100,"AVERAGE","POOR")))) -> EXCELLENT
A76: Total Number of Students | C76: =Data_Sheet!$C$6 -> 50
A77: Number of Students Absent | C77: =IF(COUNTIF(C25:INDIRECT(C89),"=A"),COUNTIF(C25:INDIRECT(C89),"=A"),0) -> 0
A78: Total Number of Students attended | C78: =C76-C77 -> 50
A79: ="Number of Students with Marks less than "&E80&"%" -> Number of Students with Marks less than 45% | C79: =IF(COUNTIF(D25:INDIRECT(D89),"=POOR"),COUNTIF(D25:INDIRECT(D89),"=POOR"),0) -> 5 | D79: POOR | E79: Range
A80: ="Number of Students with Marks betweeen "&E80&"% to "&E81&"%" -> Number of Students with Marks betweeen 45% to 60% | C80: =IF(COUNTIF(D25:INDIRECT(D89),"=AVERAGE"),COUNTIF(D25:INDIRECT(D89),"=AVERAGE"),0) -> 6 | D80: AVERAGE | E80: 45
A81: ="Number of Students with Marks betweeen "&E81&"% to "&E82&"%" -> Number of Students with Marks betweeen 60% to 80% | C81: =IF(COUNTIF(D25:INDIRECT(D89),"=GOOD"),COUNTIF(D25:INDIRECT(D89),"=GOOD"),0) -> 15 | D81: GOOD | E81: 60
A82: ="Number of Students with Marks greater than "&E82&"%" -> Number of Students with Marks greater than 80% | C82: =IF(COUNTIF(D25:INDIRECT(D89),"=EXCELLENT"),COUNTIF(D25:INDIRECT(D89),"=EXCELLENT"),0) -> 24 | D82: EXCELLENT | E82: 80
A83: Class Average | C83: =ROUND(AVERAGE(C25:INDIRECT(C89)),2) -> 35.32
A84: Pass Percentage | C84: =ROUND(((C78-C79)/C78)*100,2) -> 90
B86: =Data_Sheet!B10 -> Name of Faculty : | C86: =Data_Sheet!B11 -> PONMANI RAJA M
B87: =Data_Sheet!B94 -> Dated Signature :
A89: =ROW(A76)-2 -> 74 | B89: Last Row Count | C89: ="$C$"&$A$89 -> $C$74 | D89: ="$D$"&$A$89 -> $D$74

Sheet T3
A3: Add questions one by one as needed.. | C3: Assessment Category | G3: Date : | J3: CO1 | K3: First Internal Exam
C4: Retest | G4: 14-03-18 | J4: CO2 | K4: Second Internal Exam
C5: Total Marks : | F5: 50 | J5: CO3 | K5: Assessment Exam - 1
J6: CO4 | K6: Assessment Exam - 2
A7: =Data_Sheet!A2 -> Jyothi Engineering College, Cheruthuruthy | J7: CO5 | K7: Assignment - 1
J8: CO6 | K8: Assignment - 2
A9: =Data_Sheet!A4 -> Department of Electrical & Electronics Engineering | K9: Retest
J10: 1
A11: ="CO Analysis - Internal Marks : "&C4 &" " &TEXT(G4,"dd-mm-yy") -> CO Analysis - Internal Marks : Retest 14-03-18 | J11: 2
J12: 3
A13: =Data_Sheet!A17 -> S7 EC EC407 Computer Communication 2019-20 | J13: 4
J14: 5
J15: 6
A18: Register No. | B18: Name of Student | C18: Qn. No. | D18: 1 | E18: 2 | F18: 3 | G18: 4 | H18: 5 | I18: ="Total Marks (" &F5 & ")" -> Total Marks (50) | L18: Calculated Total Marks (50)
C19: CO's | D19: CO3 | E19: CO3 | F19: CO4 | G19: CO4 | H19: CO5
C20: Blooms Taxonomy Lavel | D20: 5 | E20: 5 | F20: 5 | G20: 6 | H20: 6
C21: Max. Marks | D21: 5 | E21: 5 | F21: 5 | G21: 5 | H21: 5
C22: Difficulty Level in % | D22: 60 | E22: 60 | F22: 60 | G22: 60 | H22: 60
A24: Column1 | B24: Column2 | C24: Column3 | D24: Column4 | E24: Column5 | F24: Column6 | G24: Column7 | H24: Column8 | I24: Column32
A25: =Data_Sheet!A25 -> JEC16EC051 | B25: =Data_Sheet!B25 -> LANA KOLLATH
A26: =Data_Sheet!A26 -> JEC16EC052 | B26: =Data_Sheet!B26 -> MANU JENSON
A27: =Data_Sheet!A27 -> JEC16EC053 | B27: =Data_Sheet!B27 -> MAREENA MARIYA ABRAHAM
A28: =Data_Sheet!A28 -> JEC16EC054 | B28: =Data_Sheet!B28 -> MARIAN DAVIS KATTUKARAN
A29: =Data_Sheet!A29 -> JEC16EC055 | B29: =Data_Sheet!B29 -> MARY JEETHU A J
A30: =Data_Sheet!A30 -> JEC16EC056 | B30: =Data_Sheet!B30 -> MUBASHIRA K M
A31: =Data_Sheet!A31 -> JEC16EC057 | B31: =Data_Sheet!B31 -> MUHAMMED ARSHAD
A32: =Data_Sheet!A32 -> JEC16EC058 | B32: =Data_Sheet!B32 -> NANDANA K
A33: =Data_Sheet!A33 -> JEC16EC059 | B33: =Data_Sheet!B33 -> NARAYANAN M B
A34: =Data_Sheet!A34 -> JEC16EC061 | B34: =Data_Sheet!B34 -> NIKHIL KJ
A35: =Data_Sheet!A35 -> JEC16EC062 | B35: =Data_Sheet!B35 -> NIMISHA M S
A36: =Data_Sheet!A36 -> JEC16EC063 | B36: =Data_Sheet!B36 -> NIMISHA TONY
A37: =Data_Sheet!A37 -> JEC16EC064 | B37: =Data_Sheet!B37 -> NITHIN
A38: =Data_Sheet!A38 -> JEC16EC065 | B38: =Data_Sheet!B38 -> OLIVIA NELSON
A39: =Data_Sheet!A39 -> JEC16EC066 | B39: =Data_Sheet!B39 -> PAVITHRA.P
A40: =Data_Sheet!A40 -> JEC16EC067 | B40: =Data_Sheet!B40 -> P.DHANYA RAJ
A41: =Data_Sheet!A41 -> JEC16EC068 | B41: =Data_Sheet!B41 -> POOJA.P
A42: =Data_Sheet!A42 -> JEC16EC069 | B42: =Data_Sheet!B42 -> PRANAV
A43: =Data_Sheet!A43 -> JEC16EC070 | B43: =Data_Sheet!B43 -> PRASOBH KP
A44: =Data_Sheet!A44 -> JEC16EC071 | B44: =Data_Sheet!B44 -> PRINCE BENNY
A45: =Data_Sheet!A45 -> JEC16EC072 | B45: =Data_Sheet!B45 -> PRIYA.K
A46: =Data_Sheet!A46 -> JEC16EC073 | B46: =Data_Sheet!B46 -> RADHIKA
A47: =Data_Sheet!A47 -> JEC16EC074 | B47: =Data_Sheet!B47 -> RINOSHA.K.R
A48: =Data_Sheet!A48 -> JEC16EC075 | B48: =Data_Sheet!B48 -> RIYA ALBERT
A49: =Data_Sheet!A49 -> JEC16EC076 | B49: =Data_Sheet!B49 -> RIYA PS
A50: =Data_Sheet!A50 -> JEC16EC077 | B50: =Data_Sheet!B50 -> ROSHNI J NAIR
A51: =Data_Sheet!A51 -> JEC16EC079 | B51: =Data_Sheet!B51 -> SAFNA M
A52: =Data_Sheet!A52 -> JEC16EC080 | B52: =Data_Sheet!B52 -> SAJIN SHAJI
A53: =Data_Sheet!A53 -> JEC16EC081 | B53: =Data_Sheet!B53 -> SANDHRA .S
A54: =Data_Sheet!A54 -> JEC16EC082 | B54: =Data_Sheet!B54 -> SANGAMITHRA
A55: =Data_Sheet!A55 -> JEC16EC083 | B55: =Data_Sheet!B55 -> SARANYA.M.NAIR
A56: =Data_Sheet!A56 -> JEC16EC084 | B56: =Data_Sheet!B56 -> SARATHRAJ
A57: =Data_Sheet!A57 -> JEC16EC085 | B57: =Data_Sheet!B57 -> SHAHAN FATHIMA K
A58: =Data_Sheet!A58 -> JEC16EC086 | B58: =Data_Sheet!B58 -> SHAHLA.P.MOHAMMED
A59: =Data_Sheet!A59 -> JEC16EC087 | B59: =Data_Sheet!B59 -> SHAMSEENA T A
A60: =Data_Sheet!A60 -> JEC16EC088 | B60: =Data_Sheet!B60 -> SHARAN SHASHINDRAN A
A61: =Data_Sheet!A61 -> JEC16EC089 | B61: =Data_Sheet!B61 -> SIBIN KRISHNA C
A62: =Data_Sheet!A62 -> JEC16EC090 | B62: =Data_Sheet!B62 -> SREEJITH VIJAYAKUMAR
A63: =Data_Sheet!A63 -> JEC16EC091 | B63: =Data_Sheet!B63 -> SREELAKSHMI.R
A64: =Data_Sheet!A64 -> JEC16EC092 | B64: =Data_Sheet!B64 -> SREERAG K M
A65: =Data_Sheet!A65 -> JEC16EC093 | B65: =Data_Sheet!B65 -> SREERAG T K
A66: =Data_Sheet!A66 -> JEC16EC094 | B66: =Data_Sheet!B66 -> SREERAG V.V
A67: =Data_Sheet!A67 -> JEC16EC095 | B67: =Data_Sheet!B67 -> SRUTHIMOL.N.T
A68: =Data_Sheet!A68 -> JEC16EC096 | B68: =Data_Sheet!B68 -> SRUTHISHA SASI
A69: =Data_Sheet!A69 -> JEC16EC097 | B69: =Data_Sheet!B69 -> SUCHITHRA.TS
A70: =Data_Sheet!A70 -> JEC16EC098 | B70: =Data_Sheet!B70 -> SWETHA SARA GEORGE
A71: =Data_Sheet!A71 -> JEC16EC099 | B71: =Data_Sheet!B71 -> VISHNU K
A72: =Data_Sheet!A72 -> JEC16EC100 | B72: =Data_Sheet!B72 -> VISHNU PRAKASH
A73: =Data_Sheet!A73 -> JEC16EC101 | B73: =Data_Sheet!B73 -> VISHNU V
A74: =Data_Sheet!A74 -> LJEC16EC102 | B74: =Data_Sheet!B74 -> CHRISTEENA PAULSON
A76: Total Marks scored for the Question | D76: =IF(D$22<>"",IF(SUM(D25:INDIRECT(D96))>=0,SUM(D25:INDIRECT(D96)),""),"") -> 0 | E76: =IF(E$22<>"",IF(SUM(E25:INDIRECT(E96))>=0,SUM(E25:INDIRECT(E96)),""),"") -> 0 | F76: =IF(F$22<>"",IF(SUM(F25:INDIRECT(F96))>=0,SUM(F25:INDIRECT(F96)),""),"") -> 0 | G76: =IF(G$22<>"",IF(SUM(G25:INDIRECT(G96))>=0,SUM(G25:INDIRECT(G96)),""),"") -> 0 | H76: =IF(H$22<>"",IF(SUM(H25:INDIRECT(H96))>=0,SUM(H25:INDIRECT(H96)),""),"") -> 0
A77: No. of Students who attended the Question | D77: =IF(D$22<>"",IF(COUNT(D25:INDIRECT(D96))>=0,COUNT(D25:INDIRECT(D96)),""),"") -> 0 | E77: =IF(E$22<>"",IF(COUNT(E25:INDIRECT(E96))>=0,COUNT(E25:INDIRECT(E96)),""),"") -> 0 | F77: =IF(F$22<>"",IF(COUNT(F25:INDIRECT(F96))>=0,COUNT(F25:INDIRECT(F96)),""),"") -> 0 | G77: =IF(G$22<>"",IF(COUNT(G25:INDIRECT(G96))>=0,COUNT(G25:INDIRECT(G96)),""),"") -> 0 | H77: =IF(H$22<>"",IF(COUNT(H25:INDIRECT(H96))>=0,COUNT(H25:INDIRECT(H96)),""),"") -> 0
A78: Difficulty Level marks of the Question | D78: =IF(D21*D22/100=0,"",D21*D22/100) -> 3 | E78: 3 | F78: 3 | G78: 3 | H78: 3
A79: No. of Students who scored above the Difficulty Level | D79: =IF(COUNTIF(D25:INDIRECT(D96),">="&D78)=0,"",COUNTIF(D25:INDIRECT(D96),">="&D78)) ->  | E79: =IF(COUNTIF(E25:INDIRECT(E96),">="&E78)=0,"",COUNTIF(E25:INDIRECT(E96),">="&E78)) ->  | F79: =IF(COUNTIF(F25:INDIRECT(F96),">="&F78)=0,"",COUNTIF(F25:INDIRECT(F96),">="&F78)) ->  | G79: =IF(COUNTIF(G25:INDIRECT(G96),">="&G78)=0,"",COUNTIF(G25:INDIRECT(G96),">="&G78)) ->  | H79: =IF(COUNTIF(H25:INDIRECT(H96),">="&H78)=0,"",COUNTIF(H25:INDIRECT(H96),">="&H78)) -> 
A80: % of Students who scored above the Difficulty Level | D80: =IFERROR(ROUND(D79/D77*100,2),"") ->  | E80: =IFERROR(ROUND(E79/E77*100,2),"") ->  | F80: =IFERROR(ROUND(F79/F77*100,2),"") ->  | G80: =IFERROR(ROUND(G79/G77*100,2),"") ->  | H80: =IFERROR(ROUND(H79/H77*100,2),"") -> 
D81: =IF(D80="",0,IF(D80>=80,3,IF(D80>=70,2,IF(D80>=60,1,0)))) -> 0 | E81: =IF(E80="",0,IF(E80>=80,3,IF(E80>=70,2,IF(E80>=60,1,0)))) -> 0 | F81: =IF(F80="",0,IF(F80>=80,3,IF(F80>=70,2,IF(F80>=60,1,0)))) -> 0 | G81: =IF(G80="",0,IF(G80>=80,3,IF(G80>=70,2,IF(G80>=60,1,0)))) -> 0 | H81: =IF(H80="",0,IF(H80>=80,3,IF(H80>=70,2,IF(H80>=60,1,0)))) -> 0 | I81: Marks | M81: T_Marks | N81: S_Marks | O81: Students | P81: Level | Q81: Above | R81: Above % | S81: Attainment
B82: =IF(Data_Sheet!A77<>"","Total Attainment level for "&Data_Sheet!A77&" :","") -> Total Attainment level for CO1 : | C82: =IF(Data_Sheet!A77<>"",L82,"") ->  | D82: =IFERROR((IF(ISNUMBER(SEARCH("1", D$19)),D$21,"0")),"0")*D81 -> 0 | E82: =IFERROR((IF(ISNUMBER(SEARCH("1", E$19)),E$21,"0")),"0")*E81 -> 0 | F82: =IFERROR((IF(ISNUMBER(SEARCH("1", F$19)),F$21,"0")),"0")*F81 -> 0 | G82: =IFERROR((IF(ISNUMBER(SEARCH("1", G$19)),G$21,"0")),"0")*G81 -> 0 | H82: =IFERROR((IF(ISNUMBER(SEARCH("1", H$19)),H$21,"0")),"0")*H81 -> 0 | I82: =I99 -> 0 | L82: =IF(I82=0,"",ROUND(SUM(D82:H82)/I82,2)) ->  | M82: =I99 -> 0 | N82: =I106 -> 0 | O82: =I113 -> 0 | P82: =I120 -> 0 | Q82: =I127 -> 0 | R82: =IFERROR(ROUND(Q82/O82*100,2),"") ->  | S82: =IF(R82="","",IF(R82>=80,3,IF(R82>=70,2,IF(R82>=60,1,0)))) -> 
B83: =IF(Data_Sheet!A78<>"","Total Attainment level for "&Data_Sheet!A78&" :","") -> Total Attainment level for CO2 : | C83: =IF(Data_Sheet!A78<>"",L83,"") ->  | D83: =IFERROR((IF(ISNUMBER(SEARCH("2", D$19)),D$21,"0")),"0")*D81 -> 0 | E83: =IFERROR((IF(ISNUMBER(SEARCH("2", E$19)),E$21,"0")),"0")*E81 -> 0 | F83: =IFERROR((IF(ISNUMBER(SEARCH("2", F$19)),F$21,"0")),"0")*F81 -> 0 | G83: =IFERROR((IF(ISNUMBER(SEARCH("2", G$19)),G$21,"0")),"0")*G81 -> 0 | H83: =IFERROR((IF(ISNUMBER(SEARCH("2", H$19)),H$21,"0")),"0")*H81 -> 0 | I83: 0 | M83: 0 | N83: 0 | O83: 0 | P83: 0 | Q83: 0
B84: =IF(Data_Sheet!A79<>"","Total Attainment level for "&Data_Sheet!A79&" :","") -> Total Attainment level for CO3 : | C84: =IF(Data_Sheet!A79<>"",L84,"") -> 0 | D84: =IFERROR((IF(ISNUMBER(SEARCH("3", D$19)),D$21,"0")),"0")*D81 -> 0 | E84: =IFERROR((IF(ISNUMBER(SEARCH("3", E$19)),E$21,"0")),"0")*E81 -> 0 | F84: =IFERROR((IF(ISNUMBER(SEARCH("3", F$19)),F$21,"0")),"0")*F81 -> 0 | G84: =IFERROR((IF(ISNUMBER(SEARCH("3", G$19)),G$21,"0")),"0")*G81 -> 0 | H84: =IFERROR((IF(ISNUMBER(SEARCH("3", H$19)),H$21,"0")),"0")*H81 -> 0 | I84: 10 | L84: 0 | M84: 10 | N84: 0 | O84: 0 | P84: 6 | Q84: 0
B85: =IF(Data_Sheet!A80<>"","Total Attainment level for "&Data_Sheet!A80&" :","") -> Total Attainment level for CO4 : | C85: =IF(Data_Sheet!A80<>"",L85,"") -> 0 | D85: =IFERROR((IF(ISNUMBER(SEARCH("4", D$19)),D$21,"0")),"0")*D81 -> 0 | E85: =IFERROR((IF(ISNUMBER(SEARCH("4", E$19)),E$21,"0")),"0")*E81 -> 0 | F85: =IFERROR((IF(ISNUMBER(SEARCH("4", F$19)),F$21,"0")),"0")*F81 -> 0 | G85: =IFERROR((IF(ISNUMBER(SEARCH("4", G$19)),G$21,"0")),"0")*G81 -> 0 | H85: =IFERROR((IF(ISNUMBER(SEARCH("4", H$19)),H$21,"0")),"0")*H81 -> 0 | I85: 10 | L85: 0 | M85: 10 | N85: 0 | O85: 0 | P85: 6 | Q85: 0
B86: =IF(Data_Sheet!A81<>"","Total Attainment level for "&Data_Sheet!A81&" :","") -> Total Attainment level for CO5 : | C86: =IF(Data_Sheet!A81<>"",L86,"") -> 0 | D86: =IFERROR((IF(ISNUMBER(SEARCH("5", D$19)),D$21,"0")),"0")*D81 -> 0 | E86: =IFERROR((IF(ISNUMBER(SEARCH("5", E$19)),E$21,"0")),"0")*E81 -> 0 | F86: =IFERROR((IF(ISNUMBER(SEARCH("5", F$19)),F$21,"0")),"0")*F81 -> 0 | G86: =IFERROR((IF(ISNUMBER(SEARCH("5", G$19)),G$21,"0")),"0")*G81 -> 0 | H86: =IFERROR((IF(ISNUMBER(SEARCH("5", H$19)),H$21,"0")),"0")*H81 -> 0 | I86: 5 | L86: 0 | M86: 5 | N86: 0 | O86: 0 | P86: 3 | Q86: 0
B87: =IF(Data_Sheet!A82<>"","Total Attainment level for "&Data_Sheet!A82&" :","") -> Total Attainment level for CO6 : | C87: =IF(Data_Sheet!A82<>"",L87,"") ->  | D87: =IFERROR((IF(ISNUMBER(SEARCH("6", D$19)),D$21,"0")),"0")*D81 -> 0 | E87: =IFERROR((IF(ISNUMBER(SEARCH("6", E$19)),E$21,"0")),"0")*E81 -> 0 | F87: =IFERROR((IF(ISNUMBER(SEARCH("6", F$19)),F$21,"0")),"0")*F81 -> 0 | G87: =IFERROR((IF(ISNUMBER(SEARCH("6", G$19)),G$21,"0")),"0")*G81 -> 0 | H87: =IFERROR((IF(ISNUMBER(SEARCH("6", H$19)),H$21,"0")),"0")*H81 -> 0 | I87: 0 | M87: 0 | N87: 0 | O87: 0 | P87: 0 | Q87: 0
A89: =Data_Sheet!A85 -> Attainment Level 1: 60% students scoring more than 60% of the Total Marks
A90: =Data_Sheet!A86 -> Attainment Level 2: 70% students scoring more than 60% of the Total Marks
A91: =Data_Sheet!A87 -> Attainment Level 3: 80% students scoring more than 60% of the Total Marks
B93: =Data_Sheet!B10 -> Name of Faculty : | C93: =Data_Sheet!B11 -> PONMANI RAJA M
B94: =Data_Sheet!B94 -> Dated Signature :
B96: Last Row Count | C96: =ROW(A76)-2 -> 74 | D96: =SUBSTITUTE(ADDRESS(1,COLUMN(D1),2),"1","")&$C$96 -> D$74 | E96: ="E"&$C$96 -> E74 | F96: =SUBSTITUTE(ADDRESS(1,COLUMN(F1),2),"1","")&$C$96 -> F$74 | G96: =SUBSTITUTE(ADDRESS(1,COLUMN(G1),2),"1","")&$C$96 -> G$74 | H96: =SUBSTITUTE(ADDRESS(1,COLUMN(H1),2),"1","")&$C$96 -> H$74
C99: CO1 | D99: =IFERROR((IF(ISNUMBER(SEARCH("1", D$19)),D$21,"0")),"0") -> 0 | E99: =IFERROR((IF(ISNUMBER(SEARCH("1", E$19)),E$21,"0")),"0") -> 0 | F99: 0 | G99: 0 | H99: 0 | I99: =IFERROR(SUM($D99:INDIRECT($L99)),"0") -> 0 | L99: =SUBSTITUTE(ADDRESS(1,N99,4),1,"")&ROW($I99) -> H99 | M99: =COUNTIF($D$20:INDIRECT($O99),"*1*") -> 0 | N99: =COLUMN($I$19)-1 -> 8 | O99: =SUBSTITUTE(ADDRESS(1,N99,4),1,"")&ROW($I$19)+1 -> H20 | P99: Total Marks
C100: CO2 | D100: =IFERROR((IF(ISNUMBER(SEARCH("2", D$19)),D$21,"0")),"0") -> 0 | E100: =IFERROR((IF(ISNUMBER(SEARCH("2", E$19)),E$21,"0")),"0") -> 0 | F100: 0 | G100: 0 | H100: 0 | I100: =IFERROR(SUM($D100:INDIRECT($L100)),"0") -> 0 | L100: H100 | M100: =COUNTIF($D$20:INDIRECT($O100),"*2*") -> 0 | N100: 8 | O100: H20
C101: CO3 | D101: =IFERROR((IF(ISNUMBER(SEARCH("3", D$19)),D$21,"0")),"0") -> 5 | E101: =IFERROR((IF(ISNUMBER(SEARCH("3", E$19)),E$21,"0")),"0") -> 5 | F101: 0 | G101: 0 | H101: 0 | I101: =IFERROR(SUM($D101:INDIRECT($L101)),"0") -> 10 | L101: H101 | M101: =COUNTIF($D$20:INDIRECT($O101),"*3*") -> 0 | N101: 8 | O101: H20
C102: CO4 | D102: =IFERROR((IF(ISNUMBER(SEARCH("4", D$19)),D$21,"0")),"0") -> 0 | E102: =IFERROR((IF(ISNUMBER(SEARCH("4", E$19)),E$21,"0")),"0") -> 0 | F102: 5 | G102: 5 | H102: 0 | I102: =IFERROR(SUM($D102:INDIRECT($L102)),"0") -> 10 | L102: H102 | M102: =COUNTIF($D$20:INDIRECT($O102),"*4*") -> 0 | N102: 8 | O102: H20
C103: CO5 | D103: =IFERROR((IF(ISNUMBER(SEARCH("5", D$19)),D$21,"0")),"0") -> 0 | E103: =IFERROR((IF(ISNUMBER(SEARCH("5", E$19)),E$21,"0")),"0") -> 0 | F103: 0 | G103: 0 | H103: 5 | I103: =IFERROR(SUM($D103:INDIRECT($L103)),"0") -> 5 | L103: H103 | M103: =COUNTIF($D$20:INDIRECT($O103),"*5*") -> 0 | N103: 8 | O103: H20
C104: CO6 | D104: =IFERROR((IF(ISNUMBER(SEARCH("6", D$19)),D$21,"0")),"0") -> 0 | E104: =IFERROR((IF(ISNUMBER(SEARCH("6", E$19)),E$21,"0")),"0") -> 0 | F104: 0 | G104: 0 | H104: 0 | I104: =IFERROR(SUM($D104:INDIRECT($L104)),"0") -> 0 | L104: H104 | M104: =COUNTIF($D$20:INDIRECT($O104),"*6*") -> 0 | N104: 8 | O104: H20
C106: CO1 | D106: =IFERROR((IF(ISNUMBER(SEARCH("1", D$19)),D$76,"0")),"0") -> 0 | E106: =IFERROR((IF(ISNUMBER(SEARCH("1", E$19)),E$76,"0")),"0") -> 0 | F106: 0 | G106: 0 | H106: 0 | I106: =IFERROR(SUM($D106:INDIRECT($L106)),"0") -> 0 | L106: =SUBSTITUTE(ADDRESS(1,N106,4),1,"")&ROW($I106) -> H106 | M106: =COUNTIF($D$20:INDIRECT($O106),"*1*") -> 0 | N106: =COLUMN($I$19)-1 -> 8 | O106: =SUBSTITUTE(ADDRESS(1,N106,4),1,"")&ROW($I$19)+1 -> H20 | P106: Total Marks Scored
C107: CO2 | D107: =IFERROR((IF(ISNUMBER(SEARCH("2", D$19)),D$76,"0")),"0") -> 0 | E107: =IFERROR((IF(ISNUMBER(SEARCH("2", E$19)),E$76,"0")),"0") -> 0 | F107: 0 | G107: 0 | H107: 0 | I107: =IFERROR(SUM($D107:INDIRECT($L107)),"0") -> 0 | L107: H107 | M107: =COUNTIF($D$20:INDIRECT($O107),"*2*") -> 0 | N107: 8 | O107: H20
C108: CO3 | D108: =IFERROR((IF(ISNUMBER(SEARCH("3", D$19)),D$76,"0")),"0") -> 0 | E108: =IFERROR((IF(ISNUMBER(SEARCH("3", E$19)),E$76,"0")),"0") -> 0 | F108: 0 | G108: 0 | H108: 0 | I108: =IFERROR(SUM($D108:INDIRECT($L108)),"0") -> 0 | L108: H108 | M108: =COUNTIF($D$20:INDIRECT($O108),"*3*") -> 0 | N108: 8 | O108: H20
C109: CO4 | D109: =IFERROR((IF(ISNUMBER(SEARCH("4", D$19)),D$76,"0")),"0") -> 0 | E109: =IFERROR((IF(ISNUMBER(SEARCH("4", E$19)),E$76,"0")),"0") -> 0 | F109: 0 | G109: 0 | H109: 0 | I109: =IFERROR(SUM($D109:INDIRECT($L109)),"0") -> 0 | L109: H109 | M109: =COUNTIF($D$20:INDIRECT($O109),"*4*") -> 0 | N109: 8 | O109: H20
C110: CO5 | D110: =IFERROR((IF(ISNUMBER(SEARCH("5", D$19)),D$76,"0")),"0") -> 0 | E110: =IFERROR((IF(ISNUMBER(SEARCH("5", E$19)),E$76,"0")),"0") -> 0 | F110: 0 | G110: 0 | H110: 0 | I110: =IFERROR(SUM($D110:INDIRECT($L110)),"0") -> 0 | L110: H110 | M110: =COUNTIF($D$20:INDIRECT($O110),"*5*") -> 0 | N110: 8 | O110: H20
C111: CO6 | D111: =IFERROR((IF(ISNUMBER(SEARCH("6", D$19)),D$76,"0")),"0") -> 0 | E111: =IFERROR((IF(ISNUMBER(SEARCH("6", E$19)),E$76,"0")),"0") -> 0 | F111: 0 | G111: 0 | H111: 0 | I111: =IFERROR(SUM($D111:INDIRECT($L111)),"0") -> 0 | L111: H111 | M111: =COUNTIF($D$20:INDIRECT($O111),"*6*") -> 0 | N111: 8 | O111: H20
C113: CO1 | D113: =IFERROR((IF(ISNUMBER(SEARCH("1", D$19)),D$77,"0")),"0") -> 0 | E113: =IFERROR((IF(ISNUMBER(SEARCH("1", E$19)),E$77,"0")),"0") -> 0 | F113: 0 | G113: 0 | H113: 0 | I113: =IFERROR(SUM($D113:INDIRECT($L113)),"0") -> 0 | L113: =SUBSTITUTE(ADDRESS(1,N113,4),1,"")&ROW($I113) -> H113 | M113: =COUNTIF($D$20:INDIRECT($O113),"*1*") -> 0 | N113: =COLUMN($I$19)-1 -> 8 | O113: =SUBSTITUTE(ADDRESS(1,N113,4),1,"")&ROW($I$19)+1 -> H20 | P113: No of Studdents Attended
C114: CO2 | D114: =IFERROR((IF(ISNUMBER(SEARCH("2", D$19)),D$77,"0")),"0") -> 0 | E114: =IFERROR((IF(ISNUMBER(SEARCH("2", E$19)),E$77,"0")),"0") -> 0 | F114: 0 | G114: 0 | H114: 0 | I114: =IFERROR(SUM($D114:INDIRECT($L114)),"0") -> 0 | L114: H114 | M114: =COUNTIF($D$20:INDIRECT($O114),"*2*") -> 0 | N114: 8 | O114: H20
C115: CO3 | D115: =IFERROR((IF(ISNUMBER(SEARCH("3", D$19)),D$77,"0")),"0") -> 0 | E115: =IFERROR((IF(ISNUMBER(SEARCH("3", E$19)),E$77,"0")),"0") -> 0 | F115: 0 | G115: 0 | H115: 0 | I115: =IFERROR(SUM($D115:INDIRECT($L115)),"0") -> 0 | L115: H115 | M115: =COUNTIF($D$20:INDIRECT($O115),"*3*") -> 0 | N115: 8 | O115: H20
C116: CO4 | D116: =IFERROR((IF(ISNUMBER(SEARCH("4", D$19)),D$77,"0")),"0") -> 0 | E116: =IFERROR((IF(ISNUMBER(SEARCH("4", E$19)),E$77,"0")),"0") -> 0 | F116: 0 | G116: 0 | H116: 0 | I116: =IFERROR(SUM($D116:INDIRECT($L116)),"0") -> 0 | L116: H116 | M116: =COUNTIF($D$20:INDIRECT($O116),"*4*") -> 0 | N116: 8 | O116: H20
C117: CO5 | D117: =IFERROR((IF(ISNUMBER(SEARCH("5", D$19)),D$77,"0")),"0") -> 0 | E117: =IFERROR((IF(ISNUMBER(SEARCH("5", E$19)),E$77,"0")),"0") -> 0 | F117: 0 | G117: 0 | H117: 0 | I117: =IFERROR(SUM($D117:INDIRECT($L117)),"0") -> 0 | L117: H117 | M117: =COUNTIF($D$20:INDIRECT($O117),"*5*") -> 0 | N117: 8 | O117: H20
C118: CO6 | D118: =IFERROR((IF(ISNUMBER(SEARCH("6", D$19)),D$77,"0")),"0") -> 0 | E118: =IFERROR((IF(ISNUMBER(SEARCH("6", E$19)),E$77,"0")),"0") -> 0 | F118: 0 | G118: 0 | H118: 0 | I118: =IFERROR(SUM($D118:INDIRECT($L118)),"0") -> 0 | L118: H118 | M118: =COUNTIF($D$20:INDIRECT($O118),"*6*") -> 0 | N118: 8 | O118: H20
C120: CO1 | D120: =IFERROR((IF(ISNUMBER(SEARCH("1", D$19)),D$78,"0")),"0") -> 0 | E120: =IFERROR((IF(ISNUMBER(SEARCH("1", E$19)),E$78,"0")),"0") -> 0 | F120: 0 | G120: 0 | H120: 0 | I120: =IFERROR(SUM($D120:INDIRECT($L120)),"0") -> 0 | L120: =SUBSTITUTE(ADDRESS(1,N120,4),1,"")&ROW($I120) -> H120 | M120: =COUNTIF($D$20:INDIRECT($O120),"*1*") -> 0 | N120: =COLUMN($I$19)-1 -> 8 | O120: =SUBSTITUTE(ADDRESS(1,N120,4),1,"")&ROW($I$19)+1 -> H20 | P120: Difficulty Level
C121: CO2 | D121: =IFERROR((IF(ISNUMBER(SEARCH("2", D$19)),D$78,"0")),"0") -> 0 | E121: =IFERROR((IF(ISNUMBER(SEARCH("2", E$19)),E$78,"0")),"0") -> 0 | F121: 0 | G121: 0 | H121: 0 | I121: =IFERROR(SUM($D121:INDIRECT($L121)),"0") -> 0 | L121: H121 | M121: =COUNTIF($D$20:INDIRECT($O121),"*2*") -> 0 | N121: 8 | O121: H20
C122: CO3 | D122: =IFERROR((IF(ISNUMBER(SEARCH("3", D$19)),D$78,"0")),"0") -> 3 | E122: =IFERROR((IF(ISNUMBER(SEARCH("3", E$19)),E$78,"0")),"0") -> 3 | F122: 0 | G122: 0 | H122: 0 | I122: =IFERROR(SUM($D122:INDIRECT($L122)),"0") -> 6 | L122: H122 | M122: =COUNTIF($D$20:INDIRECT($O122),"*3*") -> 0 | N122: 8 | O122: H20
C123: CO4 | D123: =IFERROR((IF(ISNUMBER(SEARCH("4", D$19)),D$78,"0")),"0") -> 0 | E123: =IFERROR((IF(ISNUMBER(SEARCH("4", E$19)),E$78,"0")),"0") -> 0 | F123: 3 | G123: 3 | H123: 0 | I123: =IFERROR(SUM($D123:INDIRECT($L123)),"0") -> 6 | L123: H123 | M123: =COUNTIF($D$20:INDIRECT($O123),"*4*") -> 0 | N123: 8 | O123: H20
C124: CO5 | D124: =IFERROR((IF(ISNUMBER(SEARCH("5", D$19)),D$78,"0")),"0") -> 0 | E124: =IFERROR((IF(ISNUMBER(SEARCH("5", E$19)),E$78,"0")),"0") -> 0 | F124: 0 | G124: 0 | H124: 3 | I124: =IFERROR(SUM($D124:INDIRECT($L124)),"0") -> 3 | L124: H124 | M124: =COUNTIF($D$20:INDIRECT($O124),"*5*") -> 0 | N124: 8 | O124: H20
C125: CO6 | D125: =IFERROR((IF(ISNUMBER(SEARCH("6", D$19)),D$78,"0")),"0") -> 0 | E125: =IFERROR((IF(ISNUMBER(SEARCH("6", E$19)),E$78,"0")),"0") -> 0 | F125: 0 | G125: 0 | H125: 0 | I125: =IFERROR(SUM($D125:INDIRECT($L125)),"0") -> 0 | L125: H125 | M125: =COUNTIF($D$20:INDIRECT($O125),"*6*") -> 0 | N125: 8 | O125: H20
C127: CO1 | D127: =IFERROR((IF(ISNUMBER(SEARCH("1", D$19)),D$79,"0")),"0") -> 0 | E127: =IFERROR((IF(ISNUMBER(SEARCH("1", E$19)),E$79,"0")),"0") -> 0 | F127: 0 | G127: 0 | H127: 0 | I127: =IFERROR(SUM($D127:INDIRECT($L127)),"0") -> 0 | L127: =SUBSTITUTE(ADDRESS(1,N127,4),1,"")&ROW($I127) -> H127 | M127: =COUNTIF($D$20:INDIRECT($O127),"*1*") -> 0 | N127: =COLUMN($I$19)-1 -> 8 | O127: =SUBSTITUTE(ADDRESS(1,N127,4),1,"")&ROW($I$19)+1 -> H20 | P127: No of Studdents Above Difficulty Level
C128: CO2 | D128: =IFERROR((IF(ISNUMBER(SEARCH("2", D$19)),D$79,"0")),"0") -> 0 | E128: =IFERROR((IF(ISNUMBER(SEARCH("2", E$19)),E$79,"0")),"0") -> 0 | F128: 0 | G128: 0 | H128: 0 | I128: =IFERROR(SUM($D128:INDIRECT($L128)),"0") -> 0 | L128: H128 | M128: =COUNTIF($D$20:INDIRECT($O128),"*2*") -> 0 | N128: 8 | O128: H20
C129: CO3 | D129: =IFERROR((IF(ISNUMBER(SEARCH("3", D$19)),D$79,"0")),"0") ->  | E129: =IFERROR((IF(ISNUMBER(SEARCH("3", E$19)),E$79,"0")),"0") ->  | F129: 0 | G129: 0 | H129: 0 | I129: =IFERROR(SUM($D129:INDIRECT($L129)),"0") -> 0 | L129: H129 | M129: =COUNTIF($D$20:INDIRECT($O129),"*3*") -> 0 | N129: 8 | O129: H20
C130: CO4 | D130: =IFERROR((IF(ISNUMBER(SEARCH("4", D$19)),D$79,"0")),"0") -> 0 | E130: =IFERROR((IF(ISNUMBER(SEARCH("4", E$19)),E$79,"0")),"0") -> 0 | H130: 0 | I130: =IFERROR(SUM($D130:INDIRECT($L130)),"0") -> 0 | L130: H130 | M130: =COUNTIF($D$20:INDIRECT($O130),"*4*") -> 0 | N130: 8 | O130: H20
C131: CO5 | D131: =IFERROR((IF(ISNUMBER(SEARCH("5", D$19)),D$79,"0")),"0") -> 0 | E131: =IFERROR((IF(ISNUMBER(SEARCH("5", E$19)),E$79,"0")),"0") -> 0 | F131: 0 | G131: 0 | I131: =IFERROR(SUM($D131:INDIRECT($L131)),"0") -> 0 | L131: H131 | M131: =COUNTIF($D$20:INDIRECT($O131),"*5*") -> 0 | N131: 8 | O131: H20
C132: CO6 | D132: =IFERROR((IF(ISNUMBER(SEARCH("6", D$19)),D$79,"0")),"0") -> 0 | E132: =IFERROR((IF(ISNUMBER(SEARCH("6", E$19)),E$79,"0")),"0") -> 0 | F132: 0 | G132: 0 | H132: 0 | I132: =IFERROR(SUM($D132:INDIRECT($L132)),"0") -> 0 | L132: H132 | M132: =COUNTIF($D$20:INDIRECT($O132),"*6*") -> 0 | N132: 8 | O132: H20
C134: 1 | D134: =IFERROR((IF(ISNUMBER(SEARCH("1", D$20)),D$21/IF(LEN(D20)=16,6,IF(LEN(D20)=13,5,IF(LEN(D20)=10,4,IF(LEN(D20)=7,3,IF(LEN(D20)=4,2,1))))),"0")),"0") -> 0 | E134: =IFERROR((IF(ISNUMBER(SEARCH("1", E$20)),E$21/IF(LEN(E20)=16,6,IF(LEN(E20)=13,5,IF(LEN(E20)=10,4,IF(LEN(E20)=7,3,IF(LEN(E20)=4,2,1))))),"0")),"0") -> 0 | F134: =IFERROR((IF(ISNUMBER(SEARCH("1", F$20)),F$21/IF(LEN(F20)=16,6,IF(LEN(F20)=13,5,IF(LEN(F20)=10,4,IF(LEN(F20)=7,3,IF(LEN(F20)=4,2,1))))),"0")),"0") -> 0 | G134: =IFERROR((IF(ISNUMBER(SEARCH("1", G$20)),G$21/IF(LEN(G20)=16,6,IF(LEN(G20)=13,5,IF(LEN(G20)=10,4,IF(LEN(G20)=7,3,IF(LEN(G20)=4,2,1))))),"0")),"0") -> 0 | H134: =IFERROR((IF(ISNUMBER(SEARCH("1", H$20)),H$21/IF(LEN(H20)=16,6,IF(LEN(H20)=13,5,IF(LEN(H20)=10,4,IF(LEN(H20)=7,3,IF(LEN(H20)=4,2,1))))),"0")),"0") -> 0 | I134: =IFERROR(SUM($D134:INDIRECT($L134)),"0") -> 0 | L134: =SUBSTITUTE(ADDRESS(1,N134,4),1,"")&ROW($I134) -> H134 | M134: =COUNTIF($D$20:INDIRECT($O134),"1") -> 0 | N134: =COLUMN($I$18)-1 -> 8 | O134: =SUBSTITUTE(ADDRESS(1,N134,4),1,"")&ROW($I$19)+1 -> H20
C135: 2 | D135: =IFERROR((IF(ISNUMBER(SEARCH("2", D$20)),D$21/IF(LEN(D20)=16,6,IF(LEN(D20)=13,5,IF(LEN(D20)=10,4,IF(LEN(D20)=7,3,IF(LEN(D20)=4,2,1))))),"0")),"0") -> 0 | E135: =IFERROR((IF(ISNUMBER(SEARCH("2", E$20)),E$21/IF(LEN(E20)=16,6,IF(LEN(E20)=13,5,IF(LEN(E20)=10,4,IF(LEN(E20)=7,3,IF(LEN(E20)=4,2,1))))),"0")),"0") -> 0 | F135: =IFERROR((IF(ISNUMBER(SEARCH("2", F$20)),F$21/IF(LEN(F20)=16,6,IF(LEN(F20)=13,5,IF(LEN(F20)=10,4,IF(LEN(F20)=7,3,IF(LEN(F20)=4,2,1))))),"0")),"0") -> 0 | G135: =IFERROR((IF(ISNUMBER(SEARCH("2", G$20)),G$21/IF(LEN(G20)=16,6,IF(LEN(G20)=13,5,IF(LEN(G20)=10,4,IF(LEN(G20)=7,3,IF(LEN(G20)=4,2,1))))),"0")),"0") -> 0 | H135: =IFERROR((IF(ISNUMBER(SEARCH("2", H$20)),H$21/IF(LEN(H20)=16,6,IF(LEN(H20)=13,5,IF(LEN(H20)=10,4,IF(LEN(H20)=7,3,IF(LEN(H20)=4,2,1))))),"0")),"0") -> 0 | I135: =IFERROR(SUM($D135:INDIRECT($L135)),"0") -> 0 | L135: =SUBSTITUTE(ADDRESS(1,N135,4),1,"")&ROW($I135) -> H135 | M135: =COUNTIF($D$20:INDIRECT($O135),"2") -> 0 | N135: 8 | O135: H20
C136: 3 | D136: =IFERROR((IF(ISNUMBER(SEARCH("3", D$20)),D$21/IF(LEN(D20)=16,6,IF(LEN(D20)=13,5,IF(LEN(D20)=10,4,IF(LEN(D20)=7,3,IF(LEN(D20)=4,2,1))))),"0")),"0") -> 0 | E136: =IFERROR((IF(ISNUMBER(SEARCH("3", E$20)),E$21/IF(LEN(E20)=16,6,IF(LEN(E20)=13,5,IF(LEN(E20)=10,4,IF(LEN(E20)=7,3,IF(LEN(E20)=4,2,1))))),"0")),"0") -> 0 | F136: =IFERROR((IF(ISNUMBER(SEARCH("3", F$20)),F$21/IF(LEN(F20)=16,6,IF(LEN(F20)=13,5,IF(LEN(F20)=10,4,IF(LEN(F20)=7,3,IF(LEN(F20)=4,2,1))))),"0")),"0") -> 0 | G136: =IFERROR((IF(ISNUMBER(SEARCH("3", G$20)),G$21/IF(LEN(G20)=16,6,IF(LEN(G20)=13,5,IF(LEN(G20)=10,4,IF(LEN(G20)=7,3,IF(LEN(G20)=4,2,1))))),"0")),"0") -> 0 | H136: =IFERROR((IF(ISNUMBER(SEARCH("3", H$20)),H$21/IF(LEN(H20)=16,6,IF(LEN(H20)=13,5,IF(LEN(H20)=10,4,IF(LEN(H20)=7,3,IF(LEN(H20)=4,2,1))))),"0")),"0") -> 0 | I136: =IFERROR(SUM($D136:INDIRECT($L136)),"0") -> 0 | L136: H136 | M136: =COUNTIF($D$20:INDIRECT($O136),"3") -> 0 | N136: 8 | O136: H20
C137: 4 | D137: =IFERROR((IF(ISNUMBER(SEARCH("4", D$20)),D$21/IF(LEN(D20)=16,6,IF(LEN(D20)=13,5,IF(LEN(D20)=10,4,IF(LEN(D20)=7,3,IF(LEN(D20)=4,2,1))))),"0")),"0") -> 0 | E137: =IFERROR((IF(ISNUMBER(SEARCH("4", E$20)),E$21/IF(LEN(E20)=16,6,IF(LEN(E20)=13,5,IF(LEN(E20)=10,4,IF(LEN(E20)=7,3,IF(LEN(E20)=4,2,1))))),"0")),"0") -> 0 | F137: =IFERROR((IF(ISNUMBER(SEARCH("4", F$20)),F$21/IF(LEN(F20)=16,6,IF(LEN(F20)=13,5,IF(LEN(F20)=10,4,IF(LEN(F20)=7,3,IF(LEN(F20)=4,2,1))))),"0")),"0") -> 0 | G137: =IFERROR((IF(ISNUMBER(SEARCH("4", G$20)),G$21/IF(LEN(G20)=16,6,IF(LEN(G20)=13,5,IF(LEN(G20)=10,4,IF(LEN(G20)=7,3,IF(LEN(G20)=4,2,1))))),"0")),"0") -> 0 | H137: =IFERROR((IF(ISNUMBER(SEARCH("4", H$20)),H$21/IF(LEN(H20)=16,6,IF(LEN(H20)=13,5,IF(LEN(H20)=10,4,IF(LEN(H20)=7,3,IF(LEN(H20)=4,2,1))))),"0")),"0") -> 0 | I137: =IFERROR(SUM($D137:INDIRECT($L137)),"0") -> 0 | L137: H137 | M137: =COUNTIF($D$20:INDIRECT($O137),"4") -> 0 | N137: 8 | O137: H20
C138: 5 | D138: =IFERROR((IF(ISNUMBER(SEARCH("5", D$20)),D$21/IF(LEN(D20)=16,6,IF(LEN(D20)=13,5,IF(LEN(D20)=10,4,IF(LEN(D20)=7,3,IF(LEN(D20)=4,2,1))))),"0")),"0") -> 5 | E138: =IFERROR((IF(ISNUMBER(SEARCH("5", E$20)),E$21/IF(LEN(E20)=16,6,IF(LEN(E20)=13,5,IF(LEN(E20)=10,4,IF(LEN(E20)=7,3,IF(LEN(E20)=4,2,1))))),"0")),"0") -> 5 | F138: =IFERROR((IF(ISNUMBER(SEARCH("5", F$20)),F$21/IF(LEN(F20)=16,6,IF(LEN(F20)=13,5,IF(LEN(F20)=10,4,IF(LEN(F20)=7,3,IF(LEN(F20)=4,2,1))))),"0")),"0") -> 5 | G138: =IFERROR((IF(ISNUMBER(SEARCH("5", G$20)),G$21/IF(LEN(G20)=16,6,IF(LEN(G20)=13,5,IF(LEN(G20)=10,4,IF(LEN(G20)=7,3,IF(LEN(G20)=4,2,1))))),"0")),"0") -> 0 | H138: =IFERROR((IF(ISNUMBER(SEARCH("5", H$20)),H$21/IF(LEN(H20)=16,6,IF(LEN(H20)=13,5,IF(LEN(H20)=10,4,IF(LEN(H20)=7,3,IF(LEN(H20)=4,2,1))))),"0")),"0") -> 0 | I138: =IFERROR(SUM($D138:INDIRECT($L138)),"0") -> 15 | L138: H138 | M138: =COUNTIF($D$20:INDIRECT($O138),"5") -> 3 | N138: 8 | O138: H20
C139: 6 | D139: =IFERROR((IF(ISNUMBER(SEARCH("6", D$20)),D$21/IF(LEN(D20)=16,6,IF(LEN(D20)=13,5,IF(LEN(D20)=10,4,IF(LEN(D20)=7,3,IF(LEN(D20)=4,2,1))))),"0")),"0") -> 0 | E139: =IFERROR((IF(ISNUMBER(SEARCH("6", E$20)),E$21/IF(LEN(E20)=16,6,IF(LEN(E20)=13,5,IF(LEN(E20)=10,4,IF(LEN(E20)=7,3,IF(LEN(E20)=4,2,1))))),"0")),"0") -> 0 | F139: =IFERROR((IF(ISNUMBER(SEARCH("6", F$20)),F$21/IF(LEN(F20)=16,6,IF(LEN(F20)=13,5,IF(LEN(F20)=10,4,IF(LEN(F20)=7,3,IF(LEN(F20)=4,2,1))))),"0")),"0") -> 0 | G139: =IFERROR((IF(ISNUMBER(SEARCH("6", G$20)),G$21/IF(LEN(G20)=16,6,IF(LEN(G20)=13,5,IF(LEN(G20)=10,4,IF(LEN(G20)=7,3,IF(LEN(G20)=4,2,1))))),"0")),"0") -> 5 | H139: =IFERROR((IF(ISNUMBER(SEARCH("6", H$20)),H$21/IF(LEN(H20)=16,6,IF(LEN(H20)=13,5,IF(LEN(H20)=10,4,IF(LEN(H20)=7,3,IF(LEN(H20)=4,2,1))))),"0")),"0") -> 5 | I139: =IFERROR(SUM($D139:INDIRECT($L139)),"0") -> 10 | L139: H139 | M139: =COUNTIF($D$20:INDIRECT($O139),"6") -> 2 | N139: 8 | O139: H20

Sheet T3_Analysis
A3: =Data_Sheet!A2 -> Jyothi Engineering College, Cheruthuruthy
A5: =Data_Sheet!A4 -> Department of Electrical & Electronics Engineering
A7: ='T3'!A11 -> CO Analysis - Internal Marks : Retest 14-03-18
A9: =Data_Sheet!A17 -> S7 EC EC407 Computer Communication 2019-20
A22: ='T1'!A18 -> Register No. | B22: ='T1'!B18 -> Name of Student | C22: ='T3'!I18 -> Total Marks (50) | D22: Category
A24: Column1 | B24: Column2 | C24: Column3 | D24: Column4
A25: =Data_Sheet!A25 -> JEC16EC051 | B25: =Data_Sheet!B25 -> LANA KOLLATH | C25: ='T3'!I25 -> 0 | D25: =IF(C25="A","ABSENT",IF(C25>='T3'!$F$5*$E$82/100,"EXCELLENT",IF(C25>='T3'!$F$5*$E$81/100,"GOOD",IF(C25>='T3'!$F$5*$E$80/100,"AVERAGE","POOR")))) -> POOR
A26: =Data_Sheet!A26 -> JEC16EC052 | B26: =Data_Sheet!B26 -> MANU JENSON | C26: ='T3'!I26 -> 0 | D26: =IF(C26="A","ABSENT",IF(C26>='T3'!$F$5*$E$82/100,"EXCELLENT",IF(C26>='T3'!$F$5*$E$81/100,"GOOD",IF(C26>='T3'!$F$5*$E$80/100,"AVERAGE","POOR")))) -> POOR
A27: =Data_Sheet!A27 -> JEC16EC053 | B27: =Data_Sheet!B27 -> MAREENA MARIYA ABRAHAM | C27: ='T3'!I27 -> 0 | D27: =IF(C27="A","ABSENT",IF(C27>='T3'!$F$5*$E$82/100,"EXCELLENT",IF(C27>='T3'!$F$5*$E$81/100,"GOOD",IF(C27>='T3'!$F$5*$E$80/100,"AVERAGE","POOR")))) -> POOR
A28: =Data_Sheet!A28 -> JEC16EC054 | B28: =Data_Sheet!B28 -> MARIAN DAVIS KATTUKARAN | C28: ='T3'!I28 -> 0 | D28: =IF(C28="A","ABSENT",IF(C28>='T3'!$F$5*$E$82/100,"EXCELLENT",IF(C28>='T3'!$F$5*$E$81/100,"GOOD",IF(C28>='T3'!$F$5*$E$80/100,"AVERAGE","POOR")))) -> POOR
A29: =Data_Sheet!A29 -> JEC16EC055 | B29: =Data_Sheet!B29 -> MARY JEETHU A J | C29: ='T3'!I29 -> 0 | D29: =IF(C29="A","ABSENT",IF(C29>='T3'!$F$5*$E$82/100,"EXCELLENT",IF(C29>='T3'!$F$5*$E$81/100,"GOOD",IF(C29>='T3'!$F$5*$E$80/100,"AVERAGE","POOR")))) -> POOR
A30: =Data_Sheet!A30 -> JEC16EC056 | B30: =Data_Sheet!B30 -> MUBASHIRA K M | C30: ='T3'!I30 -> 0 | D30: =IF(C30="A","ABSENT",IF(C30>='T3'!$F$5*$E$82/100,"EXCELLENT",IF(C30>='T3'!$F$5*$E$81/100,"GOOD",IF(C30>='T3'!$F$5*$E$80/100,"AVERAGE","POOR")))) -> POOR
A31: =Data_Sheet!A31 -> JEC16EC057 | B31: =Data_Sheet!B31 -> MUHAMMED ARSHAD | C31: ='T3'!I31 -> 0 | D31: =IF(C31="A","ABSENT",IF(C31>='T3'!$F$5*$E$82/100,"EXCELLENT",IF(C31>='T3'!$F$5*$E$81/100,"GOOD",IF(C31>='T3'!$F$5*$E$80/100,"AVERAGE","POOR")))) -> POOR
A32: =Data_Sheet!A32 -> JEC16EC058 | B32: =Data_Sheet!B32 -> NANDANA K | C32: ='T3'!I32 -> 0 | D32: =IF(C32="A","ABSENT",IF(C32>='T3'!$F$5*$E$82/100,"EXCELLENT",IF(C32>='T3'!$F$5*$E$81/100,"GOOD",IF(C32>='T3'!$F$5*$E$80/100,"AVERAGE","POOR")))) -> POOR
A33: =Data_Sheet!A33 -> JEC16EC059 | B33: =Data_Sheet!B33 -> NARAYANAN M B | C33: ='T3'!I33 -> 0 | D33: =IF(C33="A","ABSENT",IF(C33>='T3'!$F$5*$E$82/100,"EXCELLENT",IF(C33>='T3'!$F$5*$E$81/100,"GOOD",IF(C33>='T3'!$F$5*$E$80/100,"AVERAGE","POOR")))) -> POOR
A34: =Data_Sheet!A34 -> JEC16EC061 | B34: =Data_Sheet!B34 -> NIKHIL KJ | C34: ='T3'!I34 -> 0 | D34: =IF(C34="A","ABSENT",IF(C34>='T3'!$F$5*$E$82/100,"EXCELLENT",IF(C34>='T3'!$F$5*$E$81/100,"GOOD",IF(C34>='T3'!$F$5*$E$80/100,"AVERAGE","POOR")))) -> POOR
A35: =Data_Sheet!A35 -> JEC16EC062 | B35: =Data_Sheet!B35 -> NIMISHA M S | C35: ='T3'!I35 -> 0 | D35: =IF(C35="A","ABSENT",IF(C35>='T3'!$F$5*$E$82/100,"EXCELLENT",IF(C35>='T3'!$F$5*$E$81/100,"GOOD",IF(C35>='T3'!$F$5*$E$80/100,"AVERAGE","POOR")))) -> POOR
A36: =Data_Sheet!A36 -> JEC16EC063 | B36: =Data_Sheet!B36 -> NIMISHA TONY | C36: ='T3'!I36 -> 0 | D36: =IF(C36="A","ABSENT",IF(C36>='T3'!$F$5*$E$82/100,"EXCELLENT",IF(C36>='T3'!$F$5*$E$81/100,"GOOD",IF(C36>='T3'!$F$5*$E$80/100,"AVERAGE","POOR")))) -> POOR
A37: =Data_Sheet!A37 -> JEC16EC064 | B37: =Data_Sheet!B37 -> NITHIN | C37: ='T3'!I37 -> 0 | D37: =IF(C37="A","ABSENT",IF(C37>='T3'!$F$5*$E$82/100,"EXCELLENT",IF(C37>='T3'!$F$5*$E$81/100,"GOOD",IF(C37>='T3'!$F$5*$E$80/100,"AVERAGE","POOR")))) -> POOR
A38: =Data_Sheet!A38 -> JEC16EC065 | B38: =Data_Sheet!B38 -> OLIVIA NELSON | C38: ='T3'!I38 -> 0 | D38: =IF(C38="A","ABSENT",IF(C38>='T3'!$F$5*$E$82/100,"EXCELLENT",IF(C38>='T3'!$F$5*$E$81/100,"GOOD",IF(C38>='T3'!$F$5*$E$80/100,"AVERAGE","POOR")))) -> POOR
A39: =Data_Sheet!A39 -> JEC16EC066 | B39: =Data_Sheet!B39 -> PAVITHRA.P | C39: ='T3'!I39 -> 0 | D39: =IF(C39="A","ABSENT",IF(C39>='T3'!$F$5*$E$82/100,"EXCELLENT",IF(C39>='T3'!$F$5*$E$81/100,"GOOD",IF(C39>='T3'!$F$5*$E$80/100,"AVERAGE","POOR")))) -> POOR
A40: =Data_Sheet!A40 -> JEC16EC067 | B40: =Data_Sheet!B40 -> P.DHANYA RAJ | C40: ='T3'!I40 -> 0 | D40: =IF(C40="A","ABSENT",IF(C40>='T3'!$F$5*$E$82/100,"EXCELLENT",IF(C40>='T3'!$F$5*$E$81/100,"GOOD",IF(C40>='T3'!$F$5*$E$80/100,"AVERAGE","POOR")))) -> POOR
A41: =Data_Sheet!A41 -> JEC16EC068 | B41: =Data_Sheet!B41 -> POOJA.P | C41: ='T3'!I41 -> 0 | D41: =IF(C41="A","ABSENT",IF(C41>='T3'!$F$5*$E$82/100,"EXCELLENT",IF(C41>='T3'!$F$5*$E$81/100,"GOOD",IF(C41>='T3'!$F$5*$E$80/100,"AVERAGE","POOR")))) -> POOR
A42: =Data_Sheet!A42 -> JEC16EC069 | B42: =Data_Sheet!B42 -> PRANAV | C42: ='T3'!I42 -> 0 | D42: =IF(C42="A","ABSENT",IF(C42>='T3'!$F$5*$E$82/100,"EXCELLENT",IF(C42>='T3'!$F$5*$E$81/100,"GOOD",IF(C42>='T3'!$F$5*$E$80/100,"AVERAGE","POOR")))) -> POOR
A43: =Data_Sheet!A43 -> JEC16EC070 | B43: =Data_Sheet!B43 -> PRASOBH KP | C43: ='T3'!I43 -> 0 | D43: =IF(C43="A","ABSENT",IF(C43>='T3'!$F$5*$E$82/100,"EXCELLENT",IF(C43>='T3'!$F$5*$E$81/100,"GOOD",IF(C43>='T3'!$F$5*$E$80/100,"AVERAGE","POOR")))) -> POOR
A44: =Data_Sheet!A44 -> JEC16EC071 | B44: =Data_Sheet!B44 -> PRINCE BENNY | C44: ='T3'!I44 -> 0 | D44: =IF(C44="A","ABSENT",IF(C44>='T3'!$F$5*$E$82/100,"EXCELLENT",IF(C44>='T3'!$F$5*$E$81/100,"GOOD",IF(C44>='T3'!$F$5*$E$80/100,"AVERAGE","POOR")))) -> POOR
A45: =Data_Sheet!A45 -> JEC16EC072 | B45: =Data_Sheet!B45 -> PRIYA.K | C45: ='T3'!I45 -> 0 | D45: =IF(C45="A","ABSENT",IF(C45>='T3'!$F$5*$E$82/100,"EXCELLENT",IF(C45>='T3'!$F$5*$E$81/100,"GOOD",IF(C45>='T3'!$F$5*$E$80/100,"AVERAGE","POOR")))) -> POOR
A46: =Data_Sheet!A46 -> JEC16EC073 | B46: =Data_Sheet!B46 -> RADHIKA | C46: ='T3'!I46 -> 0 | D46: =IF(C46="A","ABSENT",IF(C46>='T3'!$F$5*$E$82/100,"EXCELLENT",IF(C46>='T3'!$F$5*$E$81/100,"GOOD",IF(C46>='T3'!$F$5*$E$80/100,"AVERAGE","POOR")))) -> POOR
A47: =Data_Sheet!A47 -> JEC16EC074 | B47: =Data_Sheet!B47 -> RINOSHA.K.R | C47: ='T3'!I47 -> 0 | D47: =IF(C47="A","ABSENT",IF(C47>='T3'!$F$5*$E$82/100,"EXCELLENT",IF(C47>='T3'!$F$5*$E$81/100,"GOOD",IF(C47>='T3'!$F$5*$E$80/100,"AVERAGE","POOR")))) -> POOR
A48: =Data_Sheet!A48 -> JEC16EC075 | B48: =Data_Sheet!B48 -> RIYA ALBERT | C48: ='T3'!I48 -> 0 | D48: =IF(C48="A","ABSENT",IF(C48>='T3'!$F$5*$E$82/100,"EXCELLENT",IF(C48>='T3'!$F$5*$E$81/100,"GOOD",IF(C48>='T3'!$F$5*$E$80/100,"AVERAGE","POOR")))) -> POOR
A49: =Data_Sheet!A49 -> JEC16EC076 | B49: =Data_Sheet!B49 -> RIYA PS | C49: ='T3'!I49 -> 0 | D49: =IF(C49="A","ABSENT",IF(C49>='T3'!$F$5*$E$82/100,"EXCELLENT",IF(C49>='T3'!$F$5*$E$81/100,"GOOD",IF(C49>='T3'!$F$5*$E$80/100,"AVERAGE","POOR")))) -> POOR
A50: =Data_Sheet!A50 -> JEC16EC077 | B50: =Data_Sheet!B50 -> ROSHNI J NAIR | C50: ='T3'!I50 -> 0 | D50: =IF(C50="A","ABSENT",IF(C50>='T3'!$F$5*$E$82/100,"EXCELLENT",IF(C50>='T3'!$F$5*$E$81/100,"GOOD",IF(C50>='T3'!$F$5*$E$80/100,"AVERAGE","POOR")))) -> POOR
A51: =Data_Sheet!A51 -> JEC16EC079 | B51: =Data_Sheet!B51 -> SAFNA M | C51: ='T3'!I51 -> 0 | D51: =IF(C51="A","ABSENT",IF(C51>='T3'!$F$5*$E$82/100,"EXCELLENT",IF(C51>='T3'!$F$5*$E$81/100,"GOOD",IF(C51>='T3'!$F$5*$E$80/100,"AVERAGE","POOR")))) -> POOR
A52: =Data_Sheet!A52 -> JEC16EC080 | B52: =Data_Sheet!B52 -> SAJIN SHAJI | C52: ='T3'!I52 -> 0 | D52: =IF(C52="A","ABSENT",IF(C52>='T3'!$F$5*$E$82/100,"EXCELLENT",IF(C52>='T3'!$F$5*$E$81/100,"GOOD",IF(C52>='T3'!$F$5*$E$80/100,"AVERAGE","POOR")))) -> POOR
A53: =Data_Sheet!A53 -> JEC16EC081 | B53: =Data_Sheet!B53 -> SANDHRA .S | C53: ='T3'!I53 -> 0 | D53: =IF(C53="A","ABSENT",IF(C53>='T3'!$F$5*$E$82/100,"EXCELLENT",IF(C53>='T3'!$F$5*$E$81/100,"GOOD",IF(C53>='T3'!$F$5*$E$80/100,"AVERAGE","POOR")))) -> POOR
A54: =Data_Sheet!A54 -> JEC16EC082 | B54: =Data_Sheet!B54 -> SANGAMITHRA | C54: ='T3'!I54 -> 0 | D54: =IF(C54="A","ABSENT",IF(C54>='T3'!$F$5*$E$82/100,"EXCELLENT",IF(C54>='T3'!$F$5*$E$81/100,"GOOD",IF(C54>='T3'!$F$5*$E$80/100,"AVERAGE","POOR")))) -> POOR
A55: =Data_Sheet!A55 -> JEC16EC083 | B55: =Data_Sheet!B55 -> SARANYA.M.NAIR | C55: ='T3'!I55 -> 0 | D55: =IF(C55="A","ABSENT",IF(C55>='T3'!$F$5*$E$82/100,"EXCELLENT",IF(C55>='T3'!$F$5*$E$81/100,"GOOD",IF(C55>='T3'!$F$5*$E$80/100,"AVERAGE","POOR")))) -> POOR
A56: =Data_Sheet!A56 -> JEC16EC084 | B56: =Data_Sheet!B56 -> SARATHRAJ | C56: ='T3'!I56 -> 0 | D56: =IF(C56="A","ABSENT",IF(C56>='T3'!$F$5*$E$82/100,"EXCELLENT",IF(C56>='T3'!$F$5*$E$81/100,"GOOD",IF(C56>='T3'!$F$5*$E$80/100,"AVERAGE","POOR")))) -> POOR
A57: =Data_Sheet!A57 -> JEC16EC085 | B57: =Data_Sheet!B57 -> SHAHAN FATHIMA K | C57: ='T3'!I57 -> 0 | D57: =IF(C57="A","ABSENT",IF(C57>='T3'!$F$5*$E$82/100,"EXCELLENT",IF(C57>='T3'!$F$5*$E$81/100,"GOOD",IF(C57>='T3'!$F$5*$E$80/100,"AVERAGE","POOR")))) -> POOR
A58: =Data_Sheet!A58 -> JEC16EC086 | B58: =Data_Sheet!B58 -> SHAHLA.P.MOHAMMED | C58: ='T3'!I58 -> 0 | D58: =IF(C58="A","ABSENT",IF(C58>='T3'!$F$5*$E$82/100,"EXCELLENT",IF(C58>='T3'!$F$5*$E$81/100,"GOOD",IF(C58>='T3'!$F$5*$E$80/100,"AVERAGE","POOR")))) -> POOR
A59: =Data_Sheet!A59 -> JEC16EC087 | B59: =Data_Sheet!B59 -> SHAMSEENA T A | C59: ='T3'!I59 -> 0 | D59: =IF(C59="A","ABSENT",IF(C59>='T3'!$F$5*$E$82/100,"EXCELLENT",IF(C59>='T3'!$F$5*$E$81/100,"GOOD",IF(C59>='T3'!$F$5*$E$80/100,"AVERAGE","POOR")))) -> POOR
A60: =Data_Sheet!A60 -> JEC16EC088 | B60: =Data_Sheet!B60 -> SHARAN SHASHINDRAN A | C60: ='T3'!I60 -> 0 | D60: =IF(C60="A","ABSENT",IF(C60>='T3'!$F$5*$E$82/100,"EXCELLENT",IF(C60>='T3'!$F$5*$E$81/100,"GOOD",IF(C60>='T3'!$F$5*$E$80/100,"AVERAGE","POOR")))) -> POOR
A61: =Data_Sheet!A61 -> JEC16EC089 | B61: =Data_Sheet!B61 -> SIBIN KRISHNA C | C61: ='T3'!I61 -> 0 | D61: =IF(C61="A","ABSENT",IF(C61>='T3'!$F$5*$E$82/100,"EXCELLENT",IF(C61>='T3'!$F$5*$E$81/100,"GOOD",IF(C61>='T3'!$F$5*$E$80/100,"AVERAGE","POOR")))) -> POOR
A62: =Data_Sheet!A62 -> JEC16EC090 | B62: =Data_Sheet!B62 -> SREEJITH VIJAYAKUMAR | C62: ='T3'!I62 -> 0 | D62: =IF(C62="A","ABSENT",IF(C62>='T3'!$F$5*$E$82/100,"EXCELLENT",IF(C62>='T3'!$F$5*$E$81/100,"GOOD",IF(C62>='T3'!$F$5*$E$80/100,"AVERAGE","POOR")))) -> POOR
A63: =Data_Sheet!A63 -> JEC16EC091 | B63: =Data_Sheet!B63 -> SREELAKSHMI.R | C63: ='T3'!I63 -> 0 | D63: =IF(C63="A","ABSENT",IF(C63>='T3'!$F$5*$E$82/100,"EXCELLENT",IF(C63>='T3'!$F$5*$E$81/100,"GOOD",IF(C63>='T3'!$F$5*$E$80/100,"AVERAGE","POOR")))) -> POOR
A64: =Data_Sheet!A64 -> JEC16EC092 | B64: =Data_Sheet!B64 -> SREERAG K M | C64: ='T3'!I64 -> 0 | D64: =IF(C64="A","ABSENT",IF(C64>='T3'!$F$5*$E$82/100,"EXCELLENT",IF(C64>='T3'!$F$5*$E$81/100,"GOOD",IF(C64>='T3'!$F$5*$E$80/100,"AVERAGE","POOR")))) -> POOR
A65: =Data_Sheet!A65 -> JEC16EC093 | B65: =Data_Sheet!B65 -> SREERAG T K | C65: ='T3'!I65 -> 0 | D65: =IF(C65="A","ABSENT",IF(C65>='T3'!$F$5*$E$82/100,"EXCELLENT",IF(C65>='T3'!$F$5*$E$81/100,"GOOD",IF(C65>='T3'!$F$5*$E$80/100,"AVERAGE","POOR")))) -> POOR
A66: =Data_Sheet!A66 -> JEC16EC094 | B66: =Data_Sheet!B66 -> SREERAG V.V | C66: ='T3'!I66 -> 0 | D66: =IF(C66="A","ABSENT",IF(C66>='T3'!$F$5*$E$82/100,"EXCELLENT",IF(C66>='T3'!$F$5*$E$81/100,"GOOD",IF(C66>='T3'!$F$5*$E$80/100,"AVERAGE","POOR")))) -> POOR
A67: =Data_Sheet!A67 -> JEC16EC095 | B67: =Data_Sheet!B67 -> SRUTHIMOL.N.T | C67: ='T3'!I67 -> 0 | D67: =IF(C67="A","ABSENT",IF(C67>='T3'!$F$5*$E$82/100,"EXCELLENT",IF(C67>='T3'!$F$5*$E$81/100,"GOOD",IF(C67>='T3'!$F$5*$E$80/100,"AVERAGE","POOR")))) -> POOR
A68: =Data_Sheet!A68 -> JEC16EC096 | B68: =Data_Sheet!B68 -> SRUTHISHA SASI | C68: ='T3'!I68 -> 0 | D68: =IF(C68="A","ABSENT",IF(C68>='T3'!$F$5*$E$82/100,"EXCELLENT",IF(C68>='T3'!$F$5*$E$81/100,"GOOD",IF(C68>='T3'!$F$5*$E$80/100,"AVERAGE","POOR")))) -> POOR
A69: =Data_Sheet!A69 -> JEC16EC097 | B69: =Data_Sheet!B69 -> SUCHITHRA.TS | C69: ='T3'!I69 -> 0 | D69: =IF(C69="A","ABSENT",IF(C69>='T3'!$F$5*$E$82/100,"EXCELLENT",IF(C69>='T3'!$F$5*$E$81/100,"GOOD",IF(C69>='T3'!$F$5*$E$80/100,"AVERAGE","POOR")))) -> POOR
A70: =Data_Sheet!A70 -> JEC16EC098 | B70: =Data_Sheet!B70 -> SWETHA SARA GEORGE | C70: ='T3'!I70 -> 0 | D70: =IF(C70="A","ABSENT",IF(C70>='T3'!$F$5*$E$82/100,"EXCELLENT",IF(C70>='T3'!$F$5*$E$81/100,"GOOD",IF(C70>='T3'!$F$5*$E$80/100,"AVERAGE","POOR")))) -> POOR
A71: =Data_Sheet!A71 -> JEC16EC099 | B71: =Data_Sheet!B71 -> VISHNU K | C71: ='T3'!I71 -> 0 | D71: =IF(C71="A","ABSENT",IF(C71>='T3'!$F$5*$E$82/100,"EXCELLENT",IF(C71>='T3'!$F$5*$E$81/100,"GOOD",IF(C71>='T3'!$F$5*$E$80/100,"AVERAGE","POOR")))) -> POOR
A72: =Data_Sheet!A72 -> JEC16EC100 | B72: =Data_Sheet!B72 -> VISHNU PRAKASH | C72: ='T3'!I72 -> 0 | D72: =IF(C72="A","ABSENT",IF(C72>='T3'!$F$5*$E$82/100,"EXCELLENT",IF(C72>='T3'!$F$5*$E$81/100,"GOOD",IF(C72>='T3'!$F$5*$E$80/100,"AVERAGE","POOR")))) -> POOR
A73: =Data_Sheet!A73 -> JEC16EC101 | B73: =Data_Sheet!B73 -> VISHNU V | C73: ='T3'!I73 -> 0 | D73: =IF(C73="A","ABSENT",IF(C73>='T3'!$F$5*$E$82/100,"EXCELLENT",IF(C73>='T3'!$F$5*$E$81/100,"GOOD",IF(C73>='T3'!$F$5*$E$80/100,"AVERAGE","POOR")))) -> POOR
A74: =Data_Sheet!A74 -> LJEC16EC102 | B74: =Data_Sheet!B74 -> CHRISTEENA PAULSON | C74: ='T3'!I74 -> 0 | D74: =IF(C74="A","ABSENT",IF(C74>='T3'!$F$5*$E$82/100,"EXCELLENT",IF(C74>='T3'!$F$5*$E$81/100,"GOOD",IF(C74>='T3'!$F$5*$E$80/100,"AVERAGE","POOR")))) -> POOR
A76: Total Number of Students | C76: =Data_Sheet!$C$6 -> 50
A77: Number of Students Absent | C77: =IF(COUNTIF(C25:INDIRECT(C89),"=A"),COUNTIF(C25:INDIRECT(C89),"=A"),0) -> 0
A78: Total Number of Students attended | C78: =C76-C77 -> 50
A79: ="Number of Students with Marks less than "&E80&"%" -> Number of Students with Marks less than 45% | C79: =IF(COUNTIF(D25:INDIRECT(D89),"=POOR"),COUNTIF(D25:INDIRECT(D89),"=POOR"),0) -> 50 | D79: POOR | E79: Range
A80: ="Number of Students with Marks betweeen "&E80&"% to "&E81&"%" -> Number of Students with Marks betweeen 45% to 60% | C80: =IF(COUNTIF(D25:INDIRECT(D89),"=AVERAGE"),COUNTIF(D25:INDIRECT(D89),"=AVERAGE"),0) -> 0 | D80: AVERAGE | E80: 45
A81: ="Number of Students with Marks betweeen "&E81&"% to "&E82&"%" -> Number of Students with Marks betweeen 60% to 80% | C81: =IF(COUNTIF(D25:INDIRECT(D89),"=GOOD"),COUNTIF(D25:INDIRECT(D89),"=GOOD"),0) -> 0 | D81: GOOD | E81: 60
A82: ="Number of Students with Marks greater than "&E82&"%" -> Number of Students with Marks greater than 80% | C82: =IF(COUNTIF(D25:INDIRECT(D89),"=EXCELLENT"),COUNTIF(D25:INDIRECT(D89),"=EXCELLENT"),0) -> 0 | D82: EXCELLENT | E82: 80
A83: Class Average | C83: =ROUND(AVERAGE(C25:INDIRECT(C89)),2) -> 0
A84: Pass Percentage | C84: =ROUND(((C78-C79)/C78)*100,2) -> 0
B86: =Data_Sheet!B10 -> Name of Faculty : | C86: =Data_Sheet!B11 -> PONMANI RAJA M
B87: =Data_Sheet!B94 -> Dated Signature :
A89: =ROW(A76)-2 -> 74 | B89: Last Row Count | C89: ="$C$"&$A$89 -> $C$74 | D89: ="$D$"&$A$89 -> $D$74

Sheet A1
C1: Date :
C2: 2019-09-26
A3: Add questions one by one as needed.. | C3: Assessment Category | G3: CO1 | H3: First Internal Exam
C4: Assignment - 1 | G4: CO2 | H4: Second Internal Exam
C5: Total Marks : | E5: 10 | G5: CO3 | H5: Assessment Exam - 1
G6: CO4 | H6: Assessment Exam - 2
A7: =Data_Sheet!A2 -> Jyothi Engineering College, Cheruthuruthy | G7: CO5 | H7: Assignment - 1
G8: CO6 | H8: Assignment - 2
A9: =Data_Sheet!A4 -> Department of Electrical & Electronics Engineering | H9: Retest
G10: 1
A11: ="CO Analysis - Internal Marks : "&C4 &" " &TEXT(C2,"dd-mm-yy") -> CO Analysis - Internal Marks : Assignment - 1 26-09-19 | G11: 2
G12: 3
A13: =Data_Sheet!A17 -> S7 EC EC407 Computer Communication 2019-20 | G13: 4
G14: 5
G15: 6
A18: Register No. | B18: Name of Student | C18: Qn. No. | D18: 1 | E18: 2 | F18: ="Total Marks (" &E5 & ")" -> Total Marks (10) | I18: Calculated Total Marks (10)
C19: CO's | D19: CO4 | E19: CO4
C20: Blooms Taxonomy Lavel | D20: 2 | E20: 2
C21: Max. Marks | D21: 5 | E21: 5
C22: Difficulty Level in % | D22: 60 | E22: 60
A24: Column1 | B24: Column2 | C24: Column3 | D24: Column4 | E24: Column5 | F24: Column32
A25: =Data_Sheet!A25 -> JEC16EC051 | B25: =Data_Sheet!B25 -> LANA KOLLATH | D25: 5 | E25: 5 | F25: 10
A26: =Data_Sheet!A26 -> JEC16EC052 | B26: =Data_Sheet!B26 -> MANU JENSON | D26: 4 | E26: 4 | F26: 8
A27: =Data_Sheet!A27 -> JEC16EC053 | B27: =Data_Sheet!B27 -> MAREENA MARIYA ABRAHAM | D27: 5 | E27: 5 | F27: 10
A28: =Data_Sheet!A28 -> JEC16EC054 | B28: =Data_Sheet!B28 -> MARIAN DAVIS KATTUKARAN | D28: 4 | E28: 5 | F28: 9
A29: =Data_Sheet!A29 -> JEC16EC055 | B29: =Data_Sheet!B29 -> MARY JEETHU A J | D29: 4 | E29: 5 | F29: 9
A30: =Data_Sheet!A30 -> JEC16EC056 | B30: =Data_Sheet!B30 -> MUBASHIRA K M | D30: 5 | E30: 5 | F30: 10
A31: =Data_Sheet!A31 -> JEC16EC057 | B31: =Data_Sheet!B31 -> MUHAMMED ARSHAD | D31: 5 | E31: 4 | F31: 9
A32: =Data_Sheet!A32 -> JEC16EC058 | B32: =Data_Sheet!B32 -> NANDANA K | D32: 5 | E32: 5 | F32: 10
A33: =Data_Sheet!A33 -> JEC16EC059 | B33: =Data_Sheet!B33 -> NARAYANAN M B | D33: 4 | E33: 5 | F33: 9
A34: =Data_Sheet!A34 -> JEC16EC061 | B34: =Data_Sheet!B34 -> NIKHIL KJ | D34: 4 | E34: 4 | F34: 8
A35: =Data_Sheet!A35 -> JEC16EC062 | B35: =Data_Sheet!B35 -> NIMISHA M S | D35: 5 | E35: 5 | F35: 10
A36: =Data_Sheet!A36 -> JEC16EC063 | B36: =Data_Sheet!B36 -> NIMISHA TONY | D36: 4 | E36: 5 | F36: 9
A37: =Data_Sheet!A37 -> JEC16EC064 | B37: =Data_Sheet!B37 -> NITHIN | D37: 5 | E37: 5 | F37: 10
A38: =Data_Sheet!A38 -> JEC16EC065 | B38: =Data_Sheet!B38 -> OLIVIA NELSON | D38: 5 | E38: 4 | F38: 9
A39: =Data_Sheet!A39 -> JEC16EC066 | B39: =Data_Sheet!B39 -> PAVITHRA.P | D39: 4 | E39: 5 | F39: 9
A40: =Data_Sheet!A40 -> JEC16EC067 | B40: =Data_Sheet!B40 -> P.DHANYA RAJ | D40: 5 | E40: 5 | F40: 10
A41: =Data_Sheet!A41 -> JEC16EC068 | B41: =Data_Sheet!B41 -> POOJA.P | D41: 4 | E41: 5 | F41: 9
A42: =Data_Sheet!A42 -> JEC16EC069 | B42: =Data_Sheet!B42 -> PRANAV | D42: 4 | E42: 5 | F42: 9
A43: =Data_Sheet!A43 -> JEC16EC070 | B43: =Data_Sheet!B43 -> PRASOBH KP | D43: 5 | E43: 4 | F43: 9
A44: =Data_Sheet!A44 -> JEC16EC071 | B44: =Data_Sheet!B44 -> PRINCE BENNY | D44: 5 | E44: 5 | F44: 10
A45: =Data_Sheet!A45 -> JEC16EC072 | B45: =Data_Sheet!B45 -> PRIYA.K | D45: 5 | E45: 5 | F45: 10
A46: =Data_Sheet!A46 -> JEC16EC073 | B46: =Data_Sheet!B46 -> RADHIKA | D46: 5 | E46: 5 | F46: 10
A47: =Data_Sheet!A47 -> JEC16EC074 | B47: =Data_Sheet!B47 -> RINOSHA.K.R | D47: 5 | E47: 5 | F47: 10
A48: =Data_Sheet!A48 -> JEC16EC075 | B48: =Data_Sheet!B48 -> RIYA ALBERT | D48: 5 | E48: 5 | F48: 10
A49: =Data_Sheet!A49 -> JEC16EC076 | B49: =Data_Sheet!B49 -> RIYA PS | D49: 4 | E49: 5 | F49: 9
A50: =Data_Sheet!A50 -> JEC16EC077 | B50: =Data_Sheet!B50 -> ROSHNI J NAIR | D50: 5 | E50: 5 | F50: 10
A51: =Data_Sheet!A51 -> JEC16EC079 | B51: =Data_Sheet!B51 -> SAFNA M | D51: 4 | E51: 4 | F51: 8
A52: =Data_Sheet!A52 -> JEC16EC080 | B52: =Data_Sheet!B52 -> SAJIN SHAJI | D52: 5 | E52: 5 | F52: 10
A53: =Data_Sheet!A53 -> JEC16EC081 | B53: =Data_Sheet!B53 -> SANDHRA .S | D53: 5 | E53: 4 | F53: 9
A54: =Data_Sheet!A54 -> JEC16EC082 | B54: =Data_Sheet!B54 -> SANGAMITHRA | D54: 4 | E54: 4 | F54: 8
A55: =Data_Sheet!A55 -> JEC16EC083 | B55: =Data_Sheet!B55 -> SARANYA.M.NAIR | D55: 5 | E55: 5 | F55: 10
A56: =Data_Sheet!A56 -> JEC16EC084 | B56: =Data_Sheet!B56 -> SARATHRAJ | D56: 5 | E56: 5 | F56: 10
A57: =Data_Sheet!A57 -> JEC16EC085 | B57: =Data_Sheet!B57 -> SHAHAN FATHIMA K | D57: 4 | E57: 5 | F57: 9
A58: =Data_Sheet!A58 -> JEC16EC086 | B58: =Data_Sheet!B58 -> SHAHLA.P.MOHAMMED | D58: 5 | E58: 5 | F58: 10
A59: =Data_Sheet!A59 -> JEC16EC087 | B59: =Data_Sheet!B59 -> SHAMSEENA T A
A60: =Data_Sheet!A60 -> JEC16EC088 | B60: =Data_Sheet!B60 -> SHARAN SHASHINDRAN A | D60: 5 | E60: 4 | F60: 9
A61: =Data_Sheet!A61 -> JEC16EC089 | B61: =Data_Sheet!B61 -> SIBIN KRISHNA C | D61: 5 | E61: 5 | F61: 10
A62: =Data_Sheet!A62 -> JEC16EC090 | B62: =Data_Sheet!B62 -> SREEJITH VIJAYAKUMAR
A63: =Data_Sheet!A63 -> JEC16EC091 | B63: =Data_Sheet!B63 -> SREELAKSHMI.R | D63: 5 | E63: 5 | F63: 10
A64: =Data_Sheet!A64 -> JEC16EC092 | B64: =Data_Sheet!B64 -> SREERAG K M | D64: 5 | E64: 5 | F64: 10
A65: =Data_Sheet!A65 -> JEC16EC093 | B65: =Data_Sheet!B65 -> SREERAG T K | D65: 5 | E65: 5 | F65: 10
A66: =Data_Sheet!A66 -> JEC16EC094 | B66: =Data_Sheet!B66 -> SREERAG V.V | D66: 4 | E66: 5 | F66: 9
A67: =Data_Sheet!A67 -> JEC16EC095 | B67: =Data_Sheet!B67 -> SRUTHIMOL.N.T
A68: =Data_Sheet!A68 -> JEC16EC096 | B68: =Data_Sheet!B68 -> SRUTHISHA SASI | D68: 5 | E68: 5 | F68: 10
A69: =Data_Sheet!A69 -> JEC16EC097 | B69: =Data_Sheet!B69 -> SUCHITHRA.TS | D69: 5 | E69: 5 | F69: 10
A70: =Data_Sheet!A70 -> JEC16EC098 | B70: =Data_Sheet!B70 -> SWETHA SARA GEORGE | D70: 5 | E70: 5 | F70: 10
A71: =Data_Sheet!A71 -> JEC16EC099 | B71: =Data_Sheet!B71 -> VISHNU K | D71: 4 | E71: 5 | F71: 9
A72: =Data_Sheet!A72 -> JEC16EC100 | B72: =Data_Sheet!B72 -> VISHNU PRAKASH | D72: 5 | E72: 4 | F72: 9
A73: =Data_Sheet!A73 -> JEC16EC101 | B73: =Data_Sheet!B73 -> VISHNU V | D73: 4 | E73: 5 | F73: 9
A74: =Data_Sheet!A74 -> LJEC16EC102 | B74: =Data_Sheet!B74 -> CHRISTEENA PAULSON | D74: 5 | E74: 5 | F74: 10
A76: Total Marks scored for the Question | D76: =IF(D$22<>"",IF(SUM(D25:INDIRECT(D96))>=0,SUM(D25:INDIRECT(D96)),""),"") -> 219 | E76: =IF(E$22<>"",IF(SUM(E25:INDIRECT(E96))>=0,SUM(E25:INDIRECT(E96)),""),"") -> 225
A77: No. of Students who attended the Question | D77: =IF(D$22<>"",IF(COUNT(D25:INDIRECT(D96))>=0,COUNT(D25:INDIRECT(D96)),""),"") -> 47 | E77: =IF(E$22<>"",IF(COUNT(E25:INDIRECT(E96))>=0,COUNT(E25:INDIRECT(E96)),""),"") -> 47
A78: Difficulty Level marks of the Question | D78: =IF(D21*D22/100=0,"",D21*D22/100) -> 3 | E78: 3
A79: No. of Students who scored above the Difficulty Level | D79: =IF(COUNTIF(D25:INDIRECT(D96),">="&D78)=0,"",COUNTIF(D25:INDIRECT(D96),">="&D78)) -> 47 | E79: =IF(COUNTIF(E25:INDIRECT(E96),">="&E78)=0,"",COUNTIF(E25:INDIRECT(E96),">="&E78)) -> 47
A80: % of Students who scored above the Difficulty Level | D80: =IFERROR(ROUND(D79/D77*100,2),"") -> 100 | E80: 100
D81: =IF(D80="",0,IF(D80>=80,3,IF(D80>=70,2,IF(D80>=60,1,0)))) -> 3 | E81: 3 | F81: Marks | J81: T_Marks | K81: S_Marks | L81: Students | M81: Level | N81: Above | O81: Above % | P81: Attainment
B82: =IF(Data_Sheet!A77<>"","Total Attainment level for "&Data_Sheet!A77&" :","") -> Total Attainment level for CO1 : | C82: =IF(Data_Sheet!A77<>"",I82,"") ->  | D82: =IFERROR((IF(ISNUMBER(SEARCH("1", D$19)),D$21,"0")),"0")*D81 -> 0 | E82: =IFERROR((IF(ISNUMBER(SEARCH("1", E$19)),E$21,"0")),"0")*E81 -> 0 | F82: =F99 -> 0 | I82: =IF(F82=0,"",ROUND(SUM(D82:E82)/F82,2)) ->  | J82: =F99 -> 0 | K82: =F106 -> 0 | L82: =F113 -> 0 | M82: =F120 -> 0 | N82: =F127 -> 0 | O82: =IFERROR(ROUND(N82/L82*100,2),"") ->  | P82: =IF(O82="","",IF(O82>=80,3,IF(O82>=70,2,IF(O82>=60,1,0)))) -> 
B83: =IF(Data_Sheet!A78<>"","Total Attainment level for "&Data_Sheet!A78&" :","") -> Total Attainment level for CO2 : | C83: =IF(Data_Sheet!A78<>"",I83,"") ->  | D83: =IFERROR((IF(ISNUMBER(SEARCH("2", D$19)),D$21,"0")),"0")*D81 -> 0 | E83: =IFERROR((IF(ISNUMBER(SEARCH("2", E$19)),E$21,"0")),"0")*E81 -> 0 | F83: =F100 -> 0 | J83: =F100 -> 0 | K83: =F107 -> 0 | L83: =F114 -> 0 | M83: =F121 -> 0 | N83: =F128 -> 0 | O83: =IFERROR(ROUND(N83/L83*100,2),"") ->  | P83: =IF(O83="","",IF(O83>=80,3,IF(O83>=70,2,IF(O83>=60,1,0)))) -> 
B84: =IF(Data_Sheet!A79<>"","Total Attainment level for "&Data_Sheet!A79&" :","") -> Total Attainment level for CO3 : | C84: =IF(Data_Sheet!A79<>"",I84,"") ->  | D84: =IFERROR((IF(ISNUMBER(SEARCH("3", D$19)),D$21,"0")),"0")*D81 -> 0 | E84: =IFERROR((IF(ISNUMBER(SEARCH("3", E$19)),E$21,"0")),"0")*E81 -> 0 | F84: 0 | J84: 0 | K84: 0 | L84: 0 | M84: 0 | N84: 0
B85: =IF(Data_Sheet!A80<>"","Total Attainment level for "&Data_Sheet!A80&" :","") -> Total Attainment level for CO4 : | C85: =IF(Data_Sheet!A80<>"",I85,"") -> 3 | D85: =IFERROR((IF(ISNUMBER(SEARCH("4", D$19)),D$21,"0")),"0")*D81 -> 15 | E85: =IFERROR((IF(ISNUMBER(SEARCH("4", E$19)),E$21,"0")),"0")*E81 -> 15 | F85: 10 | I85: 3 | J85: 10 | K85: 444 | L85: 94 | M85: 6 | N85: 94 | O85: 100 | P85: 3
B86: =IF(Data_Sheet!A81<>"","Total Attainment level for "&Data_Sheet!A81&" :","") -> Total Attainment level for CO5 : | C86: =IF(Data_Sheet!A81<>"",I86,"") ->  | D86: =IFERROR((IF(ISNUMBER(SEARCH("5", D$19)),D$21,"0")),"0")*D81 -> 0 | E86: =IFERROR((IF(ISNUMBER(SEARCH("5", E$19)),E$21,"0")),"0")*E81 -> 0 | F86: 0 | J86: 0 | K86: 0 | L86: 0 | M86: 0 | N86: 0
B87: =IF(Data_Sheet!A82<>"","Total Attainment level for "&Data_Sheet!A82&" :","") -> Total Attainment level for CO6 : | C87: =IF(Data_Sheet!A82<>"",I87,"") ->  | D87: =IFERROR((IF(ISNUMBER(SEARCH("6", D$19)),D$21,"0")),"0")*D81 -> 0 | E87: =IFERROR((IF(ISNUMBER(SEARCH("6", E$19)),E$21,"0")),"0")*E81 -> 0 | F87: 0 | J87: 0 | K87: 0 | L87: 0 | M87: 0 | N87: 0
A89: =Data_Sheet!A85 -> Attainment Level 1: 60% students scoring more than 60% of the Total Marks
A90: =Data_Sheet!A86 -> Attainment Level 2: 70% students scoring more than 60% of the Total Marks
A91: =Data_Sheet!A87 -> Attainment Level 3: 80% students scoring more than 60% of the Total Marks
B93: =Data_Sheet!B10 -> Name of Faculty : | C93: =Data_Sheet!B11 -> PONMANI RAJA M
B94: =Data_Sheet!B94 -> Dated Signature :
B96: Last Row Count | C96: =ROW(A76)-2 -> 74 | D96: =SUBSTITUTE(ADDRESS(1,COLUMN(D1),2),"1","")&$C$96 -> D$74 | E96: ="E"&$C$96 -> E74
C99: CO1 | D99: =IFERROR((IF(ISNUMBER(SEARCH("1", D$19)),D$21,"0")),"0") -> 0 | E99: =IFERROR((IF(ISNUMBER(SEARCH("1", E$19)),E$21,"0")),"0") -> 0 | F99: =IFERROR(SUM($D99:INDIRECT($I99)),"0") -> 0 | I99: =SUBSTITUTE(ADDRESS(1,K99,4),1,"")&ROW($I99) -> E99 | J99: =COUNTIF($D$20:INDIRECT($L99),"*1*") -> 0 | K99: =COLUMN($F$19)-1 -> 5 | L99: =SUBSTITUTE(ADDRESS(1,K99,4),1,"")&ROW($I$19)+1 -> E20 | M99: Total Marks
C100: CO2 | D100: =IFERROR((IF(ISNUMBER(SEARCH("2", D$19)),D$21,"0")),"0") -> 0 | E100: =IFERROR((IF(ISNUMBER(SEARCH("2", E$19)),E$21,"0")),"0") -> 0 | F100: =IFERROR(SUM($D100:INDIRECT($I100)),"0") -> 0 | I100: E100 | J100: =COUNTIF($D$20:INDIRECT($L100),"*2*") -> 0 | K100: =COLUMN($F$19)-1 -> 5 | L100: =SUBSTITUTE(ADDRESS(1,K100,4),1,"")&ROW($I$19)+1 -> E20
C101: CO3 | D101: =IFERROR((IF(ISNUMBER(SEARCH("3", D$19)),D$21,"0")),"0") -> 0 | E101: =IFERROR((IF(ISNUMBER(SEARCH("3", E$19)),E$21,"0")),"0") -> 0 | F101: =IFERROR(SUM($D101:INDIRECT($I101)),"0") -> 0 | I101: E101 | J101: =COUNTIF($D$20:INDIRECT($L101),"*2*") -> 0 | K101: 5 | L101: E20
C102: CO4 | D102: =IFERROR((IF(ISNUMBER(SEARCH("4", D$19)),D$21,"0")),"0") -> 5 | E102: =IFERROR((IF(ISNUMBER(SEARCH("4", E$19)),E$21,"0")),"0") -> 5 | F102: =IFERROR(SUM($D102:INDIRECT($I102)),"0") -> 10 | I102: E102 | J102: =COUNTIF($D$20:INDIRECT($L102),"*2*") -> 0 | K102: 5 | L102: E20
C103: CO5 | D103: =IFERROR((IF(ISNUMBER(SEARCH("5", D$19)),D$21,"0")),"0") -> 0 | E103: =IFERROR((IF(ISNUMBER(SEARCH("5", E$19)),E$21,"0")),"0") -> 0 | F103: =IFERROR(SUM($D103:INDIRECT($I103)),"0") -> 0 | I103: E103 | J103: =COUNTIF($D$20:INDIRECT($L103),"*2*") -> 0 | K103: 5 | L103: E20
C104: CO6 | D104: =IFERROR((IF(ISNUMBER(SEARCH("6", D$19)),D$21,"0")),"0") -> 0 | E104: =IFERROR((IF(ISNUMBER(SEARCH("6", E$19)),E$21,"0")),"0") -> 0 | F104: =IFERROR(SUM($D104:INDIRECT($I104)),"0") -> 0 | I104: E104 | J104: =COUNTIF($D$20:INDIRECT($L104),"*2*") -> 0 | K104: 5 | L104: E20
C106: CO1 | D106: =IFERROR((IF(ISNUMBER(SEARCH("1", D$19)),D$76,"0")),"0") -> 0 | E106: =IFERROR((IF(ISNUMBER(SEARCH("1", E$19)),E$76,"0")),"0") -> 0 | F106: =IFERROR(SUM($D106:INDIRECT($I106)),"0") -> 0 | I106: =SUBSTITUTE(ADDRESS(1,K106,4),1,"")&ROW($I106) -> E106 | J106: =COUNTIF($D$20:INDIRECT($L106),"*1*") -> 0 | K106: =COLUMN($F$19)-1 -> 5 | L106: =SUBSTITUTE(ADDRESS(1,K106,4),1,"")&ROW($I$19)+1 -> E20 | M106: Total Marks Scored
C107: CO2 | D107: =IFERROR((IF(ISNUMBER(SEARCH("2", D$19)),D$76,"0")),"0") -> 0 | E107: =IFERROR((IF(ISNUMBER(SEARCH("2", E$19)),E$76,"0")),"0") -> 0 | F107: =IFERROR(SUM($D107:INDIRECT($I107)),"0") -> 0 | I107: E107 | J107: =COUNTIF($D$20:INDIRECT($L107),"*2*") -> 0 | K107: =COLUMN($F$19)-1 -> 5 | L107: =SUBSTITUTE(ADDRESS(1,K107,4),1,"")&ROW($I$19)+1 -> E20
C108: CO3 | D108: =IFERROR((IF(ISNUMBER(SEARCH("3", D$19)),D$76,"0")),"0") -> 0 | E108: =IFERROR((IF(ISNUMBER(SEARCH("3", E$19)),E$76,"0")),"0") -> 0 | F108: =IFERROR(SUM($D108:INDIRECT($I108)),"0") -> 0 | I108: E108 | J108: =COUNTIF($D$20:INDIRECT($L108),"*2*") -> 0 | K108: 5 | L108: E20
C109: CO4 | D109: =IFERROR((IF(ISNUMBER(SEARCH("4", D$19)),D$76,"0")),"0") -> 219 | E109: =IFERROR((IF(ISNUMBER(SEARCH("4", E$19)),E$76,"0")),"0") -> 225 | F109: =IFERROR(SUM($D109:INDIRECT($I109)),"0") -> 444 | I109: E109 | J109: =COUNTIF($D$20:INDIRECT($L109),"*2*") -> 0 | K109: 5 | L109: E20
C110: CO5 | D110: =IFERROR((IF(ISNUMBER(SEARCH("5", D$19)),D$76,"0")),"0") -> 0 | E110: =IFERROR((IF(ISNUMBER(SEARCH("5", E$19)),E$76,"0")),"0") -> 0 | F110: =IFERROR(SUM($D110:INDIRECT($I110)),"0") -> 0 | I110: E110 | J110: =COUNTIF($D$20:INDIRECT($L110),"*2*") -> 0 | K110: 5 | L110: E20
C111: CO6 | D111: =IFERROR((IF(ISNUMBER(SEARCH("6", D$19)),D$76,"0")),"0") -> 0 | E111: =IFERROR((IF(ISNUMBER(SEARCH("6", E$19)),E$76,"0")),"0") -> 0 | F111: =IFERROR(SUM($D111:INDIRECT($I111)),"0") -> 0 | I111: E111 | J111: =COUNTIF($D$20:INDIRECT($L111),"*2*") -> 0 | K111: 5 | L111: E20
C113: CO1 | D113: =IFERROR((IF(ISNUMBER(SEARCH("1", D$19)),D$77,"0")),"0") -> 0 | E113: =IFERROR((IF(ISNUMBER(SEARCH("1", E$19)),E$77,"0")),"0") -> 0 | F113: =IFERROR(SUM($D113:INDIRECT($I113)),"0") -> 0 | I113: =SUBSTITUTE(ADDRESS(1,K113,4),1,"")&ROW($I113) -> E113 | J113: =COUNTIF($D$20:INDIRECT($L113),"*1*") -> 0 | K113: =COLUMN($F$19)-1 -> 5 | L113: =SUBSTITUTE(ADDRESS(1,K113,4),1,"")&ROW($I$19)+1 -> E20 | M113: No of Studdents Attended
C114: CO2 | D114: =IFERROR((IF(ISNUMBER(SEARCH("2", D$19)),D$77,"0")),"0") -> 0 | E114: =IFERROR((IF(ISNUMBER(SEARCH("2", E$19)),E$77,"0")),"0") -> 0 | F114: =IFERROR(SUM($D114:INDIRECT($I114)),"0") -> 0 | I114: E114 | J114: =COUNTIF($D$20:INDIRECT($L114),"*2*") -> 0 | K114: =COLUMN($F$19)-1 -> 5 | L114: =SUBSTITUTE(ADDRESS(1,K114,4),1,"")&ROW($I$19)+1 -> E20
C115: CO3 | D115: =IFERROR((IF(ISNUMBER(SEARCH("3", D$19)),D$77,"0")),"0") -> 0 | E115: =IFERROR((IF(ISNUMBER(SEARCH("3", E$19)),E$77,"0")),"0") -> 0 | F115: =IFERROR(SUM($D115:INDIRECT($I115)),"0") -> 0 | I115: E115 | J115: =COUNTIF($D$20:INDIRECT($L115),"*2*") -> 0 | K115: 5 | L115: E20
C116: CO4 | D116: =IFERROR((IF(ISNUMBER(SEARCH("4", D$19)),D$77,"0")),"0") -> 47 | E116: =IFERROR((IF(ISNUMBER(SEARCH("4", E$19)),E$77,"0")),"0") -> 47 | F116: =IFERROR(SUM($D116:INDIRECT($I116)),"0") -> 94 | I116: E116 | J116: =COUNTIF($D$20:INDIRECT($L116),"*2*") -> 0 | K116: 5 | L116: E20
C117: CO5 | D117: =IFERROR((IF(ISNUMBER(SEARCH("5", D$19)),D$77,"0")),"0") -> 0 | E117: =IFERROR((IF(ISNUMBER(SEARCH("5", E$19)),E$77,"0")),"0") -> 0 | F117: =IFERROR(SUM($D117:INDIRECT($I117)),"0") -> 0 | I117: E117 | J117: =COUNTIF($D$20:INDIRECT($L117),"*2*") -> 0 | K117: 5 | L117: E20
C118: CO6 | D118: =IFERROR((IF(ISNUMBER(SEARCH("6", D$19)),D$77,"0")),"0") -> 0 | E118: =IFERROR((IF(ISNUMBER(SEARCH("6", E$19)),E$77,"0")),"0") -> 0 | F118: =IFERROR(SUM($D118:INDIRECT($I118)),"0") -> 0 | I118: E118 | J118: =COUNTIF($D$20:INDIRECT($L118),"*2*") -> 0 | K118: 5 | L118: E20
C120: CO1 | D120: =IFERROR((IF(ISNUMBER(SEARCH("1", D$19)),D$78,"0")),"0") -> 0 | E120: =IFERROR((IF(ISNUMBER(SEARCH("1", E$19)),E$78,"0")),"0") -> 0 | F120: =IFERROR(SUM($D120:INDIRECT($I120)),"0") -> 0 | I120: =SUBSTITUTE(ADDRESS(1,K120,4),1,"")&ROW($I120) -> E120 | J120: =COUNTIF($D$20:INDIRECT($L120),"*1*") -> 0 | K120: =COLUMN($F$19)-1 -> 5 | L120: =SUBSTITUTE(ADDRESS(1,K120,4),1,"")&ROW($I$19)+1 -> E20 | M120: Difficulty Level
C121: CO2 | D121: =IFERROR((IF(ISNUMBER(SEARCH("2", D$19)),D$78,"0")),"0") -> 0 | E121: =IFERROR((IF(ISNUMBER(SEARCH("2", E$19)),E$78,"0")),"0") -> 0 | F121: =IFERROR(SUM($D121:INDIRECT($I121)),"0") -> 0 | I121: E121 | J121: =COUNTIF($D$20:INDIRECT($L121),"*2*") -> 0 | K121: =COLUMN($F$19)-1 -> 5 | L121: =SUBSTITUTE(ADDRESS(1,K121,4),1,"")&ROW($I$19)+1 -> E20
C122: CO3 | D122: =IFERROR((IF(ISNUMBER(SEARCH("3", D$19)),D$78,"0")),"0") -> 0 | E122: =IFERROR((IF(ISNUMBER(SEARCH("3", E$19)),E$78,"0")),"0") -> 0 | F122: =IFERROR(SUM($D122:INDIRECT($I122)),"0") -> 0 | I122: E122 | J122: =COUNTIF($D$20:INDIRECT($L122),"*2*") -> 0 | K122: 5 | L122: E20
C123: CO4 | D123: =IFERROR((IF(ISNUMBER(SEARCH("4", D$19)),D$78,"0")),"0") -> 3 | E123: =IFERROR((IF(ISNUMBER(SEARCH("4", E$19)),E$78,"0")),"0") -> 3 | F123: =IFERROR(SUM($D123:INDIRECT($I123)),"0") -> 6 | I123: E123 | J123: =COUNTIF($D$20:INDIRECT($L123),"*2*") -> 0 | K123: 5 | L123: E20
C124: CO5 | D124: =IFERROR((IF(ISNUMBER(SEARCH("5", D$19)),D$78,"0")),"0") -> 0 | E124: =IFERROR((IF(ISNUMBER(SEARCH("5", E$19)),E$78,"0")),"0") -> 0 | F124: =IFERROR(SUM($D124:INDIRECT($I124)),"0") -> 0 | I124: E124 | J124: =COUNTIF($D$20:INDIRECT($L124),"*2*") -> 0 | K124: 5 | L124: E20
C125: CO6 | D125: =IFERROR((IF(ISNUMBER(SEARCH("6", D$19)),D$78,"0")),"0") -> 0 | E125: =IFERROR((IF(ISNUMBER(SEARCH("6", E$19)),E$78,"0")),"0") -> 0 | F125: =IFERROR(SUM($D125:INDIRECT($I125)),"0") -> 0 | I125: E125 | J125: =COUNTIF($D$20:INDIRECT($L125),"*2*") -> 0 | K125: 5 | L125: E20
C127: CO1 | D127: =IFERROR((IF(ISNUMBER(SEARCH("1", D$19)),D$79,"0")),"0") -> 0 | E127: =IFERROR((IF(ISNUMBER(SEARCH("1", E$19)),E$79,"0")),"0") -> 0 | F127: =IFERROR(SUM($D127:INDIRECT($I127)),"0") -> 0 | I127: =SUBSTITUTE(ADDRESS(1,K127,4),1,"")&ROW($I127) -> E127 | J127: =COUNTIF($D$20:INDIRECT($L127),"*1*") -> 0 | K127: =COLUMN($F$19)-1 -> 5 | L127: =SUBSTITUTE(ADDRESS(1,K127,4),1,"")&ROW($I$19)+1 -> E20 | M127: No of Studdents Above Difficulty Level
C128: CO2 | D128: =IFERROR((IF(ISNUMBER(SEARCH("2", D$19)),D$79,"0")),"0") -> 0 | E128: =IFERROR((IF(ISNUMBER(SEARCH("2", E$19)),E$79,"0")),"0") -> 0 | F128: =IFERROR(SUM($D128:INDIRECT($I128)),"0") -> 0 | I128: E128 | J128: =COUNTIF($D$20:INDIRECT($L128),"*2*") -> 0 | K128: =COLUMN($F$19)-1 -> 5 | L128: =SUBSTITUTE(ADDRESS(1,K128,4),1,"")&ROW($I$19)+1 -> E20
C129: CO3 | D129: =IFERROR((IF(ISNUMBER(SEARCH("3", D$19)),D$79,"0")),"0") -> 0 | E129: =IFERROR((IF(ISNUMBER(SEARCH("3", E$19)),E$79,"0")),"0") -> 0 | F129: =IFERROR(SUM($D129:INDIRECT($I129)),"0") -> 0 | I129: E129 | J129: =COUNTIF($D$20:INDIRECT($L129),"*2*") -> 0 | K129: 5 | L129: E20
C130: CO4 | D130: =IFERROR((IF(ISNUMBER(SEARCH("4", D$19)),D$79,"0")),"0") -> 47 | E130: =IFERROR((IF(ISNUMBER(SEARCH("4", E$19)),E$79,"0")),"0") -> 47 | F130: =IFERROR(SUM($D130:INDIRECT($I130)),"0") -> 94 | I130: E130 | J130: =COUNTIF($D$20:INDIRECT($L130),"*2*") -> 0 | K130: 5 | L130: E20
C131: CO5 | D131: =IFERROR((IF(ISNUMBER(SEARCH("5", D$19)),D$79,"0")),"0") -> 0 | E131: =IFERROR((IF(ISNUMBER(SEARCH("5", E$19)),E$79,"0")),"0") -> 0 | F131: =IFERROR(SUM($D131:INDIRECT($I131)),"0") -> 0 | I131: E131 | J131: =COUNTIF($D$20:INDIRECT($L131),"*2*") -> 0 | K131: 5 | L131: E20
C132: CO6 | D132: =IFERROR((IF(ISNUMBER(SEARCH("6", D$19)),D$79,"0")),"0") -> 0 | E132: =IFERROR((IF(ISNUMBER(SEARCH("6", E$19)),E$79,"0")),"0") -> 0 | F132: =IFERROR(SUM($D132:INDIRECT($I132)),"0") -> 0 | I132: E132 | J132: =COUNTIF($D$20:INDIRECT($L132),"*2*") -> 0 | K132: 5 | L132: E20
C134: 1 | D134: =IFERROR((IF(ISNUMBER(SEARCH("1", D$20)),D$21/IF(LEN(D20)=16,6,IF(LEN(D20)=13,5,IF(LEN(D20)=10,4,IF(LEN(D20)=7,3,IF(LEN(D20)=4,2,1))))),"0")),"0") -> 0 | E134: =IFERROR((IF(ISNUMBER(SEARCH("1", E$20)),E$21/IF(LEN(E20)=16,6,IF(LEN(E20)=13,5,IF(LEN(E20)=10,4,IF(LEN(E20)=7,3,IF(LEN(E20)=4,2,1))))),"0")),"0") -> 0 | F134: =IFERROR(SUM($D134:INDIRECT($I134)),"0") -> 0 | I134: =SUBSTITUTE(ADDRESS(1,K134,4),1,"")&ROW($I134) -> E134 | J134: =COUNTIF($D$20:INDIRECT($L134),"1") -> 0 | K134: =COLUMN($F$18)-1 -> 5 | L134: =SUBSTITUTE(ADDRESS(1,K134,4),1,"")&ROW($I$19)+1 -> E20
C135: 2 | D135: =IFERROR((IF(ISNUMBER(SEARCH("2", D$20)),D$21/IF(LEN(D20)=16,6,IF(LEN(D20)=13,5,IF(LEN(D20)=10,4,IF(LEN(D20)=7,3,IF(LEN(D20)=4,2,1))))),"0")),"0") -> 5 | E135: =IFERROR((IF(ISNUMBER(SEARCH("2", E$20)),E$21/IF(LEN(E20)=16,6,IF(LEN(E20)=13,5,IF(LEN(E20)=10,4,IF(LEN(E20)=7,3,IF(LEN(E20)=4,2,1))))),"0")),"0") -> 5 | F135: =IFERROR(SUM($D135:INDIRECT($I135)),"0") -> 10 | I135: =SUBSTITUTE(ADDRESS(1,K135,4),1,"")&ROW($I135) -> E135 | J135: =COUNTIF($D$20:INDIRECT($L135),"2") -> 2 | K135: =COLUMN($F$18)-1 -> 5 | L135: =SUBSTITUTE(ADDRESS(1,K135,4),1,"")&ROW($I$19)+1 -> E20
C136: 3 | D136: =IFERROR((IF(ISNUMBER(SEARCH("3", D$20)),D$21/IF(LEN(D20)=16,6,IF(LEN(D20)=13,5,IF(LEN(D20)=10,4,IF(LEN(D20)=7,3,IF(LEN(D20)=4,2,1))))),"0")),"0") -> 0 | E136: =IFERROR((IF(ISNUMBER(SEARCH("3", E$20)),E$21/IF(LEN(E20)=16,6,IF(LEN(E20)=13,5,IF(LEN(E20)=10,4,IF(LEN(E20)=7,3,IF(LEN(E20)=4,2,1))))),"0")),"0") -> 0 | F136: =IFERROR(SUM($D136:INDIRECT($I136)),"0") -> 0 | I136: E136 | J136: =COUNTIF($D$20:INDIRECT($L136),"3") -> 0 | K136: 5 | L136: E20
C137: 4 | D137: =IFERROR((IF(ISNUMBER(SEARCH("4", D$20)),D$21/IF(LEN(D20)=16,6,IF(LEN(D20)=13,5,IF(LEN(D20)=10,4,IF(LEN(D20)=7,3,IF(LEN(D20)=4,2,1))))),"0")),"0") -> 0 | E137: =IFERROR((IF(ISNUMBER(SEARCH("4", E$20)),E$21/IF(LEN(E20)=16,6,IF(LEN(E20)=13,5,IF(LEN(E20)=10,4,IF(LEN(E20)=7,3,IF(LEN(E20)=4,2,1))))),"0")),"0") -> 0 | F137: =IFERROR(SUM($D137:INDIRECT($I137)),"0") -> 0 | I137: E137 | J137: =COUNTIF($D$20:INDIRECT($L137),"4") -> 0 | K137: 5 | L137: E20
C138: 5 | D138: =IFERROR((IF(ISNUMBER(SEARCH("5", D$20)),D$21/IF(LEN(D20)=16,6,IF(LEN(D20)=13,5,IF(LEN(D20)=10,4,IF(LEN(D20)=7,3,IF(LEN(D20)=4,2,1))))),"0")),"0") -> 0 | E138: =IFERROR((IF(ISNUMBER(SEARCH("5", E$20)),E$21/IF(LEN(E20)=16,6,IF(LEN(E20)=13,5,IF(LEN(E20)=10,4,IF(LEN(E20)=7,3,IF(LEN(E20)=4,2,1))))),"0")),"0") -> 0 | F138: =IFERROR(SUM($D138:INDIRECT($I138)),"0") -> 0 | I138: E138 | J138: =COUNTIF($D$20:INDIRECT($L138),"5") -> 0 | K138: 5 | L138: E20
C139: 6 | D139: =IFERROR((IF(ISNUMBER(SEARCH("6", D$20)),D$21/IF(LEN(D20)=16,6,IF(LEN(D20)=13,5,IF(LEN(D20)=10,4,IF(LEN(D20)=7,3,IF(LEN(D20)=4,2,1))))),"0")),"0") -> 0 | E139: =IFERROR((IF(ISNUMBER(SEARCH("6", E$20)),E$21/IF(LEN(E20)=16,6,IF(LEN(E20)=13,5,IF(LEN(E20)=10,4,IF(LEN(E20)=7,3,IF(LEN(E20)=4,2,1))))),"0")),"0") -> 0 | F139: =IFERROR(SUM($D139:INDIRECT($I139)),"0") -> 0 | I139: E139 | J139: =COUNTIF($D$20:INDIRECT($L139),"6") -> 0 | K139: 5 | L139: E20

Sheet A1_Analysis
A3: =Data_Sheet!A2 -> Jyothi Engineering College, Cheruthuruthy
A5: =Data_Sheet!A4 -> Department of Electrical & Electronics Engineering
A7: ='A1'!A11:F11 -> CO Analysis - Internal Marks : Assignment - 1 26-09-19
A9: =Data_Sheet!A17 -> S7 EC EC407 Computer Communication 2019-20
A22: ='T1'!A18 -> Register No. | B22: ='T1'!B18 -> Name of Student | C22: ='A1'!F18 -> Total Marks (10) | D22: Category
A24: Column1 | B24: Column2 | C24: Column3 | D24: Column4
A25: =Data_Sheet!A25 -> JEC16EC051 | B25: =Data_Sheet!B25 -> LANA KOLLATH | C25: ='A1'!F25 -> 10 | D25: =IF(C25="A","ABSENT",IF(C25>='A1'!$E$5*$E$82/100,"EXCELLENT",IF(C25>='A1'!$E$5*$E$81/100,"GOOD",IF(C25>='A1'!$E$5*$E$80/100,"AVERAGE","POOR")))) -> EXCELLENT
A26: =Data_Sheet!A26 -> JEC16EC052 | B26: =Data_Sheet!B26 -> MANU JENSON | C26: ='A1'!F26 -> 8 | D26: =IF(C26="A","ABSENT",IF(C26>='A1'!$E$5*$E$82/100,"EXCELLENT",IF(C26>='A1'!$E$5*$E$81/100,"GOOD",IF(C26>='A1'!$E$5*$E$80/100,"AVERAGE","POOR")))) -> EXCELLENT
A27: =Data_Sheet!A27 -> JEC16EC053 | B27: =Data_Sheet!B27 -> MAREENA MARIYA ABRAHAM | C27: ='A1'!F27 -> 10 | D27: =IF(C27="A","ABSENT",IF(C27>='A1'!$E$5*$E$82/100,"EXCELLENT",IF(C27>='A1'!$E$5*$E$81/100,"GOOD",IF(C27>='A1'!$E$5*$E$80/100,"AVERAGE","POOR")))) -> EXCELLENT
A28: =Data_Sheet!A28 -> JEC16EC054 | B28: =Data_Sheet!B28 -> MARIAN DAVIS KATTUKARAN | C28: ='A1'!F28 -> 9 | D28: =IF(C28="A","ABSENT",IF(C28>='A1'!$E$5*$E$82/100,"EXCELLENT",IF(C28>='A1'!$E$5*$E$81/100,"GOOD",IF(C28>='A1'!$E$5*$E$80/100,"AVERAGE","POOR")))) -> EXCELLENT
A29: =Data_Sheet!A29 -> JEC16EC055 | B29: =Data_Sheet!B29 -> MARY JEETHU A J | C29: ='A1'!F29 -> 9 | D29: =IF(C29="A","ABSENT",IF(C29>='A1'!$E$5*$E$82/100,"EXCELLENT",IF(C29>='A1'!$E$5*$E$81/100,"GOOD",IF(C29>='A1'!$E$5*$E$80/100,"AVERAGE","POOR")))) -> EXCELLENT
A30: =Data_Sheet!A30 -> JEC16EC056 | B30: =Data_Sheet!B30 -> MUBASHIRA K M | C30: ='A1'!F30 -> 10 | D30: =IF(C30="A","ABSENT",IF(C30>='A1'!$E$5*$E$82/100,"EXCELLENT",IF(C30>='A1'!$E$5*$E$81/100,"GOOD",IF(C30>='A1'!$E$5*$E$80/100,"AVERAGE","POOR")))) -> EXCELLENT
A31: =Data_Sheet!A31 -> JEC16EC057 | B31: =Data_Sheet!B31 -> MUHAMMED ARSHAD | C31: ='A1'!F31 -> 9 | D31: =IF(C31="A","ABSENT",IF(C31>='A1'!$E$5*$E$82/100,"EXCELLENT",IF(C31>='A1'!$E$5*$E$81/100,"GOOD",IF(C31>='A1'!$E$5*$E$80/100,"AVERAGE","POOR")))) -> EXCELLENT
A32: =Data_Sheet!A32 -> JEC16EC058 | B32: =Data_Sheet!B32 -> NANDANA K | C32: ='A1'!F32 -> 10 | D32: =IF(C32="A","ABSENT",IF(C32>='A1'!$E$5*$E$82/100,"EXCELLENT",IF(C32>='A1'!$E$5*$E$81/100,"GOOD",IF(C32>='A1'!$E$5*$E$80/100,"AVERAGE","POOR")))) -> EXCELLENT
A33: =Data_Sheet!A33 -> JEC16EC059 | B33: =Data_Sheet!B33 -> NARAYANAN M B | C33: ='A1'!F33 -> 9 | D33: =IF(C33="A","ABSENT",IF(C33>='A1'!$E$5*$E$82/100,"EXCELLENT",IF(C33>='A1'!$E$5*$E$81/100,"GOOD",IF(C33>='A1'!$E$5*$E$80/100,"AVERAGE","POOR")))) -> EXCELLENT
A34: =Data_Sheet!A34 -> JEC16EC061 | B34: =Data_Sheet!B34 -> NIKHIL KJ | C34: ='A1'!F34 -> 8 | D34: =IF(C34="A","ABSENT",IF(C34>='A1'!$E$5*$E$82/100,"EXCELLENT",IF(C34>='A1'!$E$5*$E$81/100,"GOOD",IF(C34>='A1'!$E$5*$E$80/100,"AVERAGE","POOR")))) -> EXCELLENT
A35: =Data_Sheet!A35 -> JEC16EC062 | B35: =Data_Sheet!B35 -> NIMISHA M S | C35: ='A1'!F35 -> 10 | D35: =IF(C35="A","ABSENT",IF(C35>='A1'!$E$5*$E$82/100,"EXCELLENT",IF(C35>='A1'!$E$5*$E$81/100,"GOOD",IF(C35>='A1'!$E$5*$E$80/100,"AVERAGE","POOR")))) -> EXCELLENT
A36: =Data_Sheet!A36 -> JEC16EC063 | B36: =Data_Sheet!B36 -> NIMISHA TONY | C36: ='A1'!F36 -> 9 | D36: =IF(C36="A","ABSENT",IF(C36>='A1'!$E$5*$E$82/100,"EXCELLENT",IF(C36>='A1'!$E$5*$E$81/100,"GOOD",IF(C36>='A1'!$E$5*$E$80/100,"AVERAGE","POOR")))) -> EXCELLENT
A37: =Data_Sheet!A37 -> JEC16EC064 | B37: =Data_Sheet!B37 -> NITHIN | C37: ='A1'!F37 -> 10 | D37: =IF(C37="A","ABSENT",IF(C37>='A1'!$E$5*$E$82/100,"EXCELLENT",IF(C37>='A1'!$E$5*$E$81/100,"GOOD",IF(C37>='A1'!$E$5*$E$80/100,"AVERAGE","POOR")))) -> EXCELLENT
A38: =Data_Sheet!A38 -> JEC16EC065 | B38: =Data_Sheet!B38 -> OLIVIA NELSON | C38: ='A1'!F38 -> 9 | D38: =IF(C38="A","ABSENT",IF(C38>='A1'!$E$5*$E$82/100,"EXCELLENT",IF(C38>='A1'!$E$5*$E$81/100,"GOOD",IF(C38>='A1'!$E$5*$E$80/100,"AVERAGE","POOR")))) -> EXCELLENT
A39: =Data_Sheet!A39 -> JEC16EC066 | B39: =Data_Sheet!B39 -> PAVITHRA.P | C39: ='A1'!F39 -> 9 | D39: =IF(C39="A","ABSENT",IF(C39>='A1'!$E$5*$E$82/100,"EXCELLENT",IF(C39>='A1'!$E$5*$E$81/100,"GOOD",IF(C39>='A1'!$E$5*$E$80/100,"AVERAGE","POOR")))) -> EXCELLENT
A40: =Data_Sheet!A40 -> JEC16EC067 | B40: =Data_Sheet!B40 -> P.DHANYA RAJ | C40: ='A1'!F40 -> 10 | D40: =IF(C40="A","ABSENT",IF(C40>='A1'!$E$5*$E$82/100,"EXCELLENT",IF(C40>='A1'!$E$5*$E$81/100,"GOOD",IF(C40>='A1'!$E$5*$E$80/100,"AVERAGE","POOR")))) -> EXCELLENT
A41: =Data_Sheet!A41 -> JEC16EC068 | B41: =Data_Sheet!B41 -> POOJA.P | C41: ='A1'!F41 -> 9 | D41: =IF(C41="A","ABSENT",IF(C41>='A1'!$E$5*$E$82/100,"EXCELLENT",IF(C41>='A1'!$E$5*$E$81/100,"GOOD",IF(C41>='A1'!$E$5*$E$80/100,"AVERAGE","POOR")))) -> EXCELLENT
A42: =Data_Sheet!A42 -> JEC16EC069 | B42: =Data_Sheet!B42 -> PRANAV | C42: ='A1'!F42 -> 9 | D42: =IF(C42="A","ABSENT",IF(C42>='A1'!$E$5*$E$82/100,"EXCELLENT",IF(C42>='A1'!$E$5*$E$81/100,"GOOD",IF(C42>='A1'!$E$5*$E$80/100,"AVERAGE","POOR")))) -> EXCELLENT
A43: =Data_Sheet!A43 -> JEC16EC070 | B43: =Data_Sheet!B43 -> PRASOBH KP | C43: ='A1'!F43 -> 9 | D43: =IF(C43="A","ABSENT",IF(C43>='A1'!$E$5*$E$82/100,"EXCELLENT",IF(C43>='A1'!$E$5*$E$81/100,"GOOD",IF(C43>='A1'!$E$5*$E$80/100,"AVERAGE","POOR")))) -> EXCELLENT
A44: =Data_Sheet!A44 -> JEC16EC071 | B44: =Data_Sheet!B44 -> PRINCE BENNY | C44: ='A1'!F44 -> 10 | D44: =IF(C44="A","ABSENT",IF(C44>='A1'!$E$5*$E$82/100,"EXCELLENT",IF(C44>='A1'!$E$5*$E$81/100,"GOOD",IF(C44>='A1'!$E$5*$E$80/100,"AVERAGE","POOR")))) -> EXCELLENT
A45: =Data_Sheet!A45 -> JEC16EC072 | B45: =Data_Sheet!B45 -> PRIYA.K | C45: ='A1'!F45 -> 10 | D45: =IF(C45="A","ABSENT",IF(C45>='A1'!$E$5*$E$82/100,"EXCELLENT",IF(C45>='A1'!$E$5*$E$81/100,"GOOD",IF(C45>='A1'!$E$5*$E$80/100,"AVERAGE","POOR")))) -> EXCELLENT
A46: =Data_Sheet!A46 -> JEC16EC073 | B46: =Data_Sheet!B46 -> RADHIKA | C46: ='A1'!F46 -> 10 | D46: =IF(C46="A","ABSENT",IF(C46>='A1'!$E$5*$E$82/100,"EXCELLENT",IF(C46>='A1'!$E$5*$E$81/100,"GOOD",IF(C46>='A1'!$E$5*$E$80/100,"AVERAGE","POOR")))) -> EXCELLENT
A47: =Data_Sheet!A47 -> JEC16EC074 | B47: =Data_Sheet!B47 -> RINOSHA.K.R | C47: ='A1'!F47 -> 10 | D47: =IF(C47="A","ABSENT",IF(C47>='A1'!$E$5*$E$82/100,"EXCELLENT",IF(C47>='A1'!$E$5*$E$81/100,"GOOD",IF(C47>='A1'!$E$5*$E$80/100,"AVERAGE","POOR")))) -> EXCELLENT
A48: =Data_Sheet!A48 -> JEC16EC075 | B48: =Data_Sheet!B48 -> RIYA ALBERT | C48: ='A1'!F48 -> 10 | D48: =IF(C48="A","ABSENT",IF(C48>='A1'!$E$5*$E$82/100,"EXCELLENT",IF(C48>='A1'!$E$5*$E$81/100,"GOOD",IF(C48>='A1'!$E$5*$E$80/100,"AVERAGE","POOR")))) -> EXCELLENT
A49: =Data_Sheet!A49 -> JEC16EC076 | B49: =Data_Sheet!B49 -> RIYA PS | C49: ='A1'!F49 -> 9 | D49: =IF(C49="A","ABSENT",IF(C49>='A1'!$E$5*$E$82/100,"EXCELLENT",IF(C49>='A1'!$E$5*$E$81/100,"GOOD",IF(C49>='A1'!$E$5*$E$80/100,"AVERAGE","POOR")))) -> EXCELLENT
A50: =Data_Sheet!A50 -> JEC16EC077 | B50: =Data_Sheet!B50 -> ROSHNI J NAIR | C50: ='A1'!F50 -> 10 | D50: =IF(C50="A","ABSENT",IF(C50>='A1'!$E$5*$E$82/100,"EXCELLENT",IF(C50>='A1'!$E$5*$E$81/100,"GOOD",IF(C50>='A1'!$E$5*$E$80/100,"AVERAGE","POOR")))) -> EXCELLENT
A51: =Data_Sheet!A51 -> JEC16EC079 | B51: =Data_Sheet!B51 -> SAFNA M | C51: ='A1'!F51 -> 8 | D51: =IF(C51="A","ABSENT",IF(C51>='A1'!$E$5*$E$82/100,"EXCELLENT",IF(C51>='A1'!$E$5*$E$81/100,"GOOD",IF(C51>='A1'!$E$5*$E$80/100,"AVERAGE","POOR")))) -> EXCELLENT
A52: =Data_Sheet!A52 -> JEC16EC080 | B52: =Data_Sheet!B52 -> SAJIN SHAJI | C52: ='A1'!F52 -> 10 | D52: =IF(C52="A","ABSENT",IF(C52>='A1'!$E$5*$E$82/100,"EXCELLENT",IF(C52>='A1'!$E$5*$E$81/100,"GOOD",IF(C52>='A1'!$E$5*$E$80/100,"AVERAGE","POOR")))) -> EXCELLENT
A53: =Data_Sheet!A53 -> JEC16EC081 | B53: =Data_Sheet!B53 -> SANDHRA .S | C53: ='A1'!F53 -> 9 | D53: =IF(C53="A","ABSENT",IF(C53>='A1'!$E$5*$E$82/100,"EXCELLENT",IF(C53>='A1'!$E$5*$E$81/100,"GOOD",IF(C53>='A1'!$E$5*$E$80/100,"AVERAGE","POOR")))) -> EXCELLENT
A54: =Data_Sheet!A54 -> JEC16EC082 | B54: =Data_Sheet!B54 -> SANGAMITHRA | C54: ='A1'!F54 -> 8 | D54: =IF(C54="A","ABSENT",IF(C54>='A1'!$E$5*$E$82/100,"EXCELLENT",IF(C54>='A1'!$E$5*$E$81/100,"GOOD",IF(C54>='A1'!$E$5*$E$80/100,"AVERAGE","POOR")))) -> EXCELLENT
A55: =Data_Sheet!A55 -> JEC16EC083 | B55: =Data_Sheet!B55 -> SARANYA.M.NAIR | C55: ='A1'!F55 -> 10 | D55: =IF(C55="A","ABSENT",IF(C55>='A1'!$E$5*$E$82/100,"EXCELLENT",IF(C55>='A1'!$E$5*$E$81/100,"GOOD",IF(C55>='A1'!$E$5*$E$80/100,"AVERAGE","POOR")))) -> EXCELLENT
A56: =Data_Sheet!A56 -> JEC16EC084 | B56: =Data_Sheet!B56 -> SARATHRAJ | C56: ='A1'!F56 -> 10 | D56: =IF(C56="A","ABSENT",IF(C56>='A1'!$E$5*$E$82/100,"EXCELLENT",IF(C56>='A1'!$E$5*$E$81/100,"GOOD",IF(C56>='A1'!$E$5*$E$80/100,"AVERAGE","POOR")))) -> EXCELLENT
A57: =Data_Sheet!A57 -> JEC16EC085 | B57: =Data_Sheet!B57 -> SHAHAN FATHIMA K | C57: ='A1'!F57 -> 9 | D57: =IF(C57="A","ABSENT",IF(C57>='A1'!$E$5*$E$82/100,"EXCELLENT",IF(C57>='A1'!$E$5*$E$81/100,"GOOD",IF(C57>='A1'!$E$5*$E$80/100,"AVERAGE","POOR")))) -> EXCELLENT
A58: =Data_Sheet!A58 -> JEC16EC086 | B58: =Data_Sheet!B58 -> SHAHLA.P.MOHAMMED | C58: ='A1'!F58 -> 10 | D58: =IF(C58="A","ABSENT",IF(C58>='A1'!$E$5*$E$82/100,"EXCELLENT",IF(C58>='A1'!$E$5*$E$81/100,"GOOD",IF(C58>='A1'!$E$5*$E$80/100,"AVERAGE","POOR")))) -> EXCELLENT
A59: =Data_Sheet!A59 -> JEC16EC087 | B59: =Data_Sheet!B59 -> SHAMSEENA T A | C59: ='A1'!F59 -> 0 | D59: =IF(C59="A","ABSENT",IF(C59>='A1'!$E$5*$E$82/100,"EXCELLENT",IF(C59>='A1'!$E$5*$E$81/100,"GOOD",IF(C59>='A1'!$E$5*$E$80/100,"AVERAGE","POOR")))) -> POOR
A60: =Data_Sheet!A60 -> JEC16EC088 | B60: =Data_Sheet!B60 -> SHARAN SHASHINDRAN A | C60: ='A1'!F60 -> 9 | D60: =IF(C60="A","ABSENT",IF(C60>='A1'!$E$5*$E$82/100,"EXCELLENT",IF(C60>='A1'!$E$5*$E$81/100,"GOOD",IF(C60>='A1'!$E$5*$E$80/100,"AVERAGE","POOR")))) -> EXCELLENT
A61: =Data_Sheet!A61 -> JEC16EC089 | B61: =Data_Sheet!B61 -> SIBIN KRISHNA C | C61: ='A1'!F61 -> 10 | D61: =IF(C61="A","ABSENT",IF(C61>='A1'!$E$5*$E$82/100,"EXCELLENT",IF(C61>='A1'!$E$5*$E$81/100,"GOOD",IF(C61>='A1'!$E$5*$E$80/100,"AVERAGE","POOR")))) -> EXCELLENT
A62: =Data_Sheet!A62 -> JEC16EC090 | B62: =Data_Sheet!B62 -> SREEJITH VIJAYAKUMAR | C62: ='A1'!F62 -> 0 | D62: =IF(C62="A","ABSENT",IF(C62>='A1'!$E$5*$E$82/100,"EXCELLENT",IF(C62>='A1'!$E$5*$E$81/100,"GOOD",IF(C62>='A1'!$E$5*$E$80/100,"AVERAGE","POOR")))) -> POOR
A63: =Data_Sheet!A63 -> JEC16EC091 | B63: =Data_Sheet!B63 -> SREELAKSHMI.R | C63: ='A1'!F63 -> 10 | D63: =IF(C63="A","ABSENT",IF(C63>='A1'!$E$5*$E$82/100,"EXCELLENT",IF(C63>='A1'!$E$5*$E$81/100,"GOOD",IF(C63>='A1'!$E$5*$E$80/100,"AVERAGE","POOR")))) -> EXCELLENT
A64: =Data_Sheet!A64 -> JEC16EC092 | B64: =Data_Sheet!B64 -> SREERAG K M | C64: ='A1'!F64 -> 10 | D64: =IF(C64="A","ABSENT",IF(C64>='A1'!$E$5*$E$82/100,"EXCELLENT",IF(C64>='A1'!$E$5*$E$81/100,"GOOD",IF(C64>='A1'!$E$5*$E$80/100,"AVERAGE","POOR")))) -> EXCELLENT
A65: =Data_Sheet!A65 -> JEC16EC093 | B65: =Data_Sheet!B65 -> SREERAG T K | C65: ='A1'!F65 -> 10 | D65: =IF(C65="A","ABSENT",IF(C65>='A1'!$E$5*$E$82/100,"EXCELLENT",IF(C65>='A1'!$E$5*$E$81/100,"GOOD",IF(C65>='A1'!$E$5*$E$80/100,"AVERAGE","POOR")))) -> EXCELLENT
A66: =Data_Sheet!A66 -> JEC16EC094 | B66: =Data_Sheet!B66 -> SREERAG V.V | C66: ='A1'!F66 -> 9 | D66: =IF(C66="A","ABSENT",IF(C66>='A1'!$E$5*$E$82/100,"EXCELLENT",IF(C66>='A1'!$E$5*$E$81/100,"GOOD",IF(C66>='A1'!$E$5*$E$80/100,"AVERAGE","POOR")))) -> EXCELLENT
A67: =Data_Sheet!A67 -> JEC16EC095 | B67: =Data_Sheet!B67 -> SRUTHIMOL.N.T | C67: ='A1'!F67 -> 0 | D67: =IF(C67="A","ABSENT",IF(C67>='A1'!$E$5*$E$82/100,"EXCELLENT",IF(C67>='A1'!$E$5*$E$81/100,"GOOD",IF(C67>='A1'!$E$5*$E$80/100,"AVERAGE","POOR")))) -> POOR
A68: =Data_Sheet!A68 -> JEC16EC096 | B68: =Data_Sheet!B68 -> SRUTHISHA SASI | C68: ='A1'!F68 -> 10 | D68: =IF(C68="A","ABSENT",IF(C68>='A1'!$E$5*$E$82/100,"EXCELLENT",IF(C68>='A1'!$E$5*$E$81/100,"GOOD",IF(C68>='A1'!$E$5*$E$80/100,"AVERAGE","POOR")))) -> EXCELLENT
A69: =Data_Sheet!A69 -> JEC16EC097 | B69: =Data_Sheet!B69 -> SUCHITHRA.TS | C69: ='A1'!F69 -> 10 | D69: =IF(C69="A","ABSENT",IF(C69>='A1'!$E$5*$E$82/100,"EXCELLENT",IF(C69>='A1'!$E$5*$E$81/100,"GOOD",IF(C69>='A1'!$E$5*$E$80/100,"AVERAGE","POOR")))) -> EXCELLENT
A70: =Data_Sheet!A70 -> JEC16EC098 | B70: =Data_Sheet!B70 -> SWETHA SARA GEORGE | C70: ='A1'!F70 -> 10 | D70: =IF(C70="A","ABSENT",IF(C70>='A1'!$E$5*$E$82/100,"EXCELLENT",IF(C70>='A1'!$E$5*$E$81/100,"GOOD",IF(C70>='A1'!$E$5*$E$80/100,"AVERAGE","POOR")))) -> EXCELLENT
A71: =Data_Sheet!A71 -> JEC16EC099 | B71: =Data_Sheet!B71 -> VISHNU K | C71: ='A1'!F71 -> 9 | D71: =IF(C71="A","ABSENT",IF(C71>='A1'!$E$5*$E$82/100,"EXCELLENT",IF(C71>='A1'!$E$5*$E$81/100,"GOOD",IF(C71>='A1'!$E$5*$E$80/100,"AVERAGE","POOR")))) -> EXCELLENT
A72: =Data_Sheet!A72 -> JEC16EC100 | B72: =Data_Sheet!B72 -> VISHNU PRAKASH | C72: ='A1'!F72 -> 9 | D72: =IF(C72="A","ABSENT",IF(C72>='A1'!$E$5*$E$82/100,"EXCELLENT",IF(C72>='A1'!$E$5*$E$81/100,"GOOD",IF(C72>='A1'!$E$5*$E$80/100,"AVERAGE","POOR")))) -> EXCELLENT
A73: =Data_Sheet!A73 -> JEC16EC101 | B73: =Data_Sheet!B73 -> VISHNU V | C73: ='A1'!F73 -> 9 | D73: =IF(C73="A","ABSENT",IF(C73>='A1'!$E$5*$E$82/100,"EXCELLENT",IF(C73>='A1'!$E$5*$E$81/100,"GOOD",IF(C73>='A1'!$E$5*$E$80/100,"AVERAGE","POOR")))) -> EXCELLENT
A74: =Data_Sheet!A74 -> LJEC16EC102 | B74: =Data_Sheet!B74 -> CHRISTEENA PAULSON | C74: ='A1'!F74 -> 10 | D74: =IF(C74="A","ABSENT",IF(C74>='A1'!$E$5*$E$82/100,"EXCELLENT",IF(C74>='A1'!$E$5*$E$81/100,"GOOD",IF(C74>='A1'!$E$5*$E$80/100,"AVERAGE","POOR")))) -> EXCELLENT
A76: Total Number of Students | C76: =Data_Sheet!$C$6 -> 50
A77: Number of Students Absent | C77: =IF(COUNTIF(C25:INDIRECT(C89),"=A"),COUNTIF(C25:INDIRECT(C89),"=A"),0) -> 0
A78: Total Number of Students attended | C78: =C76-C77 -> 50
A79: ="Number of Students with Marks less than "&E80&"%" -> Number of Students with Marks less than 45% | C79: =IF(COUNTIF(D25:INDIRECT(D89),"=POOR"),COUNTIF(D25:INDIRECT(D89),"=POOR"),0) -> 3 | D79: POOR | E79: Range
A80: ="Number of Students with Marks betweeen "&E80&"% to "&E81&"%" -> Number of Students with Marks betweeen 45% to 60% | C80: =IF(COUNTIF(D25:INDIRECT(D89),"=AVERAGE"),COUNTIF(D25:INDIRECT(D89),"=AVERAGE"),0) -> 0 | D80: AVERAGE | E80: 45
A81: ="Number of Students with Marks betweeen "&E81&"% to "&E82&"%" -> Number of Students with Marks betweeen 60% to 80% | C81: =IF(COUNTIF(D25:INDIRECT(D89),"=GOOD"),COUNTIF(D25:INDIRECT(D89),"=GOOD"),0) -> 0 | D81: GOOD | E81: 60
A82: ="Number of Students with Marks greater than "&E82&"%" -> Number of Students with Marks greater than 80% | C82: =IF(COUNTIF(D25:INDIRECT(D89),"=EXCELLENT"),COUNTIF(D25:INDIRECT(D89),"=EXCELLENT"),0) -> 47 | D82: EXCELLENT | E82: 80
A83: Class Average | C83: =ROUND(AVERAGE(C25:INDIRECT(C89)),2) -> 8.88
A84: Pass Percentage | C84: =ROUND(((C78-C79)/C78)*100,2) -> 94
B86: =Data_Sheet!B10 -> Name of Faculty : | C86: =Data_Sheet!B11 -> PONMANI RAJA M
B87: =Data_Sheet!B94 -> Dated Signature :
A89: =ROW(A76)-2 -> 74 | B89: Last Row Count | C89: ="$C$"&$A$89 -> $C$74 | D89: ="$D$"&$A$89 -> $D$74

Sheet A2
C1: Date :
C2: 2018-03-21
A3: Add questions one by one as needed.. | C3: Assessment Category | G3: CO1 | H3: First Internal Exam
C4: Assignment - 2 | G4: CO2 | H4: Second Internal Exam
C5: Total Marks : | E5: 10 | G5: CO3 | H5: Assessment Exam - 1
G6: CO4 | H6: Assessment Exam - 2
A7: =Data_Sheet!A2 -> Jyothi Engineering College, Cheruthuruthy | G7: CO5 | H7: Assignment - 1
G8: CO6 | H8: Assignment - 2
A9: =Data_Sheet!A4 -> Department of Electrical & Electronics Engineering | H9: Retest
G10: 1
A11: ="CO Analysis - Internal Marks : "&C4 &" " &TEXT(C2,"dd-mm-yy") -> CO Analysis - Internal Marks : Assignment - 2 21-03-18 | G11: 2
G12: 3
A13: =Data_Sheet!A17 -> S7 EC EC407 Computer Communication 2019-20 | G13: 4
G14: 5
G15: 6
A18: Register No. | B18: Name of Student | C18: Qn. No. | D18: 1 | E18: 2 | F18: ="Total Marks (" &E5 & ")" -> Total Marks (10) | I18: Calculated Total Marks (10)
C19: CO's | D19: CO1, CO6 | E19: CO2, CO1
C20: Blooms Taxonomy Lavel | D20: 4, 5 | E20: 5, 6
C21: Max. Marks | D21: 5 | E21: 5
C22: Difficulty Level in % | D22: 60 | E22: 60
A24: Column1 | B24: Column2 | C24: Column3 | D24: Column4 | E24: Column5 | F24: Column32
A25: =Data_Sheet!A25 -> JEC16EC051 | B25: =Data_Sheet!B25 -> LANA KOLLATH | D25: 5 | E25: 5 | F25: 10
A26: =Data_Sheet!A26 -> JEC16EC052 | B26: =Data_Sheet!B26 -> MANU JENSON | D26: 5 | E26: 5 | F26: 10
A27: =Data_Sheet!A27 -> JEC16EC053 | B27: =Data_Sheet!B27 -> MAREENA MARIYA ABRAHAM | D27: 5 | E27: 5 | F27: 10
A28: =Data_Sheet!A28 -> JEC16EC054 | B28: =Data_Sheet!B28 -> MARIAN DAVIS KATTUKARAN | D28: 5 | E28: 4 | F28: 9
A29: =Data_Sheet!A29 -> JEC16EC055 | B29: =Data_Sheet!B29 -> MARY JEETHU A J | D29: 5 | E29: 5 | F29: 10
A30: =Data_Sheet!A30 -> JEC16EC056 | B30: =Data_Sheet!B30 -> MUBASHIRA K M | D30: 5 | E30: 5 | F30: 10
A31: =Data_Sheet!A31 -> JEC16EC057 | B31: =Data_Sheet!B31 -> MUHAMMED ARSHAD | D31: 5 | E31: 5 | F31: 10
A32: =Data_Sheet!A32 -> JEC16EC058 | B32: =Data_Sheet!B32 -> NANDANA K | D32: 5 | E32: 5 | F32: 10
A33: =Data_Sheet!A33 -> JEC16EC059 | B33: =Data_Sheet!B33 -> NARAYANAN M B | D33: 5 | E33: 4 | F33: 9
A34: =Data_Sheet!A34 -> JEC16EC061 | B34: =Data_Sheet!B34 -> NIKHIL KJ | D34: 4 | E34: 5 | F34: 9
A35: =Data_Sheet!A35 -> JEC16EC062 | B35: =Data_Sheet!B35 -> NIMISHA M S | D35: 5 | E35: 5 | F35: 10
A36: =Data_Sheet!A36 -> JEC16EC063 | B36: =Data_Sheet!B36 -> NIMISHA TONY | D36: 5 | E36: 5 | F36: 10
A37: =Data_Sheet!A37 -> JEC16EC064 | B37: =Data_Sheet!B37 -> NITHIN | D37: 5 | E37: 5 | F37: 10
A38: =Data_Sheet!A38 -> JEC16EC065 | B38: =Data_Sheet!B38 -> OLIVIA NELSON | D38: 5 | E38: 5 | F38: 10
A39: =Data_Sheet!A39 -> JEC16EC066 | B39: =Data_Sheet!B39 -> PAVITHRA.P | D39: 5 | E39: 5 | F39: 10
A40: =Data_Sheet!A40 -> JEC16EC067 | B40: =Data_Sheet!B40 -> P.DHANYA RAJ | D40: 5 | E40: 5 | F40: 10
A41: =Data_Sheet!A41 -> JEC16EC068 | B41: =Data_Sheet!B41 -> POOJA.P | D41: 5 | E41: 5 | F41: 10
A42: =Data_Sheet!A42 -> JEC16EC069 | B42: =Data_Sheet!B42 -> PRANAV | D42: 5 | E42: 5 | F42: 10
A43: =Data_Sheet!A43 -> JEC16EC070 | B43: =Data_Sheet!B43 -> PRASOBH KP | D43: 5 | E43: 4 | F43: 9
A44: =Data_Sheet!A44 -> JEC16EC071 | B44: =Data_Sheet!B44 -> PRINCE BENNY | D44: 4 | E44: 5 | F44: 9
A45: =Data_Sheet!A45 -> JEC16EC072 | B45: =Data_Sheet!B45 -> PRIYA.K | D45: 5 | E45: 5 | F45: 10
A46: =Data_Sheet!A46 -> JEC16EC073 | B46: =Data_Sheet!B46 -> RADHIKA | D46: 5 | E46: 5 | F46: 10
A47: =Data_Sheet!A47 -> JEC16EC074 | B47: =Data_Sheet!B47 -> RINOSHA.K.R | D47: 5 | E47: 5 | F47: 10
A48: =Data_Sheet!A48 -> JEC16EC075 | B48: =Data_Sheet!B48 -> RIYA ALBERT | D48: 5 | E48: 5 | F48: 10
A49: =Data_Sheet!A49 -> JEC16EC076 | B49: =Data_Sheet!B49 -> RIYA PS | D49: 5 | E49: 5 | F49: 10
A50: =Data_Sheet!A50 -> JEC16EC077 | B50: =Data_Sheet!B50 -> ROSHNI J NAIR | D50: 5 | E50: 5 | F50: 10
A51: =Data_Sheet!A51 -> JEC16EC079 | B51: =Data_Sheet!B51 -> SAFNA M | D51: 4 | E51: 5 | F51: 9
A52: =Data_Sheet!A52 -> JEC16EC080 | B52: =Data_Sheet!B52 -> SAJIN SHAJI | D52: 5 | E52: 5 | F52: 10
A53: =Data_Sheet!A53 -> JEC16EC081 | B53: =Data_Sheet!B53 -> SANDHRA .S | D53: 5 | E53: 5 | F53: 10
A54: =Data_Sheet!A54 -> JEC16EC082 | B54: =Data_Sheet!B54 -> SANGAMITHRA | D54: 5 | E54: 5 | F54: 10
A55: =Data_Sheet!A55 -> JEC16EC083 | B55: =Data_Sheet!B55 -> SARANYA.M.NAIR | D55: 5 | E55: 5 | F55: 10
A56: =Data_Sheet!A56 -> JEC16EC084 | B56: =Data_Sheet!B56 -> SARATHRAJ | D56: 5 | E56: 5 | F56: 10
A57: =Data_Sheet!A57 -> JEC16EC085 | B57: =Data_Sheet!B57 -> SHAHAN FATHIMA K | D57: 5 | E57: 5 | F57: 10
A58: =Data_Sheet!A58 -> JEC16EC086 | B58: =Data_Sheet!B58 -> SHAHLA.P.MOHAMMED | D58: 5 | E58: 5 | F58: 10
A59: =Data_Sheet!A59 -> JEC16EC087 | B59: =Data_Sheet!B59 -> SHAMSEENA T A | D59: 0 | E59: 0 | F59: 0
A60: =Data_Sheet!A60 -> JEC16EC088 | B60: =Data_Sheet!B60 -> SHARAN SHASHINDRAN A | D60: 5 | E60: 5 | F60: 10
A61: =Data_Sheet!A61 -> JEC16EC089 | B61: =Data_Sheet!B61 -> SIBIN KRISHNA C | D61: 5 | E61: 4 | F61: 9
A62: =Data_Sheet!A62 -> JEC16EC090 | B62: =Data_Sheet!B62 -> SREEJITH VIJAYAKUMAR | D62: 0 | E62: 0 | F62: 0
A63: =Data_Sheet!A63 -> JEC16EC091 | B63: =Data_Sheet!B63 -> SREELAKSHMI.R | D63: 5 | E63: 5 | F63: 10
A64: =Data_Sheet!A64 -> JEC16EC092 | B64: =Data_Sheet!B64 -> SREERAG K M | D64: 4 | E64: 5 | F64: 9
A65: =Data_Sheet!A65 -> JEC16EC093 | B65: =Data_Sheet!B65 -> SREERAG T K | D65: 0 | E65: 0 | F65: 0
A66: =Data_Sheet!A66 -> JEC16EC094 | B66: =Data_Sheet!B66 -> SREERAG V.V | D66: 5 | E66: 5 | F66: 10
A67: =Data_Sheet!A67 -> JEC16EC095 | B67: =Data_Sheet!B67 -> SRUTHIMOL.N.T | D67: 0 | E67: 0 | F67: 0
A68: =Data_Sheet!A68 -> JEC16EC096 | B68: =Data_Sheet!B68 -> SRUTHISHA SASI | D68: 5 | E68: 5 | F68: 10
A69: =Data_Sheet!A69 -> JEC16EC097 | B69: =Data_Sheet!B69 -> SUCHITHRA.TS | D69: 4 | E69: 5 | F69: 9
A70: =Data_Sheet!A70 -> JEC16EC098 | B70: =Data_Sheet!B70 -> SWETHA SARA GEORGE | D70: 5 | E70: 5 | F70: 10
A71: =Data_Sheet!A71 -> JEC16EC099 | B71: =Data_Sheet!B71 -> VISHNU K | D71: 5 | E71: 5 | F71: 10
A72: =Data_Sheet!A72 -> JEC16EC100 | B72: =Data_Sheet!B72 -> VISHNU PRAKASH | D72: 5 | E72: 4 | F72: 9
A73: =Data_Sheet!A73 -> JEC16EC101 | B73: =Data_Sheet!B73 -> VISHNU V | D73: 5 | E73: 4 | F73: 9
A74: =Data_Sheet!A74 -> LJEC16EC102 | B74: =Data_Sheet!B74 -> CHRISTEENA PAULSON | D74: 4 | E74: 5 | F74: 9
A76: Total Marks scored for the Question | D76: =IF(D$22<>"",IF(SUM(D25:INDIRECT(D96))>=0,SUM(D25:INDIRECT(D96)),""),"") -> 224 | E76: =IF(E$22<>"",IF(SUM(E25:INDIRECT(E96))>=0,SUM(E25:INDIRECT(E96)),""),"") -> 224
A77: No. of Students who attended the Question | D77: =IF(D$22<>"",IF(COUNT(D25:INDIRECT(D96))>=0,COUNT(D25:INDIRECT(D96)),""),"") -> 50 | E77: =IF(E$22<>"",IF(COUNT(E25:INDIRECT(E96))>=0,COUNT(E25:INDIRECT(E96)),""),"") -> 50
A78: Difficulty Level marks of the Question | D78: =IF(D21*D22/100=0,"",D21*D22/100) -> 3 | E78: 3
A79: No. of Students who scored above the Difficulty Level | D79: =IF(COUNTIF(D25:INDIRECT(D96),">="&D78)=0,"",COUNTIF(D25:INDIRECT(D96),">="&D78)) -> 46 | E79: =IF(COUNTIF(E25:INDIRECT(E96),">="&E78)=0,"",COUNTIF(E25:INDIRECT(E96),">="&E78)) -> 46
A80: % of Students who scored above the Difficulty Level | D80: =IFERROR(ROUND(D79/D77*100,2),"") -> 92 | E80: 92
D81: =IF(D80="",0,IF(D80>=80,3,IF(D80>=70,2,IF(D80>=60,1,0)))) -> 3 | E81: 3 | F81: Marks
B82: =IF(Data_Sheet!A77<>"","Total Attainment level for "&Data_Sheet!A77&" :","") -> Total Attainment level for CO1 : | C82: =IF(Data_Sheet!A77<>"",I82,"") -> 3 | D82: =IFERROR((IF(ISNUMBER(SEARCH("1", D$19)),D$21,"0")),"0")*D81 -> 15 | E82: =IFERROR((IF(ISNUMBER(SEARCH("1", E$19)),E$21,"0")),"0")*E81 -> 15 | F82: =F99 -> 10 | I82: =IF(F82=0,"",ROUND(SUM(D82:E82)/F82,2)) -> 3 | J82: T_Marks | K82: S_Marks | L82: Students | M82: Level | N82: Above | O82: Above % | P82: Attainment
B83: =IF(Data_Sheet!A78<>"","Total Attainment level for "&Data_Sheet!A78&" :","") -> Total Attainment level for CO2 : | C83: =IF(Data_Sheet!A78<>"",I83,"") -> 3 | D83: =IFERROR((IF(ISNUMBER(SEARCH("2", D$19)),D$21,"0")),"0")*D81 -> 0 | E83: =IFERROR((IF(ISNUMBER(SEARCH("2", E$19)),E$21,"0")),"0")*E81 -> 15 | F83: =F100 -> 5 | I83: 3 | J83: =F99 -> 10 | K83: =F106 -> 448 | L83: =F113 -> 100 | M83: =F120 -> 6 | N83: =F127 -> 92 | O83: =IFERROR(ROUND(N83/L83*100,2),"") -> 92 | P83: =IF(O83="","",IF(O83>=80,3,IF(O83>=70,2,IF(O83>=60,1,0)))) -> 3
B84: =IF(Data_Sheet!A79<>"","Total Attainment level for "&Data_Sheet!A79&" :","") -> Total Attainment level for CO3 : | C84: =IF(Data_Sheet!A79<>"",I84,"") ->  | D84: =IFERROR((IF(ISNUMBER(SEARCH("3", D$19)),D$21,"0")),"0")*D81 -> 0 | E84: =IFERROR((IF(ISNUMBER(SEARCH("3", E$19)),E$21,"0")),"0")*E81 -> 0 | F84: 0 | J84: =F100 -> 5 | K84: =F107 -> 224 | L84: =F114 -> 50 | M84: =F121 -> 3 | N84: =F128 -> 46 | O84: =IFERROR(ROUND(N84/L84*100,2),"") -> 92 | P84: =IF(O84="","",IF(O84>=80,3,IF(O84>=70,2,IF(O84>=60,1,0)))) -> 3
B85: =IF(Data_Sheet!A80<>"","Total Attainment level for "&Data_Sheet!A80&" :","") -> Total Attainment level for CO4 : | C85: =IF(Data_Sheet!A80<>"",I85,"") ->  | D85: =IFERROR((IF(ISNUMBER(SEARCH("4", D$19)),D$21,"0")),"0")*D81 -> 0 | E85: =IFERROR((IF(ISNUMBER(SEARCH("4", E$19)),E$21,"0")),"0")*E81 -> 0 | F85: 0 | J85: 0 | K85: 0 | L85: 0 | M85: 0 | N85: 0
B86: =IF(Data_Sheet!A81<>"","Total Attainment level for "&Data_Sheet!A81&" :","") -> Total Attainment level for CO5 : | C86: =IF(Data_Sheet!A81<>"",I86,"") ->  | D86: =IFERROR((IF(ISNUMBER(SEARCH("5", D$19)),D$21,"0")),"0")*D81 -> 0 | E86: =IFERROR((IF(ISNUMBER(SEARCH("5", E$19)),E$21,"0")),"0")*E81 -> 0 | F86: 0 | J86: 0 | K86: 0 | L86: 0 | M86: 0 | N86: 0
B87: =IF(Data_Sheet!A82<>"","Total Attainment level for "&Data_Sheet!A82&" :","") -> Total Attainment level for CO6 : | C87: =IF(Data_Sheet!A82<>"",I87,"") -> 3 | D87: =IFERROR((IF(ISNUMBER(SEARCH("6", D$19)),D$21,"0")),"0")*D81 -> 15 | E87: =IFERROR((IF(ISNUMBER(SEARCH("6", E$19)),E$21,"0")),"0")*E81 -> 0 | F87: 5 | I87: 3 | J87: 0 | K87: 0 | L87: 0 | M87: 0 | N87: 0
J88: 5 | K88: 224 | L88: 50 | M88: 3 | N88: 46 | O88: 92 | P88: 3
A89: =Data_Sheet!A85 -> Attainment Level 1: 60% students scoring more than 60% of the Total Marks
A90: =Data_Sheet!A86 -> Attainment Level 2: 70% students scoring more than 60% of the Total Marks
A91: =Data_Sheet!A87 -> Attainment Level 3: 80% students scoring more than 60% of the Total Marks
B93: =Data_Sheet!B10 -> Name of Faculty : | C93: =Data_Sheet!B11 -> PONMANI RAJA M
B94: =Data_Sheet!B94 -> Dated Signature :
B96: Last Row Count | C96: =ROW(A76)-2 -> 74 | D96: =SUBSTITUTE(ADDRESS(1,COLUMN(D1),2),"1","")&$C$96 -> D$74 | E96: ="E"&$C$96 -> E74
C99: CO1 | D99: =IFERROR((IF(ISNUMBER(SEARCH("1", D$19)),D$21,"0")),"0") -> 5 | E99: =IFERROR((IF(ISNUMBER(SEARCH("1", E$19)),E$21,"0")),"0") -> 5 | F99: =IFERROR(SUM($D99:INDIRECT($I99)),"0") -> 10 | I99: =SUBSTITUTE(ADDRESS(1,K99,4),1,"")&ROW($I99) -> E99 | J99: =COUNTIF($D$20:INDIRECT($L99),"*1*") -> 0 | K99: =COLUMN($F$19)-1 -> 5 | L99: =SUBSTITUTE(ADDRESS(1,K99,4),1,"")&ROW($I$19)+1 -> E20 | M99: Total Marks
C100: CO2 | D100: =IFERROR((IF(ISNUMBER(SEARCH("2", D$19)),D$21,"0")),"0") -> 0 | E100: =IFERROR((IF(ISNUMBER(SEARCH("2", E$19)),E$21,"0")),"0") -> 5 | F100: =IFERROR(SUM($D100:INDIRECT($I100)),"0") -> 5 | I100: E100 | J100: =COUNTIF($D$20:INDIRECT($L100),"*2*") -> 0 | K100: =COLUMN($F$19)-1 -> 5 | L100: =SUBSTITUTE(ADDRESS(1,K100,4),1,"")&ROW($I$19)+1 -> E20
C101: CO3 | D101: =IFERROR((IF(ISNUMBER(SEARCH("3", D$19)),D$21,"0")),"0") -> 0 | E101: =IFERROR((IF(ISNUMBER(SEARCH("3", E$19)),E$21,"0")),"0") -> 0 | F101: =IFERROR(SUM($D101:INDIRECT($I101)),"0") -> 0 | I101: E101 | J101: =COUNTIF($D$20:INDIRECT($L101),"*2*") -> 0 | K101: 5 | L101: E20
C102: CO4 | D102: =IFERROR((IF(ISNUMBER(SEARCH("4", D$19)),D$21,"0")),"0") -> 0 | E102: =IFERROR((IF(ISNUMBER(SEARCH("4", E$19)),E$21,"0")),"0") -> 0 | F102: =IFERROR(SUM($D102:INDIRECT($I102)),"0") -> 0 | I102: E102 | J102: =COUNTIF($D$20:INDIRECT($L102),"*2*") -> 0 | K102: 5 | L102: E20
C103: CO5 | D103: =IFERROR((IF(ISNUMBER(SEARCH("5", D$19)),D$21,"0")),"0") -> 0 | E103: =IFERROR((IF(ISNUMBER(SEARCH("5", E$19)),E$21,"0")),"0") -> 0 | F103: =IFERROR(SUM($D103:INDIRECT($I103)),"0") -> 0 | I103: E103 | J103: =COUNTIF($D$20:INDIRECT($L103),"*2*") -> 0 | K103: 5 | L103: E20
C104: CO6 | D104: =IFERROR((IF(ISNUMBER(SEARCH("6", D$19)),D$21,"0")),"0") -> 5 | E104: =IFERROR((IF(ISNUMBER(SEARCH("6", E$19)),E$21,"0")),"0") -> 0 | F104: =IFERROR(SUM($D104:INDIRECT($I104)),"0") -> 5 | I104: E104 | J104: =COUNTIF($D$20:INDIRECT($L104),"*2*") -> 0 | K104: 5 | L104: E20
C106: CO1 | D106: =IFERROR((IF(ISNUMBER(SEARCH("1", D$19)),D$76,"0")),"0") -> 224 | E106: =IFERROR((IF(ISNUMBER(SEARCH("1", E$19)),E$76,"0")),"0") -> 224 | F106: =IFERROR(SUM($D106:INDIRECT($I106)),"0") -> 448 | I106: =SUBSTITUTE(ADDRESS(1,K106,4),1,"")&ROW($I106) -> E106 | J106: =COUNTIF($D$20:INDIRECT($L106),"*1*") -> 0 | K106: =COLUMN($F$19)-1 -> 5 | L106: =SUBSTITUTE(ADDRESS(1,K106,4),1,"")&ROW($I$19)+1 -> E20 | M106: Total Marks Scored
C107: CO2 | D107: =IFERROR((IF(ISNUMBER(SEARCH("2", D$19)),D$76,"0")),"0") -> 0 | E107: =IFERROR((IF(ISNUMBER(SEARCH("2", E$19)),E$76,"0")),"0") -> 224 | F107: =IFERROR(SUM($D107:INDIRECT($I107)),"0") -> 224 | I107: E107 | J107: =COUNTIF($D$20:INDIRECT($L107),"*2*") -> 0 | K107: =COLUMN($F$19)-1 -> 5 | L107: =SUBSTITUTE(ADDRESS(1,K107,4),1,"")&ROW($I$19)+1 -> E20
C108: CO3 | D108: =IFERROR((IF(ISNUMBER(SEARCH("3", D$19)),D$76,"0")),"0") -> 0 | E108: =IFERROR((IF(ISNUMBER(SEARCH("3", E$19)),E$76,"0")),"0") -> 0 | F108: =IFERROR(SUM($D108:INDIRECT($I108)),"0") -> 0 | I108: E108 | J108: =COUNTIF($D$20:INDIRECT($L108),"*2*") -> 0 | K108: 5 | L108: E20
C109: CO4 | D109: =IFERROR((IF(ISNUMBER(SEARCH("4", D$19)),D$76,"0")),"0") -> 0 | E109: =IFERROR((IF(ISNUMBER(SEARCH("4", E$19)),E$76,"0")),"0") -> 0 | F109: =IFERROR(SUM($D109:INDIRECT($I109)),"0") -> 0 | I109: E109 | J109: =COUNTIF($D$20:INDIRECT($L109),"*2*") -> 0 | K109: 5 | L109: E20
C110: CO5 | D110: =IFERROR((IF(ISNUMBER(SEARCH("5", D$19)),D$76,"0")),"0") -> 0 | E110: =IFERROR((IF(ISNUMBER(SEARCH("5", E$19)),E$76,"0")),"0") -> 0 | F110: =IFERROR(SUM($D110:INDIRECT($I110)),"0") -> 0 | I110: E110 | J110: =COUNTIF($D$20:INDIRECT($L110),"*2*") -> 0 | K110: 5 | L110: E20
C111: CO6 | D111: =IFERROR((IF(ISNUMBER(SEARCH("6", D$19)),D$76,"0")),"0") -> 224 | E111: =IFERROR((IF(ISNUMBER(SEARCH("6", E$19)),E$76,"0")),"0") -> 0 | F111: =IFERROR(SUM($D111:INDIRECT($I111)),"0") -> 224 | I111: E111 | J111: =COUNTIF($D$20:INDIRECT($L111),"*2*") -> 0 | K111: 5 | L111: E20
C113: CO1 | D113: =IFERROR((IF(ISNUMBER(SEARCH("1", D$19)),D$77,"0")),"0") -> 50 | E113: =IFERROR((IF(ISNUMBER(SEARCH("1", E$19)),E$77,"0")),"0") -> 50 | F113: =IFERROR(SUM($D113:INDIRECT($I113)),"0") -> 100 | I113: =SUBSTITUTE(ADDRESS(1,K113,4),1,"")&ROW($I113) -> E113 | J113: =COUNTIF($D$20:INDIRECT($L113),"*1*") -> 0 | K113: =COLUMN($F$19)-1 -> 5 | L113: =SUBSTITUTE(ADDRESS(1,K113,4),1,"")&ROW($I$19)+1 -> E20 | M113: No of Studdents Attended
C114: CO2 | D114: =IFERROR((IF(ISNUMBER(SEARCH("2", D$19)),D$77,"0")),"0") -> 0 | E114: =IFERROR((IF(ISNUMBER(SEARCH("2", E$19)),E$77,"0")),"0") -> 50 | F114: =IFERROR(SUM($D114:INDIRECT($I114)),"0") -> 50 | I114: E114 | J114: =COUNTIF($D$20:INDIRECT($L114),"*2*") -> 0 | K114: =COLUMN($F$19)-1 -> 5 | L114: =SUBSTITUTE(ADDRESS(1,K114,4),1,"")&ROW($I$19)+1 -> E20
C115: CO3 | D115: =IFERROR((IF(ISNUMBER(SEARCH("3", D$19)),D$77,"0")),"0") -> 0 | E115: =IFERROR((IF(ISNUMBER(SEARCH("3", E$19)),E$77,"0")),"0") -> 0 | F115: =IFERROR(SUM($D115:INDIRECT($I115)),"0") -> 0 | I115: E115 | J115: =COUNTIF($D$20:INDIRECT($L115),"*2*") -> 0 | K115: 5 | L115: E20
C116: CO4 | D116: =IFERROR((IF(ISNUMBER(SEARCH("4", D$19)),D$77,"0")),"0") -> 0 | E116: =IFERROR((IF(ISNUMBER(SEARCH("4", E$19)),E$77,"0")),"0") -> 0 | F116: =IFERROR(SUM($D116:INDIRECT($I116)),"0") -> 0 | I116: E116 | J116: =COUNTIF($D$20:INDIRECT($L116),"*2*") -> 0 | K116: 5 | L116: E20
C117: CO5 | D117: =IFERROR((IF(ISNUMBER(SEARCH("5", D$19)),D$77,"0")),"0") -> 0 | E117: =IFERROR((IF(ISNUMBER(SEARCH("5", E$19)),E$77,"0")),"0") -> 0 | F117: =IFERROR(SUM($D117:INDIRECT($I117)),"0") -> 0 | I117: E117 | J117: =COUNTIF($D$20:INDIRECT($L117),"*2*") -> 0 | K117: 5 | L117: E20
C118: CO6 | D118: =IFERROR((IF(ISNUMBER(SEARCH("6", D$19)),D$77,"0")),"0") -> 50 | E118: =IFERROR((IF(ISNUMBER(SEARCH("6", E$19)),E$77,"0")),"0") -> 0 | F118: =IFERROR(SUM($D118:INDIRECT($I118)),"0") -> 50 | I118: E118 | J118: =COUNTIF($D$20:INDIRECT($L118),"*2*") -> 0 | K118: 5 | L118: E20
C120: CO1 | D120: =IFERROR((IF(ISNUMBER(SEARCH("1", D$19)),D$78,"0")),"0") -> 3 | E120: =IFERROR((IF(ISNUMBER(SEARCH("1", E$19)),E$78,"0")),"0") -> 3 | F120: =IFERROR(SUM($D120:INDIRECT($I120)),"0") -> 6 | I120: =SUBSTITUTE(ADDRESS(1,K120,4),1,"")&ROW($I120) -> E120 | J120: =COUNTIF($D$20:INDIRECT($L120),"*1*") -> 0 | K120: =COLUMN($F$19)-1 -> 5 | L120: =SUBSTITUTE(ADDRESS(1,K120,4),1,"")&ROW($I$19)+1 -> E20 | M120: Difficulty Level
C121: CO2 | D121: =IFERROR((IF(ISNUMBER(SEARCH("2", D$19)),D$78,"0")),"0") -> 0 | E121: =IFERROR((IF(ISNUMBER(SEARCH("2", E$19)),E$78,"0")),"0") -> 3 | F121: =IFERROR(SUM($D121:INDIRECT($I121)),"0") -> 3 | I121: E121 | J121: =COUNTIF($D$20:INDIRECT($L121),"*2*") -> 0 | K121: =COLUMN($F$19)-1 -> 5 | L121: =SUBSTITUTE(ADDRESS(1,K121,4),1,"")&ROW($I$19)+1 -> E20
C122: CO3 | D122: =IFERROR((IF(ISNUMBER(SEARCH("3", D$19)),D$78,"0")),"0") -> 0 | E122: =IFERROR((IF(ISNUMBER(SEARCH("3", E$19)),E$78,"0")),"0") -> 0 | F122: =IFERROR(SUM($D122:INDIRECT($I122)),"0") -> 0 | I122: E122 | J122: =COUNTIF($D$20:INDIRECT($L122),"*2*") -> 0 | K122: 5 | L122: E20
C123: CO4 | D123: =IFERROR((IF(ISNUMBER(SEARCH("4", D$19)),D$78,"0")),"0") -> 0 | E123: =IFERROR((IF(ISNUMBER(SEARCH("4", E$19)),E$78,"0")),"0") -> 0 | F123: =IFERROR(SUM($D123:INDIRECT($I123)),"0") -> 0 | I123: E123 | J123: =COUNTIF($D$20:INDIRECT($L123),"*2*") -> 0 | K123: 5 | L123: E20
C124: CO5 | D124: =IFERROR((IF(ISNUMBER(SEARCH("5", D$19)),D$78,"0")),"0") -> 0 | E124: =IFERROR((IF(ISNUMBER(SEARCH("5", E$19)),E$78,"0")),"0") -> 0 | F124: =IFERROR(SUM($D124:INDIRECT($I124)),"0") -> 0 | I124: E124 | J124: =COUNTIF($D$20:INDIRECT($L124),"*2*") -> 0 | K124: 5 | L124: E20
C125: CO6 | D125: =IFERROR((IF(ISNUMBER(SEARCH("6", D$19)),D$78,"0")),"0") -> 3 | E125: =IFERROR((IF(ISNUMBER(SEARCH("6", E$19)),E$78,"0")),"0") -> 0 | F125: =IFERROR(SUM($D125:INDIRECT($I125)),"0") -> 3 | I125: E125 | J125: =COUNTIF($D$20:INDIRECT($L125),"*2*") -> 0 | K125: 5 | L125: E20
C127: CO1 | D127: =IFERROR((IF(ISNUMBER(SEARCH("1", D$19)),D$79,"0")),"0") -> 46 | E127: =IFERROR((IF(ISNUMBER(SEARCH("1", E$19)),E$79,"0")),"0") -> 46 | F127: =IFERROR(SUM($D127:INDIRECT($I127)),"0") -> 92 | I127: =SUBSTITUTE(ADDRESS(1,K127,4),1,"")&ROW($I127) -> E127 | J127: =COUNTIF($D$20:INDIRECT($L127),"*1*") -> 0 | K127: =COLUMN($F$19)-1 -> 5 | L127: =SUBSTITUTE(ADDRESS(1,K127,4),1,"")&ROW($I$19)+1 -> E20 | M127: No of Studdents Above Difficulty Level
C128: CO2 | D128: =IFERROR((IF(ISNUMBER(SEARCH("2", D$19)),D$79,"0")),"0") -> 0 | E128: =IFERROR((IF(ISNUMBER(SEARCH("2", E$19)),E$79,"0")),"0") -> 46 | F128: =IFERROR(SUM($D128:INDIRECT($I128)),"0") -> 46 | I128: E128 | J128: =COUNTIF($D$20:INDIRECT($L128),"*2*") -> 0 | K128: =COLUMN($F$19)-1 -> 5 | L128: =SUBSTITUTE(ADDRESS(1,K128,4),1,"")&ROW($I$19)+1 -> E20
C129: CO3 | D129: =IFERROR((IF(ISNUMBER(SEARCH("3", D$19)),D$79,"0")),"0") -> 0 | E129: =IFERROR((IF(ISNUMBER(SEARCH("3", E$19)),E$79,"0")),"0") -> 0 | F129: =IFERROR(SUM($D129:INDIRECT($I129)),"0") -> 0 | I129: E129 | J129: =COUNTIF($D$20:INDIRECT($L129),"*2*") -> 0 | K129: 5 | L129: E20
C130: CO4 | D130: =IFERROR((IF(ISNUMBER(SEARCH("4", D$19)),D$79,"0")),"0") -> 0 | E130: =IFERROR((IF(ISNUMBER(SEARCH("4", E$19)),E$79,"0")),"0") -> 0 | F130: =IFERROR(SUM($D130:INDIRECT($I130)),"0") -> 0 | I130: E130 | J130: =COUNTIF($D$20:INDIRECT($L130),"*2*") -> 0 | K130: 5 | L130: E20
C131: CO5 | D131: =IFERROR((IF(ISNUMBER(SEARCH("5", D$19)),D$79,"0")),"0") -> 0 | E131: =IFERROR((IF(ISNUMBER(SEARCH("5", E$19)),E$79,"0")),"0") -> 0 | F131: =IFERROR(SUM($D131:INDIRECT($I131)),"0") -> 0 | I131: E131 | J131: =COUNTIF($D$20:INDIRECT($L131),"*2*") -> 0 | K131: 5 | L131: E20
C132: CO6 | D132: =IFERROR((IF(ISNUMBER(SEARCH("6", D$19)),D$79,"0")),"0") -> 46 | E132: =IFERROR((IF(ISNUMBER(SEARCH("6", E$19)),E$79,"0")),"0") -> 0 | F132: =IFERROR(SUM($D132:INDIRECT($I132)),"0") -> 46 | I132: E132 | J132: =COUNTIF($D$20:INDIRECT($L132),"*2*") -> 0 | K132: 5 | L132: E20
C134: 1 | D134: =IFERROR((IF(ISNUMBER(SEARCH("1", D$20)),D$21/IF(LEN(D20)=16,6,IF(LEN(D20)=13,5,IF(LEN(D20)=10,4,IF(LEN(D20)=7,3,IF(LEN(D20)=4,2,1))))),"0")),"0") -> 0 | E134: =IFERROR((IF(ISNUMBER(SEARCH("1", E$20)),E$21/IF(LEN(E20)=16,6,IF(LEN(E20)=13,5,IF(LEN(E20)=10,4,IF(LEN(E20)=7,3,IF(LEN(E20)=4,2,1))))),"0")),"0") -> 0 | F134: =IFERROR(SUM($D134:INDIRECT($I134)),"0") -> 0 | I134: =SUBSTITUTE(ADDRESS(1,K134,4),1,"")&ROW($I134) -> E134 | J134: =COUNTIF($D$20:INDIRECT($L134),"1") -> 0 | K134: =COLUMN($F$18)-1 -> 5 | L134: =SUBSTITUTE(ADDRESS(1,K134,4),1,"")&ROW($I$19)+1 -> E20
C135: 2 | D135: =IFERROR((IF(ISNUMBER(SEARCH("2", D$20)),D$21/IF(LEN(D20)=16,6,IF(LEN(D20)=13,5,IF(LEN(D20)=10,4,IF(LEN(D20)=7,3,IF(LEN(D20)=4,2,1))))),"0")),"0") -> 0 | E135: =IFERROR((IF(ISNUMBER(SEARCH("2", E$20)),E$21/IF(LEN(E20)=16,6,IF(LEN(E20)=13,5,IF(LEN(E20)=10,4,IF(LEN(E20)=7,3,IF(LEN(E20)=4,2,1))))),"0")),"0") -> 0 | F135: =IFERROR(SUM($D135:INDIRECT($I135)),"0") -> 0 | I135: =SUBSTITUTE(ADDRESS(1,K135,4),1,"")&ROW($I135) -> E135 | J135: =COUNTIF($D$20:INDIRECT($L135),"2") -> 0 | K135: =COLUMN($F$18)-1 -> 5 | L135: =SUBSTITUTE(ADDRESS(1,K135,4),1,"")&ROW($I$19)+1 -> E20
C136: 3 | D136: =IFERROR((IF(ISNUMBER(SEARCH("3", D$20)),D$21/IF(LEN(D20)=16,6,IF(LEN(D20)=13,5,IF(LEN(D20)=10,4,IF(LEN(D20)=7,3,IF(LEN(D20)=4,2,1))))),"0")),"0") -> 0 | E136: =IFERROR((IF(ISNUMBER(SEARCH("3", E$20)),E$21/IF(LEN(E20)=16,6,IF(LEN(E20)=13,5,IF(LEN(E20)=10,4,IF(LEN(E20)=7,3,IF(LEN(E20)=4,2,1))))),"0")),"0") -> 0 | F136: =IFERROR(SUM($D136:INDIRECT($I136)),"0") -> 0 | I136: E136 | J136: =COUNTIF($D$20:INDIRECT($L136),"3") -> 0 | K136: 5 | L136: E20
C137: 4 | D137: =IFERROR((IF(ISNUMBER(SEARCH("4", D$20)),D$21/IF(LEN(D20)=16,6,IF(LEN(D20)=13,5,IF(LEN(D20)=10,4,IF(LEN(D20)=7,3,IF(LEN(D20)=4,2,1))))),"0")),"0") -> 2.5 | E137: =IFERROR((IF(ISNUMBER(SEARCH("4", E$20)),E$21/IF(LEN(E20)=16,6,IF(LEN(E20)=13,5,IF(LEN(E20)=10,4,IF(LEN(E20)=7,3,IF(LEN(E20)=4,2,1))))),"0")),"0") -> 0 | F137: =IFERROR(SUM($D137:INDIRECT($I137)),"0") -> 2.5 | I137: E137 | J137: =COUNTIF($D$20:INDIRECT($L137),"4") -> 0 | K137: 5 | L137: E20
C138: 5 | D138: =IFERROR((IF(ISNUMBER(SEARCH("5", D$20)),D$21/IF(LEN(D20)=16,6,IF(LEN(D20)=13,5,IF(LEN(D20)=10,4,IF(LEN(D20)=7,3,IF(LEN(D20)=4,2,1))))),"0")),"0") -> 2.5 | E138: =IFERROR((IF(ISNUMBER(SEARCH("5", E$20)),E$21/IF(LEN(E20)=16,6,IF(LEN(E20)=13,5,IF(LEN(E20)=10,4,IF(LEN(E20)=7,3,IF(LEN(E20)=4,2,1))))),"0")),"0") -> 2.5 | F138: =IFERROR(SUM($D138:INDIRECT($I138)),"0") -> 5 | I138: E138 | J138: =COUNTIF($D$20:INDIRECT($L138),"5") -> 0 | K138: 5 | L138: E20
C139: 6 | D139: =IFERROR((IF(ISNUMBER(SEARCH("6", D$20)),D$21/IF(LEN(D20)=16,6,IF(LEN(D20)=13,5,IF(LEN(D20)=10,4,IF(LEN(D20)=7,3,IF(LEN(D20)=4,2,1))))),"0")),"0") -> 0 | E139: =IFERROR((IF(ISNUMBER(SEARCH("6", E$20)),E$21/IF(LEN(E20)=16,6,IF(LEN(E20)=13,5,IF(LEN(E20)=10,4,IF(LEN(E20)=7,3,IF(LEN(E20)=4,2,1))))),"0")),"0") -> 2.5 | F139: =IFERROR(SUM($D139:INDIRECT($I139)),"0") -> 2.5 | I139: E139 | J139: =COUNTIF($D$20:INDIRECT($L139),"6") -> 0 | K139: 5 | L139: E20

Sheet A2_Analysis
A3: =Data_Sheet!A2 -> Jyothi Engineering College, Cheruthuruthy
A5: =Data_Sheet!A4 -> Department of Electrical & Electronics Engineering
A7: ='A2'!A11:F11 -> CO Analysis - Internal Marks : Assignment - 2 21-03-18
A9: =Data_Sheet!A17 -> S7 EC EC407 Computer Communication 2019-20
A22: ='T1'!A18 -> Register No. | B22: ='T1'!B18 -> Name of Student | C22: ='A2'!F18 -> Total Marks (10) | D22: Category
A24: Column1 | B24: Column2 | C24: Column3 | D24: Column4
A25: =Data_Sheet!A25 -> JEC16EC051 | B25: =Data_Sheet!B25 -> LANA KOLLATH | C25: ='A2'!F25 -> 10 | D25: =IF(C25="A","ABSENT",IF(C25>='A2'!$E$5*$E$82/100,"EXCELLENT",IF(C25>='A2'!$E$5*$E$81/100,"GOOD",IF(C25>='A2'!$E$5*$E$80/100,"AVERAGE","POOR")))) -> EXCELLENT
A26: =Data_Sheet!A26 -> JEC16EC052 | B26: =Data_Sheet!B26 -> MANU JENSON | C26: ='A2'!F26 -> 10 | D26: =IF(C26="A","ABSENT",IF(C26>='A2'!$E$5*$E$82/100,"EXCELLENT",IF(C26>='A2'!$E$5*$E$81/100,"GOOD",IF(C26>='A2'!$E$5*$E$80/100,"AVERAGE","POOR")))) -> EXCELLENT
A27: =Data_Sheet!A27 -> JEC16EC053 | B27: =Data_Sheet!B27 -> MAREENA MARIYA ABRAHAM | C27: ='A2'!F27 -> 10 | D27: =IF(C27="A","ABSENT",IF(C27>='A2'!$E$5*$E$82/100,"EXCELLENT",IF(C27>='A2'!$E$5*$E$81/100,"GOOD",IF(C27>='A2'!$E$5*$E$80/100,"AVERAGE","POOR")))) -> EXCELLENT
A28: =Data_Sheet!A28 -> JEC16EC054 | B28: =Data_Sheet!B28 -> MARIAN DAVIS KATTUKARAN | C28: ='A2'!F28 -> 9 | D28: =IF(C28="A","ABSENT",IF(C28>='A2'!$E$5*$E$82/100,"EXCELLENT",IF(C28>='A2'!$E$5*$E$81/100,"GOOD",IF(C28>='A2'!$E$5*$E$80/100,"AVERAGE","POOR")))) -> EXCELLENT
A29: =Data_Sheet!A29 -> JEC16EC055 | B29: =Data_Sheet!B29 -> MARY JEETHU A J | C29: ='A2'!F29 -> 10 | D29: =IF(C29="A","ABSENT",IF(C29>='A2'!$E$5*$E$82/100,"EXCELLENT",IF(C29>='A2'!$E$5*$E$81/100,"GOOD",IF(C29>='A2'!$E$5*$E$80/100,"AVERAGE","POOR")))) -> EXCELLENT
A30: =Data_Sheet!A30 -> JEC16EC056 | B30: =Data_Sheet!B30 -> MUBASHIRA K M | C30: ='A2'!F30 -> 10 | D30: =IF(C30="A","ABSENT",IF(C30>='A2'!$E$5*$E$82/100,"EXCELLENT",IF(C30>='A2'!$E$5*$E$81/100,"GOOD",IF(C30>='A2'!$E$5*$E$80/100,"AVERAGE","POOR")))) -> EXCELLENT
A31: =Data_Sheet!A31 -> JEC16EC057 | B31: =Data_Sheet!B31 -> MUHAMMED ARSHAD | C31: ='A2'!F31 -> 10 | D31: =IF(C31="A","ABSENT",IF(C31>='A2'!$E$5*$E$82/100,"EXCELLENT",IF(C31>='A2'!$E$5*$E$81/100,"GOOD",IF(C31>='A2'!$E$5*$E$80/100,"AVERAGE","POOR")))) -> EXCELLENT
A32: =Data_Sheet!A32 -> JEC16EC058 | B32: =Data_Sheet!B32 -> NANDANA K | C32: ='A2'!F32 -> 10 | D32: =IF(C32="A","ABSENT",IF(C32>='A2'!$E$5*$E$82/100,"EXCELLENT",IF(C32>='A2'!$E$5*$E$81/100,"GOOD",IF(C32>='A2'!$E$5*$E$80/100,"AVERAGE","POOR")))) -> EXCELLENT
A33: =Data_Sheet!A33 -> JEC16EC059 | B33: =Data_Sheet!B33 -> NARAYANAN M B | C33: ='A2'!F33 -> 9 | D33: =IF(C33="A","ABSENT",IF(C33>='A2'!$E$5*$E$82/100,"EXCELLENT",IF(C33>='A2'!$E$5*$E$81/100,"GOOD",IF(C33>='A2'!$E$5*$E$80/100,"AVERAGE","POOR")))) -> EXCELLENT
A34: =Data_Sheet!A34 -> JEC16EC061 | B34: =Data_Sheet!B34 -> NIKHIL KJ | C34: ='A2'!F34 -> 9 | D34: =IF(C34="A","ABSENT",IF(C34>='A2'!$E$5*$E$82/100,"EXCELLENT",IF(C34>='A2'!$E$5*$E$81/100,"GOOD",IF(C34>='A2'!$E$5*$E$80/100,"AVERAGE","POOR")))) -> EXCELLENT
A35: =Data_Sheet!A35 -> JEC16EC062 | B35: =Data_Sheet!B35 -> NIMISHA M S | C35: ='A2'!F35 -> 10 | D35: =IF(C35="A","ABSENT",IF(C35>='A2'!$E$5*$E$82/100,"EXCELLENT",IF(C35>='A2'!$E$5*$E$81/100,"GOOD",IF(C35>='A2'!$E$5*$E$80/100,"AVERAGE","POOR")))) -> EXCELLENT
A36: =Data_Sheet!A36 -> JEC16EC063 | B36: =Data_Sheet!B36 -> NIMISHA TONY | C36: ='A2'!F36 -> 10 | D36: =IF(C36="A","ABSENT",IF(C36>='A2'!$E$5*$E$82/100,"EXCELLENT",IF(C36>='A2'!$E$5*$E$81/100,"GOOD",IF(C36>='A2'!$E$5*$E$80/100,"AVERAGE","POOR")))) -> EXCELLENT
A37: =Data_Sheet!A37 -> JEC16EC064 | B37: =Data_Sheet!B37 -> NITHIN | C37: ='A2'!F37 -> 10 | D37: =IF(C37="A","ABSENT",IF(C37>='A2'!$E$5*$E$82/100,"EXCELLENT",IF(C37>='A2'!$E$5*$E$81/100,"GOOD",IF(C37>='A2'!$E$5*$E$80/100,"AVERAGE","POOR")))) -> EXCELLENT
A38: =Data_Sheet!A38 -> JEC16EC065 | B38: =Data_Sheet!B38 -> OLIVIA NELSON | C38: ='A2'!F38 -> 10 | D38: =IF(C38="A","ABSENT",IF(C38>='A2'!$E$5*$E$82/100,"EXCELLENT",IF(C38>='A2'!$E$5*$E$81/100,"GOOD",IF(C38>='A2'!$E$5*$E$80/100,"AVERAGE","POOR")))) -> EXCELLENT
A39: =Data_Sheet!A39 -> JEC16EC066 | B39: =Data_Sheet!B39 -> PAVITHRA.P | C39: ='A2'!F39 -> 10 | D39: =IF(C39="A","ABSENT",IF(C39>='A2'!$E$5*$E$82/100,"EXCELLENT",IF(C39>='A2'!$E$5*$E$81/100,"GOOD",IF(C39>='A2'!$E$5*$E$80/100,"AVERAGE","POOR")))) -> EXCELLENT
A40: =Data_Sheet!A40 -> JEC16EC067 | B40: =Data_Sheet!B40 -> P.DHANYA RAJ | C40: ='A2'!F40 -> 10 | D40: =IF(C40="A","ABSENT",IF(C40>='A2'!$E$5*$E$82/100,"EXCELLENT",IF(C40>='A2'!$E$5*$E$81/100,"GOOD",IF(C40>='A2'!$E$5*$E$80/100,"AVERAGE","POOR")))) -> EXCELLENT
A41: =Data_Sheet!A41 -> JEC16EC068 | B41: =Data_Sheet!B41 -> POOJA.P | C41: ='A2'!F41 -> 10 | D41: =IF(C41="A","ABSENT",IF(C41>='A2'!$E$5*$E$82/100,"EXCELLENT",IF(C41>='A2'!$E$5*$E$81/100,"GOOD",IF(C41>='A2'!$E$5*$E$80/100,"AVERAGE","POOR")))) -> EXCELLENT
A42: =Data_Sheet!A42 -> JEC16EC069 | B42: =Data_Sheet!B42 -> PRANAV | C42: ='A2'!F42 -> 10 | D42: =IF(C42="A","ABSENT",IF(C42>='A2'!$E$5*$E$82/100,"EXCELLENT",IF(C42>='A2'!$E$5*$E$81/100,"GOOD",IF(C42>='A2'!$E$5*$E$80/100,"AVERAGE","POOR")))) -> EXCELLENT
A43: =Data_Sheet!A43 -> JEC16EC070 | B43: =Data_Sheet!B43 -> PRASOBH KP | C43: ='A2'!F43 -> 9 | D43: =IF(C43="A","ABSENT",IF(C43>='A2'!$E$5*$E$82/100,"EXCELLENT",IF(C43>='A2'!$E$5*$E$81/100,"GOOD",IF(C43>='A2'!$E$5*$E$80/100,"AVERAGE","POOR")))) -> EXCELLENT
A44: =Data_Sheet!A44 -> JEC16EC071 | B44: =Data_Sheet!B44 -> PRINCE BENNY | C44: ='A2'!F44 -> 9 | D44: =IF(C44="A","ABSENT",IF(C44>='A2'!$E$5*$E$82/100,"EXCELLENT",IF(C44>='A2'!$E$5*$E$81/100,"GOOD",IF(C44>='A2'!$E$5*$E$80/100,"AVERAGE","POOR")))) -> EXCELLENT
A45: =Data_Sheet!A45 -> JEC16EC072 | B45: =Data_Sheet!B45 -> PRIYA.K | C45: ='A2'!F45 -> 10 | D45: =IF(C45="A","ABSENT",IF(C45>='A2'!$E$5*$E$82/100,"EXCELLENT",IF(C45>='A2'!$E$5*$E$81/100,"GOOD",IF(C45>='A2'!$E$5*$E$80/100,"AVERAGE","POOR")))) -> EXCELLENT
A46: =Data_Sheet!A46 -> JEC16EC073 | B46: =Data_Sheet!B46 -> RADHIKA | C46: ='A2'!F46 -> 10 | D46: =IF(C46="A","ABSENT",IF(C46>='A2'!$E$5*$E$82/100,"EXCELLENT",IF(C46>='A2'!$E$5*$E$81/100,"GOOD",IF(C46>='A2'!$E$5*$E$80/100,"AVERAGE","POOR")))) -> EXCELLENT
A47: =Data_Sheet!A47 -> JEC16EC074 | B47: =Data_Sheet!B47 -> RINOSHA.K.R | C47: ='A2'!F47 -> 10 | D47: =IF(C47="A","ABSENT",IF(C47>='A2'!$E$5*$E$82/100,"EXCELLENT",IF(C47>='A2'!$E$5*$E$81/100,"GOOD",IF(C47>='A2'!$E$5*$E$80/100,"AVERAGE","POOR")))) -> EXCELLENT
A48: =Data_Sheet!A48 -> JEC16EC075 | B48: =Data_Sheet!B48 -> RIYA ALBERT | C48: ='A2'!F48 -> 10 | D48: =IF(C48="A","ABSENT",IF(C48>='A2'!$E$5*$E$82/100,"EXCELLENT",IF(C48>='A2'!$E$5*$E$81/100,"GOOD",IF(C48>='A2'!$E$5*$E$80/100,"AVERAGE","POOR")))) -> EXCELLENT
A49: =Data_Sheet!A49 -> JEC16EC076 | B49: =Data_Sheet!B49 -> RIYA PS | C49: ='A2'!F49 -> 10 | D49: =IF(C49="A","ABSENT",IF(C49>='A2'!$E$5*$E$82/100,"EXCELLENT",IF(C49>='A2'!$E$5*$E$81/100,"GOOD",IF(C49>='A2'!$E$5*$E$80/100,"AVERAGE","POOR")))) -> EXCELLENT
A50: =Data_Sheet!A50 -> JEC16EC077 | B50: =Data_Sheet!B50 -> ROSHNI J NAIR | C50: ='A2'!F50 -> 10 | D50: =IF(C50="A","ABSENT",IF(C50>='A2'!$E$5*$E$82/100,"EXCELLENT",IF(C50>='A2'!$E$5*$E$81/100,"GOOD",IF(C50>='A2'!$E$5*$E$80/100,"AVERAGE","POOR")))) -> EXCELLENT
A51: =Data_Sheet!A51 -> JEC16EC079 | B51: =Data_Sheet!B51 -> SAFNA M | C51: ='A2'!F51 -> 9 | D51: =IF(C51="A","ABSENT",IF(C51>='A2'!$E$5*$E$82/100,"EXCELLENT",IF(C51>='A2'!$E$5*$E$81/100,"GOOD",IF(C51>='A2'!$E$5*$E$80/100,"AVERAGE","POOR")))) -> EXCELLENT
A52: =Data_Sheet!A52 -> JEC16EC080 | B52: =Data_Sheet!B52 -> SAJIN SHAJI | C52: ='A2'!F52 -> 10 | D52: =IF(C52="A","ABSENT",IF(C52>='A2'!$E$5*$E$82/100,"EXCELLENT",IF(C52>='A2'!$E$5*$E$81/100,"GOOD",IF(C52>='A2'!$E$5*$E$80/100,"AVERAGE","POOR")))) -> EXCELLENT
A53: =Data_Sheet!A53 -> JEC16EC081 | B53: =Data_Sheet!B53 -> SANDHRA .S | C53: ='A2'!F53 -> 10 | D53: =IF(C53="A","ABSENT",IF(C53>='A2'!$E$5*$E$82/100,"EXCELLENT",IF(C53>='A2'!$E$5*$E$81/100,"GOOD",IF(C53>='A2'!$E$5*$E$80/100,"AVERAGE","POOR")))) -> EXCELLENT
A54: =Data_Sheet!A54 -> JEC16EC082 | B54: =Data_Sheet!B54 -> SANGAMITHRA | C54: ='A2'!F54 -> 10 | D54: =IF(C54="A","ABSENT",IF(C54>='A2'!$E$5*$E$82/100,"EXCELLENT",IF(C54>='A2'!$E$5*$E$81/100,"GOOD",IF(C54>='A2'!$E$5*$E$80/100,"AVERAGE","POOR")))) -> EXCELLENT
A55: =Data_Sheet!A55 -> JEC16EC083 | B55: =Data_Sheet!B55 -> SARANYA.M.NAIR | C55: ='A2'!F55 -> 10 | D55: =IF(C55="A","ABSENT",IF(C55>='A2'!$E$5*$E$82/100,"EXCELLENT",IF(C55>='A2'!$E$5*$E$81/100,"GOOD",IF(C55>='A2'!$E$5*$E$80/100,"AVERAGE","POOR")))) -> EXCELLENT
A56: =Data_Sheet!A56 -> JEC16EC084 | B56: =Data_Sheet!B56 -> SARATHRAJ | C56: ='A2'!F56 -> 10 | D56: =IF(C56="A","ABSENT",IF(C56>='A2'!$E$5*$E$82/100,"EXCELLENT",IF(C56>='A2'!$E$5*$E$81/100,"GOOD",IF(C56>='A2'!$E$5*$E$80/100,"AVERAGE","POOR")))) -> EXCELLENT
A57: =Data_Sheet!A57 -> JEC16EC085 | B57: =Data_Sheet!B57 -> SHAHAN FATHIMA K | C57: ='A2'!F57 -> 10 | D57: =IF(C57="A","ABSENT",IF(C57>='A2'!$E$5*$E$82/100,"EXCELLENT",IF(C57>='A2'!$E$5*$E$81/100,"GOOD",IF(C57>='A2'!$E$5*$E$80/100,"AVERAGE","POOR")))) -> EXCELLENT
A58: =Data_Sheet!A58 -> JEC16EC086 | B58: =Data_Sheet!B58 -> SHAHLA.P.MOHAMMED | C58: ='A2'!F58 -> 10 | D58: =IF(C58="A","ABSENT",IF(C58>='A2'!$E$5*$E$82/100,"EXCELLENT",IF(C58>='A2'!$E$5*$E$81/100,"GOOD",IF(C58>='A2'!$E$5*$E$80/100,"AVERAGE","POOR")))) -> EXCELLENT
A59: =Data_Sheet!A59 -> JEC16EC087 | B59: =Data_Sheet!B59 -> SHAMSEENA T A | C59: ='A2'!F59 -> 0 | D59: =IF(C59="A","ABSENT",IF(C59>='A2'!$E$5*$E$82/100,"EXCELLENT",IF(C59>='A2'!$E$5*$E$81/100,"GOOD",IF(C59>='A2'!$E$5*$E$80/100,"AVERAGE","POOR")))) -> POOR
A60: =Data_Sheet!A60 -> JEC16EC088 | B60: =Data_Sheet!B60 -> SHARAN SHASHINDRAN A | C60: ='A2'!F60 -> 10 | D60: =IF(C60="A","ABSENT",IF(C60>='A2'!$E$5*$E$82/100,"EXCELLENT",IF(C60>='A2'!$E$5*$E$81/100,"GOOD",IF(C60>='A2'!$E$5*$E$80/100,"AVERAGE","POOR")))) -> EXCELLENT
A61: =Data_Sheet!A61 -> JEC16EC089 | B61: =Data_Sheet!B61 -> SIBIN KRISHNA C | C61: ='A2'!F61 -> 9 | D61: =IF(C61="A","ABSENT",IF(C61>='A2'!$E$5*$E$82/100,"EXCELLENT",IF(C61>='A2'!$E$5*$E$81/100,"GOOD",IF(C61>='A2'!$E$5*$E$80/100,"AVERAGE","POOR")))) -> EXCELLENT
A62: =Data_Sheet!A62 -> JEC16EC090 | B62: =Data_Sheet!B62 -> SREEJITH VIJAYAKUMAR | C62: ='A2'!F62 -> 0 | D62: =IF(C62="A","ABSENT",IF(C62>='A2'!$E$5*$E$82/100,"EXCELLENT",IF(C62>='A2'!$E$5*$E$81/100,"GOOD",IF(C62>='A2'!$E$5*$E$80/100,"AVERAGE","POOR")))) -> POOR
A63: =Data_Sheet!A63 -> JEC16EC091 | B63: =Data_Sheet!B63 -> SREELAKSHMI.R | C63: ='A2'!F63 -> 10 | D63: =IF(C63="A","ABSENT",IF(C63>='A2'!$E$5*$E$82/100,"EXCELLENT",IF(C63>='A2'!$E$5*$E$81/100,"GOOD",IF(C63>='A2'!$E$5*$E$80/100,"AVERAGE","POOR")))) -> EXCELLENT
A64: =Data_Sheet!A64 -> JEC16EC092 | B64: =Data_Sheet!B64 -> SREERAG K M | C64: ='A2'!F64 -> 9 | D64: =IF(C64="A","ABSENT",IF(C64>='A2'!$E$5*$E$82/100,"EXCELLENT",IF(C64>='A2'!$E$5*$E$81/100,"GOOD",IF(C64>='A2'!$E$5*$E$80/100,"AVERAGE","POOR")))) -> EXCELLENT
A65: =Data_Sheet!A65 -> JEC16EC093 | B65: =Data_Sheet!B65 -> SREERAG T K | C65: ='A2'!F65 -> 0 | D65: =IF(C65="A","ABSENT",IF(C65>='A2'!$E$5*$E$82/100,"EXCELLENT",IF(C65>='A2'!$E$5*$E$81/100,"GOOD",IF(C65>='A2'!$E$5*$E$80/100,"AVERAGE","POOR")))) -> POOR
A66: =Data_Sheet!A66 -> JEC16EC094 | B66: =Data_Sheet!B66 -> SREERAG V.V | C66: ='A2'!F66 -> 10 | D66: =IF(C66="A","ABSENT",IF(C66>='A2'!$E$5*$E$82/100,"EXCELLENT",IF(C66>='A2'!$E$5*$E$81/100,"GOOD",IF(C66>='A2'!$E$5*$E$80/100,"AVERAGE","POOR")))) -> EXCELLENT
A67: =Data_Sheet!A67 -> JEC16EC095 | B67: =Data_Sheet!B67 -> SRUTHIMOL.N.T | C67: ='A2'!F67 -> 0 | D67: =IF(C67="A","ABSENT",IF(C67>='A2'!$E$5*$E$82/100,"EXCELLENT",IF(C67>='A2'!$E$5*$E$81/100,"GOOD",IF(C67>='A2'!$E$5*$E$80/100,"AVERAGE","POOR")))) -> POOR
A68: =Data_Sheet!A68 -> JEC16EC096 | B68: =Data_Sheet!B68 -> SRUTHISHA SASI | C68: ='A2'!F68 -> 10 | D68: =IF(C68="A","ABSENT",IF(C68>='A2'!$E$5*$E$82/100,"EXCELLENT",IF(C68>='A2'!$E$5*$E$81/100,"GOOD",IF(C68>='A2'!$E$5*$E$80/100,"AVERAGE","POOR")))) -> EXCELLENT
A69: =Data_Sheet!A69 -> JEC16EC097 | B69: =Data_Sheet!B69 -> SUCHITHRA.TS | C69: ='A2'!F69 -> 9 | D69: =IF(C69="A","ABSENT",IF(C69>='A2'!$E$5*$E$82/100,"EXCELLENT",IF(C69>='A2'!$E$5*$E$81/100,"GOOD",IF(C69>='A2'!$E$5*$E$80/100,"AVERAGE","POOR")))) -> EXCELLENT
A70: =Data_Sheet!A70 -> JEC16EC098 | B70: =Data_Sheet!B70 -> SWETHA SARA GEORGE | C70: ='A2'!F70 -> 10 | D70: =IF(C70="A","ABSENT",IF(C70>='A2'!$E$5*$E$82/100,"EXCELLENT",IF(C70>='A2'!$E$5*$E$81/100,"GOOD",IF(C70>='A2'!$E$5*$E$80/100,"AVERAGE","POOR")))) -> EXCELLENT
A71: =Data_Sheet!A71 -> JEC16EC099 | B71: =Data_Sheet!B71 -> VISHNU K | C71: ='A2'!F71 -> 10 | D71: =IF(C71="A","ABSENT",IF(C71>='A2'!$E$5*$E$82/100,"EXCELLENT",IF(C71>='A2'!$E$5*$E$81/100,"GOOD",IF(C71>='A2'!$E$5*$E$80/100,"AVERAGE","POOR")))) -> EXCELLENT
A72: =Data_Sheet!A72 -> JEC16EC100 | B72: =Data_Sheet!B72 -> VISHNU PRAKASH | C72: ='A2'!F72 -> 9 | D72: =IF(C72="A","ABSENT",IF(C72>='A2'!$E$5*$E$82/100,"EXCELLENT",IF(C72>='A2'!$E$5*$E$81/100,"GOOD",IF(C72>='A2'!$E$5*$E$80/100,"AVERAGE","POOR")))) -> EXCELLENT
A73: =Data_Sheet!A73 -> JEC16EC101 | B73: =Data_Sheet!B73 -> VISHNU V | C73: ='A2'!F73 -> 9 | D73: =IF(C73="A","ABSENT",IF(C73>='A2'!$E$5*$E$82/100,"EXCELLENT",IF(C73>='A2'!$E$5*$E$81/100,"GOOD",IF(C73>='A2'!$E$5*$E$80/100,"AVERAGE","POOR")))) -> EXCELLENT
A74: =Data_Sheet!A74 -> LJEC16EC102 | B74: =Data_Sheet!B74 -> CHRISTEENA PAULSON | C74: ='A2'!F74 -> 9 | D74: =IF(C74="A","ABSENT",IF(C74>='A2'!$E$5*$E$82/100,"EXCELLENT",IF(C74>='A2'!$E$5*$E$81/100,"GOOD",IF(C74>='A2'!$E$5*$E$80/100,"AVERAGE","POOR")))) -> EXCELLENT
A76: Total Number of Students | C76: =Data_Sheet!$C$6 -> 50
A77: Number of Students Absent | C77: =IF(COUNTIF(C25:INDIRECT(C89),"=A"),COUNTIF(C25:INDIRECT(C89),"=A"),0) -> 0
A78: Total Number of Students attended | C78: =C76-C77 -> 50
A79: ="Number of Students with Marks less than "&E80&"%" -> Number of Students with Marks less than 45% | C79: =IF(COUNTIF(D25:INDIRECT(D89),"=POOR"),COUNTIF(D25:INDIRECT(D89),"=POOR"),0) -> 4 | D79: POOR | E79: Range
A80: ="Number of Students with Marks betweeen "&E80&"% to "&E81&"%" -> Number of Students with Marks betweeen 45% to 60% | C80: =IF(COUNTIF(D25:INDIRECT(D89),"=AVERAGE"),COUNTIF(D25:INDIRECT(D89),"=AVERAGE"),0) -> 0 | D80: AVERAGE | E80: 45
A81: ="Number of Students with Marks betweeen "&E81&"% to "&E82&"%" -> Number of Students with Marks betweeen 60% to 80% | C81: =IF(COUNTIF(D25:INDIRECT(D89),"=GOOD"),COUNTIF(D25:INDIRECT(D89),"=GOOD"),0) -> 0 | D81: GOOD | E81: 60
A82: ="Number of Students with Marks greater than "&E82&"%" -> Number of Students with Marks greater than 80% | C82: =IF(COUNTIF(D25:INDIRECT(D89),"=EXCELLENT"),COUNTIF(D25:INDIRECT(D89),"=EXCELLENT"),0) -> 46 | D82: EXCELLENT | E82: 80
A83: Class Average | C83: =ROUND(AVERAGE(C25:INDIRECT(C89)),2) -> 8.96
A84: Pass Percentage | C84: =ROUND(((C78-C79)/C78)*100,2) -> 92
B86: =Data_Sheet!B10 -> Name of Faculty : | C86: =Data_Sheet!B11 -> PONMANI RAJA M
B87: =Data_Sheet!B94 -> Dated Signature :
A89: =ROW(A76)-2 -> 74 | B89: Last Row Count | C89: ="$C$"&$A$89 -> $C$74 | D89: ="$D$"&$A$89 -> $D$74

Sheet Overall_CO
A3: =Data_Sheet!A2 -> Jyothi Engineering College, Cheruthuruthy
A5: =Data_Sheet!A4 -> Department of Electrical & Electronics Engineering
A7: Overall CO Analysis - Internal Marks | P7: ="Overall "&LEFT(Data_Sheet!A15, LEN(Data_Sheet!A15)-12) -> Overall CO Analysis - Internal Marks
A9: =Data_Sheet!A17 -> S7 EC EC407 Computer Communication 2019-20
A11: Internal Marks Analysis | C11: T1 | E11: T2 | G11: T3 | I11: A1 | K11: A2 | M11: Average | N11: Remarks
C12: A_Value | D12: Marks | E12: A_Value | F12: Marks | G12: A_Value | H12: Marks | I12: A_Value | J12: Marks | K12: A_Value | L12: Marks
A13: Total Attainment level for | B13: =IF(Data_Sheet!A77<>"",Data_Sheet!A77,"") -> CO1 | C13: =IF(Data_Sheet!A77<>"",'T1'!C82,"") -> 0.71 | D13: =IF(Data_Sheet!A77<>"",'T1'!J82,"") -> 70 | E13: =IF(Data_Sheet!A77<>"",'T2'!C82,"") -> 3 | F13: =IF(Data_Sheet!A77<>"",'T2'!J82,"") -> 70 | G13: =IF(Data_Sheet!A77<>"",'T3'!C82,"") ->  | H13: =IF(Data_Sheet!A77<>"",'T3'!I82,"") -> 0 | I13: =IF(Data_Sheet!A77<>"",'A1'!C82,"") ->  | J13: =IF(Data_Sheet!A77<>"",'A1'!F82,"") -> 0 | K13: =IF(Data_Sheet!A77<>"",'A2'!C82,"") -> 3 | L13: =IF(Data_Sheet!A77<>"",'A2'!F82,"") -> 10 | M13: =IF(SUM(D13,F13,H13,J13,L13)=0,"",ROUND((IF(C13="",0,C13*D13)+IF(E13="",0,E13*F13)+IF(G13="",0,H13*G13)+IF(I13="",0,I13*J13)+IF(K13="",0,K13*L13))/(SUM(D13,F13,H13,J13,L13)),2)) -> 1.93 | N13: =IF(Data_Sheet!A77<>"",IF(M13="","No Correlation",""),"") ->  | O13: =IFERROR(IF(Data_Sheet!A77<>"",ROUND(AVERAGE('T1'!C82,'T2'!C82,'A1'!C82,'A2'!C82),2),""),"") -> 2.24 | P13: =IF(Data_Sheet!A77<>"",ROUND(SUM('T1'!C82,'T2'!C82,'A1'!C82,'A2'!C82)/4,2),"") -> 1.68
B14: =IF(Data_Sheet!A78<>"",Data_Sheet!A78,"") -> CO2 | C14: =IF(Data_Sheet!A78<>"",'T1'!C83,"") -> 1.5 | D14: =IF(Data_Sheet!A78<>"",'T1'!J83,"") -> 20 | E14: =IF(Data_Sheet!A78<>"",'T2'!C83,"") -> 3 | F14: =IF(Data_Sheet!A78<>"",'T2'!J83,"") -> 20 | G14: =IF(Data_Sheet!A78<>"",'T3'!C83,"") ->  | H14: =IF(Data_Sheet!A78<>"",'T3'!I83,"") -> 0 | I14: =IF(Data_Sheet!A78<>"",'A1'!C83,"") ->  | J14: =IF(Data_Sheet!A78<>"",'A1'!F83,"") -> 0 | K14: =IF(Data_Sheet!A78<>"",'A2'!C83,"") -> 3 | L14: =IF(Data_Sheet!A78<>"",'A2'!F83,"") -> 5 | M14: 2.33 | N14: =IF(Data_Sheet!A78<>"",IF(M14="","No Correlation",""),"") ->  | O14: =IFERROR(IF(Data_Sheet!A78<>"",ROUND(AVERAGE('T1'!C83,'T2'!C83,'A1'!C83,'A2'!C83),2),""),"") -> 2.5 | P14: =IF(Data_Sheet!A78<>"",ROUND(SUM('T1'!C83,'T2'!C83,'A1'!C83,'A2'!C83)/4,2),"") -> 1.88
B15: =IF(Data_Sheet!A79<>"",Data_Sheet!A79,"") -> CO3 | C15: =IF(Data_Sheet!A79<>"",'T1'!C84,"") -> 0.4 | D15: =IF(Data_Sheet!A79<>"",'T1'!J84,"") -> 50 | E15: =IF(Data_Sheet!A79<>"",'T2'!C84,"") -> 2.6 | F15: =IF(Data_Sheet!A79<>"",'T2'!J84,"") -> 50 | G15: =IF(Data_Sheet!A79<>"",'T3'!C84,"") -> 0 | H15: =IF(Data_Sheet!A79<>"",'T3'!I84,"") -> 10 | I15: =IF(Data_Sheet!A79<>"",'A1'!C84,"") ->  | J15: =IF(Data_Sheet!A79<>"",'A1'!F84,"") -> 0 | K15: =IF(Data_Sheet!A79<>"",'A2'!C84,"") ->  | L15: =IF(Data_Sheet!A79<>"",'A2'!F84,"") -> 0 | M15: 1.36 | N15: =IF(Data_Sheet!A79<>"",IF(M15="","No Correlation",""),"") ->  | O15: =IFERROR(IF(Data_Sheet!A79<>"",ROUND(AVERAGE('T1'!C84,'T2'!C84,'A1'!C84,'A2'!C84),2),""),"") -> 1.5 | P15: =IF(Data_Sheet!A79<>"",ROUND(SUM('T1'!C84,'T2'!C84,'A1'!C84,'A2'!C84)/4,2),"") -> 0.75
B16: =IF(Data_Sheet!A80<>"",Data_Sheet!A80,"") -> CO4 | C16: =IF(Data_Sheet!A80<>"",'T1'!C85,"") -> 0.79 | D16: =IF(Data_Sheet!A80<>"",'T1'!J85,"") -> 70 | E16: =IF(Data_Sheet!A80<>"",'T2'!C85,"") -> 2.71 | F16: =IF(Data_Sheet!A80<>"",'T2'!J85,"") -> 70 | G16: =IF(Data_Sheet!A80<>"",'T3'!C85,"") -> 0 | H16: =IF(Data_Sheet!A80<>"",'T3'!I85,"") -> 10 | I16: =IF(Data_Sheet!A80<>"",'A1'!C85,"") -> 3 | J16: =IF(Data_Sheet!A80<>"",'A1'!F85,"") -> 10 | K16: =IF(Data_Sheet!A80<>"",'A2'!C85,"") ->  | L16: =IF(Data_Sheet!A80<>"",'A2'!F85,"") -> 0 | M16: 1.72 | N16: =IF(Data_Sheet!A80<>"",IF(M16="","No Correlation",""),"") ->  | O16: =IFERROR(IF(Data_Sheet!A80<>"",ROUND(AVERAGE('T1'!C85,'T2'!C85,'A1'!C85,'A2'!C85),2),""),"") -> 2.17 | P16: =IF(Data_Sheet!A80<>"",ROUND(SUM('T1'!C85,'T2'!C85,'A1'!C85,'A2'!C85)/4,2),"") -> 1.63
B17: =IF(Data_Sheet!A81<>"",Data_Sheet!A81,"") -> CO5 | C17: =IF(Data_Sheet!A81<>"",'T1'!C86,"") -> 0.4 | D17: =IF(Data_Sheet!A81<>"",'T1'!J86,"") -> 50 | E17: =IF(Data_Sheet!A81<>"",'T2'!C86,"") -> 3 | F17: =IF(Data_Sheet!A81<>"",'T2'!J86,"") -> 50 | G17: =IF(Data_Sheet!A81<>"",'T3'!C86,"") -> 0 | H17: =IF(Data_Sheet!A81<>"",'T3'!I86,"") -> 5 | I17: =IF(Data_Sheet!A81<>"",'A1'!C86,"") ->  | J17: =IF(Data_Sheet!A81<>"",'A1'!F86,"") -> 0 | K17: =IF(Data_Sheet!A81<>"",'A2'!C86,"") ->  | L17: =IF(Data_Sheet!A81<>"",'A2'!F86,"") -> 0 | M17: 1.62 | N17: =IF(Data_Sheet!A81<>"",IF(M17="","No Correlation",""),"") ->  | O17: =IFERROR(IF(Data_Sheet!A81<>"",ROUND(AVERAGE('T1'!C86,'T2'!C86,'A1'!C86,'A2'!C86),2),""),"") -> 1.7 | P17: =IF(Data_Sheet!A81<>"",ROUND(SUM('T1'!C86,'T2'!C86,'A1'!C86,'A2'!C86)/4,2),"") -> 0.85
B18: =IF(Data_Sheet!A82<>"",Data_Sheet!A82,"") -> CO6 | C18: =IF(Data_Sheet!A82<>"",'T1'!C87,"") ->  | D18: =IF(Data_Sheet!A82<>"",'T1'!J87,"") -> 0 | E18: =IF(Data_Sheet!A82<>"",'T2'!C87,"") ->  | F18: =IF(Data_Sheet!A82<>"",'T2'!J87,"") -> 0 | G18: =IF(Data_Sheet!A82<>"",'T3'!C87,"") ->  | H18: =IF(Data_Sheet!A82<>"",'T3'!I87,"") -> 0 | I18: =IF(Data_Sheet!A82<>"",'A1'!C87,"") ->  | J18: =IF(Data_Sheet!A82<>"",'A1'!F87,"") -> 0 | K18: =IF(Data_Sheet!A82<>"",'A2'!C87,"") -> 3 | L18: =IF(Data_Sheet!A82<>"",'A2'!F87,"") -> 5 | M18: 3 | N18: =IF(Data_Sheet!A82<>"",IF(M18="","No Correlation",""),"") ->  | O18: =IFERROR(IF(Data_Sheet!A82<>"",ROUND(AVERAGE('T1'!C87,'T2'!C87,'A1'!C87,'A2'!C87),2),""),"") -> 3 | P18: =IF(Data_Sheet!A82<>"",ROUND(SUM('T1'!C87,'T2'!C87,'A1'!C87,'A2'!C87)/4,2),"") -> 0.75
A19: Average of COs | M19: =ROUND(AVERAGE(M13:M18),2) -> 1.99
A20: External Marks Analysis | C20: =IF(Data_Sheet!A77<>"",Data_Sheet!A77,"") -> CO1 | D20: =IF(Data_Sheet!A78<>"",Data_Sheet!A78,"") -> CO2 | E20: =IF(Data_Sheet!A79<>"",Data_Sheet!A79,"") -> CO3 | F20: =IF(Data_Sheet!A80<>"",Data_Sheet!A80,"") -> CO4 | G20: =IF(Data_Sheet!A81<>"",Data_Sheet!A81,"") -> CO5 | H20: =IF(Data_Sheet!A82<>"",Data_Sheet!A82,"") -> CO6 | I20: Average
C21: =IF(Data_Sheet!A77<>"",Data_Sheet!E75,"") -> 3 | D21: =IF(Data_Sheet!A78<>"",Data_Sheet!E75,"") -> 3 | E21: =IF(Data_Sheet!A79<>"",Data_Sheet!E75,"") -> 3 | F21: =IF(Data_Sheet!A80<>"",Data_Sheet!E75,"") -> 3 | G21: =IF(Data_Sheet!A81<>"",Data_Sheet!E75,"") -> 3 | H21: =IF(Data_Sheet!A82<>"",Data_Sheet!E75,"") -> 3 | I21: =ROUND(AVERAGE(C21:H21),2) -> 3
A23: ="Course Outcome Attainment for "&Data_Sheet!A9&" "&Data_Sheet!B9 -> Course Outcome Attainment for EC407 Computer Communication | M23: =ROUND((M19*Data_Sheet!E84+I21*Data_Sheet!E88)/100,2) -> 2.7
A24: =Data_Sheet!A85 -> Attainment Level 1: 60% students scoring more than 60% of the Total Marks
A25: =Data_Sheet!A86 -> Attainment Level 2: 70% students scoring more than 60% of the Total Marks
A26: =Data_Sheet!A87 -> Attainment Level 3: 80% students scoring more than 60% of the Total Marks
K27: =Data_Sheet!B10 -> Name of Faculty : | M27: =Data_Sheet!B11 -> PONMANI RAJA M
K28: =Data_Sheet!B94 -> Dated Signature :
A33: =Data_Sheet!A2 -> Jyothi Engineering College, Cheruthuruthy
A35: =Data_Sheet!A4 -> Department of Electrical & Electronics Engineering
A37: Question Paper & Assignment Quality Analysis
A39: =Data_Sheet!A17 -> S7 EC EC407 Computer Communication 2019-20
A41: Quality Analysis | C41: T1 | D41: ='T1'!F5 -> 50 | E41: T2 | F41: ='T2'!F5 -> 50 | G41: T3 | H41: ='T3'!F5 -> 50 | I41: A1 | J41: ='A1'!E5 -> 10 | K41: A2 | L41: ='A2'!E5 -> 10 | M41: Average Marks % | N41: Remarks
C42: Included | D42: Marks % | E42: Included | F42: Marks % | G42: Included | H42: Marks % | I42: Included | J42: Marks % | K42: Included | L42: Marks % | Q42: L1 | R42: L2 | S42: L3 | T42: L4 | U42: L5 | V42: L6
A43: Blooms Taxonomy Level | B43: 1 | C43: =IF(D43<>0,"Yes","No") -> Yes | D43: =IFERROR(ROUND('T1'!$J134/SUM('T1'!$D$21:'T1'!$I$21)*100,2),0) -> 19.44 | E43: =IF(F43<>0,"Yes","No") -> Yes | F43: =IFERROR(ROUND('T2'!$J134/SUM('T2'!$D$21:'T2'!$I$21)*100,2),0) -> 19.44 | G43: =IF(H43<>0,"Yes","No") -> No | H43: =IFERROR(ROUND('T3'!$I134/SUM('T3'!$D$21:'T3'!$H$21)*100,2),0) -> 0 | I43: =IF(J43<>0,"Yes","No") -> No | J43: =IFERROR(ROUND('A1'!$F134/SUM('A1'!$D$21:'A1'!$E$21)*100,2),0) -> 0 | K43: =IF(L43<>0,"Yes","No") -> No | L43: =IFERROR(ROUND('A2'!$F134/SUM('A2'!$D$21:'A2'!$E$21)*100,2),0) -> 0 | M43: =IF(SUM(D43,F43,H43,J43,L43)=0,"",ROUND((IF(C43="No",0,$D$41*D43)+IF(E43="No",0,$F$41*F43)+IF(G43="No",0,$H$41*H43)+IF(I43="No",0,$J$41*J43)+IF(K43="No",0,$L$41*L43))/(SUM($D$41,$F$41,$H$41,$J$41,$L$41)),2)) -> 11.44 | N43: =IF(M43="","Not Included","") ->  | O43: =($D43*$D$41+$F43*$F$41+$H43*$H$41+$J43*$J$41+$L43*$L$41)/100 -> 19.44 | P43: T1 | Q43: =TRANSPOSE(D43:D48) -> 19.44 | R43: 58.33 | S43: 11.11 | T43: 0 | U43: 0 | V43: 11.11
B44: 2 | C44: Yes | D44: =IFERROR(ROUND('T1'!$J135/SUM('T1'!$D$21:'T1'!$I$21)*100,2),0) -> 58.33 | E44: Yes | F44: =IFERROR(ROUND('T2'!$J135/SUM('T2'!$D$21:'T2'!$I$21)*100,2),0) -> 58.33 | G44: No | H44: =IFERROR(ROUND('T3'!$I135/SUM('T3'!$D$21:'T3'!$H$21)*100,2),0) -> 0 | I44: Yes | J44: =IFERROR(ROUND('A1'!$F135/SUM('A1'!$D$21:'A1'!$E$21)*100,2),0) -> 100 | K44: No | L44: =IFERROR(ROUND('A2'!$F135/SUM('A2'!$D$21:'A2'!$E$21)*100,2),0) -> 0 | M44: =IF(SUM(D44,F44,H44,J44,L44)=0,"",ROUND((IF(C44="No",0,$D$41*D44)+IF(E44="No",0,$F$41*F44)+IF(G44="No",0,$H$41*H44)+IF(I44="No",0,$J$41*J44)+IF(K44="No",0,$L$41*L44))/(SUM($D$41,$F$41,$H$41,$J$41,$L$41)),2)) -> 40.19 | N44: =IF(M44="","Not Included","") ->  | O44: =($D44*$D$41+$F44*$F$41+$H44*$H$41+$J44*$J$41+$L44*$L$41)/100 -> 68.33 | P44: T2 | Q44: =TRANSPOSE(F43:F48) -> 19.44 | R44: 58.33 | S44: 11.11 | T44: 0 | U44: 0 | V44: 11.11
B45: 3 | C45: Yes | D45: =IFERROR(ROUND('T1'!$J136/SUM('T1'!$D$21:'T1'!$I$21)*100,2),0) -> 11.11 | E45: Yes | F45: =IFERROR(ROUND('T2'!$J136/SUM('T2'!$D$21:'T2'!$I$21)*100,2),0) -> 11.11 | G45: No | H45: =IFERROR(ROUND('T3'!$I136/SUM('T3'!$D$21:'T3'!$H$21)*100,2),0) -> 0 | I45: No | J45: =IFERROR(ROUND('A1'!$F136/SUM('A1'!$D$21:'A1'!$E$21)*100,2),0) -> 0 | K45: No | L45: =IFERROR(ROUND('A2'!$F136/SUM('A2'!$D$21:'A2'!$E$21)*100,2),0) -> 0 | M45: 6.54 | N45: =IF(M45="","Not Included","") ->  | O45: 11.11 | P45: T3 | Q45: =TRANSPOSE(H43:H48) -> 0 | R45: 0 | S45: 0 | T45: 0 | U45: 60 | V45: 40
B46: 4 | C46: No | D46: =IFERROR(ROUND('T1'!$J137/SUM('T1'!$D$21:'T1'!$I$21)*100,2),0) -> 0 | E46: No | F46: =IFERROR(ROUND('T2'!$J137/SUM('T2'!$D$21:'T2'!$I$21)*100,2),0) -> 0 | G46: No | H46: =IFERROR(ROUND('T3'!$I137/SUM('T3'!$D$21:'T3'!$H$21)*100,2),0) -> 0 | I46: No | J46: =IFERROR(ROUND('A1'!$F137/SUM('A1'!$D$21:'A1'!$E$21)*100,2),0) -> 0 | K46: Yes | L46: =IFERROR(ROUND('A2'!$F137/SUM('A2'!$D$21:'A2'!$E$21)*100,2),0) -> 25 | M46: 1.47 | O46: 2.5 | P46: A1 | Q46: =TRANSPOSE(J43:J48) -> 0 | R46: 100 | S46: 0 | T46: 0 | U46: 0 | V46: 0
B47: 5 | C47: No | D47: =IFERROR(ROUND('T1'!$J138/SUM('T1'!$D$21:'T1'!$I$21)*100,2),0) -> 0 | E47: No | F47: =IFERROR(ROUND('T2'!$J138/SUM('T2'!$D$21:'T2'!$I$21)*100,2),0) -> 0 | G47: Yes | H47: =IFERROR(ROUND('T3'!$I138/SUM('T3'!$D$21:'T3'!$H$21)*100,2),0) -> 60 | I47: No | J47: =IFERROR(ROUND('A1'!$F138/SUM('A1'!$D$21:'A1'!$E$21)*100,2),0) -> 0 | K47: Yes | L47: =IFERROR(ROUND('A2'!$F138/SUM('A2'!$D$21:'A2'!$E$21)*100,2),0) -> 50 | M47: 20.59 | O47: 35 | P47: A2 | Q47: =TRANSPOSE(L43:L48) -> 0 | R47: 0 | S47: 0 | T47: 25 | U47: 50 | V47: 25
B48: 6 | C48: Yes | D48: =IFERROR(ROUND('T1'!$J139/SUM('T1'!$D$21:'T1'!$I$21)*100,2),0) -> 11.11 | E48: Yes | F48: =IFERROR(ROUND('T2'!$J139/SUM('T2'!$D$21:'T2'!$I$21)*100,2),0) -> 11.11 | G48: Yes | H48: =IFERROR(ROUND('T3'!$I139/SUM('T3'!$D$21:'T3'!$H$21)*100,2),0) -> 40 | I48: No | J48: =IFERROR(ROUND('A1'!$F139/SUM('A1'!$D$21:'A1'!$E$21)*100,2),0) -> 0 | K48: Yes | L48: =IFERROR(ROUND('A2'!$F139/SUM('A2'!$D$21:'A2'!$E$21)*100,2),0) -> 25 | M48: 19.77 | O48: 33.61 | P48: Average | Q48: =TRANSPOSE(M43:M48) -> 11.44 | R48: 40.19 | S48: 6.54 | T48: 1.47 | U48: 20.59 | V48: 19.77
K60: =Data_Sheet!B10 -> Name of Faculty : | L60: =Data_Sheet!B11 -> PONMANI RAJA M
K61: =Data_Sheet!B94 -> Dated Signature :
